Workbook

Sheet TEST PAGE (hidden)
C1: USM | D1: CSI | E1: NWC | F1: UAM | G1: L&C | H1: BGSU | I1: MTSU | J1: PLNU | AV1: Head to Head | AW1: H/L | AX1: 7th Tourn. | AY1: 8th Tourn.
A2: Participant Count | C2: =IF(COUNTIFS(C$4:C$1000,"<>"),COUNTIFS(C$4:C$1000,"<>")," ") -> 22 | D2: =IF(COUNTIFS(D$4:D$1000,"<>"),COUNTIFS(D$4:D$1000,"<>")," ") -> 11 | E2: 5 | F2: 5 | G2: 5 | I2: 8 | J2: 4 | K2: 11 | L2: 3 | M2: 4 | N2: 9 | O2: 6 | P2: 5 | Q2: 6 | R2: 2 | S2: 6 | T2: 9 | U2: 3 | V2: 2 | W2: 6 | X2: 1 | Y2: 13 | Z2: 2 | AB2: 4 | AC2: 5 | AH2: 1
B3: Novice Indivudual | C3: USM (9/25-26) | D3: CSI (9/24-25) | E3: NW College (9/24-25) | F3: UAM (10/8-10) | G3: L & C / Whitman (10/8-10) | H3: BGSU (10/16-17) | I3: MTSU (10/22-23) | J3: PLNU (10/22-23) | AR3: over 6/2nd host | AS3: Total Points | AT3: Tournament Count | AU3: Best Top 6 | AV3: 1st Tie Breaker | AW3: 2nd Tie Breaker | AX3: 3rd Tie Breaker | AY3: 4th Tie Breaker | AZ3: 5th Tie Breaker
A4: =IF(ISBLANK(B4)," ",(LEFT(B4,FIND("@",SUBSTITUTE(B4,"-","@",LEN(B4)-LEN(SUBSTITUTE(B4,"-",""))))-1))) -> UT | B4: UT- Jenkins | F4: 4 | I4: 13 | M4: 11 | O4: 16 | Q4: 13 | AS4: =SUM($C4:$AR4) -> 57 | AT4: =COUNTA(C4:AQ4) -> 5 | AU4: =IF($AT4<=6,SUM($C4:$AQ4),SUMPRODUCT(LARGE($C4:$AQ4,{1,2,3,4,5,6}))) -> 57 | AV4: =IF(AND($AT4>=6,AU4=AU5),"Manual Calc Needed","") ->  | AW4: =IF(AND($AT4>=6,$AV4="Tie"),"Manual Calc Needed"," ") ->  | AX4: =IFERROR(SUMPRODUCT(LARGE($C4:$AQ4,{1,2,3,4})), "") -> 53 | AY4: =IF(AND($AT4>=6,$AV4="Tie",AX4=AX5),"Manual Calc Needed"," ") ->  | AZ4: =IFERROR(SUMPRODUCT(LARGE($C4:$AQ4,{1,2,3,4,5,6,7,8})), "") -> 
A5: =IF(ISBLANK(B5)," ",(LEFT(B5,FIND("@",SUBSTITUTE(B5,"-","@",LEN(B5)-LEN(SUBSTITUTE(B5,"-",""))))-1))) -> Lee | B5: Lee- Kinder | I5: 5 | K5: 11 | N5: 8 | S5: 5 | T5: 10 | W5: 7 | Y5: 6 | AC5: 15 | AR5: -10 | AS5: =SUM($C5:$AR5) -> 57 | AT5: =COUNTA(C5:AQ5) -> 8 | AU5: =IF($AT5<=6,SUM($C5:$AQ5),SUMPRODUCT(LARGE($C5:$AQ5,{1,2,3,4,5,6}))) -> 57 | AV5: =IF(AND($AT5>=6,AU5=AU6),"Manual Calc Needed","") ->  | AX5: =IFERROR(SUMPRODUCT(LARGE($C5:$AQ5,{1,2,3,4})), "") -> 44 | AY5: =IF(AND($AT5>=6,$AV5="Tie",AX5=AX6),"Manual Calc Needed"," ") ->  | AZ5: =IFERROR(SUMPRODUCT(LARGE($C5:$AQ5,{1,2,3,4,5,6,7,8})), "") -> 67
A6: UCA | B6: UCA- King | D6: 5 | F6: 8 | K6: 8 | T6: 12 | Y6: 9 | AB6: 7 | AS6: 49 | AT6: =COUNTA(C6:AQ6) -> 6 | AU6: =IF($AT6<=6,SUM($C6:$AQ6),SUMPRODUCT(LARGE($C6:$AQ6,{1,2,3,4,5,6}))) -> 49 | AX6: =IFERROR(SUMPRODUCT(LARGE($C6:$AQ6,{1,2,3,4})), "") -> 37 | AZ6: =IFERROR(SUMPRODUCT(LARGE($C6:$AQ6,{1,2,3,4,5,6,7,8})), "") -> 
A7: OkBU | B7: OkBU- Webber | D7: 7 | E7: 4 | K7: 17 | Q7: 3 | W7: 8 | AB7: 8 | AS7: 47 | AT7: 6 | AU7: =IF($AT7<=6,SUM($C7:$AQ7),SUMPRODUCT(LARGE($C7:$AQ7,{1,2,3,4,5,6}))) -> 47 | AX7: =IFERROR(SUMPRODUCT(LARGE($C7:$AQ7,{1,2,3,4})), "") -> 40 | AZ7: =IFERROR(SUMPRODUCT(LARGE($C7:$AQ7,{1,2,3,4,5,6,7,8})), "") -> 
A8: LTU | B8: LTU- Dean | I8: 5 | K8: 7 | N8: 13 | Q8: 3 | T8: 5 | Y8: 2 | AC8: 13 | AR8: -2 | AS8: 46 | AT8: 7 | AU8: =IF($AT8<=6,SUM($C8:$AQ8),SUMPRODUCT(LARGE($C8:$AQ8,{1,2,3,4,5,6}))) -> 46 | AX8: =IFERROR(SUMPRODUCT(LARGE($C8:$AQ8,{1,2,3,4})), "") -> 38 | AZ8: =IFERROR(SUMPRODUCT(LARGE($C8:$AQ8,{1,2,3,4,5,6,7,8})), "") -> 
A9: SMU | B9: SMU- Waite | E9: 5 | L9: 12 | N9: 7 | W9: 4 | Y9: 8 | AC9: 8 | AS9: 44 | AT9: 6 | AU9: =IF($AT9<=6,SUM($C9:$AQ9),SUMPRODUCT(LARGE($C9:$AQ9,{1,2,3,4,5,6}))) -> 44 | AV9: Manual Calc Needed | AX9: =IFERROR(SUMPRODUCT(LARGE($C9:$AQ9,{1,2,3,4})), "") -> 35 | AZ9: =IFERROR(SUMPRODUCT(LARGE($C9:$AQ9,{1,2,3,4,5,6,7,8})), "") -> 
A10: USM | B10: USM- Duley | F10: 5 | S10: 9 | T10: 15 | Y10: 15 | AS10: 44 | AT10: 4 | AU10: =IF($AT10<=6,SUM($C10:$AQ10),SUMPRODUCT(LARGE($C10:$AQ10,{1,2,3,4,5,6}))) -> 44 | AX10: =IFERROR(SUMPRODUCT(LARGE($C10:$AQ10,{1,2,3,4})), "") -> 44 | AZ10: =IFERROR(SUMPRODUCT(LARGE($C10:$AQ10,{1,2,3,4,5,6,7,8})), "") -> 
A11: UU | B11: UU- Huddleston | D11: 15 | F11: 4 | I11: 15 | M11: 5 | AS11: 39 | AT11: 4 | AU11: =IF($AT11<=6,SUM($C11:$AQ11),SUMPRODUCT(LARGE($C11:$AQ11,{1,2,3,4,5,6}))) -> 39 | AX11: =IFERROR(SUMPRODUCT(LARGE($C11:$AQ11,{1,2,3,4})), "") -> 39 | AZ11: =IFERROR(SUMPRODUCT(LARGE($C11:$AQ11,{1,2,3,4,5,6,7,8})), "") -> 
A12: SFA | B12: SFA- Kemp | K12: 8 | L12: 8 | N12: 4 | W12: 5 | Y12: 6 | AC12: 6 | AS12: 37 | AT12: 6 | AU12: =IF($AT12<=6,SUM($C12:$AQ12),SUMPRODUCT(LARGE($C12:$AQ12,{1,2,3,4,5,6}))) -> 37 | AX12: =IFERROR(SUMPRODUCT(LARGE($C12:$AQ12,{1,2,3,4})), "") -> 28 | AZ12: =IFERROR(SUMPRODUCT(LARGE($C12:$AQ12,{1,2,3,4,5,6,7,8})), "") -> 
A13: LC | B13: LC- Baugh | E13: 7 | K13: 9 | N13: 7 | Y13: 13 | AS13: 36 | AT13: 4 | AU13: =IF($AT13<=6,SUM($C13:$AQ13),SUMPRODUCT(LARGE($C13:$AQ13,{1,2,3,4,5,6}))) -> 36 | AX13: =IFERROR(SUMPRODUCT(LARGE($C13:$AQ13,{1,2,3,4})), "") -> 36 | AZ13: =IFERROR(SUMPRODUCT(LARGE($C13:$AQ13,{1,2,3,4,5,6,7,8})), "") -> 
A14: LTU | B14: LTU- Kruskie | D14: 6 | I14: 6 | K14: 4 | N14: 7 | Q14: 7 | T14: 5 | Y14: 5 | AR14: -4 | AS14: 36 | AT14: 7 | AU14: =IF($AT14<=6,SUM($C14:$AQ14),SUMPRODUCT(LARGE($C14:$AQ14,{1,2,3,4,5,6}))) -> 36 | AX14: =IFERROR(SUMPRODUCT(LARGE($C14:$AQ14,{1,2,3,4})), "") -> 26 | AZ14: =IFERROR(SUMPRODUCT(LARGE($C14:$AQ14,{1,2,3,4,5,6,7,8})), "") -> 
A15: UU | B15: UU- Thompson | D15: 8 | I15: 7 | O15: 15 | Y15: 4 | AS15: 34 | AT15: 4 | AU15: =IF($AT15<=6,SUM($C15:$AQ15),SUMPRODUCT(LARGE($C15:$AQ15,{1,2,3,4,5,6}))) -> 34 | AX15: =IFERROR(SUMPRODUCT(LARGE($C15:$AQ15,{1,2,3,4})), "") -> 34 | AZ15: =IFERROR(SUMPRODUCT(LARGE($C15:$AQ15,{1,2,3,4,5,6,7,8})), "") -> 
A16: BPCC | B16: BPCC- Stoneman | D16: 3 | E16: 4 | I16: 3 | K16: 3 | N16: 8 | S16: 6 | T16: 9 | AR16: -3 | AS16: 33 | AT16: 7 | AU16: =IF($AT16<=6,SUM($C16:$AQ16),SUMPRODUCT(LARGE($C16:$AQ16,{1,2,3,4,5,6}))) -> 33 | AX16: =IFERROR(SUMPRODUCT(LARGE($C16:$AQ16,{1,2,3,4})), "") -> 27 | AZ16: =IFERROR(SUMPRODUCT(LARGE($C16:$AQ16,{1,2,3,4,5,6,7,8})), "") -> 
A17: OkBU | B17: OkBU- Pipes | D17: 3 | E17: 3 | K17: 9 | Q17: 4 | W17: 2 | AB17: 10 | AS17: 31 | AT17: 6 | AU17: =IF($AT17<=6,SUM($C17:$AQ17),SUMPRODUCT(LARGE($C17:$AQ17,{1,2,3,4,5,6}))) -> 31 | AV17: Manual Calc Needed | AX17: =IFERROR(SUMPRODUCT(LARGE($C17:$AQ17,{1,2,3,4})), "") -> 26 | AZ17: =IFERROR(SUMPRODUCT(LARGE($C17:$AQ17,{1,2,3,4,5,6,7,8})), "") -> 
A18: UU | B18: UU- Sheilley | D18: 9 | M18: 10 | O18: 10 | Y18: 2 | AS18: 31 | AT18: 4 | AU18: =IF($AT18<=6,SUM($C18:$AQ18),SUMPRODUCT(LARGE($C18:$AQ18,{1,2,3,4,5,6}))) -> 31 | AX18: =IFERROR(SUMPRODUCT(LARGE($C18:$AQ18,{1,2,3,4})), "") -> 31 | AZ18: =IFERROR(SUMPRODUCT(LARGE($C18:$AQ18,{1,2,3,4,5,6,7,8})), "") -> 
A19: NACC | B19: NACC- Ivy | D19: 3 | K19: 3 | S19: 4 | T19: 7 | Y19: 11 | AS19: 28 | AT19: 5 | AU19: =IF($AT19<=6,SUM($C19:$AQ19),SUMPRODUCT(LARGE($C19:$AQ19,{1,2,3,4,5,6}))) -> 28 | AX19: =IFERROR(SUMPRODUCT(LARGE($C19:$AQ19,{1,2,3,4})), "") -> 25 | AZ19: =IFERROR(SUMPRODUCT(LARGE($C19:$AQ19,{1,2,3,4,5,6,7,8})), "") -> 
A20: WhU | B20: WhU- Lorenc | G20: 11 | J20: 5 | P20: 12 | AS20: 28 | AT20: 3 | AU20: =IF($AT20<=6,SUM($C20:$AQ20),SUMPRODUCT(LARGE($C20:$AQ20,{1,2,3,4,5,6}))) -> 28 | AX20: =IFERROR(SUMPRODUCT(LARGE($C20:$AQ20,{1,2,3,4})), "") ->  | AZ20: =IFERROR(SUMPRODUCT(LARGE($C20:$AQ20,{1,2,3,4,5,6,7,8})), "") -> 
A21: ACU | B21: ACU- Kahongo | L21: 11 | N21: 13 | X21: 2 | AS21: 26 | AT21: 3 | AU21: =IF($AT21<=6,SUM($C21:$AQ21),SUMPRODUCT(LARGE($C21:$AQ21,{1,2,3,4,5,6}))) -> 26 | AX21: =IFERROR(SUMPRODUCT(LARGE($C21:$AQ21,{1,2,3,4})), "") ->  | AZ21: =IFERROR(SUMPRODUCT(LARGE($C21:$AQ21,{1,2,3,4,5,6,7,8})), "") -> 
A22: LCC | B22: LCC- Brown | G22: 2 | P22: 4 | R22: 8 | U22: 8 | Z22: 4 | AS22: 26 | AT22: 5 | AU22: =IF($AT22<=6,SUM($C22:$AQ22),SUMPRODUCT(LARGE($C22:$AQ22,{1,2,3,4,5,6}))) -> 26 | AX22: =IFERROR(SUMPRODUCT(LARGE($C22:$AQ22,{1,2,3,4})), "") -> 24 | AZ22: =IFERROR(SUMPRODUCT(LARGE($C22:$AQ22,{1,2,3,4,5,6,7,8})), "") -> 
A23: UT | B23: UT- Winningham | F23: 3 | I23: 6 | O23: 3 | Q23: 7 | V23: 7 | AS23: 26 | AT23: 5 | AU23: =IF($AT23<=6,SUM($C23:$AQ23),SUMPRODUCT(LARGE($C23:$AQ23,{1,2,3,4,5,6}))) -> 26 | AX23: =IFERROR(SUMPRODUCT(LARGE($C23:$AQ23,{1,2,3,4})), "") -> 23 | AZ23: =IFERROR(SUMPRODUCT(LARGE($C23:$AQ23,{1,2,3,4,5,6,7,8})), "") -> 
A24: WhU | B24: WhU- Plunkett | G24: 3 | J24: 3 | P24: 3 | U24: 3 | Y24: 9 | AH24: 5 | AS24: 26 | AT24: 6 | AU24: =IF($AT24<=6,SUM($C24:$AQ24),SUMPRODUCT(LARGE($C24:$AQ24,{1,2,3,4,5,6}))) -> 26 | AX24: =IFERROR(SUMPRODUCT(LARGE($C24:$AQ24,{1,2,3,4})), "") -> 20 | AZ24: =IFERROR(SUMPRODUCT(LARGE($C24:$AQ24,{1,2,3,4,5,6,7,8})), "") -> 
A25: CoM | B25: CoM- Pannell | D25: 4 | K25: 4 | N25: 11 | S25: 6 | AS25: 25 | AT25: 4 | AU25: =IF($AT25<=6,SUM($C25:$AQ25),SUMPRODUCT(LARGE($C25:$AQ25,{1,2,3,4,5,6}))) -> 25 | AX25: =IFERROR(SUMPRODUCT(LARGE($C25:$AQ25,{1,2,3,4})), "") -> 25 | AZ25: =IFERROR(SUMPRODUCT(LARGE($C25:$AQ25,{1,2,3,4,5,6,7,8})), "") -> 
A26: LCC | B26: LCC- Mahoney | G26: 2 | J26: 3 | P26: 7 | R26: 4 | U26: 3 | Z26: 6 | AS26: 25 | AT26: 6 | AU26: =IF($AT26<=6,SUM($C26:$AQ26),SUMPRODUCT(LARGE($C26:$AQ26,{1,2,3,4,5,6}))) -> 25 | AV26: Manual Calc Needed | AX26: =IFERROR(SUMPRODUCT(LARGE($C26:$AQ26,{1,2,3,4})), "") -> 20 | AZ26: =IFERROR(SUMPRODUCT(LARGE($C26:$AQ26,{1,2,3,4,5,6,7,8})), "") -> 
A27: LCC | B27: LCC- Tovar | G27: 5 | J27: 11 | P27: 9 | AS27: 25 | AT27: 3 | AU27: =IF($AT27<=6,SUM($C27:$AQ27),SUMPRODUCT(LARGE($C27:$AQ27,{1,2,3,4,5,6}))) -> 25 | AX27: =IFERROR(SUMPRODUCT(LARGE($C27:$AQ27,{1,2,3,4})), "") ->  | AZ27: =IFERROR(SUMPRODUCT(LARGE($C27:$AQ27,{1,2,3,4,5,6,7,8})), "") -> 
A28: MiSU | B28: MiSU- Kroneberger | O28: 3 | T28: 5 | V28: 8 | Y28: 7 | AB28: 2 | AS28: 25 | AT28: 5 | AU28: =IF($AT28<=6,SUM($C28:$AQ28),SUMPRODUCT(LARGE($C28:$AQ28,{1,2,3,4,5,6}))) -> 25 | AX28: =IFERROR(SUMPRODUCT(LARGE($C28:$AQ28,{1,2,3,4})), "") -> 23 | AZ28: =IFERROR(SUMPRODUCT(LARGE($C28:$AQ28,{1,2,3,4,5,6,7,8})), "") -> 
A29: UU | B29: UU- Geary | D29: 11 | M29: 7 | O29: 7 | AS29: 25 | AT29: 3 | AU29: =IF($AT29<=6,SUM($C29:$AQ29),SUMPRODUCT(LARGE($C29:$AQ29,{1,2,3,4,5,6}))) -> 25 | AX29: =IFERROR(SUMPRODUCT(LARGE($C29:$AQ29,{1,2,3,4})), "") ->  | AZ29: =IFERROR(SUMPRODUCT(LARGE($C29:$AQ29,{1,2,3,4,5,6,7,8})), "") -> 
A30: BPCC | B30: BPCC- Robison | S30: 1 | T30: 1 | W30: 9 | AC30: 13 | AS30: 24 | AT30: 4 | AU30: =IF($AT30<=6,SUM($C30:$AQ30),SUMPRODUCT(LARGE($C30:$AQ30,{1,2,3,4,5,6}))) -> 24 | AX30: =IFERROR(SUMPRODUCT(LARGE($C30:$AQ30,{1,2,3,4})), "") -> 24 | AZ30: =IFERROR(SUMPRODUCT(LARGE($C30:$AQ30,{1,2,3,4,5,6,7,8})), "") -> 
A31: OKBU | B31: OKBU- Jenkins | C31: 3 | AS31: 3 | AT31: 1 | AU31: =IF($AT31<=6,SUM($C31:$AQ31),SUMPRODUCT(LARGE($C31:$AQ31,{1,2,3,4,5,6}))) -> 3 | AX31: =IFERROR(SUMPRODUCT(LARGE($C31:$AQ31,{1,2,3,4})), "") ->  | AZ31: =IFERROR(SUMPRODUCT(LARGE($C31:$AQ31,{1,2,3,4,5,6,7,8})), "") -> 
A32: OKBU | B32: OKBU- Kolacny | C32: 3 | AS32: 3 | AT32: 1 | AU32: =IF($AT32<=6,SUM($C32:$AQ32),SUMPRODUCT(LARGE($C32:$AQ32,{1,2,3,4,5,6}))) -> 3 | AX32: =IFERROR(SUMPRODUCT(LARGE($C32:$AQ32,{1,2,3,4})), "") ->  | AZ32: =IFERROR(SUMPRODUCT(LARGE($C32:$AQ32,{1,2,3,4,5,6,7,8})), "") -> 
A33: OKBU | B33: OKBU- Witt | C33: 2 | AS33: 2 | AT33: 1 | AU33: =IF($AT33<=6,SUM($C33:$AQ33),SUMPRODUCT(LARGE($C33:$AQ33,{1,2,3,4,5,6}))) -> 2 | AX33: =IFERROR(SUMPRODUCT(LARGE($C33:$AQ33,{1,2,3,4})), "") ->  | AZ33: =IFERROR(SUMPRODUCT(LARGE($C33:$AQ33,{1,2,3,4,5,6,7,8})), "") -> 
A34: PU | B34: PU- Powell | C34: 4 | AS34: 4 | AT34: 1 | AU34: =IF($AT34<=6,SUM($C34:$AQ34),SUMPRODUCT(LARGE($C34:$AQ34,{1,2,3,4,5,6}))) -> 4 | AX34: =IFERROR(SUMPRODUCT(LARGE($C34:$AQ34,{1,2,3,4})), "") ->  | AZ34: =IFERROR(SUMPRODUCT(LARGE($C34:$AQ34,{1,2,3,4,5,6,7,8})), "") -> 
A35: SMU | B35: SMU- Hazen | C35: 7 | AS35: 7 | AT35: 1 | AU35: =IF($AT35<=6,SUM($C35:$AQ35),SUMPRODUCT(LARGE($C35:$AQ35,{1,2,3,4,5,6}))) -> 7 | AX35: =IFERROR(SUMPRODUCT(LARGE($C35:$AQ35,{1,2,3,4})), "") ->  | AZ35: =IFERROR(SUMPRODUCT(LARGE($C35:$AQ35,{1,2,3,4,5,6,7,8})), "") -> 
A36: SMU | B36: SMU- LaRoe | C36: 7 | AS36: 7 | AT36: 1 | AU36: =IF($AT36<=6,SUM($C36:$AQ36),SUMPRODUCT(LARGE($C36:$AQ36,{1,2,3,4,5,6}))) -> 7 | AX36: =IFERROR(SUMPRODUCT(LARGE($C36:$AQ36,{1,2,3,4})), "") ->  | AZ36: =IFERROR(SUMPRODUCT(LARGE($C36:$AQ36,{1,2,3,4,5,6,7,8})), "") -> 
A37: UA | B37: UA- Appleton | C37: 2 | AS37: 2 | AT37: 1 | AU37: =IF($AT37<=6,SUM($C37:$AQ37),SUMPRODUCT(LARGE($C37:$AQ37,{1,2,3,4,5,6}))) -> 2 | AX37: =IFERROR(SUMPRODUCT(LARGE($C37:$AQ37,{1,2,3,4})), "") ->  | AZ37: =IFERROR(SUMPRODUCT(LARGE($C37:$AQ37,{1,2,3,4,5,6,7,8})), "") -> 
A38: UA | B38: UA- Hubbard | C38: 2 | AS38: 2 | AT38: 1 | AU38: =IF($AT38<=6,SUM($C38:$AQ38),SUMPRODUCT(LARGE($C38:$AQ38,{1,2,3,4,5,6}))) -> 2 | AX38: =IFERROR(SUMPRODUCT(LARGE($C38:$AQ38,{1,2,3,4})), "") ->  | AZ38: =IFERROR(SUMPRODUCT(LARGE($C38:$AQ38,{1,2,3,4,5,6,7,8})), "") -> 
A39: UA | B39: UA- Jamison | C39: 3 | AS39: 3 | AT39: 1 | AU39: =IF($AT39<=6,SUM($C39:$AQ39),SUMPRODUCT(LARGE($C39:$AQ39,{1,2,3,4,5,6}))) -> 3 | AX39: =IFERROR(SUMPRODUCT(LARGE($C39:$AQ39,{1,2,3,4})), "") ->  | AZ39: =IFERROR(SUMPRODUCT(LARGE($C39:$AQ39,{1,2,3,4,5,6,7,8})), "") -> 
A40: UA | B40: UA- Onisei | C40: 2 | AS40: 2 | AT40: 1 | AU40: =IF($AT40<=6,SUM($C40:$AQ40),SUMPRODUCT(LARGE($C40:$AQ40,{1,2,3,4,5,6}))) -> 2 | AX40: =IFERROR(SUMPRODUCT(LARGE($C40:$AQ40,{1,2,3,4})), "") ->  | AZ40: =IFERROR(SUMPRODUCT(LARGE($C40:$AQ40,{1,2,3,4,5,6,7,8})), "") -> 
A41: UF | B41: UF- Benerjee | C41: 3 | AS41: 3 | AT41: 1 | AU41: =IF($AT41<=6,SUM($C41:$AQ41),SUMPRODUCT(LARGE($C41:$AQ41,{1,2,3,4,5,6}))) -> 3 | AX41: =IFERROR(SUMPRODUCT(LARGE($C41:$AQ41,{1,2,3,4})), "") ->  | AZ41: =IFERROR(SUMPRODUCT(LARGE($C41:$AQ41,{1,2,3,4,5,6,7,8})), "") -> 
A42: UF | B42: UF- Levis Betancour | C42: 2 | AS42: 2 | AT42: 1 | AU42: =IF($AT42<=6,SUM($C42:$AQ42),SUMPRODUCT(LARGE($C42:$AQ42,{1,2,3,4,5,6}))) -> 2 | AX42: =IFERROR(SUMPRODUCT(LARGE($C42:$AQ42,{1,2,3,4})), "") ->  | AZ42: =IFERROR(SUMPRODUCT(LARGE($C42:$AQ42,{1,2,3,4,5,6,7,8})), "") -> 
A43: UNT | B43: UNT- Posca | C43: 3 | AS43: 3 | AT43: 1 | AU43: =IF($AT43<=6,SUM($C43:$AQ43),SUMPRODUCT(LARGE($C43:$AQ43,{1,2,3,4,5,6}))) -> 3 | AX43: =IFERROR(SUMPRODUCT(LARGE($C43:$AQ43,{1,2,3,4})), "") ->  | AZ43: =IFERROR(SUMPRODUCT(LARGE($C43:$AQ43,{1,2,3,4,5,6,7,8})), "") -> 
A44: UTK | B44: UTK- Deshpande | C44: 4 | AS44: 4 | AT44: 1 | AU44: =IF($AT44<=6,SUM($C44:$AQ44),SUMPRODUCT(LARGE($C44:$AQ44,{1,2,3,4,5,6}))) -> 4 | AX44: =IFERROR(SUMPRODUCT(LARGE($C44:$AQ44,{1,2,3,4})), "") ->  | AZ44: =IFERROR(SUMPRODUCT(LARGE($C44:$AQ44,{1,2,3,4,5,6,7,8})), "") -> 
A45: UTK | B45: UTK- Ober | C45: 5 | AS45: 5 | AT45: 1 | AU45: =IF($AT45<=6,SUM($C45:$AQ45),SUMPRODUCT(LARGE($C45:$AQ45,{1,2,3,4,5,6}))) -> 5 | AX45: =IFERROR(SUMPRODUCT(LARGE($C45:$AQ45,{1,2,3,4})), "") ->  | AZ45: =IFERROR(SUMPRODUCT(LARGE($C45:$AQ45,{1,2,3,4,5,6,7,8})), "") -> 
A46: UTK | B46: UTK- Thurber | C46: 3 | AS46: 3 | AT46: 1 | AU46: =IF($AT46<=6,SUM($C46:$AQ46),SUMPRODUCT(LARGE($C46:$AQ46,{1,2,3,4,5,6}))) -> 3 | AX46: =IFERROR(SUMPRODUCT(LARGE($C46:$AQ46,{1,2,3,4})), "") ->  | AZ46: =IFERROR(SUMPRODUCT(LARGE($C46:$AQ46,{1,2,3,4,5,6,7,8})), "") -> 
A47: UTK | B47: UTK- Wilson | C47: 2 | AS47: 2 | AT47: 1 | AU47: =IF($AT47<=6,SUM($C47:$AQ47),SUMPRODUCT(LARGE($C47:$AQ47,{1,2,3,4,5,6}))) -> 2 | AX47: =IFERROR(SUMPRODUCT(LARGE($C47:$AQ47,{1,2,3,4})), "") ->  | AZ47: =IFERROR(SUMPRODUCT(LARGE($C47:$AQ47,{1,2,3,4,5,6,7,8})), "") -> 
A48: WCU | B48: WCU- Abner | C48: 2 | AS48: 2 | AT48: 1 | AU48: =IF($AT48<=6,SUM($C48:$AQ48),SUMPRODUCT(LARGE($C48:$AQ48,{1,2,3,4,5,6}))) -> 2 | AX48: =IFERROR(SUMPRODUCT(LARGE($C48:$AQ48,{1,2,3,4})), "") ->  | AZ48: =IFERROR(SUMPRODUCT(LARGE($C48:$AQ48,{1,2,3,4,5,6,7,8})), "") -> 
A49: WCU | B49: WCU- Bilich | C49: 3 | AS49: 3 | AT49: 1 | AU49: =IF($AT49<=6,SUM($C49:$AQ49),SUMPRODUCT(LARGE($C49:$AQ49,{1,2,3,4,5,6}))) -> 3 | AX49: =IFERROR(SUMPRODUCT(LARGE($C49:$AQ49,{1,2,3,4})), "") ->  | AZ49: =IFERROR(SUMPRODUCT(LARGE($C49:$AQ49,{1,2,3,4,5,6,7,8})), "") -> 
A50: WCU | B50: WCU- Croft | C50: 5 | AS50: 5 | AT50: 1 | AU50: =IF($AT50<=6,SUM($C50:$AQ50),SUMPRODUCT(LARGE($C50:$AQ50,{1,2,3,4,5,6}))) -> 5 | AX50: =IFERROR(SUMPRODUCT(LARGE($C50:$AQ50,{1,2,3,4})), "") ->  | AZ50: =IFERROR(SUMPRODUCT(LARGE($C50:$AQ50,{1,2,3,4,5,6,7,8})), "") -> 
A51: WCU | B51: WCU- Gilbertson | C51: 3 | AS51: 3 | AT51: 1 | AU51: =IF($AT51<=6,SUM($C51:$AQ51),SUMPRODUCT(LARGE($C51:$AQ51,{1,2,3,4,5,6}))) -> 3 | AX51: =IFERROR(SUMPRODUCT(LARGE($C51:$AQ51,{1,2,3,4})), "") ->  | AZ51: =IFERROR(SUMPRODUCT(LARGE($C51:$AQ51,{1,2,3,4,5,6,7,8})), "") -> 
A52: WCU | B52: WCU- Rogers | C52: 3 | AS52: 3 | AT52: 1 | AU52: =IF($AT52<=6,SUM($C52:$AQ52),SUMPRODUCT(LARGE($C52:$AQ52,{1,2,3,4,5,6}))) -> 3 | AX52: =IFERROR(SUMPRODUCT(LARGE($C52:$AQ52,{1,2,3,4})), "") ->  | AZ52: =IFERROR(SUMPRODUCT(LARGE($C52:$AQ52,{1,2,3,4,5,6,7,8})), "") -> 
AS53: 0 | AT53: 0 | AU53: =IF($AT53<=6,SUM($C53:$AQ53),SUMPRODUCT(LARGE($C53:$AQ53,{1,2,3,4,5,6}))) -> 0 | AX53: =IFERROR(SUMPRODUCT(LARGE($C53:$AQ53,{1,2,3,4})), "") ->  | AZ53: =IFERROR(SUMPRODUCT(LARGE($C53:$AQ53,{1,2,3,4,5,6,7,8})), "") -> 
AS54: 0 | AT54: 0 | AU54: =IF($AT54<=6,SUM($C54:$AQ54),SUMPRODUCT(LARGE($C54:$AQ54,{1,2,3,4,5,6}))) -> 0 | AX54: =IFERROR(SUMPRODUCT(LARGE($C54:$AQ54,{1,2,3,4})), "") ->  | AZ54: =IFERROR(SUMPRODUCT(LARGE($C54:$AQ54,{1,2,3,4,5,6,7,8})), "") -> 
AS55: 0 | AT55: 0 | AU55: =IF($AT55<=6,SUM($C55:$AQ55),SUMPRODUCT(LARGE($C55:$AQ55,{1,2,3,4,5,6}))) -> 0 | AX55: =IFERROR(SUMPRODUCT(LARGE($C55:$AQ55,{1,2,3,4})), "") ->  | AZ55: =IFERROR(SUMPRODUCT(LARGE($C55:$AQ55,{1,2,3,4,5,6,7,8})), "") -> 
AS56: 0 | AT56: 0 | AU56: =IF($AT56<=6,SUM($C56:$AQ56),SUMPRODUCT(LARGE($C56:$AQ56,{1,2,3,4,5,6}))) -> 0 | AX56: =IFERROR(SUMPRODUCT(LARGE($C56:$AQ56,{1,2,3,4})), "") ->  | AZ56: =IFERROR(SUMPRODUCT(LARGE($C56:$AQ56,{1,2,3,4,5,6,7,8})), "") -> 
AS57: 0 | AT57: 0 | AU57: =IF($AT57<=6,SUM($C57:$AQ57),SUMPRODUCT(LARGE($C57:$AQ57,{1,2,3,4,5,6}))) -> 0 | AX57: =IFERROR(SUMPRODUCT(LARGE($C57:$AQ57,{1,2,3,4})), "") ->  | AZ57: =IFERROR(SUMPRODUCT(LARGE($C57:$AQ57,{1,2,3,4,5,6,7,8})), "") -> 
AS58: 0 | AT58: 0 | AU58: =IF($AT58<=6,SUM($C58:$AQ58),SUMPRODUCT(LARGE($C58:$AQ58,{1,2,3,4,5,6}))) -> 0 | AX58: =IFERROR(SUMPRODUCT(LARGE($C58:$AQ58,{1,2,3,4})), "") ->  | AZ58: =IFERROR(SUMPRODUCT(LARGE($C58:$AQ58,{1,2,3,4,5,6,7,8})), "") -> 
AS59: 0 | AT59: 0 | AU59: =IF($AT59<=6,SUM($C59:$AQ59),SUMPRODUCT(LARGE($C59:$AQ59,{1,2,3,4,5,6}))) -> 0 | AX59: =IFERROR(SUMPRODUCT(LARGE($C59:$AQ59,{1,2,3,4})), "") ->  | AZ59: =IFERROR(SUMPRODUCT(LARGE($C59:$AQ59,{1,2,3,4,5,6,7,8})), "") -> 
AS60: 0 | AT60: 0 | AU60: =IF($AT60<=6,SUM($C60:$AQ60),SUMPRODUCT(LARGE($C60:$AQ60,{1,2,3,4,5,6}))) -> 0 | AX60: =IFERROR(SUMPRODUCT(LARGE($C60:$AQ60,{1,2,3,4})), "") ->  | AZ60: =IFERROR(SUMPRODUCT(LARGE($C60:$AQ60,{1,2,3,4,5,6,7,8})), "") -> 
AS61: 0 | AT61: 0 | AU61: =IF($AT61<=6,SUM($C61:$AQ61),SUMPRODUCT(LARGE($C61:$AQ61,{1,2,3,4,5,6}))) -> 0 | AX61: =IFERROR(SUMPRODUCT(LARGE($C61:$AQ61,{1,2,3,4})), "") ->  | AZ61: =IFERROR(SUMPRODUCT(LARGE($C61:$AQ61,{1,2,3,4,5,6,7,8})), "") -> 
AS62: 0 | AT62: 0 | AU62: =IF($AT62<=6,SUM($C62:$AQ62),SUMPRODUCT(LARGE($C62:$AQ62,{1,2,3,4,5,6}))) -> 0 | AX62: =IFERROR(SUMPRODUCT(LARGE($C62:$AQ62,{1,2,3,4})), "") ->  | AZ62: =IFERROR(SUMPRODUCT(LARGE($C62:$AQ62,{1,2,3,4,5,6,7,8})), "") -> 
AS63: 0 | AT63: 0 | AU63: =IF($AT63<=6,SUM($C63:$AQ63),SUMPRODUCT(LARGE($C63:$AQ63,{1,2,3,4,5,6}))) -> 0 | AX63: =IFERROR(SUMPRODUCT(LARGE($C63:$AQ63,{1,2,3,4})), "") ->  | AZ63: =IFERROR(SUMPRODUCT(LARGE($C63:$AQ63,{1,2,3,4,5,6,7,8})), "") -> 
AS64: 0 | AT64: 0 | AU64: =IF($AT64<=6,SUM($C64:$AQ64),SUMPRODUCT(LARGE($C64:$AQ64,{1,2,3,4,5,6}))) -> 0 | AX64: =IFERROR(SUMPRODUCT(LARGE($C64:$AQ64,{1,2,3,4})), "") ->  | AZ64: =IFERROR(SUMPRODUCT(LARGE($C64:$AQ64,{1,2,3,4,5,6,7,8})), "") -> 
AS65: 0 | AT65: 0 | AU65: =IF($AT65<=6,SUM($C65:$AQ65),SUMPRODUCT(LARGE($C65:$AQ65,{1,2,3,4,5,6}))) -> 0 | AX65: =IFERROR(SUMPRODUCT(LARGE($C65:$AQ65,{1,2,3,4})), "") ->  | AZ65: =IFERROR(SUMPRODUCT(LARGE($C65:$AQ65,{1,2,3,4,5,6,7,8})), "") -> 
AS66: 0 | AT66: 0 | AU66: =IF($AT66<=6,SUM($C66:$AQ66),SUMPRODUCT(LARGE($C66:$AQ66,{1,2,3,4,5,6}))) -> 0 | AX66: =IFERROR(SUMPRODUCT(LARGE($C66:$AQ66,{1,2,3,4})), "") ->  | AZ66: =IFERROR(SUMPRODUCT(LARGE($C66:$AQ66,{1,2,3,4,5,6,7,8})), "") -> 
AS67: 0 | AT67: 0 | AU67: =IF($AT67<=6,SUM($C67:$AQ67),SUMPRODUCT(LARGE($C67:$AQ67,{1,2,3,4,5,6}))) -> 0 | AX67: =IFERROR(SUMPRODUCT(LARGE($C67:$AQ67,{1,2,3,4})), "") ->  | AZ67: =IFERROR(SUMPRODUCT(LARGE($C67:$AQ67,{1,2,3,4,5,6,7,8})), "") -> 
AS68: 0 | AT68: 0 | AU68: =IF($AT68<=6,SUM($C68:$AQ68),SUMPRODUCT(LARGE($C68:$AQ68,{1,2,3,4,5,6}))) -> 0 | AX68: =IFERROR(SUMPRODUCT(LARGE($C68:$AQ68,{1,2,3,4})), "") ->  | AZ68: =IFERROR(SUMPRODUCT(LARGE($C68:$AQ68,{1,2,3,4,5,6,7,8})), "") -> 
AS69: =SUM($C69:$AR69) -> 0 | AT69: =COUNTA(C69:AQ69) -> 0 | AU69: =IF($AT69<=6,SUM($C69:$AQ69),SUMPRODUCT(LARGE($C69:$AQ69,{1,2,3,4,5,6}))) -> 0 | AV69: =IF(AND($AT69>=6,AU69=AU70),"Manual Calc Needed","") ->  | AW69: =IF(AND($AT69>=6,$AV69="Tie"),"Manual Calc Needed"," ") ->  | AX69: =IFERROR(SUMPRODUCT(LARGE($C69:$AQ69,{1,2,3,4})), "") ->  | AY69: =IF(AND($AT69>=6,$AV69="Tie",AX69=AX70),"Manual Calc Needed"," ") ->  | AZ69: =IFERROR(SUMPRODUCT(LARGE($C69:$AQ69,{1,2,3,4,5,6,7,8})), "") -> 
AS70: 0 | AT70: 0 | AU70: =IF($AT70<=6,SUM($C70:$AQ70),SUMPRODUCT(LARGE($C70:$AQ70,{1,2,3,4,5,6}))) -> 0 | AX70: =IFERROR(SUMPRODUCT(LARGE($C70:$AQ70,{1,2,3,4})), "") ->  | AZ70: =IFERROR(SUMPRODUCT(LARGE($C70:$AQ70,{1,2,3,4,5,6,7,8})), "") -> 
AS71: 0 | AT71: 0 | AU71: =IF($AT71<=6,SUM($C71:$AQ71),SUMPRODUCT(LARGE($C71:$AQ71,{1,2,3,4,5,6}))) -> 0 | AX71: =IFERROR(SUMPRODUCT(LARGE($C71:$AQ71,{1,2,3,4})), "") ->  | AZ71: =IFERROR(SUMPRODUCT(LARGE($C71:$AQ71,{1,2,3,4,5,6,7,8})), "") -> 
AS72: 0 | AT72: 0 | AU72: =IF($AT72<=6,SUM($C72:$AQ72),SUMPRODUCT(LARGE($C72:$AQ72,{1,2,3,4,5,6}))) -> 0 | AX72: =IFERROR(SUMPRODUCT(LARGE($C72:$AQ72,{1,2,3,4})), "") ->  | AZ72: =IFERROR(SUMPRODUCT(LARGE($C72:$AQ72,{1,2,3,4,5,6,7,8})), "") -> 
AS73: 0 | AT73: 0 | AU73: =IF($AT73<=6,SUM($C73:$AQ73),SUMPRODUCT(LARGE($C73:$AQ73,{1,2,3,4,5,6}))) -> 0 | AX73: =IFERROR(SUMPRODUCT(LARGE($C73:$AQ73,{1,2,3,4})), "") ->  | AZ73: =IFERROR(SUMPRODUCT(LARGE($C73:$AQ73,{1,2,3,4,5,6,7,8})), "") -> 
AS74: 0 | AT74: 0 | AU74: =IF($AT74<=6,SUM($C74:$AQ74),SUMPRODUCT(LARGE($C74:$AQ74,{1,2,3,4,5,6}))) -> 0 | AX74: =IFERROR(SUMPRODUCT(LARGE($C74:$AQ74,{1,2,3,4})), "") ->  | AZ74: =IFERROR(SUMPRODUCT(LARGE($C74:$AQ74,{1,2,3,4,5,6,7,8})), "") -> 
AS75: 0 | AT75: 0 | AU75: =IF($AT75<=6,SUM($C75:$AQ75),SUMPRODUCT(LARGE($C75:$AQ75,{1,2,3,4,5,6}))) -> 0 | AX75: =IFERROR(SUMPRODUCT(LARGE($C75:$AQ75,{1,2,3,4})), "") ->  | AZ75: =IFERROR(SUMPRODUCT(LARGE($C75:$AQ75,{1,2,3,4,5,6,7,8})), "") -> 
AS76: 0 | AT76: 0 | AU76: =IF($AT76<=6,SUM($C76:$AQ76),SUMPRODUCT(LARGE($C76:$AQ76,{1,2,3,4,5,6}))) -> 0 | AX76: =IFERROR(SUMPRODUCT(LARGE($C76:$AQ76,{1,2,3,4})), "") ->  | AZ76: =IFERROR(SUMPRODUCT(LARGE($C76:$AQ76,{1,2,3,4,5,6,7,8})), "") -> 
AS77: 0 | AT77: 0 | AU77: =IF($AT77<=6,SUM($C77:$AQ77),SUMPRODUCT(LARGE($C77:$AQ77,{1,2,3,4,5,6}))) -> 0 | AX77: =IFERROR(SUMPRODUCT(LARGE($C77:$AQ77,{1,2,3,4})), "") ->  | AZ77: =IFERROR(SUMPRODUCT(LARGE($C77:$AQ77,{1,2,3,4,5,6,7,8})), "") -> 
AS78: 0 | AT78: 0 | AU78: =IF($AT78<=6,SUM($C78:$AQ78),SUMPRODUCT(LARGE($C78:$AQ78,{1,2,3,4,5,6}))) -> 0 | AX78: =IFERROR(SUMPRODUCT(LARGE($C78:$AQ78,{1,2,3,4})), "") ->  | AZ78: =IFERROR(SUMPRODUCT(LARGE($C78:$AQ78,{1,2,3,4,5,6,7,8})), "") -> 
AS79: 0 | AT79: 0 | AU79: =IF($AT79<=6,SUM($C79:$AQ79),SUMPRODUCT(LARGE($C79:$AQ79,{1,2,3,4,5,6}))) -> 0 | AX79: =IFERROR(SUMPRODUCT(LARGE($C79:$AQ79,{1,2,3,4})), "") ->  | AZ79: =IFERROR(SUMPRODUCT(LARGE($C79:$AQ79,{1,2,3,4,5,6,7,8})), "") -> 
AS80: 0 | AT80: 0 | AU80: =IF($AT80<=6,SUM($C80:$AQ80),SUMPRODUCT(LARGE($C80:$AQ80,{1,2,3,4,5,6}))) -> 0 | AX80: =IFERROR(SUMPRODUCT(LARGE($C80:$AQ80,{1,2,3,4})), "") ->  | AZ80: =IFERROR(SUMPRODUCT(LARGE($C80:$AQ80,{1,2,3,4,5,6,7,8})), "") -> 
AS81: 0 | AT81: 0 | AU81: =IF($AT81<=6,SUM($C81:$AQ81),SUMPRODUCT(LARGE($C81:$AQ81,{1,2,3,4,5,6}))) -> 0 | AX81: =IFERROR(SUMPRODUCT(LARGE($C81:$AQ81,{1,2,3,4})), "") ->  | AZ81: =IFERROR(SUMPRODUCT(LARGE($C81:$AQ81,{1,2,3,4,5,6,7,8})), "") -> 
AS82: 0 | AT82: 0 | AU82: =IF($AT82<=6,SUM($C82:$AQ82),SUMPRODUCT(LARGE($C82:$AQ82,{1,2,3,4,5,6}))) -> 0 | AX82: =IFERROR(SUMPRODUCT(LARGE($C82:$AQ82,{1,2,3,4})), "") ->  | AZ82: =IFERROR(SUMPRODUCT(LARGE($C82:$AQ82,{1,2,3,4,5,6,7,8})), "") -> 
AS83: 0 | AT83: 0 | AU83: =IF($AT83<=6,SUM($C83:$AQ83),SUMPRODUCT(LARGE($C83:$AQ83,{1,2,3,4,5,6}))) -> 0 | AX83: =IFERROR(SUMPRODUCT(LARGE($C83:$AQ83,{1,2,3,4})), "") ->  | AZ83: =IFERROR(SUMPRODUCT(LARGE($C83:$AQ83,{1,2,3,4,5,6,7,8})), "") -> 
AS84: 0 | AT84: 0 | AU84: =IF($AT84<=6,SUM($C84:$AQ84),SUMPRODUCT(LARGE($C84:$AQ84,{1,2,3,4,5,6}))) -> 0 | AX84: =IFERROR(SUMPRODUCT(LARGE($C84:$AQ84,{1,2,3,4})), "") ->  | AZ84: =IFERROR(SUMPRODUCT(LARGE($C84:$AQ84,{1,2,3,4,5,6,7,8})), "") -> 
AS85: 0 | AT85: 0 | AU85: =IF($AT85<=6,SUM($C85:$AQ85),SUMPRODUCT(LARGE($C85:$AQ85,{1,2,3,4,5,6}))) -> 0 | AX85: =IFERROR(SUMPRODUCT(LARGE($C85:$AQ85,{1,2,3,4})), "") ->  | AZ85: =IFERROR(SUMPRODUCT(LARGE($C85:$AQ85,{1,2,3,4,5,6,7,8})), "") -> 
AS86: 0 | AT86: 0 | AU86: =IF($AT86<=6,SUM($C86:$AQ86),SUMPRODUCT(LARGE($C86:$AQ86,{1,2,3,4,5,6}))) -> 0 | AX86: =IFERROR(SUMPRODUCT(LARGE($C86:$AQ86,{1,2,3,4})), "") ->  | AZ86: =IFERROR(SUMPRODUCT(LARGE($C86:$AQ86,{1,2,3,4,5,6,7,8})), "") -> 
AS87: 0 | AT87: 0 | AU87: =IF($AT87<=6,SUM($C87:$AQ87),SUMPRODUCT(LARGE($C87:$AQ87,{1,2,3,4,5,6}))) -> 0 | AX87: =IFERROR(SUMPRODUCT(LARGE($C87:$AQ87,{1,2,3,4})), "") ->  | AZ87: =IFERROR(SUMPRODUCT(LARGE($C87:$AQ87,{1,2,3,4,5,6,7,8})), "") -> 
AS88: 0 | AT88: 0 | AU88: =IF($AT88<=6,SUM($C88:$AQ88),SUMPRODUCT(LARGE($C88:$AQ88,{1,2,3,4,5,6}))) -> 0 | AX88: =IFERROR(SUMPRODUCT(LARGE($C88:$AQ88,{1,2,3,4})), "") ->  | AZ88: =IFERROR(SUMPRODUCT(LARGE($C88:$AQ88,{1,2,3,4,5,6,7,8})), "") -> 
AS89: 0 | AT89: 0 | AU89: =IF($AT89<=6,SUM($C89:$AQ89),SUMPRODUCT(LARGE($C89:$AQ89,{1,2,3,4,5,6}))) -> 0 | AX89: =IFERROR(SUMPRODUCT(LARGE($C89:$AQ89,{1,2,3,4})), "") ->  | AZ89: =IFERROR(SUMPRODUCT(LARGE($C89:$AQ89,{1,2,3,4,5,6,7,8})), "") -> 
AS90: 0 | AT90: 0 | AU90: =IF($AT90<=6,SUM($C90:$AQ90),SUMPRODUCT(LARGE($C90:$AQ90,{1,2,3,4,5,6}))) -> 0 | AX90: =IFERROR(SUMPRODUCT(LARGE($C90:$AQ90,{1,2,3,4})), "") ->  | AZ90: =IFERROR(SUMPRODUCT(LARGE($C90:$AQ90,{1,2,3,4,5,6,7,8})), "") -> 
AS91: 0 | AT91: 0 | AU91: =IF($AT91<=6,SUM($C91:$AQ91),SUMPRODUCT(LARGE($C91:$AQ91,{1,2,3,4,5,6}))) -> 0 | AX91: =IFERROR(SUMPRODUCT(LARGE($C91:$AQ91,{1,2,3,4})), "") ->  | AZ91: =IFERROR(SUMPRODUCT(LARGE($C91:$AQ91,{1,2,3,4,5,6,7,8})), "") -> 
AS92: 0 | AT92: 0 | AU92: =IF($AT92<=6,SUM($C92:$AQ92),SUMPRODUCT(LARGE($C92:$AQ92,{1,2,3,4,5,6}))) -> 0 | AX92: =IFERROR(SUMPRODUCT(LARGE($C92:$AQ92,{1,2,3,4})), "") ->  | AZ92: =IFERROR(SUMPRODUCT(LARGE($C92:$AQ92,{1,2,3,4,5,6,7,8})), "") -> 
AS93: 0 | AT93: 0 | AU93: =IF($AT93<=6,SUM($C93:$AQ93),SUMPRODUCT(LARGE($C93:$AQ93,{1,2,3,4,5,6}))) -> 0 | AX93: =IFERROR(SUMPRODUCT(LARGE($C93:$AQ93,{1,2,3,4})), "") ->  | AZ93: =IFERROR(SUMPRODUCT(LARGE($C93:$AQ93,{1,2,3,4,5,6,7,8})), "") -> 
AS94: 0 | AT94: 0 | AU94: =IF($AT94<=6,SUM($C94:$AQ94),SUMPRODUCT(LARGE($C94:$AQ94,{1,2,3,4,5,6}))) -> 0 | AX94: =IFERROR(SUMPRODUCT(LARGE($C94:$AQ94,{1,2,3,4})), "") ->  | AZ94: =IFERROR(SUMPRODUCT(LARGE($C94:$AQ94,{1,2,3,4,5,6,7,8})), "") -> 
AS95: 0 | AT95: 0 | AU95: =IF($AT95<=6,SUM($C95:$AQ95),SUMPRODUCT(LARGE($C95:$AQ95,{1,2,3,4,5,6}))) -> 0 | AX95: =IFERROR(SUMPRODUCT(LARGE($C95:$AQ95,{1,2,3,4})), "") ->  | AZ95: =IFERROR(SUMPRODUCT(LARGE($C95:$AQ95,{1,2,3,4,5,6,7,8})), "") -> 
AS96: 0 | AT96: 0 | AU96: =IF($AT96<=6,SUM($C96:$AQ96),SUMPRODUCT(LARGE($C96:$AQ96,{1,2,3,4,5,6}))) -> 0 | AX96: =IFERROR(SUMPRODUCT(LARGE($C96:$AQ96,{1,2,3,4})), "") ->  | AZ96: =IFERROR(SUMPRODUCT(LARGE($C96:$AQ96,{1,2,3,4,5,6,7,8})), "") -> 
AS97: 0 | AT97: 0 | AU97: =IF($AT97<=6,SUM($C97:$AQ97),SUMPRODUCT(LARGE($C97:$AQ97,{1,2,3,4,5,6}))) -> 0 | AX97: =IFERROR(SUMPRODUCT(LARGE($C97:$AQ97,{1,2,3,4})), "") ->  | AZ97: =IFERROR(SUMPRODUCT(LARGE($C97:$AQ97,{1,2,3,4,5,6,7,8})), "") -> 
AS98: 0 | AT98: 0 | AU98: =IF($AT98<=6,SUM($C98:$AQ98),SUMPRODUCT(LARGE($C98:$AQ98,{1,2,3,4,5,6}))) -> 0 | AX98: =IFERROR(SUMPRODUCT(LARGE($C98:$AQ98,{1,2,3,4})), "") ->  | AZ98: =IFERROR(SUMPRODUCT(LARGE($C98:$AQ98,{1,2,3,4,5,6,7,8})), "") -> 
AS99: 0 | AT99: 0 | AU99: =IF($AT99<=6,SUM($C99:$AQ99),SUMPRODUCT(LARGE($C99:$AQ99,{1,2,3,4,5,6}))) -> 0 | AX99: =IFERROR(SUMPRODUCT(LARGE($C99:$AQ99,{1,2,3,4})), "") ->  | AZ99: =IFERROR(SUMPRODUCT(LARGE($C99:$AQ99,{1,2,3,4,5,6,7,8})), "") -> 
AS100: 0 | AT100: 0 | AU100: =IF($AT100<=6,SUM($C100:$AQ100),SUMPRODUCT(LARGE($C100:$AQ100,{1,2,3,4,5,6}))) -> 0 | AX100: =IFERROR(SUMPRODUCT(LARGE($C100:$AQ100,{1,2,3,4})), "") ->  | AZ100: =IFERROR(SUMPRODUCT(LARGE($C100:$AQ100,{1,2,3,4,5,6,7,8})), "") -> 
AS101: 0 | AT101: 0 | AU101: =IF($AT101<=6,SUM($C101:$AQ101),SUMPRODUCT(LARGE($C101:$AQ101,{1,2,3,4,5,6}))) -> 0 | AX101: =IFERROR(SUMPRODUCT(LARGE($C101:$AQ101,{1,2,3,4})), "") ->  | AZ101: =IFERROR(SUMPRODUCT(LARGE($C101:$AQ101,{1,2,3,4,5,6,7,8})), "") -> 
AS102: 0 | AT102: 0 | AU102: =IF($AT102<=6,SUM($C102:$AQ102),SUMPRODUCT(LARGE($C102:$AQ102,{1,2,3,4,5,6}))) -> 0 | AX102: =IFERROR(SUMPRODUCT(LARGE($C102:$AQ102,{1,2,3,4})), "") ->  | AZ102: =IFERROR(SUMPRODUCT(LARGE($C102:$AQ102,{1,2,3,4,5,6,7,8})), "") -> 
AS103: 0 | AT103: 0 | AU103: =IF($AT103<=6,SUM($C103:$AQ103),SUMPRODUCT(LARGE($C103:$AQ103,{1,2,3,4,5,6}))) -> 0 | AX103: =IFERROR(SUMPRODUCT(LARGE($C103:$AQ103,{1,2,3,4})), "") ->  | AZ103: =IFERROR(SUMPRODUCT(LARGE($C103:$AQ103,{1,2,3,4,5,6,7,8})), "") -> 
AS104: 0 | AT104: 0 | AU104: =IF($AT104<=6,SUM($C104:$AQ104),SUMPRODUCT(LARGE($C104:$AQ104,{1,2,3,4,5,6}))) -> 0 | AX104: =IFERROR(SUMPRODUCT(LARGE($C104:$AQ104,{1,2,3,4})), "") ->  | AZ104: =IFERROR(SUMPRODUCT(LARGE($C104:$AQ104,{1,2,3,4,5,6,7,8})), "") -> 
AS105: 0 | AT105: 0 | AU105: =IF($AT105<=6,SUM($C105:$AQ105),SUMPRODUCT(LARGE($C105:$AQ105,{1,2,3,4,5,6}))) -> 0 | AX105: =IFERROR(SUMPRODUCT(LARGE($C105:$AQ105,{1,2,3,4})), "") ->  | AZ105: =IFERROR(SUMPRODUCT(LARGE($C105:$AQ105,{1,2,3,4,5,6,7,8})), "") -> 
AS106: 0 | AT106: 0 | AU106: =IF($AT106<=6,SUM($C106:$AQ106),SUMPRODUCT(LARGE($C106:$AQ106,{1,2,3,4,5,6}))) -> 0 | AX106: =IFERROR(SUMPRODUCT(LARGE($C106:$AQ106,{1,2,3,4})), "") ->  | AZ106: =IFERROR(SUMPRODUCT(LARGE($C106:$AQ106,{1,2,3,4,5,6,7,8})), "") -> 
AS107: 0 | AT107: 0 | AU107: =IF($AT107<=6,SUM($C107:$AQ107),SUMPRODUCT(LARGE($C107:$AQ107,{1,2,3,4,5,6}))) -> 0 | AX107: =IFERROR(SUMPRODUCT(LARGE($C107:$AQ107,{1,2,3,4})), "") ->  | AZ107: =IFERROR(SUMPRODUCT(LARGE($C107:$AQ107,{1,2,3,4,5,6,7,8})), "") -> 
AS108: 0 | AT108: 0 | AU108: =IF($AT108<=6,SUM($C108:$AQ108),SUMPRODUCT(LARGE($C108:$AQ108,{1,2,3,4,5,6}))) -> 0 | AX108: =IFERROR(SUMPRODUCT(LARGE($C108:$AQ108,{1,2,3,4})), "") ->  | AZ108: =IFERROR(SUMPRODUCT(LARGE($C108:$AQ108,{1,2,3,4,5,6,7,8})), "") -> 
AS109: 0 | AT109: 0 | AU109: =IF($AT109<=6,SUM($C109:$AQ109),SUMPRODUCT(LARGE($C109:$AQ109,{1,2,3,4,5,6}))) -> 0 | AX109: =IFERROR(SUMPRODUCT(LARGE($C109:$AQ109,{1,2,3,4})), "") ->  | AZ109: =IFERROR(SUMPRODUCT(LARGE($C109:$AQ109,{1,2,3,4,5,6,7,8})), "") -> 
AS110: 0 | AT110: 0 | AU110: =IF($AT110<=6,SUM($C110:$AQ110),SUMPRODUCT(LARGE($C110:$AQ110,{1,2,3,4,5,6}))) -> 0 | AX110: =IFERROR(SUMPRODUCT(LARGE($C110:$AQ110,{1,2,3,4})), "") ->  | AZ110: =IFERROR(SUMPRODUCT(LARGE($C110:$AQ110,{1,2,3,4,5,6,7,8})), "") -> 
AS111: 0 | AT111: 0 | AU111: =IF($AT111<=6,SUM($C111:$AQ111),SUMPRODUCT(LARGE($C111:$AQ111,{1,2,3,4,5,6}))) -> 0 | AX111: =IFERROR(SUMPRODUCT(LARGE($C111:$AQ111,{1,2,3,4})), "") ->  | AZ111: =IFERROR(SUMPRODUCT(LARGE($C111:$AQ111,{1,2,3,4,5,6,7,8})), "") -> 
AS112: 0 | AT112: 0 | AU112: =IF($AT112<=6,SUM($C112:$AQ112),SUMPRODUCT(LARGE($C112:$AQ112,{1,2,3,4,5,6}))) -> 0 | AX112: =IFERROR(SUMPRODUCT(LARGE($C112:$AQ112,{1,2,3,4})), "") ->  | AZ112: =IFERROR(SUMPRODUCT(LARGE($C112:$AQ112,{1,2,3,4,5,6,7,8})), "") -> 
AS113: 0 | AT113: 0 | AU113: =IF($AT113<=6,SUM($C113:$AQ113),SUMPRODUCT(LARGE($C113:$AQ113,{1,2,3,4,5,6}))) -> 0 | AX113: =IFERROR(SUMPRODUCT(LARGE($C113:$AQ113,{1,2,3,4})), "") ->  | AZ113: =IFERROR(SUMPRODUCT(LARGE($C113:$AQ113,{1,2,3,4,5,6,7,8})), "") -> 
AS114: 0 | AT114: 0 | AU114: =IF($AT114<=6,SUM($C114:$AQ114),SUMPRODUCT(LARGE($C114:$AQ114,{1,2,3,4,5,6}))) -> 0 | AX114: =IFERROR(SUMPRODUCT(LARGE($C114:$AQ114,{1,2,3,4})), "") ->  | AZ114: =IFERROR(SUMPRODUCT(LARGE($C114:$AQ114,{1,2,3,4,5,6,7,8})), "") -> 
AS115: 0 | AT115: 0 | AU115: =IF($AT115<=6,SUM($C115:$AQ115),SUMPRODUCT(LARGE($C115:$AQ115,{1,2,3,4,5,6}))) -> 0 | AX115: =IFERROR(SUMPRODUCT(LARGE($C115:$AQ115,{1,2,3,4})), "") ->  | AZ115: =IFERROR(SUMPRODUCT(LARGE($C115:$AQ115,{1,2,3,4,5,6,7,8})), "") -> 
AS116: 0 | AT116: 0 | AU116: =IF($AT116<=6,SUM($C116:$AQ116),SUMPRODUCT(LARGE($C116:$AQ116,{1,2,3,4,5,6}))) -> 0 | AX116: =IFERROR(SUMPRODUCT(LARGE($C116:$AQ116,{1,2,3,4})), "") ->  | AZ116: =IFERROR(SUMPRODUCT(LARGE($C116:$AQ116,{1,2,3,4,5,6,7,8})), "") -> 
AS117: 0 | AT117: 0 | AU117: =IF($AT117<=6,SUM($C117:$AQ117),SUMPRODUCT(LARGE($C117:$AQ117,{1,2,3,4,5,6}))) -> 0 | AX117: =IFERROR(SUMPRODUCT(LARGE($C117:$AQ117,{1,2,3,4})), "") ->  | AZ117: =IFERROR(SUMPRODUCT(LARGE($C117:$AQ117,{1,2,3,4,5,6,7,8})), "") -> 
AS118: 0 | AT118: 0 | AU118: =IF($AT118<=6,SUM($C118:$AQ118),SUMPRODUCT(LARGE($C118:$AQ118,{1,2,3,4,5,6}))) -> 0 | AX118: =IFERROR(SUMPRODUCT(LARGE($C118:$AQ118,{1,2,3,4})), "") ->  | AZ118: =IFERROR(SUMPRODUCT(LARGE($C118:$AQ118,{1,2,3,4,5,6,7,8})), "") -> 
AS119: 0 | AT119: 0 | AU119: =IF($AT119<=6,SUM($C119:$AQ119),SUMPRODUCT(LARGE($C119:$AQ119,{1,2,3,4,5,6}))) -> 0 | AX119: =IFERROR(SUMPRODUCT(LARGE($C119:$AQ119,{1,2,3,4})), "") ->  | AZ119: =IFERROR(SUMPRODUCT(LARGE($C119:$AQ119,{1,2,3,4,5,6,7,8})), "") -> 
AS120: 0 | AT120: 0 | AU120: =IF($AT120<=6,SUM($C120:$AQ120),SUMPRODUCT(LARGE($C120:$AQ120,{1,2,3,4,5,6}))) -> 0 | AX120: =IFERROR(SUMPRODUCT(LARGE($C120:$AQ120,{1,2,3,4})), "") ->  | AZ120: =IFERROR(SUMPRODUCT(LARGE($C120:$AQ120,{1,2,3,4,5,6,7,8})), "") -> 
AS121: 0 | AT121: 0 | AU121: =IF($AT121<=6,SUM($C121:$AQ121),SUMPRODUCT(LARGE($C121:$AQ121,{1,2,3,4,5,6}))) -> 0 | AX121: =IFERROR(SUMPRODUCT(LARGE($C121:$AQ121,{1,2,3,4})), "") ->  | AZ121: =IFERROR(SUMPRODUCT(LARGE($C121:$AQ121,{1,2,3,4,5,6,7,8})), "") -> 
AS122: 0 | AT122: 0 | AU122: =IF($AT122<=6,SUM($C122:$AQ122),SUMPRODUCT(LARGE($C122:$AQ122,{1,2,3,4,5,6}))) -> 0 | AX122: =IFERROR(SUMPRODUCT(LARGE($C122:$AQ122,{1,2,3,4})), "") ->  | AZ122: =IFERROR(SUMPRODUCT(LARGE($C122:$AQ122,{1,2,3,4,5,6,7,8})), "") -> 
AS123: 0 | AT123: 0 | AU123: =IF($AT123<=6,SUM($C123:$AQ123),SUMPRODUCT(LARGE($C123:$AQ123,{1,2,3,4,5,6}))) -> 0 | AX123: =IFERROR(SUMPRODUCT(LARGE($C123:$AQ123,{1,2,3,4})), "") ->  | AZ123: =IFERROR(SUMPRODUCT(LARGE($C123:$AQ123,{1,2,3,4,5,6,7,8})), "") -> 
AS124: 0 | AT124: 0 | AU124: =IF($AT124<=6,SUM($C124:$AQ124),SUMPRODUCT(LARGE($C124:$AQ124,{1,2,3,4,5,6}))) -> 0 | AX124: =IFERROR(SUMPRODUCT(LARGE($C124:$AQ124,{1,2,3,4})), "") ->  | AZ124: =IFERROR(SUMPRODUCT(LARGE($C124:$AQ124,{1,2,3,4,5,6,7,8})), "") -> 
AS125: 0 | AT125: 0 | AU125: =IF($AT125<=6,SUM($C125:$AQ125),SUMPRODUCT(LARGE($C125:$AQ125,{1,2,3,4,5,6}))) -> 0 | AX125: =IFERROR(SUMPRODUCT(LARGE($C125:$AQ125,{1,2,3,4})), "") ->  | AZ125: =IFERROR(SUMPRODUCT(LARGE($C125:$AQ125,{1,2,3,4,5,6,7,8})), "") -> 
AS126: 0 | AT126: 0 | AU126: =IF($AT126<=6,SUM($C126:$AQ126),SUMPRODUCT(LARGE($C126:$AQ126,{1,2,3,4,5,6}))) -> 0 | AX126: =IFERROR(SUMPRODUCT(LARGE($C126:$AQ126,{1,2,3,4})), "") ->  | AZ126: =IFERROR(SUMPRODUCT(LARGE($C126:$AQ126,{1,2,3,4,5,6,7,8})), "") -> 
AS127: 0 | AT127: 0 | AU127: =IF($AT127<=6,SUM($C127:$AQ127),SUMPRODUCT(LARGE($C127:$AQ127,{1,2,3,4,5,6}))) -> 0 | AX127: =IFERROR(SUMPRODUCT(LARGE($C127:$AQ127,{1,2,3,4})), "") ->  | AZ127: =IFERROR(SUMPRODUCT(LARGE($C127:$AQ127,{1,2,3,4,5,6,7,8})), "") -> 
AS128: 0 | AT128: 0 | AU128: =IF($AT128<=6,SUM($C128:$AQ128),SUMPRODUCT(LARGE($C128:$AQ128,{1,2,3,4,5,6}))) -> 0 | AX128: =IFERROR(SUMPRODUCT(LARGE($C128:$AQ128,{1,2,3,4})), "") ->  | AZ128: =IFERROR(SUMPRODUCT(LARGE($C128:$AQ128,{1,2,3,4,5,6,7,8})), "") -> 
AS129: 0 | AT129: 0 | AU129: =IF($AT129<=6,SUM($C129:$AQ129),SUMPRODUCT(LARGE($C129:$AQ129,{1,2,3,4,5,6}))) -> 0 | AX129: =IFERROR(SUMPRODUCT(LARGE($C129:$AQ129,{1,2,3,4})), "") ->  | AZ129: =IFERROR(SUMPRODUCT(LARGE($C129:$AQ129,{1,2,3,4,5,6,7,8})), "") -> 
AS130: 0 | AT130: 0 | AU130: =IF($AT130<=6,SUM($C130:$AQ130),SUMPRODUCT(LARGE($C130:$AQ130,{1,2,3,4,5,6}))) -> 0 | AX130: =IFERROR(SUMPRODUCT(LARGE($C130:$AQ130,{1,2,3,4})), "") ->  | AZ130: =IFERROR(SUMPRODUCT(LARGE($C130:$AQ130,{1,2,3,4,5,6,7,8})), "") -> 
AS131: 0 | AT131: 0 | AU131: =IF($AT131<=6,SUM($C131:$AQ131),SUMPRODUCT(LARGE($C131:$AQ131,{1,2,3,4,5,6}))) -> 0 | AX131: =IFERROR(SUMPRODUCT(LARGE($C131:$AQ131,{1,2,3,4})), "") ->  | AZ131: =IFERROR(SUMPRODUCT(LARGE($C131:$AQ131,{1,2,3,4,5,6,7,8})), "") -> 
AS132: 0 | AT132: 0 | AU132: =IF($AT132<=6,SUM($C132:$AQ132),SUMPRODUCT(LARGE($C132:$AQ132,{1,2,3,4,5,6}))) -> 0 | AX132: =IFERROR(SUMPRODUCT(LARGE($C132:$AQ132,{1,2,3,4})), "") ->  | AZ132: =IFERROR(SUMPRODUCT(LARGE($C132:$AQ132,{1,2,3,4,5,6,7,8})), "") -> 
AS133: =SUM($C133:$AR133) -> 0 | AT133: =COUNTA(C133:AQ133) -> 0 | AU133: =IF($AT133<=6,SUM($C133:$AQ133),SUMPRODUCT(LARGE($C133:$AQ133,{1,2,3,4,5,6}))) -> 0 | AV133: =IF(AND($AT133>=6,AU133=AU134),"Manual Calc Needed","") ->  | AW133: =IF(AND($AT133>=6,$AV133="Tie"),"Manual Calc Needed"," ") ->  | AX133: =IFERROR(SUMPRODUCT(LARGE($C133:$AQ133,{1,2,3,4})), "") ->  | AY133: =IF(AND($AT133>=6,$AV133="Tie",AX133=AX134),"Manual Calc Needed"," ") ->  | AZ133: =IFERROR(SUMPRODUCT(LARGE($C133:$AQ133,{1,2,3,4,5,6,7,8})), "") -> 
AS134: 0 | AT134: 0 | AU134: =IF($AT134<=6,SUM($C134:$AQ134),SUMPRODUCT(LARGE($C134:$AQ134,{1,2,3,4,5,6}))) -> 0 | AX134: =IFERROR(SUMPRODUCT(LARGE($C134:$AQ134,{1,2,3,4})), "") ->  | AZ134: =IFERROR(SUMPRODUCT(LARGE($C134:$AQ134,{1,2,3,4,5,6,7,8})), "") -> 
AS135: 0 | AT135: 0 | AU135: =IF($AT135<=6,SUM($C135:$AQ135),SUMPRODUCT(LARGE($C135:$AQ135,{1,2,3,4,5,6}))) -> 0 | AX135: =IFERROR(SUMPRODUCT(LARGE($C135:$AQ135,{1,2,3,4})), "") ->  | AZ135: =IFERROR(SUMPRODUCT(LARGE($C135:$AQ135,{1,2,3,4,5,6,7,8})), "") -> 
AS136: 0 | AT136: 0 | AU136: =IF($AT136<=6,SUM($C136:$AQ136),SUMPRODUCT(LARGE($C136:$AQ136,{1,2,3,4,5,6}))) -> 0 | AX136: =IFERROR(SUMPRODUCT(LARGE($C136:$AQ136,{1,2,3,4})), "") ->  | AZ136: =IFERROR(SUMPRODUCT(LARGE($C136:$AQ136,{1,2,3,4,5,6,7,8})), "") -> 
AS137: 0 | AT137: 0 | AU137: =IF($AT137<=6,SUM($C137:$AQ137),SUMPRODUCT(LARGE($C137:$AQ137,{1,2,3,4,5,6}))) -> 0 | AX137: =IFERROR(SUMPRODUCT(LARGE($C137:$AQ137,{1,2,3,4})), "") ->  | AZ137: =IFERROR(SUMPRODUCT(LARGE($C137:$AQ137,{1,2,3,4,5,6,7,8})), "") -> 
AS138: 0 | AT138: 0 | AU138: =IF($AT138<=6,SUM($C138:$AQ138),SUMPRODUCT(LARGE($C138:$AQ138,{1,2,3,4,5,6}))) -> 0 | AX138: =IFERROR(SUMPRODUCT(LARGE($C138:$AQ138,{1,2,3,4})), "") ->  | AZ138: =IFERROR(SUMPRODUCT(LARGE($C138:$AQ138,{1,2,3,4,5,6,7,8})), "") -> 
AS139: 0 | AT139: 0 | AU139: =IF($AT139<=6,SUM($C139:$AQ139),SUMPRODUCT(LARGE($C139:$AQ139,{1,2,3,4,5,6}))) -> 0 | AX139: =IFERROR(SUMPRODUCT(LARGE($C139:$AQ139,{1,2,3,4})), "") ->  | AZ139: =IFERROR(SUMPRODUCT(LARGE($C139:$AQ139,{1,2,3,4,5,6,7,8})), "") -> 
AS140: 0 | AT140: 0 | AU140: =IF($AT140<=6,SUM($C140:$AQ140),SUMPRODUCT(LARGE($C140:$AQ140,{1,2,3,4,5,6}))) -> 0 | AX140: =IFERROR(SUMPRODUCT(LARGE($C140:$AQ140,{1,2,3,4})), "") ->  | AZ140: =IFERROR(SUMPRODUCT(LARGE($C140:$AQ140,{1,2,3,4,5,6,7,8})), "") -> 
AS141: 0 | AT141: 0 | AU141: =IF($AT141<=6,SUM($C141:$AQ141),SUMPRODUCT(LARGE($C141:$AQ141,{1,2,3,4,5,6}))) -> 0 | AX141: =IFERROR(SUMPRODUCT(LARGE($C141:$AQ141,{1,2,3,4})), "") ->  | AZ141: =IFERROR(SUMPRODUCT(LARGE($C141:$AQ141,{1,2,3,4,5,6,7,8})), "") -> 
AS142: 0 | AT142: 0 | AU142: =IF($AT142<=6,SUM($C142:$AQ142),SUMPRODUCT(LARGE($C142:$AQ142,{1,2,3,4,5,6}))) -> 0 | AX142: =IFERROR(SUMPRODUCT(LARGE($C142:$AQ142,{1,2,3,4})), "") ->  | AZ142: =IFERROR(SUMPRODUCT(LARGE($C142:$AQ142,{1,2,3,4,5,6,7,8})), "") -> 
AS143: 0 | AT143: 0 | AU143: =IF($AT143<=6,SUM($C143:$AQ143),SUMPRODUCT(LARGE($C143:$AQ143,{1,2,3,4,5,6}))) -> 0 | AX143: =IFERROR(SUMPRODUCT(LARGE($C143:$AQ143,{1,2,3,4})), "") ->  | AZ143: =IFERROR(SUMPRODUCT(LARGE($C143:$AQ143,{1,2,3,4,5,6,7,8})), "") -> 
AS144: 0 | AT144: 0 | AU144: =IF($AT144<=6,SUM($C144:$AQ144),SUMPRODUCT(LARGE($C144:$AQ144,{1,2,3,4,5,6}))) -> 0 | AX144: =IFERROR(SUMPRODUCT(LARGE($C144:$AQ144,{1,2,3,4})), "") ->  | AZ144: =IFERROR(SUMPRODUCT(LARGE($C144:$AQ144,{1,2,3,4,5,6,7,8})), "") -> 
AS145: 0 | AT145: 0 | AU145: =IF($AT145<=6,SUM($C145:$AQ145),SUMPRODUCT(LARGE($C145:$AQ145,{1,2,3,4,5,6}))) -> 0 | AX145: =IFERROR(SUMPRODUCT(LARGE($C145:$AQ145,{1,2,3,4})), "") ->  | AZ145: =IFERROR(SUMPRODUCT(LARGE($C145:$AQ145,{1,2,3,4,5,6,7,8})), "") -> 
AS146: 0 | AT146: 0 | AU146: =IF($AT146<=6,SUM($C146:$AQ146),SUMPRODUCT(LARGE($C146:$AQ146,{1,2,3,4,5,6}))) -> 0 | AX146: =IFERROR(SUMPRODUCT(LARGE($C146:$AQ146,{1,2,3,4})), "") ->  | AZ146: =IFERROR(SUMPRODUCT(LARGE($C146:$AQ146,{1,2,3,4,5,6,7,8})), "") -> 
AS147: 0 | AT147: 0 | AU147: =IF($AT147<=6,SUM($C147:$AQ147),SUMPRODUCT(LARGE($C147:$AQ147,{1,2,3,4,5,6}))) -> 0 | AX147: =IFERROR(SUMPRODUCT(LARGE($C147:$AQ147,{1,2,3,4})), "") ->  | AZ147: =IFERROR(SUMPRODUCT(LARGE($C147:$AQ147,{1,2,3,4,5,6,7,8})), "") -> 
AS148: 0 | AT148: 0 | AU148: =IF($AT148<=6,SUM($C148:$AQ148),SUMPRODUCT(LARGE($C148:$AQ148,{1,2,3,4,5,6}))) -> 0 | AX148: =IFERROR(SUMPRODUCT(LARGE($C148:$AQ148,{1,2,3,4})), "") ->  | AZ148: =IFERROR(SUMPRODUCT(LARGE($C148:$AQ148,{1,2,3,4,5,6,7,8})), "") -> 
AS149: 0 | AT149: 0 | AU149: =IF($AT149<=6,SUM($C149:$AQ149),SUMPRODUCT(LARGE($C149:$AQ149,{1,2,3,4,5,6}))) -> 0 | AX149: =IFERROR(SUMPRODUCT(LARGE($C149:$AQ149,{1,2,3,4})), "") ->  | AZ149: =IFERROR(SUMPRODUCT(LARGE($C149:$AQ149,{1,2,3,4,5,6,7,8})), "") -> 
AS150: 0 | AT150: 0 | AU150: =IF($AT150<=6,SUM($C150:$AQ150),SUMPRODUCT(LARGE($C150:$AQ150,{1,2,3,4,5,6}))) -> 0 | AX150: =IFERROR(SUMPRODUCT(LARGE($C150:$AQ150,{1,2,3,4})), "") ->  | AZ150: =IFERROR(SUMPRODUCT(LARGE($C150:$AQ150,{1,2,3,4,5,6,7,8})), "") -> 
AS151: 0 | AT151: 0 | AU151: =IF($AT151<=6,SUM($C151:$AQ151),SUMPRODUCT(LARGE($C151:$AQ151,{1,2,3,4,5,6}))) -> 0 | AX151: =IFERROR(SUMPRODUCT(LARGE($C151:$AQ151,{1,2,3,4})), "") ->  | AZ151: =IFERROR(SUMPRODUCT(LARGE($C151:$AQ151,{1,2,3,4,5,6,7,8})), "") -> 
AS152: 0 | AT152: 0 | AU152: =IF($AT152<=6,SUM($C152:$AQ152),SUMPRODUCT(LARGE($C152:$AQ152,{1,2,3,4,5,6}))) -> 0 | AX152: =IFERROR(SUMPRODUCT(LARGE($C152:$AQ152,{1,2,3,4})), "") ->  | AZ152: =IFERROR(SUMPRODUCT(LARGE($C152:$AQ152,{1,2,3,4,5,6,7,8})), "") -> 
AS153: 0 | AT153: 0 | AU153: =IF($AT153<=6,SUM($C153:$AQ153),SUMPRODUCT(LARGE($C153:$AQ153,{1,2,3,4,5,6}))) -> 0 | AX153: =IFERROR(SUMPRODUCT(LARGE($C153:$AQ153,{1,2,3,4})), "") ->  | AZ153: =IFERROR(SUMPRODUCT(LARGE($C153:$AQ153,{1,2,3,4,5,6,7,8})), "") -> 
AS154: 0 | AT154: 0 | AU154: =IF($AT154<=6,SUM($C154:$AQ154),SUMPRODUCT(LARGE($C154:$AQ154,{1,2,3,4,5,6}))) -> 0 | AX154: =IFERROR(SUMPRODUCT(LARGE($C154:$AQ154,{1,2,3,4})), "") ->  | AZ154: =IFERROR(SUMPRODUCT(LARGE($C154:$AQ154,{1,2,3,4,5,6,7,8})), "") -> 
AS155: 0 | AT155: 0 | AU155: =IF($AT155<=6,SUM($C155:$AQ155),SUMPRODUCT(LARGE($C155:$AQ155,{1,2,3,4,5,6}))) -> 0 | AX155: =IFERROR(SUMPRODUCT(LARGE($C155:$AQ155,{1,2,3,4})), "") ->  | AZ155: =IFERROR(SUMPRODUCT(LARGE($C155:$AQ155,{1,2,3,4,5,6,7,8})), "") -> 
AS156: 0 | AT156: 0 | AU156: =IF($AT156<=6,SUM($C156:$AQ156),SUMPRODUCT(LARGE($C156:$AQ156,{1,2,3,4,5,6}))) -> 0 | AX156: =IFERROR(SUMPRODUCT(LARGE($C156:$AQ156,{1,2,3,4})), "") ->  | AZ156: =IFERROR(SUMPRODUCT(LARGE($C156:$AQ156,{1,2,3,4,5,6,7,8})), "") -> 
AS157: 0 | AT157: 0 | AU157: =IF($AT157<=6,SUM($C157:$AQ157),SUMPRODUCT(LARGE($C157:$AQ157,{1,2,3,4,5,6}))) -> 0 | AX157: =IFERROR(SUMPRODUCT(LARGE($C157:$AQ157,{1,2,3,4})), "") ->  | AZ157: =IFERROR(SUMPRODUCT(LARGE($C157:$AQ157,{1,2,3,4,5,6,7,8})), "") -> 
AS158: 0 | AT158: 0 | AU158: =IF($AT158<=6,SUM($C158:$AQ158),SUMPRODUCT(LARGE($C158:$AQ158,{1,2,3,4,5,6}))) -> 0 | AX158: =IFERROR(SUMPRODUCT(LARGE($C158:$AQ158,{1,2,3,4})), "") ->  | AZ158: =IFERROR(SUMPRODUCT(LARGE($C158:$AQ158,{1,2,3,4,5,6,7,8})), "") -> 
AS159: 0 | AT159: 0 | AU159: =IF($AT159<=6,SUM($C159:$AQ159),SUMPRODUCT(LARGE($C159:$AQ159,{1,2,3,4,5,6}))) -> 0 | AX159: =IFERROR(SUMPRODUCT(LARGE($C159:$AQ159,{1,2,3,4})), "") ->  | AZ159: =IFERROR(SUMPRODUCT(LARGE($C159:$AQ159,{1,2,3,4,5,6,7,8})), "") -> 
AS160: 0 | AT160: 0 | AU160: =IF($AT160<=6,SUM($C160:$AQ160),SUMPRODUCT(LARGE($C160:$AQ160,{1,2,3,4,5,6}))) -> 0 | AX160: =IFERROR(SUMPRODUCT(LARGE($C160:$AQ160,{1,2,3,4})), "") ->  | AZ160: =IFERROR(SUMPRODUCT(LARGE($C160:$AQ160,{1,2,3,4,5,6,7,8})), "") -> 
AS161: 0 | AT161: 0 | AU161: =IF($AT161<=6,SUM($C161:$AQ161),SUMPRODUCT(LARGE($C161:$AQ161,{1,2,3,4,5,6}))) -> 0 | AX161: =IFERROR(SUMPRODUCT(LARGE($C161:$AQ161,{1,2,3,4})), "") ->  | AZ161: =IFERROR(SUMPRODUCT(LARGE($C161:$AQ161,{1,2,3,4,5,6,7,8})), "") -> 
AS162: 0 | AT162: 0 | AU162: =IF($AT162<=6,SUM($C162:$AQ162),SUMPRODUCT(LARGE($C162:$AQ162,{1,2,3,4,5,6}))) -> 0 | AX162: =IFERROR(SUMPRODUCT(LARGE($C162:$AQ162,{1,2,3,4})), "") ->  | AZ162: =IFERROR(SUMPRODUCT(LARGE($C162:$AQ162,{1,2,3,4,5,6,7,8})), "") -> 
AS163: 0 | AT163: 0 | AU163: =IF($AT163<=6,SUM($C163:$AQ163),SUMPRODUCT(LARGE($C163:$AQ163,{1,2,3,4,5,6}))) -> 0 | AX163: =IFERROR(SUMPRODUCT(LARGE($C163:$AQ163,{1,2,3,4})), "") ->  | AZ163: =IFERROR(SUMPRODUCT(LARGE($C163:$AQ163,{1,2,3,4,5,6,7,8})), "") -> 
AS164: 0 | AT164: 0 | AU164: =IF($AT164<=6,SUM($C164:$AQ164),SUMPRODUCT(LARGE($C164:$AQ164,{1,2,3,4,5,6}))) -> 0 | AX164: =IFERROR(SUMPRODUCT(LARGE($C164:$AQ164,{1,2,3,4})), "") ->  | AZ164: =IFERROR(SUMPRODUCT(LARGE($C164:$AQ164,{1,2,3,4,5,6,7,8})), "") -> 
AS165: 0 | AT165: 0 | AU165: =IF($AT165<=6,SUM($C165:$AQ165),SUMPRODUCT(LARGE($C165:$AQ165,{1,2,3,4,5,6}))) -> 0 | AX165: =IFERROR(SUMPRODUCT(LARGE($C165:$AQ165,{1,2,3,4})), "") ->  | AZ165: =IFERROR(SUMPRODUCT(LARGE($C165:$AQ165,{1,2,3,4,5,6,7,8})), "") -> 
AS166: 0 | AT166: 0 | AU166: =IF($AT166<=6,SUM($C166:$AQ166),SUMPRODUCT(LARGE($C166:$AQ166,{1,2,3,4,5,6}))) -> 0 | AX166: =IFERROR(SUMPRODUCT(LARGE($C166:$AQ166,{1,2,3,4})), "") ->  | AZ166: =IFERROR(SUMPRODUCT(LARGE($C166:$AQ166,{1,2,3,4,5,6,7,8})), "") -> 
AS167: 0 | AT167: 0 | AU167: =IF($AT167<=6,SUM($C167:$AQ167),SUMPRODUCT(LARGE($C167:$AQ167,{1,2,3,4,5,6}))) -> 0 | AX167: =IFERROR(SUMPRODUCT(LARGE($C167:$AQ167,{1,2,3,4})), "") ->  | AZ167: =IFERROR(SUMPRODUCT(LARGE($C167:$AQ167,{1,2,3,4,5,6,7,8})), "") -> 
AS168: 0 | AT168: 0 | AU168: =IF($AT168<=6,SUM($C168:$AQ168),SUMPRODUCT(LARGE($C168:$AQ168,{1,2,3,4,5,6}))) -> 0 | AX168: =IFERROR(SUMPRODUCT(LARGE($C168:$AQ168,{1,2,3,4})), "") ->  | AZ168: =IFERROR(SUMPRODUCT(LARGE($C168:$AQ168,{1,2,3,4,5,6,7,8})), "") -> 
AS169: 0 | AT169: 0 | AU169: =IF($AT169<=6,SUM($C169:$AQ169),SUMPRODUCT(LARGE($C169:$AQ169,{1,2,3,4,5,6}))) -> 0 | AX169: =IFERROR(SUMPRODUCT(LARGE($C169:$AQ169,{1,2,3,4})), "") ->  | AZ169: =IFERROR(SUMPRODUCT(LARGE($C169:$AQ169,{1,2,3,4,5,6,7,8})), "") -> 
AS170: 0 | AT170: 0 | AU170: =IF($AT170<=6,SUM($C170:$AQ170),SUMPRODUCT(LARGE($C170:$AQ170,{1,2,3,4,5,6}))) -> 0 | AX170: =IFERROR(SUMPRODUCT(LARGE($C170:$AQ170,{1,2,3,4})), "") ->  | AZ170: =IFERROR(SUMPRODUCT(LARGE($C170:$AQ170,{1,2,3,4,5,6,7,8})), "") -> 
AS171: 0 | AT171: 0 | AU171: =IF($AT171<=6,SUM($C171:$AQ171),SUMPRODUCT(LARGE($C171:$AQ171,{1,2,3,4,5,6}))) -> 0 | AX171: =IFERROR(SUMPRODUCT(LARGE($C171:$AQ171,{1,2,3,4})), "") ->  | AZ171: =IFERROR(SUMPRODUCT(LARGE($C171:$AQ171,{1,2,3,4,5,6,7,8})), "") -> 
AS172: 0 | AT172: 0 | AU172: =IF($AT172<=6,SUM($C172:$AQ172),SUMPRODUCT(LARGE($C172:$AQ172,{1,2,3,4,5,6}))) -> 0 | AX172: =IFERROR(SUMPRODUCT(LARGE($C172:$AQ172,{1,2,3,4})), "") ->  | AZ172: =IFERROR(SUMPRODUCT(LARGE($C172:$AQ172,{1,2,3,4,5,6,7,8})), "") -> 
AS173: 0 | AT173: 0 | AU173: =IF($AT173<=6,SUM($C173:$AQ173),SUMPRODUCT(LARGE($C173:$AQ173,{1,2,3,4,5,6}))) -> 0 | AX173: =IFERROR(SUMPRODUCT(LARGE($C173:$AQ173,{1,2,3,4})), "") ->  | AZ173: =IFERROR(SUMPRODUCT(LARGE($C173:$AQ173,{1,2,3,4,5,6,7,8})), "") -> 
AS174: 0 | AT174: 0 | AU174: =IF($AT174<=6,SUM($C174:$AQ174),SUMPRODUCT(LARGE($C174:$AQ174,{1,2,3,4,5,6}))) -> 0 | AX174: =IFERROR(SUMPRODUCT(LARGE($C174:$AQ174,{1,2,3,4})), "") ->  | AZ174: =IFERROR(SUMPRODUCT(LARGE($C174:$AQ174,{1,2,3,4,5,6,7,8})), "") -> 
AS175: 0 | AT175: 0 | AU175: =IF($AT175<=6,SUM($C175:$AQ175),SUMPRODUCT(LARGE($C175:$AQ175,{1,2,3,4,5,6}))) -> 0 | AX175: =IFERROR(SUMPRODUCT(LARGE($C175:$AQ175,{1,2,3,4})), "") ->  | AZ175: =IFERROR(SUMPRODUCT(LARGE($C175:$AQ175,{1,2,3,4,5,6,7,8})), "") -> 
AS176: 0 | AT176: 0 | AU176: =IF($AT176<=6,SUM($C176:$AQ176),SUMPRODUCT(LARGE($C176:$AQ176,{1,2,3,4,5,6}))) -> 0 | AX176: =IFERROR(SUMPRODUCT(LARGE($C176:$AQ176,{1,2,3,4})), "") ->  | AZ176: =IFERROR(SUMPRODUCT(LARGE($C176:$AQ176,{1,2,3,4,5,6,7,8})), "") -> 
AS177: 0 | AT177: 0 | AU177: =IF($AT177<=6,SUM($C177:$AQ177),SUMPRODUCT(LARGE($C177:$AQ177,{1,2,3,4,5,6}))) -> 0 | AX177: =IFERROR(SUMPRODUCT(LARGE($C177:$AQ177,{1,2,3,4})), "") ->  | AZ177: =IFERROR(SUMPRODUCT(LARGE($C177:$AQ177,{1,2,3,4,5,6,7,8})), "") -> 
AS178: 0 | AT178: 0 | AU178: =IF($AT178<=6,SUM($C178:$AQ178),SUMPRODUCT(LARGE($C178:$AQ178,{1,2,3,4,5,6}))) -> 0 | AX178: =IFERROR(SUMPRODUCT(LARGE($C178:$AQ178,{1,2,3,4})), "") ->  | AZ178: =IFERROR(SUMPRODUCT(LARGE($C178:$AQ178,{1,2,3,4,5,6,7,8})), "") -> 
AS179: 0 | AT179: 0 | AU179: =IF($AT179<=6,SUM($C179:$AQ179),SUMPRODUCT(LARGE($C179:$AQ179,{1,2,3,4,5,6}))) -> 0 | AX179: =IFERROR(SUMPRODUCT(LARGE($C179:$AQ179,{1,2,3,4})), "") ->  | AZ179: =IFERROR(SUMPRODUCT(LARGE($C179:$AQ179,{1,2,3,4,5,6,7,8})), "") -> 
AS180: 0 | AT180: 0 | AU180: =IF($AT180<=6,SUM($C180:$AQ180),SUMPRODUCT(LARGE($C180:$AQ180,{1,2,3,4,5,6}))) -> 0 | AX180: =IFERROR(SUMPRODUCT(LARGE($C180:$AQ180,{1,2,3,4})), "") ->  | AZ180: =IFERROR(SUMPRODUCT(LARGE($C180:$AQ180,{1,2,3,4,5,6,7,8})), "") -> 
AS181: 0 | AT181: 0 | AU181: =IF($AT181<=6,SUM($C181:$AQ181),SUMPRODUCT(LARGE($C181:$AQ181,{1,2,3,4,5,6}))) -> 0 | AX181: =IFERROR(SUMPRODUCT(LARGE($C181:$AQ181,{1,2,3,4})), "") ->  | AZ181: =IFERROR(SUMPRODUCT(LARGE($C181:$AQ181,{1,2,3,4,5,6,7,8})), "") -> 
AS182: 0 | AT182: 0 | AU182: =IF($AT182<=6,SUM($C182:$AQ182),SUMPRODUCT(LARGE($C182:$AQ182,{1,2,3,4,5,6}))) -> 0 | AX182: =IFERROR(SUMPRODUCT(LARGE($C182:$AQ182,{1,2,3,4})), "") ->  | AZ182: =IFERROR(SUMPRODUCT(LARGE($C182:$AQ182,{1,2,3,4,5,6,7,8})), "") -> 
AS183: 0 | AT183: 0 | AU183: =IF($AT183<=6,SUM($C183:$AQ183),SUMPRODUCT(LARGE($C183:$AQ183,{1,2,3,4,5,6}))) -> 0 | AX183: =IFERROR(SUMPRODUCT(LARGE($C183:$AQ183,{1,2,3,4})), "") ->  | AZ183: =IFERROR(SUMPRODUCT(LARGE($C183:$AQ183,{1,2,3,4,5,6,7,8})), "") -> 
AS184: 0 | AT184: 0 | AU184: =IF($AT184<=6,SUM($C184:$AQ184),SUMPRODUCT(LARGE($C184:$AQ184,{1,2,3,4,5,6}))) -> 0 | AX184: =IFERROR(SUMPRODUCT(LARGE($C184:$AQ184,{1,2,3,4})), "") ->  | AZ184: =IFERROR(SUMPRODUCT(LARGE($C184:$AQ184,{1,2,3,4,5,6,7,8})), "") -> 
AS185: 0 | AT185: 0 | AU185: =IF($AT185<=6,SUM($C185:$AQ185),SUMPRODUCT(LARGE($C185:$AQ185,{1,2,3,4,5,6}))) -> 0 | AX185: =IFERROR(SUMPRODUCT(LARGE($C185:$AQ185,{1,2,3,4})), "") ->  | AZ185: =IFERROR(SUMPRODUCT(LARGE($C185:$AQ185,{1,2,3,4,5,6,7,8})), "") -> 
AS186: 0 | AT186: 0 | AU186: =IF($AT186<=6,SUM($C186:$AQ186),SUMPRODUCT(LARGE($C186:$AQ186,{1,2,3,4,5,6}))) -> 0 | AX186: =IFERROR(SUMPRODUCT(LARGE($C186:$AQ186,{1,2,3,4})), "") ->  | AZ186: =IFERROR(SUMPRODUCT(LARGE($C186:$AQ186,{1,2,3,4,5,6,7,8})), "") -> 
AS187: 0 | AT187: 0 | AU187: =IF($AT187<=6,SUM($C187:$AQ187),SUMPRODUCT(LARGE($C187:$AQ187,{1,2,3,4,5,6}))) -> 0 | AX187: =IFERROR(SUMPRODUCT(LARGE($C187:$AQ187,{1,2,3,4})), "") ->  | AZ187: =IFERROR(SUMPRODUCT(LARGE($C187:$AQ187,{1,2,3,4,5,6,7,8})), "") -> 
AS188: 0 | AT188: 0 | AU188: =IF($AT188<=6,SUM($C188:$AQ188),SUMPRODUCT(LARGE($C188:$AQ188,{1,2,3,4,5,6}))) -> 0 | AX188: =IFERROR(SUMPRODUCT(LARGE($C188:$AQ188,{1,2,3,4})), "") ->  | AZ188: =IFERROR(SUMPRODUCT(LARGE($C188:$AQ188,{1,2,3,4,5,6,7,8})), "") -> 
AS189: 0 | AT189: 0 | AU189: =IF($AT189<=6,SUM($C189:$AQ189),SUMPRODUCT(LARGE($C189:$AQ189,{1,2,3,4,5,6}))) -> 0 | AX189: =IFERROR(SUMPRODUCT(LARGE($C189:$AQ189,{1,2,3,4})), "") ->  | AZ189: =IFERROR(SUMPRODUCT(LARGE($C189:$AQ189,{1,2,3,4,5,6,7,8})), "") -> 
AS190: 0 | AT190: 0 | AU190: =IF($AT190<=6,SUM($C190:$AQ190),SUMPRODUCT(LARGE($C190:$AQ190,{1,2,3,4,5,6}))) -> 0 | AX190: =IFERROR(SUMPRODUCT(LARGE($C190:$AQ190,{1,2,3,4})), "") ->  | AZ190: =IFERROR(SUMPRODUCT(LARGE($C190:$AQ190,{1,2,3,4,5,6,7,8})), "") -> 
AS191: 0 | AT191: 0 | AU191: =IF($AT191<=6,SUM($C191:$AQ191),SUMPRODUCT(LARGE($C191:$AQ191,{1,2,3,4,5,6}))) -> 0 | AX191: =IFERROR(SUMPRODUCT(LARGE($C191:$AQ191,{1,2,3,4})), "") ->  | AZ191: =IFERROR(SUMPRODUCT(LARGE($C191:$AQ191,{1,2,3,4,5,6,7,8})), "") -> 
AS192: 0 | AT192: 0 | AU192: =IF($AT192<=6,SUM($C192:$AQ192),SUMPRODUCT(LARGE($C192:$AQ192,{1,2,3,4,5,6}))) -> 0 | AX192: =IFERROR(SUMPRODUCT(LARGE($C192:$AQ192,{1,2,3,4})), "") ->  | AZ192: =IFERROR(SUMPRODUCT(LARGE($C192:$AQ192,{1,2,3,4,5,6,7,8})), "") -> 
AS193: 0 | AT193: 0 | AU193: =IF($AT193<=6,SUM($C193:$AQ193),SUMPRODUCT(LARGE($C193:$AQ193,{1,2,3,4,5,6}))) -> 0 | AX193: =IFERROR(SUMPRODUCT(LARGE($C193:$AQ193,{1,2,3,4})), "") ->  | AZ193: =IFERROR(SUMPRODUCT(LARGE($C193:$AQ193,{1,2,3,4,5,6,7,8})), "") -> 
AS194: 0 | AT194: 0 | AU194: =IF($AT194<=6,SUM($C194:$AQ194),SUMPRODUCT(LARGE($C194:$AQ194,{1,2,3,4,5,6}))) -> 0 | AX194: =IFERROR(SUMPRODUCT(LARGE($C194:$AQ194,{1,2,3,4})), "") ->  | AZ194: =IFERROR(SUMPRODUCT(LARGE($C194:$AQ194,{1,2,3,4,5,6,7,8})), "") -> 
AS195: 0 | AT195: 0 | AU195: =IF($AT195<=6,SUM($C195:$AQ195),SUMPRODUCT(LARGE($C195:$AQ195,{1,2,3,4,5,6}))) -> 0 | AX195: =IFERROR(SUMPRODUCT(LARGE($C195:$AQ195,{1,2,3,4})), "") ->  | AZ195: =IFERROR(SUMPRODUCT(LARGE($C195:$AQ195,{1,2,3,4,5,6,7,8})), "") -> 
AS196: 0 | AT196: 0 | AU196: =IF($AT196<=6,SUM($C196:$AQ196),SUMPRODUCT(LARGE($C196:$AQ196,{1,2,3,4,5,6}))) -> 0 | AX196: =IFERROR(SUMPRODUCT(LARGE($C196:$AQ196,{1,2,3,4})), "") ->  | AZ196: =IFERROR(SUMPRODUCT(LARGE($C196:$AQ196,{1,2,3,4,5,6,7,8})), "") -> 
AS197: =SUM($C197:$AR197) -> 0 | AT197: =COUNTA(C197:AQ197) -> 0 | AU197: =IF($AT197<=6,SUM($C197:$AQ197),SUMPRODUCT(LARGE($C197:$AQ197,{1,2,3,4,5,6}))) -> 0 | AV197: =IF(AND($AT197>=6,AU197=AU198),"Manual Calc Needed","") ->  | AW197: =IF(AND($AT197>=6,$AV197="Tie"),"Manual Calc Needed"," ") ->  | AX197: =IFERROR(SUMPRODUCT(LARGE($C197:$AQ197,{1,2,3,4})), "") ->  | AY197: =IF(AND($AT197>=6,$AV197="Tie",AX197=AX198),"Manual Calc Needed"," ") ->  | AZ197: =IFERROR(SUMPRODUCT(LARGE($C197:$AQ197,{1,2,3,4,5,6,7,8})), "") -> 
AS198: 0 | AT198: 0 | AU198: =IF($AT198<=6,SUM($C198:$AQ198),SUMPRODUCT(LARGE($C198:$AQ198,{1,2,3,4,5,6}))) -> 0 | AX198: =IFERROR(SUMPRODUCT(LARGE($C198:$AQ198,{1,2,3,4})), "") ->  | AZ198: =IFERROR(SUMPRODUCT(LARGE($C198:$AQ198,{1,2,3,4,5,6,7,8})), "") -> 
AS199: 0 | AT199: 0 | AU199: =IF($AT199<=6,SUM($C199:$AQ199),SUMPRODUCT(LARGE($C199:$AQ199,{1,2,3,4,5,6}))) -> 0 | AX199: =IFERROR(SUMPRODUCT(LARGE($C199:$AQ199,{1,2,3,4})), "") ->  | AZ199: =IFERROR(SUMPRODUCT(LARGE($C199:$AQ199,{1,2,3,4,5,6,7,8})), "") -> 
AS200: 0 | AT200: 0 | AU200: =IF($AT200<=6,SUM($C200:$AQ200),SUMPRODUCT(LARGE($C200:$AQ200,{1,2,3,4,5,6}))) -> 0 | AX200: =IFERROR(SUMPRODUCT(LARGE($C200:$AQ200,{1,2,3,4})), "") ->  | AZ200: =IFERROR(SUMPRODUCT(LARGE($C200:$AQ200,{1,2,3,4,5,6,7,8})), "") -> 
... 501 more rows

Sheet Abbreviations
A1: Program Code | B1: Program ( X - Community College) (I - Independent) | D1: Tournament Code | E1: Tournament
A2: ACU | B2: Abilene Christian University | D2: ACU | E2: Abilene Christian University "Joseph J. Cardot Invitational" (11/11-13) (CANCELLED)
A3: ADA | B3: Angleton Debate Association (I) | D3: BGSU | E3: Bowling Green State University "Falcon Classic" & Cyber Falcon" (10/14-15)
A4: ADL | B4: American Debate League (I) | D4: BPCC | E4: Bossier Parish Eddy Shell (2/24-26)
A5: ASU | B5: Arkansas State University | D5: ClCC | E5: Cleveland State Community College "Cougar Classic" (10/14-15)
A6: ATU | B6: Arkansas Tech University | D6: CSI | E6: College of Southern Idaho "Fran Tanner Open" (9/23-24)
A7: AzCU | B7: Arizona Christian University | D7: DBU | E7: Dallas Baptist
A8: BAC | B8: Belmont Abbey College | D8: L&CC | E8: Lewis & Clark College "Steve Hunt Classic" (10/7-9)
A9: BaSU | B9: Ball State University | D9: LCC | E9: Lower Columbia College (1/27-29)
A10: BGSU | B10: Bowling Green State University | D10: Lee | E10: Lee College (9/23-25)
A11: BHSU | B11: Black Hills State University | D11: LiC | E11: Linfield University 'Mahaffrey Memorial Forensics Tournament" (11/11-13)
A12: BPCC | B12: Bossier Parish Community College (X) | D12: LSUS | E12: Louisiana State University at Shreveport "Red River Swing" (11/4-6)
A13: BrU | B13: Bradley University | D13: LTU | E13: Louisiana Tech University (10/14-16)
A14: BSU | B14: Boise State University | D14: MTSU | E14: Middle Tennessee State University "Pejaver Debates" (10/28-30)
A15: BU | B15: Belmont University | D15: OSU | E15: Oregon State University Earl Wells Speakeasy (2/11-12)
A16: BuCC | B16: Butler Community College (X) | D16: Ottu/StC | E16: Ottawa University/ Sterling College "Plains Invitational" (9/23-25) DID NOT MAKE
A17: ButU | B17: Butler University | D17: PaU | E17: Park University "Riverfest Swing" (10/14-16)
A18: BuU | B18: Bushnell University | D18: PLNU | E18: Point Loma Nazarene University "Sunset Cliffs Classic" (10/21-23)
A19: CasC | B19: Casper College (X) | D19: PNW | E19: Pacific Northwest Warmup & AFA Qualifier (3/5)
A20: CBU | B20: California Baptist University | D20: PSCC | E20: Pellissippi State Community College (TIPDA only) (2/25-26)
A21: CC | B21: Cypress College (X) | D21: QC1/ QC2 | E21: Queens College "Big Apple Debate Tournament" (9/23-24) Swing Tournaments
A22: CCC | B22: Contra Costa College (X) | D22: SFCC/MVC | E22: State Fair Community College/ Missouri Valley College "US-65 Swing" (11/11-13)
A23: CCU | B23: Colorado Christian University | D23: SFCT | E23: Southern Forensics Championship Tournament (1/27-29)
A24: CEI | B24: College of Eastern Idaho (X) | D24: TIFA | E24: TIFA (TN) (2/18-19) Tennessee (Closed)
A25: CerC | B25: Cerritos College (X) | D25: UCA | E25: University of Central Arkansas (3/11-12)
A26: ChC | B26: Chabot College (X) | D26: UCM | E26: University of Central Missouri (10/21-22)
A27: ClSU | B27: Cleveland State University | D27: UJ | E27: University of Jamestown (12/3-4) ONLINE
A28: ColC | B28: Colorado College | D28: USM | E28: University of Southern Mississippi "Hub City Invitational" (10/7-9)
A29: CPH | B29: California State Polytechnical University, Humboldt | D29: UU | E29: Union University "Revival of the Bulldogs Debate" (9/30-10/2) ONLINE
A30: CrC | B30: Crowder College | D30: WhU | E30: Whitworth University "McPhearson Classic" (10/21-22)
A31: CSCC | B31: Cleveland State Community College (X) | D31: GC | E31: Grossmot College "Griffin Invitational" (11/12-13)
A32: CSI | B32: College of Southern Idaho (X) | D32: CUI | E32: Concordia University Irvine "Jannese Davidson Tournament" (1/28-29)
A33: CSLB | B33: California State Long Beach | D33: IFA | E33: International Forensics Association Tournament( 3/13-14) - ONLINE
A34: CSUC | B34: California State University- Chico | D34: PSCFA-S | E34: "Michael DeCarbo" Spring Championships hosted by Mt San Antonio College (2/24-26)
A35: CSUF | B35: California State University Fullerton | D35: PSCFA-F | E35: PSCFA Fall Champs (12/2-4) hosted by Cerritos College
A36: CSULA | B36: California State University Los Angeles | D36: SDSU | E36: San Diego State University "Gaske Tournament" (2/4-5)
A37: CSUN | B37: California State University, Northridge | D37: BGSU2 | E37: Bowling Green State University Pirates (2/24)
A38: CSUSM | B38: California State University- San Marcos
A39: CTC | B39: Central Texas College (X)
A40: CU | B40: Cedarville University
A41: CUI | B41: Concordia University Irvine
A42: CWI | B42: College of Western Idaho (X)
A43: DBU | B43: Dallas Baptist University
A44: DiU | B44: Dillard University
A45: DorU | B45: Dordt University
A46: DU | B46: Drury University
A47: DuqU | B47: Duquesne University
A48: DVC | B48: Diablo Valley College (X)
A49: EaWU | B49: Eastern Washington University
A50: EC | B50: Emerson College
A51: ECC | B51: El Camino College (X)
A52: EgCC | B52: Elgin Community College (X)
A53: EPCC | B53: El Paso Community College (X)
A54: ErC | B54: Erskine College
A55: ETBU | B55: East Texas Baptist University
A56: FAU | B56: Florida Atlantic University
A57: FC | B57: Fullerton College
A58: FCC | B58: Fresno City College (X)
A59: FHU | B59: Freed-Hardeman University
A60: FSCJ | B60: Florida State College - Jacksonville (X)
A61: FSU | B61: Florida State University
A62: FSUF | B62: Ferris State University Forensics
A63: GAC | B63: Gustavus Adolphus College
A64: GC | B64: Grossmont College (X)
A65: GCC | B65: Grove City College
A66: GCU | B66: Grand Canyon University
A67: GIT | B67: Georgia Institute of Technology
A68: GTU | B68: Georgia Tech University
A69: HiC | B69: Hillsdale College
A70: HoU | B70: Hofstra University
A71: HPU | B71: Howard Payne Univeristy
A72: HU | B72: Harding University
A73: IC | B73: Ithaca College
A74: ISU | B74: Idaho State University
A75: IVC | B75: Irvine Valley College (X)
A76: JCU | B76: John Carroll University
A77: JSCC | B77: Jefferson State Community College (X)
A78: KWU | B78: Kansas Wesleyan University
A79: L&CC | B79: Lewis & Clark College
A80: LACC | B80: Los Angeles City College (X)
A81: LafC | B81: Lafayette College
A82: LCC | B82: Lower Columbia College (X)
A83: LCU | B83: Louisiana College (new name Louisiana Christian University)
A84: Lee | B84: Lee College (X)
A85: LibU | B85: Liberty University
A86: LiC | B86: Linfield College
A87: LiU | B87: Linfield University
A88: LPC | B88: Las Positas College (X)
A89: LPDA | B89: Lincoln-Polaris Debate Association (I)
A90: LSCO | B90: Lamar State College- Orange (X)
A91: LSU | B91: Louisiana State University
A92: LSU | B92: Louisiana State University
A93: LSUS | B93: Louisiana State University-Shreveport
A94: LTU | B94: Louisiana Tech University
A95: LU | B95: Lynn University
A96: MacC | B96: Macalester College
A97: MarU | B97: Marion University
A98: McKU | B98: McKendree University
A99: MHCC | B99: Mt. Hood Community College (X)
A100: MJC | B100: Modesto Junior College (X)
A101: MoC | B101: Morehouse College
A102: MoorC | B102: Moorpark College (X)
A103: MSAC | B103: Mt. San Antonio College (X)
A104: MSCC | B104: Motlow State Community College (X)
A105: MSD | B105: Maricopa Speech & Debate (Maricopa Community College) (X)
A106: MSJC | B106: Mt. San Jacinto College (X)
A107: MslU | B107: Marshall University
A108: MSU | B108: Mississippi State University
A109: MSUM | B109: Minnesota State University, Mankato
A110: MTCC | B110: McDowell Technical Community College (X)
A111: MTSU | B111: Middle Tennessee State University
A112: MU | B112: Mercer University
A113: MuSU | B113: Murray State University
A114: MuU | B114: Muskingum University
A115: MVC | B115: Missouri Valley College (X)
A116: NACC | B116: Northwest Arkansas Community College (X)
A117: NAU | B117: Northern Arizona State
A118: NCC | B118: North Central College
A119: NDSU | B119: North Dakota State University
A120: NIL | B120: Northern Illinois College
A121: NMSU | B121: Northwest Missouri State University
A122: NNU | B122: Northwest Nazarene University
A123: NSU | B123: Northern State University
A124: NVCC | B124: Northern Virginia Community College (X)
A125: NwC | B125: Northwest College (X)
A126: NWSU | B126: Northwestern State University
A127: OCC | B127: Orange Coast College (X)
A128: OCTC | B128: Owensboro Community & Technical College (X)
A129: OCU | B129: Oklahoma City University
A130: OhU | B130: Ohio University
A131: OkBU | B131: Oklahoma Baptist University
A132: ORU | B132: Oral Roberts University
A133: OSU | B133: Oregon State University
A134: OttU | B134: Ottowa University
A135: OU | B135: Otterbein University
A136: PacU | B136: Pacific University
A137: PaU | B137: Park University
A138: PC | B138: Palomar College (X)
A139: PCC | B139: Pasadena City College (X)
A140: PHC | B140: Patrick Henry College
A141: PLNU | B141: Point Loma Nazarene University
A142: PSC | B142: Prarie State College (X)
A143: PSCC | B143: Pellissippi State Community College (X)
A144: PVAM | B144: Prairie View A&M University
A145: QC | B145: Queens College
A146: RHCC | B146: Rio Hondo Community College (X)
A147: RU | B147: Rice University
A148: SAC | B148: St. Anselm College
A149: SaCC | B149: Santiago Canyon College (X)
A150: SadC | B150: Saddleback College (X)
A151: SBU | B151: Southwest Baptist University
A152: SC | B152: Simpson College
A153: ScU | B153: Schreiner University
A154: SDMC | B154: San Diego Mesa College (X)
A155: SDSU | B155: San Diego State University
A156: SEA | B156: Southeast Arkansas College (X)
A157: SFCC | B157: State Fair Community College (X)
A158: SFSU | B158: San Fransisco State University
A159: SHSU | B159: Sam Houston State University
A160: SHU | B160: Setton Hall University
A161: SJDC | B161: San Joaquin Delta College (X)
A162: SJSU | B162: San Jose State University
A163: SJU | B163: Saint Joseph's University
A164: SkyC | B164: Skyline College (X)
A165: SMC | B165: Santa Monica College (X)
A166: SMU | B166: Southern Methodist University
A167: SoCC | B167: Solano Community College (X)
A168: SOSU | B168: Southeastern Oklahoma State University
A169: SpC | B169: Spellman College
A170: SRJC | B170: Santa Rosa Junior College (X)
A171: SSU | B171: Sacramento State University
A172: StAC | B172: Saint Anselm College
A173: StC | B173: Sterling College
A174: SU | B174: Seatle University
A175: TaCC | B175: Tallahassee Community College (X)
A176: TAMU | B176: Texas A&M University
A177: TC | B177: Talladega College (X)
A178: TCC | B178: Tulsa Community College (X)
A179: TCU | B179: Texas Christian University
A180: TGS | B180: The Garner School (I)
A181: TJC | B181: Tyler Junior College (X)
A182: TMP | B182: The Mountain Pass (I)
A183: TMU | B183: Truett McConnell University
A184: TnSU | B184: Tennessee State University
A185: TranSU | B185: Translyvania University
A186: TruSU | B186: Truman State University
A187: TSU | B187: Texas Southern University
A188: TTU | B188: Tennessee Technological University
A189: TxSU | B189: Texas State University
A190: UA | B190: University of Arkansas
A191: UAA | B191: Univeristy of Alaska-Anchorage
A192: UACCB | B192: University of Arkansas Community College Baitesville (X)
A193: UAM | B193: University of Arkansas-Monticello
A194: Ubama | B194: University of Alabama
A195: UC | B195: University of the Cumberlands
A196: UCA | B196: University of Central Arkansas
A197: UCF | B197: University of Central Florida
A198: UCM | B198: University Central Missouri
A199: UCSB | B199: University of California Santa Barbara
A200: UCSD | B200: University of California San Diego
... 33 more rows

Sheet Founders
C1: Lee | D1: CSI | E1: QC1 | F1: QC2 | G1: UU | H1: USM | I1: L&CC | J1: BGSU1 | K1: LTU | L1: UCM | M1: ClCC | N1: MTSU | O1: LSUS | P1: LU | Q1: UJ | R1: SFCT | S1: PaU | T1: BGSU2 | U1: WhU | V1: PLNU | W1: SFCC | X1: TIFA | Y1: OSU | Z1: PNW | AA1: LCC | AB1: BDU | AC1: BPCC | AD1: UCA | AE1: CG | AF1: CUI | AG1: IFA | AH1: PSCS | AI1: PSCF | AJ1: SDSU | AW1: S/L Ranking | AX1: Head to Head | AY1: H/L | AZ1: 7th Tourn. | BA1: 8th Tourn.
B2: Size of Field | C2: =IF(COUNTIFS(C$4:C$995,"<>"),COUNTIFS(C$4:C$995,"<>")," ") -> 12 | D2: 10 | E2: 7 | F2: 10 | G2: 23 | H2: 7 | I2: 11 | J2: 17 | K2: 17 | L2: 16 | M2: 6 | N2: 14 | O2: 20 | P2: 30 | Q2: 20 | R2: 29 | S2: =IF(COUNTIFS(S$4:S$995,"<>"),COUNTIFS(S$4:S$995,"<>")," ") -> 8 | T2: =IF(COUNTIFS(T$4:T$995,"<>"),COUNTIFS(T$4:T$995,"<>")," ") -> 12 | U2: =IF(COUNTIFS(U$4:U$995,"<>"),COUNTIFS(U$4:U$995,"<>")," ") -> 7 | V2: =IF(COUNTIFS(V$4:V$995,"<>"),COUNTIFS(V$4:V$995,"<>")," ") -> 11 | W2: =IF(COUNTIFS(W$4:W$995,"<>"),COUNTIFS(W$4:W$995,"<>")," ") -> 7 | X2: 8 | Y2: =IF(COUNTIFS(Y$4:Y$995,"<>"),COUNTIFS(Y$4:Y$995,"<>")," ") -> 20
A3: RANK | B3: Squad | C3: LEE (9/23-25) | D3: CSI (9/23-24) | E3: QC Swing #1 (9/23-24) | F3: QC Swing #2 (9/23-24) | G3: Union (9/30-10/2) | H3: USM (10/7-9) | I3: L&CC (10/7-9) | J3: BGSU #1 (10/14-15) | K3: LTU (10/14-16) | L3: UCM (10/21-23) | M3: CICC (10/14-15) | N3: MTSU (10/28-30) | O3: LSUS (10/21-23) | P3: Linfield (11/11-13) | Q3: Jamestown (12/3-4) | R3: SFCT (1/27-29) | S3: PaU (10/14-16) | T3: BGSU #2 (10/14-15) | U3: Whitworth (10/21-22) | V3: PLNU (10/21-23) | W3: SFCC/MVC (11/11-13) | X3: TIFA (TN) (2/18-19) | Y3: OSU (2/11-12) | Z3: PNW (3/5) | AA3: LCC (1/27-29) | AB3: DBU (2/10-12) | AC3: BPCC (2/24-26) | AD3: UCA (3/11-12) | AE3: GC (11/12-13) | AF3: CUI (1/28-29 | AG3: IFA (3/13-14) | AH3: PSCFA-S (2/24-26) | AI3: PSCFA-F (12/2-4) | AJ3: SDSU (2/4-5) | AK3: BGSU (2/24) | AT3: over 6/2nd host | AU3: Total Points | AV3: Tournament Count | AW3: Best Top 6 (National Rank) | AX3: 1st Tie Breaker | AY3: 2nd Tie Breaker | AZ3: 3rd Tie Breaker | BA3: 4th Tie Breaker
B4: ACU | C4: 73 | G4: 72 | K4: 6 | O4: 87 | Q4: 84 | AB4: 58 | AC4: 64 | AD4: 59 | AU4: =SUM($C4:$AT4) -> 503 | AV4: =COUNTA(C4:AS4) -> 8 | AW4: =IF($AV4<=6,SUM($C4:$AS4),SUMPRODUCT(LARGE($C4:$AS4,{1,2,3,4,5,6}))) -> 439 | AX4: =IF(AND($AV4>=6,AW4=AW5),"Manual Calc Needed","") ->  | AY4: =IF(AX4= "","",IFERROR(SUMPRODUCT(LARGE($C4:$AS4,{1,2,3,4})), "")) ->  | AZ4: =IF(AY4<>"",(IFERROR(SUMPRODUCT(LARGE($C4:$AS4,{1,2,3,4,5,6,7})),"")),"") ->  | BA4: =IF(AZ4<>"",(IFERROR(SUMPRODUCT(LARGE($C4:$AS4,{1,2,3,4,5,6,7,8})),"")),"") -> 
B5: ASU | C5: 11 | L5: 18 | Q5: 9 | AK5: 5 | AU5: 43 | AV5: 4 | AW5: =IF($AV5<=6,SUM($C5:$AS5),SUMPRODUCT(LARGE($C5:$AS5,{1,2,3,4,5,6}))) -> 43 | AY5: =IF(AX5= "","",IFERROR(SUMPRODUCT(LARGE($C5:$AS5,{1,2,3,4})), "")) ->  | AZ5: =IF(AY5<>"",(IFERROR(SUMPRODUCT(LARGE($C5:$AS5,{1,2,3,4,5,6,7})),"")),"") ->  | BA5: =IF(AZ5<>"",(IFERROR(SUMPRODUCT(LARGE($C5:$AS5,{1,2,3,4,5,6,7,8})),"")),"") -> 
B6: ATU | AC6: 11 | AD6: 11 | AU6: 22 | AV6: 2 | AW6: =IF($AV6<=6,SUM($C6:$AS6),SUMPRODUCT(LARGE($C6:$AS6,{1,2,3,4,5,6}))) -> 22 | AY6: =IF(AX6= "","",IFERROR(SUMPRODUCT(LARGE($C6:$AS6,{1,2,3,4})), "")) ->  | AZ6: =IF(AY6<>"",(IFERROR(SUMPRODUCT(LARGE($C6:$AS6,{1,2,3,4,5,6,7})),"")),"") ->  | BA6: =IF(AZ6<>"",(IFERROR(SUMPRODUCT(LARGE($C6:$AS6,{1,2,3,4,5,6,7,8})),"")),"") -> 
B7: BaSU | J7: 5 | W7: 10 | Y7: 2 | AU7: 17 | AV7: 3 | AW7: =IF($AV7<=6,SUM($C7:$AS7),SUMPRODUCT(LARGE($C7:$AS7,{1,2,3,4,5,6}))) -> 17 | AY7: =IF(AX7= "","",IFERROR(SUMPRODUCT(LARGE($C7:$AS7,{1,2,3,4})), "")) ->  | AZ7: =IF(AY7<>"",(IFERROR(SUMPRODUCT(LARGE($C7:$AS7,{1,2,3,4,5,6,7})),"")),"") ->  | BA7: =IF(AZ7<>"",(IFERROR(SUMPRODUCT(LARGE($C7:$AS7,{1,2,3,4,5,6,7,8})),"")),"") -> 
B8: BGSU | E8: 5 | J8: 7 | AU8: 12 | AV8: 2 | AW8: =IF($AV8<=6,SUM($C8:$AS8),SUMPRODUCT(LARGE($C8:$AS8,{1,2,3,4,5,6}))) -> 12 | AY8: =IF(AX8= "","",IFERROR(SUMPRODUCT(LARGE($C8:$AS8,{1,2,3,4})), "")) ->  | AZ8: =IF(AY8<>"",(IFERROR(SUMPRODUCT(LARGE($C8:$AS8,{1,2,3,4,5,6,7})),"")),"") ->  | BA8: =IF(AZ8<>"",(IFERROR(SUMPRODUCT(LARGE($C8:$AS8,{1,2,3,4,5,6,7,8})),"")),"") -> 
B9: BPCC | C9: 29 | G9: 5 | K9: 12 | O9: 19 | Q9: 8 | R9: 18 | AB9: 16 | AD9: 12 | AU9: 119 | AV9: 8 | AW9: =IF($AV9<=6,SUM($C9:$AS9),SUMPRODUCT(LARGE($C9:$AS9,{1,2,3,4,5,6}))) -> 106 | AY9: =IF(AX9= "","",IFERROR(SUMPRODUCT(LARGE($C9:$AS9,{1,2,3,4})), "")) ->  | AZ9: =IF(AY9<>"",(IFERROR(SUMPRODUCT(LARGE($C9:$AS9,{1,2,3,4,5,6,7})),"")),"") ->  | BA9: =IF(AZ9<>"",(IFERROR(SUMPRODUCT(LARGE($C9:$AS9,{1,2,3,4,5,6,7,8})),"")),"") -> 
B10: BrU | AG10: 18 | AU10: 18 | AV10: 1 | AW10: =IF($AV10<=6,SUM($C10:$AS10),SUMPRODUCT(LARGE($C10:$AS10,{1,2,3,4,5,6}))) -> 18 | AY10: =IF(AX10= "","",IFERROR(SUMPRODUCT(LARGE($C10:$AS10,{1,2,3,4})), "")) ->  | AZ10: =IF(AY10<>"",(IFERROR(SUMPRODUCT(LARGE($C10:$AS10,{1,2,3,4,5,6,7})),"")),"") ->  | BA10: =IF(AZ10<>"",(IFERROR(SUMPRODUCT(LARGE($C10:$AS10,{1,2,3,4,5,6,7,8})),"")),"") -> 
B11: BSU | D11: =7+5+5 -> 17 | I11: 28 | P11: 42 | Y11: 21 | AA11: 36 | AU11: 144 | AV11: 5 | AW11: =IF($AV11<=6,SUM($C11:$AS11),SUMPRODUCT(LARGE($C11:$AS11,{1,2,3,4,5,6}))) -> 144 | AX11: =IF(AND($AV11>=6,AW11=#REF!),"Manual Calc Needed","") ->  | AY11: =IF(AX11= "","",IFERROR(SUMPRODUCT(LARGE($C11:$AS11,{1,2,3,4})), "")) ->  | AZ11: =IF(AY11<>"",(IFERROR(SUMPRODUCT(LARGE($C11:$AS11,{1,2,3,4,5,6,7})),"")),"") ->  | BA11: =IF(AZ11<>"",(IFERROR(SUMPRODUCT(LARGE($C11:$AS11,{1,2,3,4,5,6,7,8})),"")),"") -> 
B12: BU | G12: 24 | M12: 13 | N12: 8 | P12: 9 | R12: 6 | X12: 20 | AU12: 80 | AV12: 6 | AW12: =IF($AV12<=6,SUM($C12:$AS12),SUMPRODUCT(LARGE($C12:$AS12,{1,2,3,4,5,6}))) -> 80 | AX12: =IF(AND($AV12>=6,AW12=AW13),"Manual Calc Needed","") ->  | AY12: =IF(AX12= "","",IFERROR(SUMPRODUCT(LARGE($C12:$AS12,{1,2,3,4})), "")) ->  | AZ12: =IF(AY12<>"",(IFERROR(SUMPRODUCT(LARGE($C12:$AS12,{1,2,3,4,5,6,7})),"")),"") ->  | BA12: =IF(AZ12<>"",(IFERROR(SUMPRODUCT(LARGE($C12:$AS12,{1,2,3,4,5,6,7,8})),"")),"") -> 
B13: ButU | F13: 13 | AU13: 13 | AV13: 1 | AW13: =IF($AV13<=6,SUM($C13:$AS13),SUMPRODUCT(LARGE($C13:$AS13,{1,2,3,4,5,6}))) -> 13 | AY13: =IF(AX13= "","",IFERROR(SUMPRODUCT(LARGE($C13:$AS13,{1,2,3,4})), "")) ->  | AZ13: =IF(AY13<>"",(IFERROR(SUMPRODUCT(LARGE($C13:$AS13,{1,2,3,4,5,6,7})),"")),"") ->  | BA13: =IF(AZ13<>"",(IFERROR(SUMPRODUCT(LARGE($C13:$AS13,{1,2,3,4,5,6,7,8})),"")),"") -> 
B14: CasC | D14: 6 | P14: 9 | AG14: 7 | AU14: 22 | AV14: 3 | AW14: =IF($AV14<=6,SUM($C14:$AS14),SUMPRODUCT(LARGE($C14:$AS14,{1,2,3,4,5,6}))) -> 22 | AY14: =IF(AX14= "","",IFERROR(SUMPRODUCT(LARGE($C14:$AS14,{1,2,3,4})), "")) ->  | AZ14: =IF(AY14<>"",(IFERROR(SUMPRODUCT(LARGE($C14:$AS14,{1,2,3,4,5,6,7})),"")),"") ->  | BA14: =IF(AZ14<>"",(IFERROR(SUMPRODUCT(LARGE($C14:$AS14,{1,2,3,4,5,6,7,8})),"")),"") -> 
B15: CBU | AH15: 5 | AI15: 11 | AU15: 16 | AV15: 2 | AW15: =IF($AV15<=6,SUM($C15:$AS15),SUMPRODUCT(LARGE($C15:$AS15,{1,2,3,4,5,6}))) -> 16 | AY15: =IF(AX15= "","",IFERROR(SUMPRODUCT(LARGE($C15:$AS15,{1,2,3,4})), "")) ->  | AZ15: =IF(AY15<>"",(IFERROR(SUMPRODUCT(LARGE($C15:$AS15,{1,2,3,4,5,6,7})),"")),"") ->  | BA15: =IF(AZ15<>"",(IFERROR(SUMPRODUCT(LARGE($C15:$AS15,{1,2,3,4,5,6,7,8})),"")),"") -> 
B16: CCU | L16: 24 | P16: 19 | AU16: 43 | AV16: 2 | AW16: =IF($AV16<=6,SUM($C16:$AS16),SUMPRODUCT(LARGE($C16:$AS16,{1,2,3,4,5,6}))) -> 43 | AY16: =IF(AX16= "","",IFERROR(SUMPRODUCT(LARGE($C16:$AS16,{1,2,3,4})), "")) ->  | AZ16: =IF(AY16<>"",(IFERROR(SUMPRODUCT(LARGE($C16:$AS16,{1,2,3,4,5,6,7})),"")),"") ->  | BA16: =IF(AZ16<>"",(IFERROR(SUMPRODUCT(LARGE($C16:$AS16,{1,2,3,4,5,6,7,8})),"")),"") -> 
B17: CEI | P17: 4 | Y17: 13 | AU17: 17 | AV17: 2 | AW17: =IF($AV17<=6,SUM($C17:$AS17),SUMPRODUCT(LARGE($C17:$AS17,{1,2,3,4,5,6}))) -> 17 | AY17: =IF(AX17= "","",IFERROR(SUMPRODUCT(LARGE($C17:$AS17,{1,2,3,4})), "")) ->  | AZ17: =IF(AY17<>"",(IFERROR(SUMPRODUCT(LARGE($C17:$AS17,{1,2,3,4,5,6,7})),"")),"") ->  | BA17: =IF(AZ17<>"",(IFERROR(SUMPRODUCT(LARGE($C17:$AS17,{1,2,3,4,5,6,7,8})),"")),"") -> 
B18: CerC | AE18: 7 | AH18: 8 | AI18: 2 | AU18: 17 | AV18: 3 | AW18: =IF($AV18<=6,SUM($C18:$AS18),SUMPRODUCT(LARGE($C18:$AS18,{1,2,3,4,5,6}))) -> 17 | AY18: =IF(AX18= "","",IFERROR(SUMPRODUCT(LARGE($C18:$AS18,{1,2,3,4})), "")) ->  | AZ18: =IF(AY18<>"",(IFERROR(SUMPRODUCT(LARGE($C18:$AS18,{1,2,3,4,5,6,7})),"")),"") ->  | BA18: =IF(AZ18<>"",(IFERROR(SUMPRODUCT(LARGE($C18:$AS18,{1,2,3,4,5,6,7,8})),"")),"") -> 
B19: CrC | L19: 3 | AU19: 3 | AV19: 1 | AW19: =IF($AV19<=6,SUM($C19:$AS19),SUMPRODUCT(LARGE($C19:$AS19,{1,2,3,4,5,6}))) -> 3 | AY19: =IF(AX19= "","",IFERROR(SUMPRODUCT(LARGE($C19:$AS19,{1,2,3,4})), "")) ->  | AZ19: =IF(AY19<>"",(IFERROR(SUMPRODUCT(LARGE($C19:$AS19,{1,2,3,4,5,6,7})),"")),"") ->  | BA19: =IF(AZ19<>"",(IFERROR(SUMPRODUCT(LARGE($C19:$AS19,{1,2,3,4,5,6,7,8})),"")),"") -> 
B20: CSCC | M20: 1 | AU20: 1 | AV20: 1 | AW20: =IF($AV20<=6,SUM($C20:$AS20),SUMPRODUCT(LARGE($C20:$AS20,{1,2,3,4,5,6}))) -> 1 | AX20: =IF(AND($AV20>=6,AW20=#REF!),"Manual Calc Needed","") ->  | AY20: =IF(AX20= "","",IFERROR(SUMPRODUCT(LARGE($C20:$AS20,{1,2,3,4})), "")) ->  | AZ20: =IF(AY20<>"",(IFERROR(SUMPRODUCT(LARGE($C20:$AS20,{1,2,3,4,5,6,7})),"")),"") ->  | BA20: =IF(AZ20<>"",(IFERROR(SUMPRODUCT(LARGE($C20:$AS20,{1,2,3,4,5,6,7,8})),"")),"") -> 
B21: CSI | D21: =3+3+2 -> 8 | P21: 16 | AA21: 12 | AU21: 36 | AV21: 3 | AW21: =IF($AV21<=6,SUM($C21:$AS21),SUMPRODUCT(LARGE($C21:$AS21,{1,2,3,4,5,6}))) -> 36 | AX21: =IF(AND($AV21>=6,AW21=AW22),"Manual Calc Needed","") ->  | AY21: =IF(AX21= "","",IFERROR(SUMPRODUCT(LARGE($C21:$AS21,{1,2,3,4})), "")) ->  | AZ21: =IF(AY21<>"",(IFERROR(SUMPRODUCT(LARGE($C21:$AS21,{1,2,3,4,5,6,7})),"")),"") ->  | BA21: =IF(AZ21<>"",(IFERROR(SUMPRODUCT(LARGE($C21:$AS21,{1,2,3,4,5,6,7,8})),"")),"") -> 
B22: CSLB | AH22: 9 | AI22: 17 | AU22: 26 | AV22: 2 | AW22: =IF($AV22<=6,SUM($C22:$AS22),SUMPRODUCT(LARGE($C22:$AS22,{1,2,3,4,5,6}))) -> 26 | AY22: =IF(AX22= "","",IFERROR(SUMPRODUCT(LARGE($C22:$AS22,{1,2,3,4})), "")) ->  | AZ22: =IF(AY22<>"",(IFERROR(SUMPRODUCT(LARGE($C22:$AS22,{1,2,3,4,5,6,7})),"")),"") ->  | BA22: =IF(AZ22<>"",(IFERROR(SUMPRODUCT(LARGE($C22:$AS22,{1,2,3,4,5,6,7,8})),"")),"") -> 
B23: CSUC | I23: 2 | AG23: 4 | AU23: 6 | AV23: 2 | AW23: =IF($AV23<=6,SUM($C23:$AS23),SUMPRODUCT(LARGE($C23:$AS23,{1,2,3,4,5,6}))) -> 6 | AY23: =IF(AX23= "","",IFERROR(SUMPRODUCT(LARGE($C23:$AS23,{1,2,3,4})), "")) ->  | AZ23: =IF(AY23<>"",(IFERROR(SUMPRODUCT(LARGE($C23:$AS23,{1,2,3,4,5,6,7})),"")),"") ->  | BA23: =IF(AZ23<>"",(IFERROR(SUMPRODUCT(LARGE($C23:$AS23,{1,2,3,4,5,6,7,8})),"")),"") -> 
B24: CSUF | AG24: 5 | AH24: 5 | AU24: 10 | AV24: 2 | AW24: =IF($AV24<=6,SUM($C24:$AS24),SUMPRODUCT(LARGE($C24:$AS24,{1,2,3,4,5,6}))) -> 10 | AY24: =IF(AX24= "","",IFERROR(SUMPRODUCT(LARGE($C24:$AS24,{1,2,3,4})), "")) ->  | AZ24: =IF(AY24<>"",(IFERROR(SUMPRODUCT(LARGE($C24:$AS24,{1,2,3,4,5,6,7})),"")),"") ->  | BA24: =IF(AZ24<>"",(IFERROR(SUMPRODUCT(LARGE($C24:$AS24,{1,2,3,4,5,6,7,8})),"")),"") -> 
B25: CSULA | AH25: 5 | AI25: 2 | AU25: 7 | AV25: 2 | AW25: =IF($AV25<=6,SUM($C25:$AS25),SUMPRODUCT(LARGE($C25:$AS25,{1,2,3,4,5,6}))) -> 7 | AY25: =IF(AX25= "","",IFERROR(SUMPRODUCT(LARGE($C25:$AS25,{1,2,3,4})), "")) ->  | AZ25: =IF(AY25<>"",(IFERROR(SUMPRODUCT(LARGE($C25:$AS25,{1,2,3,4,5,6,7})),"")),"") ->  | BA25: =IF(AZ25<>"",(IFERROR(SUMPRODUCT(LARGE($C25:$AS25,{1,2,3,4,5,6,7,8})),"")),"") -> 
B26: CTC | P26: 2 | AU26: 2 | AV26: 1 | AW26: =IF($AV26<=6,SUM($C26:$AS26),SUMPRODUCT(LARGE($C26:$AS26,{1,2,3,4,5,6}))) -> 2 | AY26: =IF(AX26= "","",IFERROR(SUMPRODUCT(LARGE($C26:$AS26,{1,2,3,4})), "")) ->  | AZ26: =IF(AY26<>"",(IFERROR(SUMPRODUCT(LARGE($C26:$AS26,{1,2,3,4,5,6,7})),"")),"") ->  | BA26: =IF(AZ26<>"",(IFERROR(SUMPRODUCT(LARGE($C26:$AS26,{1,2,3,4,5,6,7,8})),"")),"") -> 
B27: CU | M27: 27 | AU27: 27 | AV27: 1 | AW27: =IF($AV27<=6,SUM($C27:$AS27),SUMPRODUCT(LARGE($C27:$AS27,{1,2,3,4,5,6}))) -> 27 | AY27: =IF(AX27= "","",IFERROR(SUMPRODUCT(LARGE($C27:$AS27,{1,2,3,4})), "")) ->  | AZ27: =IF(AY27<>"",(IFERROR(SUMPRODUCT(LARGE($C27:$AS27,{1,2,3,4,5,6,7})),"")),"") ->  | BA27: =IF(AZ27<>"",(IFERROR(SUMPRODUCT(LARGE($C27:$AS27,{1,2,3,4,5,6,7,8})),"")),"") -> 
B28: CUI | V28: 30 | AF28: 23 | AH28: 11 | AI28: 17 | AU28: 81 | AV28: 4 | AW28: =IF($AV28<=6,SUM($C28:$AS28),SUMPRODUCT(LARGE($C28:$AS28,{1,2,3,4,5,6}))) -> 81 | AY28: =IF(AX28= "","",IFERROR(SUMPRODUCT(LARGE($C28:$AS28,{1,2,3,4})), "")) ->  | AZ28: =IF(AY28<>"",(IFERROR(SUMPRODUCT(LARGE($C28:$AS28,{1,2,3,4,5,6,7})),"")),"") ->  | BA28: =IF(AZ28<>"",(IFERROR(SUMPRODUCT(LARGE($C28:$AS28,{1,2,3,4,5,6,7,8})),"")),"") -> 
B29: CWI | D29: =5+3+3 -> 11 | I29: 48 | P29: 45 | AA29: 27 | AU29: 131 | AV29: 4 | AW29: =IF($AV29<=6,SUM($C29:$AS29),SUMPRODUCT(LARGE($C29:$AS29,{1,2,3,4,5,6}))) -> 131 | AY29: =IF(AX29= "","",IFERROR(SUMPRODUCT(LARGE($C29:$AS29,{1,2,3,4})), "")) ->  | AZ29: =IF(AY29<>"",(IFERROR(SUMPRODUCT(LARGE($C29:$AS29,{1,2,3,4,5,6,7})),"")),"") ->  | BA29: =IF(AZ29<>"",(IFERROR(SUMPRODUCT(LARGE($C29:$AS29,{1,2,3,4,5,6,7,8})),"")),"") -> 
B30: DBU | C30: 70 | K30: 72 | N30: 62 | O30: 79 | Q30: 24 | R30: 52 | AC30: 61 | AD30: 62 | AU30: 482 | AV30: 8 | AW30: =IF($AV30<=6,SUM($C30:$AS30),SUMPRODUCT(LARGE($C30:$AS30,{1,2,3,4,5,6}))) -> 406 | AY30: =IF(AX30= "","",IFERROR(SUMPRODUCT(LARGE($C30:$AS30,{1,2,3,4})), "")) ->  | AZ30: =IF(AY30<>"",(IFERROR(SUMPRODUCT(LARGE($C30:$AS30,{1,2,3,4,5,6,7})),"")),"") ->  | BA30: =IF(AZ30<>"",(IFERROR(SUMPRODUCT(LARGE($C30:$AS30,{1,2,3,4,5,6,7,8})),"")),"") -> 
B31: DorU | J31: 2 | AU31: 2 | AV31: 1 | AW31: =IF($AV31<=6,SUM($C31:$AS31),SUMPRODUCT(LARGE($C31:$AS31,{1,2,3,4,5,6}))) -> 2 | AY31: =IF(AX31= "","",IFERROR(SUMPRODUCT(LARGE($C31:$AS31,{1,2,3,4})), "")) ->  | AZ31: =IF(AY31<>"",(IFERROR(SUMPRODUCT(LARGE($C31:$AS31,{1,2,3,4,5,6,7})),"")),"") ->  | BA31: =IF(AZ31<>"",(IFERROR(SUMPRODUCT(LARGE($C31:$AS31,{1,2,3,4,5,6,7,8})),"")),"") -> 
B32: DU | G32: 3 | AU32: 3 | AV32: 1 | AW32: =IF($AV32<=6,SUM($C32:$AS32),SUMPRODUCT(LARGE($C32:$AS32,{1,2,3,4,5,6}))) -> 3 | AY32: =IF(AX32= "","",IFERROR(SUMPRODUCT(LARGE($C32:$AS32,{1,2,3,4})), "")) ->  | AZ32: =IF(AY32<>"",(IFERROR(SUMPRODUCT(LARGE($C32:$AS32,{1,2,3,4,5,6,7})),"")),"") ->  | BA32: =IF(AZ32<>"",(IFERROR(SUMPRODUCT(LARGE($C32:$AS32,{1,2,3,4,5,6,7,8})),"")),"") -> 
B33: DVC | AI33: 12 | AU33: 12 | AV33: 1 | AW33: =IF($AV33<=6,SUM($C33:$AS33),SUMPRODUCT(LARGE($C33:$AS33,{1,2,3,4,5,6}))) -> 12 | AY33: =IF(AX33= "","",IFERROR(SUMPRODUCT(LARGE($C33:$AS33,{1,2,3,4})), "")) ->  | AZ33: =IF(AY33<>"",(IFERROR(SUMPRODUCT(LARGE($C33:$AS33,{1,2,3,4,5,6,7})),"")),"") ->  | BA33: =IF(AZ33<>"",(IFERROR(SUMPRODUCT(LARGE($C33:$AS33,{1,2,3,4,5,6,7,8})),"")),"") -> 
B34: EC | E34: 10 | T34: 2 | AG34: 14 | AK34: 3 | AU34: 29 | AV34: 4 | AW34: =IF($AV34<=6,SUM($C34:$AS34),SUMPRODUCT(LARGE($C34:$AS34,{1,2,3,4,5,6}))) -> 29 | AX34: =IF(AND($AV34>=6,AW34=#REF!),"Manual Calc Needed","") ->  | AY34: =IF(AX34= "","",IFERROR(SUMPRODUCT(LARGE($C34:$AS34,{1,2,3,4})), "")) ->  | AZ34: =IF(AY34<>"",(IFERROR(SUMPRODUCT(LARGE($C34:$AS34,{1,2,3,4,5,6,7})),"")),"") ->  | BA34: =IF(AZ34<>"",(IFERROR(SUMPRODUCT(LARGE($C34:$AS34,{1,2,3,4,5,6,7,8})),"")),"") -> 
B35: ECC | AG35: 22 | AH35: 21 | AI35: 43 | AU35: 86 | AV35: 3 | AW35: =IF($AV35<=6,SUM($C35:$AS35),SUMPRODUCT(LARGE($C35:$AS35,{1,2,3,4,5,6}))) -> 86 | AX35: =IF(AND($AV35>=6,AW35=AW36),"Manual Calc Needed","") ->  | AY35: =IF(AX35= "","",IFERROR(SUMPRODUCT(LARGE($C35:$AS35,{1,2,3,4})), "")) ->  | AZ35: =IF(AY35<>"",(IFERROR(SUMPRODUCT(LARGE($C35:$AS35,{1,2,3,4,5,6,7})),"")),"") ->  | BA35: =IF(AZ35<>"",(IFERROR(SUMPRODUCT(LARGE($C35:$AS35,{1,2,3,4,5,6,7,8})),"")),"") -> 
B36: EgCC | Y36: 1 | AU36: =SUM($C36:$AT36) -> 1 | AV36: =COUNTA(C36:AS36) -> 1 | AW36: =IF($AV36<=6,SUM($C36:$AS36),SUMPRODUCT(LARGE($C36:$AS36,{1,2,3,4,5,6}))) -> 1 | AY36: =IF(AX36= "","",IFERROR(SUMPRODUCT(LARGE($C36:$AS36,{1,2,3,4})), "")) ->  | AZ36: =IF(AY36<>"",(IFERROR(SUMPRODUCT(LARGE($C36:$AS36,{1,2,3,4,5,6,7})),"")),"") ->  | BA36: =IF(AZ36<>"",(IFERROR(SUMPRODUCT(LARGE($C36:$AS36,{1,2,3,4,5,6,7,8})),"")),"") -> 
B37: EPCC | AE37: 5 | AG37: 1 | AU37: 6 | AV37: 2 | AW37: =IF($AV37<=6,SUM($C37:$AS37),SUMPRODUCT(LARGE($C37:$AS37,{1,2,3,4,5,6}))) -> 6 | AY37: =IF(AX37= "","",IFERROR(SUMPRODUCT(LARGE($C37:$AS37,{1,2,3,4})), "")) ->  | AZ37: =IF(AY37<>"",(IFERROR(SUMPRODUCT(LARGE($C37:$AS37,{1,2,3,4,5,6,7})),"")),"") ->  | BA37: =IF(AZ37<>"",(IFERROR(SUMPRODUCT(LARGE($C37:$AS37,{1,2,3,4,5,6,7,8})),"")),"") -> 
B38: ETSU | X38: 9 | AU38: 9 | AV38: 1 | AW38: =IF($AV38<=6,SUM($C38:$AS38),SUMPRODUCT(LARGE($C38:$AS38,{1,2,3,4,5,6}))) -> 9 | AY38: =IF(AX38= "","",IFERROR(SUMPRODUCT(LARGE($C38:$AS38,{1,2,3,4})), "")) ->  | AZ38: =IF(AY38<>"",(IFERROR(SUMPRODUCT(LARGE($C38:$AS38,{1,2,3,4,5,6,7})),"")),"") ->  | BA38: =IF(AZ38<>"",(IFERROR(SUMPRODUCT(LARGE($C38:$AS38,{1,2,3,4,5,6,7,8})),"")),"") -> 
B39: FAU | G39: 10 | AU39: 10 | AV39: 1 | AW39: =IF($AV39<=6,SUM($C39:$AS39),SUMPRODUCT(LARGE($C39:$AS39,{1,2,3,4,5,6}))) -> 10 | AY39: =IF(AX39= "","",IFERROR(SUMPRODUCT(LARGE($C39:$AS39,{1,2,3,4})), "")) ->  | AZ39: =IF(AY39<>"",(IFERROR(SUMPRODUCT(LARGE($C39:$AS39,{1,2,3,4,5,6,7})),"")),"") ->  | BA39: =IF(AZ39<>"",(IFERROR(SUMPRODUCT(LARGE($C39:$AS39,{1,2,3,4,5,6,7,8})),"")),"") -> 
B40: FSCJ | J40: 13 | AU40: 13 | AV40: 1 | AW40: =IF($AV40<=6,SUM($C40:$AS40),SUMPRODUCT(LARGE($C40:$AS40,{1,2,3,4,5,6}))) -> 13 | AY40: =IF(AX40= "","",IFERROR(SUMPRODUCT(LARGE($C40:$AS40,{1,2,3,4})), "")) ->  | AZ40: =IF(AY40<>"",(IFERROR(SUMPRODUCT(LARGE($C40:$AS40,{1,2,3,4,5,6,7})),"")),"") ->  | BA40: =IF(AZ40<>"",(IFERROR(SUMPRODUCT(LARGE($C40:$AS40,{1,2,3,4,5,6,7,8})),"")),"") -> 
B41: GC | V41: 11 | AE41: 10 | AG41: 6 | AH41: 30 | AI41: 10 | AU41: 67 | AV41: 5 | AW41: =IF($AV41<=6,SUM($C41:$AS41),SUMPRODUCT(LARGE($C41:$AS41,{1,2,3,4,5,6}))) -> 67 | AY41: =IF(AX41= "","",IFERROR(SUMPRODUCT(LARGE($C41:$AS41,{1,2,3,4})), "")) ->  | AZ41: =IF(AY41<>"",(IFERROR(SUMPRODUCT(LARGE($C41:$AS41,{1,2,3,4,5,6,7})),"")),"") ->  | BA41: =IF(AZ41<>"",(IFERROR(SUMPRODUCT(LARGE($C41:$AS41,{1,2,3,4,5,6,7,8})),"")),"") -> 
B42: GCC | J42: 9 | T42: 18 | AK42: 5 | AU42: 32 | AV42: 3 | AW42: =IF($AV42<=6,SUM($C42:$AS42),SUMPRODUCT(LARGE($C42:$AS42,{1,2,3,4,5,6}))) -> 32 | AY42: =IF(AX42= "","",IFERROR(SUMPRODUCT(LARGE($C42:$AS42,{1,2,3,4})), "")) ->  | AZ42: =IF(AY42<>"",(IFERROR(SUMPRODUCT(LARGE($C42:$AS42,{1,2,3,4,5,6,7})),"")),"") ->  | BA42: =IF(AZ42<>"",(IFERROR(SUMPRODUCT(LARGE($C42:$AS42,{1,2,3,4,5,6,7,8})),"")),"") -> 
B43: GCU | P43: 5 | AF43: 11 | AK43: 2 | AU43: 18 | AV43: 3 | AW43: =IF($AV43<=6,SUM($C43:$AS43),SUMPRODUCT(LARGE($C43:$AS43,{1,2,3,4,5,6}))) -> 18 | AY43: =IF(AX43= "","",IFERROR(SUMPRODUCT(LARGE($C43:$AS43,{1,2,3,4})), "")) ->  | AZ43: =IF(AY43<>"",(IFERROR(SUMPRODUCT(LARGE($C43:$AS43,{1,2,3,4,5,6,7})),"")),"") ->  | BA43: =IF(AZ43<>"",(IFERROR(SUMPRODUCT(LARGE($C43:$AS43,{1,2,3,4,5,6,7,8})),"")),"") -> 
B44: GTC | P44: 2 | AU44: 2 | AV44: 1 | AW44: =IF($AV44<=6,SUM($C44:$AS44),SUMPRODUCT(LARGE($C44:$AS44,{1,2,3,4,5,6}))) -> 2 | AY44: =IF(AX44= "","",IFERROR(SUMPRODUCT(LARGE($C44:$AS44,{1,2,3,4})), "")) ->  | AZ44: =IF(AY44<>"",(IFERROR(SUMPRODUCT(LARGE($C44:$AS44,{1,2,3,4,5,6,7})),"")),"") ->  | BA44: =IF(AZ44<>"",(IFERROR(SUMPRODUCT(LARGE($C44:$AS44,{1,2,3,4,5,6,7,8})),"")),"") -> 
B45: HiC | J45: 22 | P45: 29 | T45: 17 | AU45: 68 | AV45: 3 | AW45: =IF($AV45<=6,SUM($C45:$AS45),SUMPRODUCT(LARGE($C45:$AS45,{1,2,3,4,5,6}))) -> 68 | AY45: =IF(AX45= "","",IFERROR(SUMPRODUCT(LARGE($C45:$AS45,{1,2,3,4})), "")) ->  | AZ45: =IF(AY45<>"",(IFERROR(SUMPRODUCT(LARGE($C45:$AS45,{1,2,3,4,5,6,7})),"")),"") ->  | BA45: =IF(AZ45<>"",(IFERROR(SUMPRODUCT(LARGE($C45:$AS45,{1,2,3,4,5,6,7,8})),"")),"") -> 
B46: HoU | E46: 2 | AU46: 2 | AV46: 1 | AW46: =IF($AV46<=6,SUM($C46:$AS46),SUMPRODUCT(LARGE($C46:$AS46,{1,2,3,4,5,6}))) -> 2 | AY46: =IF(AX46= "","",IFERROR(SUMPRODUCT(LARGE($C46:$AS46,{1,2,3,4})), "")) ->  | AZ46: =IF(AY46<>"",(IFERROR(SUMPRODUCT(LARGE($C46:$AS46,{1,2,3,4,5,6,7})),"")),"") ->  | BA46: =IF(AZ46<>"",(IFERROR(SUMPRODUCT(LARGE($C46:$AS46,{1,2,3,4,5,6,7,8})),"")),"") -> 
B47: HPU | G47: 22 | T47: 10 | AU47: 32 | AV47: 2 | AW47: =IF($AV47<=6,SUM($C47:$AS47),SUMPRODUCT(LARGE($C47:$AS47,{1,2,3,4,5,6}))) -> 32 | AY47: =IF(AX47= "","",IFERROR(SUMPRODUCT(LARGE($C47:$AS47,{1,2,3,4})), "")) ->  | AZ47: =IF(AY47<>"",(IFERROR(SUMPRODUCT(LARGE($C47:$AS47,{1,2,3,4,5,6,7})),"")),"") ->  | BA47: =IF(AZ47<>"",(IFERROR(SUMPRODUCT(LARGE($C47:$AS47,{1,2,3,4,5,6,7,8})),"")),"") -> 
B48: HU | L48: 11 | O48: 10 | R48: 9 | AC48: 16 | AD48: 4 | AU48: 50 | AV48: 5 | AW48: =IF($AV48<=6,SUM($C48:$AS48),SUMPRODUCT(LARGE($C48:$AS48,{1,2,3,4,5,6}))) -> 50 | AY48: =IF(AX48= "","",IFERROR(SUMPRODUCT(LARGE($C48:$AS48,{1,2,3,4})), "")) ->  | AZ48: =IF(AY48<>"",(IFERROR(SUMPRODUCT(LARGE($C48:$AS48,{1,2,3,4,5,6,7})),"")),"") ->  | BA48: =IF(AZ48<>"",(IFERROR(SUMPRODUCT(LARGE($C48:$AS48,{1,2,3,4,5,6,7,8})),"")),"") -> 
B49: ISU | D49: =12+2+1 -> 15 | I49: 15 | P49: 10 | AU49: 40 | AV49: 3 | AW49: =IF($AV49<=6,SUM($C49:$AS49),SUMPRODUCT(LARGE($C49:$AS49,{1,2,3,4,5,6}))) -> 40 | AY49: =IF(AX49= "","",IFERROR(SUMPRODUCT(LARGE($C49:$AS49,{1,2,3,4})), "")) ->  | AZ49: =IF(AY49<>"",(IFERROR(SUMPRODUCT(LARGE($C49:$AS49,{1,2,3,4,5,6,7})),"")),"") ->  | BA49: =IF(AZ49<>"",(IFERROR(SUMPRODUCT(LARGE($C49:$AS49,{1,2,3,4,5,6,7,8})),"")),"") -> 
B50: IVC | AE50: 12 | AH50: 6 | AI50: 18 | AU50: 36 | AV50: 3 | AW50: =IF($AV50<=6,SUM($C50:$AS50),SUMPRODUCT(LARGE($C50:$AS50,{1,2,3,4,5,6}))) -> 36 | AX50: =IF(AND($AV50>=6,AW50=#REF!),"Manual Calc Needed","") ->  | AY50: =IF(AX50= "","",IFERROR(SUMPRODUCT(LARGE($C50:$AS50,{1,2,3,4})), "")) ->  | AZ50: =IF(AY50<>"",(IFERROR(SUMPRODUCT(LARGE($C50:$AS50,{1,2,3,4,5,6,7})),"")),"") ->  | BA50: =IF(AZ50<>"",(IFERROR(SUMPRODUCT(LARGE($C50:$AS50,{1,2,3,4,5,6,7,8})),"")),"") -> 
B51: JSCC | G51: 27 | N51: 19 | Q51: 22 | R51: 13 | T51: 7 | Y51: 6 | AC51: 22 | AD51: 13 | AU51: 129 | AV51: 8 | AW51: =IF($AV51<=6,SUM($C51:$AS51),SUMPRODUCT(LARGE($C51:$AS51,{1,2,3,4,5,6}))) -> 116 | AX51: =IF(AND($AV51>=6,AW51=AW52),"Manual Calc Needed","") ->  | AY51: =IF(AX51= "","",IFERROR(SUMPRODUCT(LARGE($C51:$AS51,{1,2,3,4})), "")) ->  | AZ51: =IF(AY51<>"",(IFERROR(SUMPRODUCT(LARGE($C51:$AS51,{1,2,3,4,5,6,7})),"")),"") ->  | BA51: =IF(AZ51<>"",(IFERROR(SUMPRODUCT(LARGE($C51:$AS51,{1,2,3,4,5,6,7,8})),"")),"") -> 
B52: KWU | W52: 10 | AU52: 10 | AV52: 1 | AW52: =IF($AV52<=6,SUM($C52:$AS52),SUMPRODUCT(LARGE($C52:$AS52,{1,2,3,4,5,6}))) -> 10 | AY52: =IF(AX52= "","",IFERROR(SUMPRODUCT(LARGE($C52:$AS52,{1,2,3,4})), "")) ->  | AZ52: =IF(AY52<>"",(IFERROR(SUMPRODUCT(LARGE($C52:$AS52,{1,2,3,4,5,6,7})),"")),"") ->  | BA52: =IF(AZ52<>"",(IFERROR(SUMPRODUCT(LARGE($C52:$AS52,{1,2,3,4,5,6,7,8})),"")),"") -> 
B53: L&CC | I53: 22 | P53: 30 | U53: 14 | Y53: 15 | Z53: 15 | AA53: 10 | AU53: 106 | AV53: 6 | AW53: =IF($AV53<=6,SUM($C53:$AS53),SUMPRODUCT(LARGE($C53:$AS53,{1,2,3,4,5,6}))) -> 106 | AY53: =IF(AX53= "","",IFERROR(SUMPRODUCT(LARGE($C53:$AS53,{1,2,3,4})), "")) ->  | AZ53: =IF(AY53<>"",(IFERROR(SUMPRODUCT(LARGE($C53:$AS53,{1,2,3,4,5,6,7})),"")),"") ->  | BA53: =IF(AZ53<>"",(IFERROR(SUMPRODUCT(LARGE($C53:$AS53,{1,2,3,4,5,6,7,8})),"")),"") -> 
B54: LafC | AG54: 6 | AU54: 6 | AV54: 1 | AW54: =IF($AV54<=6,SUM($C54:$AS54),SUMPRODUCT(LARGE($C54:$AS54,{1,2,3,4,5,6}))) -> 6 | AY54: =IF(AX54= "","",IFERROR(SUMPRODUCT(LARGE($C54:$AS54,{1,2,3,4})), "")) ->  | AZ54: =IF(AY54<>"",(IFERROR(SUMPRODUCT(LARGE($C54:$AS54,{1,2,3,4,5,6,7})),"")),"") ->  | BA54: =IF(AZ54<>"",(IFERROR(SUMPRODUCT(LARGE($C54:$AS54,{1,2,3,4,5,6,7,8})),"")),"") -> 
B55: LAVC | AI55: 4 | AU55: 4 | AV55: 1 | AW55: =IF($AV55<=6,SUM($C55:$AS55),SUMPRODUCT(LARGE($C55:$AS55,{1,2,3,4,5,6}))) -> 4 | AY55: =IF(AX55= "","",IFERROR(SUMPRODUCT(LARGE($C55:$AS55,{1,2,3,4})), "")) ->  | AZ55: =IF(AY55<>"",(IFERROR(SUMPRODUCT(LARGE($C55:$AS55,{1,2,3,4,5,6,7})),"")),"") ->  | BA55: =IF(AZ55<>"",(IFERROR(SUMPRODUCT(LARGE($C55:$AS55,{1,2,3,4,5,6,7,8})),"")),"") -> 
B56: LCC | I56: 10 | U56: 11 | Y56: 21 | Z56: 18 | AA56: 21 | AU56: 81 | AV56: 5 | AW56: =IF($AV56<=6,SUM($C56:$AS56),SUMPRODUCT(LARGE($C56:$AS56,{1,2,3,4,5,6}))) -> 81 | AY56: =IF(AX56= "","",IFERROR(SUMPRODUCT(LARGE($C56:$AS56,{1,2,3,4})), "")) ->  | AZ56: =IF(AY56<>"",(IFERROR(SUMPRODUCT(LARGE($C56:$AS56,{1,2,3,4,5,6,7})),"")),"") ->  | BA56: =IF(AZ56<>"",(IFERROR(SUMPRODUCT(LARGE($C56:$AS56,{1,2,3,4,5,6,7,8})),"")),"") -> 
B57: LCU | C57: 22 | K57: 15 | O57: 3 | R57: 13 | AC57: 18 | AU57: 71 | AV57: 5 | AW57: =IF($AV57<=6,SUM($C57:$AS57),SUMPRODUCT(LARGE($C57:$AS57,{1,2,3,4,5,6}))) -> 71 | AY57: =IF(AX57= "","",IFERROR(SUMPRODUCT(LARGE($C57:$AS57,{1,2,3,4})), "")) ->  | AZ57: =IF(AY57<>"",(IFERROR(SUMPRODUCT(LARGE($C57:$AS57,{1,2,3,4,5,6,7})),"")),"") ->  | BA57: =IF(AZ57<>"",(IFERROR(SUMPRODUCT(LARGE($C57:$AS57,{1,2,3,4,5,6,7,8})),"")),"") -> 
B58: Lee | C58: 1 | G58: 13 | K58: 30 | O58: 36 | Q58: 19 | R58: 37 | AB58: 36 | AC58: 34 | AD58: 31 | AU58: 237 | AV58: 9 | AW58: =IF($AV58<=6,SUM($C58:$AS58),SUMPRODUCT(LARGE($C58:$AS58,{1,2,3,4,5,6}))) -> 204 | AY58: =IF(AX58= "","",IFERROR(SUMPRODUCT(LARGE($C58:$AS58,{1,2,3,4})), "")) ->  | AZ58: =IF(AY58<>"",(IFERROR(SUMPRODUCT(LARGE($C58:$AS58,{1,2,3,4,5,6,7})),"")),"") ->  | BA58: =IF(AZ58<>"",(IFERROR(SUMPRODUCT(LARGE($C58:$AS58,{1,2,3,4,5,6,7,8})),"")),"") -> 
B59: LibU | E59: 18 | AU59: 18 | AV59: 1 | AW59: =IF($AV59<=6,SUM($C59:$AS59),SUMPRODUCT(LARGE($C59:$AS59,{1,2,3,4,5,6}))) -> 18 | AY59: =IF(AX59= "","",IFERROR(SUMPRODUCT(LARGE($C59:$AS59,{1,2,3,4})), "")) ->  | AZ59: =IF(AY59<>"",(IFERROR(SUMPRODUCT(LARGE($C59:$AS59,{1,2,3,4,5,6,7})),"")),"") ->  | BA59: =IF(AZ59<>"",(IFERROR(SUMPRODUCT(LARGE($C59:$AS59,{1,2,3,4,5,6,7,8})),"")),"") -> 
B60: LPC | AD60: 2 | AU60: 2 | AV60: 1 | AW60: =IF($AV60<=6,SUM($C60:$AS60),SUMPRODUCT(LARGE($C60:$AS60,{1,2,3,4,5,6}))) -> 2 | AY60: =IF(AX60= "","",IFERROR(SUMPRODUCT(LARGE($C60:$AS60,{1,2,3,4})), "")) ->  | AZ60: =IF(AY60<>"",(IFERROR(SUMPRODUCT(LARGE($C60:$AS60,{1,2,3,4,5,6,7})),"")),"") ->  | BA60: =IF(AZ60<>"",(IFERROR(SUMPRODUCT(LARGE($C60:$AS60,{1,2,3,4,5,6,7,8})),"")),"") -> 
B61: LPDA | C61: 9 | G61: 10 | K61: 9 | N61: 1 | Q61: 2 | R61: 3 | AB61: 4 | AU61: 38 | AV61: 7 | AW61: =IF($AV61<=6,SUM($C61:$AS61),SUMPRODUCT(LARGE($C61:$AS61,{1,2,3,4,5,6}))) -> 37 | AY61: =IF(AX61= "","",IFERROR(SUMPRODUCT(LARGE($C61:$AS61,{1,2,3,4})), "")) ->  | AZ61: =IF(AY61<>"",(IFERROR(SUMPRODUCT(LARGE($C61:$AS61,{1,2,3,4,5,6,7})),"")),"") ->  | BA61: =IF(AZ61<>"",(IFERROR(SUMPRODUCT(LARGE($C61:$AS61,{1,2,3,4,5,6,7,8})),"")),"") -> 
B62: LSU | G62: 25 | P62: 11 | Y62: 11 | AK62: 1 | AU62: 48 | AV62: 4 | AW62: =IF($AV62<=6,SUM($C62:$AS62),SUMPRODUCT(LARGE($C62:$AS62,{1,2,3,4,5,6}))) -> 48 | AY62: =IF(AX62= "","",IFERROR(SUMPRODUCT(LARGE($C62:$AS62,{1,2,3,4})), "")) ->  | AZ62: =IF(AY62<>"",(IFERROR(SUMPRODUCT(LARGE($C62:$AS62,{1,2,3,4,5,6,7})),"")),"") ->  | BA62: =IF(AZ62<>"",(IFERROR(SUMPRODUCT(LARGE($C62:$AS62,{1,2,3,4,5,6,7,8})),"")),"") -> 
B63: LSUS | C63: 41 | G63: 20 | K63: 51 | L63: 23 | O63: 16 | Q63: 12 | R63: 53 | AB63: 34 | AC63: 70 | AD63: 49 | AU63: 369 | AV63: 10 | AW63: =IF($AV63<=6,SUM($C63:$AS63),SUMPRODUCT(LARGE($C63:$AS63,{1,2,3,4,5,6}))) -> 298 | AY63: =IF(AX63= "","",IFERROR(SUMPRODUCT(LARGE($C63:$AS63,{1,2,3,4})), "")) ->  | AZ63: =IF(AY63<>"",(IFERROR(SUMPRODUCT(LARGE($C63:$AS63,{1,2,3,4,5,6,7})),"")),"") ->  | BA63: =IF(AZ63<>"",(IFERROR(SUMPRODUCT(LARGE($C63:$AS63,{1,2,3,4,5,6,7,8})),"")),"") -> 
B64: LTU | G64: 16 | K64: 3 | O64: 32 | Q64: 22 | R64: 24 | AC64: 30 | AD64: 36 | AU64: 163 | AV64: 7 | AW64: =IF($AV64<=6,SUM($C64:$AS64),SUMPRODUCT(LARGE($C64:$AS64,{1,2,3,4,5,6}))) -> 160 | AY64: =IF(AX64= "","",IFERROR(SUMPRODUCT(LARGE($C64:$AS64,{1,2,3,4})), "")) ->  | AZ64: =IF(AY64<>"",(IFERROR(SUMPRODUCT(LARGE($C64:$AS64,{1,2,3,4,5,6,7})),"")),"") ->  | BA64: =IF(AZ64<>"",(IFERROR(SUMPRODUCT(LARGE($C64:$AS64,{1,2,3,4,5,6,7,8})),"")),"") -> 
B65: LU | G65: 7 | P65: 4 | AU65: 11 | AV65: 2 | AW65: =IF($AV65<=6,SUM($C65:$AS65),SUMPRODUCT(LARGE($C65:$AS65,{1,2,3,4,5,6}))) -> 11 | AY65: =IF(AX65= "","",IFERROR(SUMPRODUCT(LARGE($C65:$AS65,{1,2,3,4})), "")) ->  | AZ65: =IF(AY65<>"",(IFERROR(SUMPRODUCT(LARGE($C65:$AS65,{1,2,3,4,5,6,7})),"")),"") ->  | BA65: =IF(AZ65<>"",(IFERROR(SUMPRODUCT(LARGE($C65:$AS65,{1,2,3,4,5,6,7,8})),"")),"") -> 
B66: MarU | L66: 8 | AU66: 8 | AV66: 1 | AW66: =IF($AV66<=6,SUM($C66:$AS66),SUMPRODUCT(LARGE($C66:$AS66,{1,2,3,4,5,6}))) -> 8 | AY66: =IF(AX66= "","",IFERROR(SUMPRODUCT(LARGE($C66:$AS66,{1,2,3,4})), "")) ->  | AZ66: =IF(AY66<>"",(IFERROR(SUMPRODUCT(LARGE($C66:$AS66,{1,2,3,4,5,6,7})),"")),"") ->  | BA66: =IF(AZ66<>"",(IFERROR(SUMPRODUCT(LARGE($C66:$AS66,{1,2,3,4,5,6,7,8})),"")),"") -> 
B67: MHCC | Z67: 2 | AK67: 1 | AU67: 3 | AV67: 2 | AW67: =IF($AV67<=6,SUM($C67:$AS67),SUMPRODUCT(LARGE($C67:$AS67,{1,2,3,4,5,6}))) -> 3 | AY67: =IF(AX67= "","",IFERROR(SUMPRODUCT(LARGE($C67:$AS67,{1,2,3,4})), "")) ->  | AZ67: =IF(AY67<>"",(IFERROR(SUMPRODUCT(LARGE($C67:$AS67,{1,2,3,4,5,6,7})),"")),"") ->  | BA67: =IF(AZ67<>"",(IFERROR(SUMPRODUCT(LARGE($C67:$AS67,{1,2,3,4,5,6,7,8})),"")),"") -> 
B68: MoC | H68: 26 | AU68: =SUM($C68:$AT68) -> 26 | AV68: =COUNTA(C68:AS68) -> 1 | AW68: =IF($AV68<=6,SUM($C68:$AS68),SUMPRODUCT(LARGE($C68:$AS68,{1,2,3,4,5,6}))) -> 26 | AY68: =IF(AX68= "","",IFERROR(SUMPRODUCT(LARGE($C68:$AS68,{1,2,3,4})), "")) ->  | AZ68: =IF(AY68<>"",(IFERROR(SUMPRODUCT(LARGE($C68:$AS68,{1,2,3,4,5,6,7})),"")),"") ->  | BA68: =IF(AZ68<>"",(IFERROR(SUMPRODUCT(LARGE($C68:$AS68,{1,2,3,4,5,6,7,8})),"")),"") -> 
B69: MoorC | AF69: 9 | AI69: 35 | AU69: 44 | AV69: 2 | AW69: =IF($AV69<=6,SUM($C69:$AS69),SUMPRODUCT(LARGE($C69:$AS69,{1,2,3,4,5,6}))) -> 44 | AY69: =IF(AX69= "","",IFERROR(SUMPRODUCT(LARGE($C69:$AS69,{1,2,3,4})), "")) ->  | AZ69: =IF(AY69<>"",(IFERROR(SUMPRODUCT(LARGE($C69:$AS69,{1,2,3,4,5,6,7})),"")),"") ->  | BA69: =IF(AZ69<>"",(IFERROR(SUMPRODUCT(LARGE($C69:$AS69,{1,2,3,4,5,6,7,8})),"")),"") -> 
B70: MSAC | AE70: 18 | AF70: 5 | AH70: 22 | AI70: 18 | AU70: 63 | AV70: 4 | AW70: =IF($AV70<=6,SUM($C70:$AS70),SUMPRODUCT(LARGE($C70:$AS70,{1,2,3,4,5,6}))) -> 63 | AY70: =IF(AX70= "","",IFERROR(SUMPRODUCT(LARGE($C70:$AS70,{1,2,3,4})), "")) ->  | AZ70: =IF(AY70<>"",(IFERROR(SUMPRODUCT(LARGE($C70:$AS70,{1,2,3,4,5,6,7})),"")),"") ->  | BA70: =IF(AZ70<>"",(IFERROR(SUMPRODUCT(LARGE($C70:$AS70,{1,2,3,4,5,6,7,8})),"")),"") -> 
B71: MSD | AF71: 5 | AH71: 6 | AI71: 7 | AU71: 18 | AV71: 3 | AW71: =IF($AV71<=6,SUM($C71:$AS71),SUMPRODUCT(LARGE($C71:$AS71,{1,2,3,4,5,6}))) -> 18 | AY71: =IF(AX71= "","",IFERROR(SUMPRODUCT(LARGE($C71:$AS71,{1,2,3,4})), "")) ->  | AZ71: =IF(AY71<>"",(IFERROR(SUMPRODUCT(LARGE($C71:$AS71,{1,2,3,4,5,6,7})),"")),"") ->  | BA71: =IF(AZ71<>"",(IFERROR(SUMPRODUCT(LARGE($C71:$AS71,{1,2,3,4,5,6,7,8})),"")),"") -> 
B72: MslU | M72: 8 | AG72: 10 | AU72: 18 | AV72: 2 | AW72: =IF($AV72<=6,SUM($C72:$AS72),SUMPRODUCT(LARGE($C72:$AS72,{1,2,3,4,5,6}))) -> 18 | AY72: =IF(AX72= "","",IFERROR(SUMPRODUCT(LARGE($C72:$AS72,{1,2,3,4})), "")) ->  | AZ72: =IF(AY72<>"",(IFERROR(SUMPRODUCT(LARGE($C72:$AS72,{1,2,3,4,5,6,7})),"")),"") ->  | BA72: =IF(AZ72<>"",(IFERROR(SUMPRODUCT(LARGE($C72:$AS72,{1,2,3,4,5,6,7,8})),"")),"") -> 
B73: MSU | G73: 41 | H73: 71 | K73: 60 | N73: 69 | O73: 85 | Q73: 41 | R73: 69 | Y73: 12 | AB73: 28 | AC73: 82 | AD73: 41 | AU73: 599 | AV73: 11 | AW73: =IF($AV73<=6,SUM($C73:$AS73),SUMPRODUCT(LARGE($C73:$AS73,{1,2,3,4,5,6}))) -> 436 | AY73: =IF(AX73= "","",IFERROR(SUMPRODUCT(LARGE($C73:$AS73,{1,2,3,4})), "")) ->  | AZ73: =IF(AY73<>"",(IFERROR(SUMPRODUCT(LARGE($C73:$AS73,{1,2,3,4,5,6,7})),"")),"") ->  | BA73: =IF(AZ73<>"",(IFERROR(SUMPRODUCT(LARGE($C73:$AS73,{1,2,3,4,5,6,7,8})),"")),"") -> 
B74: MTSU | E74: 9 | F74: 11 | G74: 62 | M74: 14 | N74: 17 | Q74: 2 | R74: 33 | X74: 21 | AD74: 3 | AU74: 172 | AV74: 9 | AW74: =IF($AV74<=6,SUM($C74:$AS74),SUMPRODUCT(LARGE($C74:$AS74,{1,2,3,4,5,6}))) -> 158 | AY74: =IF(AX74= "","",IFERROR(SUMPRODUCT(LARGE($C74:$AS74,{1,2,3,4})), "")) ->  | AZ74: =IF(AY74<>"",(IFERROR(SUMPRODUCT(LARGE($C74:$AS74,{1,2,3,4,5,6,7})),"")),"") ->  | BA74: =IF(AZ74<>"",(IFERROR(SUMPRODUCT(LARGE($C74:$AS74,{1,2,3,4,5,6,7,8})),"")),"") -> 
B75: MU | V75: 4 | AU75: 4 | AV75: 1 | AW75: =IF($AV75<=6,SUM($C75:$AS75),SUMPRODUCT(LARGE($C75:$AS75,{1,2,3,4,5,6}))) -> 4 | AY75: =IF(AX75= "","",IFERROR(SUMPRODUCT(LARGE($C75:$AS75,{1,2,3,4})), "")) ->  | AZ75: =IF(AY75<>"",(IFERROR(SUMPRODUCT(LARGE($C75:$AS75,{1,2,3,4,5,6,7})),"")),"") ->  | BA75: =IF(AZ75<>"",(IFERROR(SUMPRODUCT(LARGE($C75:$AS75,{1,2,3,4,5,6,7,8})),"")),"") -> 
B76: MuSU | F76: 7 | H76: 3 | N76: 5 | AU76: 15 | AV76: 3 | AW76: =IF($AV76<=6,SUM($C76:$AS76),SUMPRODUCT(LARGE($C76:$AS76,{1,2,3,4,5,6}))) -> 15 | AY76: =IF(AX76= "","",IFERROR(SUMPRODUCT(LARGE($C76:$AS76,{1,2,3,4})), "")) ->  | AZ76: =IF(AY76<>"",(IFERROR(SUMPRODUCT(LARGE($C76:$AS76,{1,2,3,4,5,6,7})),"")),"") ->  | BA76: =IF(AZ76<>"",(IFERROR(SUMPRODUCT(LARGE($C76:$AS76,{1,2,3,4,5,6,7,8})),"")),"") -> 
B77: MuU | J77: 3 | AU77: 3 | AV77: 1 | AW77: =IF($AV77<=6,SUM($C77:$AS77),SUMPRODUCT(LARGE($C77:$AS77,{1,2,3,4,5,6}))) -> 3 | AY77: =IF(AX77= "","",IFERROR(SUMPRODUCT(LARGE($C77:$AS77,{1,2,3,4})), "")) ->  | AZ77: =IF(AY77<>"",(IFERROR(SUMPRODUCT(LARGE($C77:$AS77,{1,2,3,4,5,6,7})),"")),"") ->  | BA77: =IF(AZ77<>"",(IFERROR(SUMPRODUCT(LARGE($C77:$AS77,{1,2,3,4,5,6,7,8})),"")),"") -> 
B78: MVC | J78: 1 | L78: 0 | AU78: 1 | AV78: 2 | AW78: =IF($AV78<=6,SUM($C78:$AS78),SUMPRODUCT(LARGE($C78:$AS78,{1,2,3,4,5,6}))) -> 1 | AX78: =IF(AND($AV78>=6,AW78=#REF!),"Manual Calc Needed","") ->  | AY78: =IF(AX78= "","",IFERROR(SUMPRODUCT(LARGE($C78:$AS78,{1,2,3,4})), "")) ->  | AZ78: =IF(AY78<>"",(IFERROR(SUMPRODUCT(LARGE($C78:$AS78,{1,2,3,4,5,6,7})),"")),"") ->  | BA78: =IF(AZ78<>"",(IFERROR(SUMPRODUCT(LARGE($C78:$AS78,{1,2,3,4,5,6,7,8})),"")),"") -> 
B79: NAU | AE79: 19 | AJ79: 5 | AU79: 24 | AV79: 2 | AW79: =IF($AV79<=6,SUM($C79:$AS79),SUMPRODUCT(LARGE($C79:$AS79,{1,2,3,4,5,6}))) -> 24 | AX79: =IF(AND($AV79>=6,AW79=AW80),"Manual Calc Needed","") ->  | AY79: =IF(AX79= "","",IFERROR(SUMPRODUCT(LARGE($C79:$AS79,{1,2,3,4})), "")) ->  | AZ79: =IF(AY79<>"",(IFERROR(SUMPRODUCT(LARGE($C79:$AS79,{1,2,3,4,5,6,7})),"")),"") ->  | BA79: =IF(AZ79<>"",(IFERROR(SUMPRODUCT(LARGE($C79:$AS79,{1,2,3,4,5,6,7,8})),"")),"") -> 
B80: NNU | D80: 3 | I80: 4 | Y80: 7 | AA80: 9 | AU80: 23 | AV80: 4 | AW80: =IF($AV80<=6,SUM($C80:$AS80),SUMPRODUCT(LARGE($C80:$AS80,{1,2,3,4,5,6}))) -> 23 | AY80: =IF(AX80= "","",IFERROR(SUMPRODUCT(LARGE($C80:$AS80,{1,2,3,4})), "")) ->  | AZ80: =IF(AY80<>"",(IFERROR(SUMPRODUCT(LARGE($C80:$AS80,{1,2,3,4,5,6,7})),"")),"") ->  | BA80: =IF(AZ80<>"",(IFERROR(SUMPRODUCT(LARGE($C80:$AS80,{1,2,3,4,5,6,7,8})),"")),"") -> 
B81: NVCC | AH81: 6 | AU81: 6 | AV81: 1 | AW81: =IF($AV81<=6,SUM($C81:$AS81),SUMPRODUCT(LARGE($C81:$AS81,{1,2,3,4,5,6}))) -> 6 | AY81: =IF(AX81= "","",IFERROR(SUMPRODUCT(LARGE($C81:$AS81,{1,2,3,4})), "")) ->  | AZ81: =IF(AY81<>"",(IFERROR(SUMPRODUCT(LARGE($C81:$AS81,{1,2,3,4,5,6,7})),"")),"") ->  | BA81: =IF(AZ81<>"",(IFERROR(SUMPRODUCT(LARGE($C81:$AS81,{1,2,3,4,5,6,7,8})),"")),"") -> 
B82: NWC | D82: 1 | I82: 12 | P82: 13 | AU82: 26 | AV82: 3 | AW82: =IF($AV82<=6,SUM($C82:$AS82),SUMPRODUCT(LARGE($C82:$AS82,{1,2,3,4,5,6}))) -> 26 | AY82: =IF(AX82= "","",IFERROR(SUMPRODUCT(LARGE($C82:$AS82,{1,2,3,4})), "")) ->  | AZ82: =IF(AY82<>"",(IFERROR(SUMPRODUCT(LARGE($C82:$AS82,{1,2,3,4,5,6,7})),"")),"") ->  | BA82: =IF(AZ82<>"",(IFERROR(SUMPRODUCT(LARGE($C82:$AS82,{1,2,3,4,5,6,7,8})),"")),"") -> 
B83: NWSU | G83: 11 | O83: 13 | R83: 11 | AC83: 10 | AD83: 7 | AU83: 52 | AV83: 5 | AW83: =IF($AV83<=6,SUM($C83:$AS83),SUMPRODUCT(LARGE($C83:$AS83,{1,2,3,4,5,6}))) -> 52 | AY83: =IF(AX83= "","",IFERROR(SUMPRODUCT(LARGE($C83:$AS83,{1,2,3,4})), "")) ->  | AZ83: =IF(AY83<>"",(IFERROR(SUMPRODUCT(LARGE($C83:$AS83,{1,2,3,4,5,6,7})),"")),"") ->  | BA83: =IF(AZ83<>"",(IFERROR(SUMPRODUCT(LARGE($C83:$AS83,{1,2,3,4,5,6,7,8})),"")),"") -> 
B84: OCC | AE84: 25 | AH84: 16 | AI84: 26 | AU84: 67 | AV84: 3 | AW84: =IF($AV84<=6,SUM($C84:$AS84),SUMPRODUCT(LARGE($C84:$AS84,{1,2,3,4,5,6}))) -> 67 | AY84: =IF(AX84= "","",IFERROR(SUMPRODUCT(LARGE($C84:$AS84,{1,2,3,4})), "")) ->  | AZ84: =IF(AY84<>"",(IFERROR(SUMPRODUCT(LARGE($C84:$AS84,{1,2,3,4,5,6,7})),"")),"") ->  | BA84: =IF(AZ84<>"",(IFERROR(SUMPRODUCT(LARGE($C84:$AS84,{1,2,3,4,5,6,7,8})),"")),"") -> 
B85: OCTC | T85: 1 | AU85: 1 | AV85: 1 | AW85: =IF($AV85<=6,SUM($C85:$AS85),SUMPRODUCT(LARGE($C85:$AS85,{1,2,3,4,5,6}))) -> 1 | AY85: =IF(AX85= "","",IFERROR(SUMPRODUCT(LARGE($C85:$AS85,{1,2,3,4})), "")) ->  | AZ85: =IF(AY85<>"",(IFERROR(SUMPRODUCT(LARGE($C85:$AS85,{1,2,3,4,5,6,7})),"")),"") ->  | BA85: =IF(AZ85<>"",(IFERROR(SUMPRODUCT(LARGE($C85:$AS85,{1,2,3,4,5,6,7,8})),"")),"") -> 
B86: OCU | R86: 10 | AU86: 10 | AV86: 1 | AW86: =IF($AV86<=6,SUM($C86:$AS86),SUMPRODUCT(LARGE($C86:$AS86,{1,2,3,4,5,6}))) -> 10 | AY86: =IF(AX86= "","",IFERROR(SUMPRODUCT(LARGE($C86:$AS86,{1,2,3,4})), "")) ->  | AZ86: =IF(AY86<>"",(IFERROR(SUMPRODUCT(LARGE($C86:$AS86,{1,2,3,4,5,6,7})),"")),"") ->  | BA86: =IF(AZ86<>"",(IFERROR(SUMPRODUCT(LARGE($C86:$AS86,{1,2,3,4,5,6,7,8})),"")),"") -> 
B87: OhU | J87: 2 | AU87: 2 | AV87: 1 | AW87: =IF($AV87<=6,SUM($C87:$AS87),SUMPRODUCT(LARGE($C87:$AS87,{1,2,3,4,5,6}))) -> 2 | AY87: =IF(AX87= "","",IFERROR(SUMPRODUCT(LARGE($C87:$AS87,{1,2,3,4})), "")) ->  | AZ87: =IF(AY87<>"",(IFERROR(SUMPRODUCT(LARGE($C87:$AS87,{1,2,3,4,5,6,7})),"")),"") ->  | BA87: =IF(AZ87<>"",(IFERROR(SUMPRODUCT(LARGE($C87:$AS87,{1,2,3,4,5,6,7,8})),"")),"") -> 
B88: OkBU | G88: 13 | AU88: 13 | AV88: 1 | AW88: =IF($AV88<=6,SUM($C88:$AS88),SUMPRODUCT(LARGE($C88:$AS88,{1,2,3,4,5,6}))) -> 13 | AY88: =IF(AX88= "","",IFERROR(SUMPRODUCT(LARGE($C88:$AS88,{1,2,3,4})), "")) ->  | AZ88: =IF(AY88<>"",(IFERROR(SUMPRODUCT(LARGE($C88:$AS88,{1,2,3,4,5,6,7})),"")),"") ->  | BA88: =IF(AZ88<>"",(IFERROR(SUMPRODUCT(LARGE($C88:$AS88,{1,2,3,4,5,6,7,8})),"")),"") -> 
B89: ORU | Q89: 12 | Y89: 2 | AU89: 14 | AV89: 2 | AW89: =IF($AV89<=6,SUM($C89:$AS89),SUMPRODUCT(LARGE($C89:$AS89,{1,2,3,4,5,6}))) -> 14 | AY89: =IF(AX89= "","",IFERROR(SUMPRODUCT(LARGE($C89:$AS89,{1,2,3,4})), "")) ->  | AZ89: =IF(AY89<>"",(IFERROR(SUMPRODUCT(LARGE($C89:$AS89,{1,2,3,4,5,6,7})),"")),"") ->  | BA89: =IF(AZ89<>"",(IFERROR(SUMPRODUCT(LARGE($C89:$AS89,{1,2,3,4,5,6,7,8})),"")),"") -> 
B90: OSU | I90: 6 | P90: 8 | U90: 5 | Y90: 6 | Z90: 9 | AA90: 12 | AU90: 46 | AV90: 6 | AW90: =IF($AV90<=6,SUM($C90:$AS90),SUMPRODUCT(LARGE($C90:$AS90,{1,2,3,4,5,6}))) -> 46 | AY90: =IF(AX90= "","",IFERROR(SUMPRODUCT(LARGE($C90:$AS90,{1,2,3,4})), "")) ->  | AZ90: =IF(AY90<>"",(IFERROR(SUMPRODUCT(LARGE($C90:$AS90,{1,2,3,4,5,6,7})),"")),"") ->  | BA90: =IF(AZ90<>"",(IFERROR(SUMPRODUCT(LARGE($C90:$AS90,{1,2,3,4,5,6,7,8})),"")),"") -> 
B91: OttU | L91: 4 | S91: 13 | AU91: 17 | AV91: 2 | AW91: =IF($AV91<=6,SUM($C91:$AS91),SUMPRODUCT(LARGE($C91:$AS91,{1,2,3,4,5,6}))) -> 17 | AY91: =IF(AX91= "","",IFERROR(SUMPRODUCT(LARGE($C91:$AS91,{1,2,3,4})), "")) ->  | AZ91: =IF(AY91<>"",(IFERROR(SUMPRODUCT(LARGE($C91:$AS91,{1,2,3,4,5,6,7})),"")),"") ->  | BA91: =IF(AZ91<>"",(IFERROR(SUMPRODUCT(LARGE($C91:$AS91,{1,2,3,4,5,6,7,8})),"")),"") -> 
B92: OU | J92: 5 | AU92: 5 | AV92: 1 | AW92: =IF($AV92<=6,SUM($C92:$AS92),SUMPRODUCT(LARGE($C92:$AS92,{1,2,3,4,5,6}))) -> 5 | AY92: =IF(AX92= "","",IFERROR(SUMPRODUCT(LARGE($C92:$AS92,{1,2,3,4})), "")) ->  | AZ92: =IF(AY92<>"",(IFERROR(SUMPRODUCT(LARGE($C92:$AS92,{1,2,3,4,5,6,7})),"")),"") ->  | BA92: =IF(AZ92<>"",(IFERROR(SUMPRODUCT(LARGE($C92:$AS92,{1,2,3,4,5,6,7,8})),"")),"") -> 
B93: PaU | G93: 6 | L93: 10 | O93: 3 | R93: 10 | S93: 7 | W93: 13 | AU93: 49 | AV93: 6 | AW93: =IF($AV93<=6,SUM($C93:$AS93),SUMPRODUCT(LARGE($C93:$AS93,{1,2,3,4,5,6}))) -> 49 | AY93: =IF(AX93= "","",IFERROR(SUMPRODUCT(LARGE($C93:$AS93,{1,2,3,4})), "")) ->  | AZ93: =IF(AY93<>"",(IFERROR(SUMPRODUCT(LARGE($C93:$AS93,{1,2,3,4,5,6,7})),"")),"") ->  | BA93: =IF(AZ93<>"",(IFERROR(SUMPRODUCT(LARGE($C93:$AS93,{1,2,3,4,5,6,7,8})),"")),"") -> 
B94: PC | V94: 2 | AE94: 2 | AH94: 4 | AI94: 5 | AU94: 13 | AV94: 4 | AW94: =IF($AV94<=6,SUM($C94:$AS94),SUMPRODUCT(LARGE($C94:$AS94,{1,2,3,4,5,6}))) -> 13 | AY94: =IF(AX94= "","",IFERROR(SUMPRODUCT(LARGE($C94:$AS94,{1,2,3,4})), "")) ->  | AZ94: =IF(AY94<>"",(IFERROR(SUMPRODUCT(LARGE($C94:$AS94,{1,2,3,4,5,6,7})),"")),"") ->  | BA94: =IF(AZ94<>"",(IFERROR(SUMPRODUCT(LARGE($C94:$AS94,{1,2,3,4,5,6,7,8})),"")),"") -> 
B95: PCC | AE95: 9 | AH95: 7 | AU95: 16 | AV95: 2 | AW95: =IF($AV95<=6,SUM($C95:$AS95),SUMPRODUCT(LARGE($C95:$AS95,{1,2,3,4,5,6}))) -> 16 | AY95: =IF(AX95= "","",IFERROR(SUMPRODUCT(LARGE($C95:$AS95,{1,2,3,4})), "")) ->  | AZ95: =IF(AY95<>"",(IFERROR(SUMPRODUCT(LARGE($C95:$AS95,{1,2,3,4,5,6,7})),"")),"") ->  | BA95: =IF(AZ95<>"",(IFERROR(SUMPRODUCT(LARGE($C95:$AS95,{1,2,3,4,5,6,7,8})),"")),"") -> 
B96: PHC | N96: 14 | R96: 15 | AU96: 29 | AV96: 2 | AW96: =IF($AV96<=6,SUM($C96:$AS96),SUMPRODUCT(LARGE($C96:$AS96,{1,2,3,4,5,6}))) -> 29 | AY96: =IF(AX96= "","",IFERROR(SUMPRODUCT(LARGE($C96:$AS96,{1,2,3,4})), "")) ->  | AZ96: =IF(AY96<>"",(IFERROR(SUMPRODUCT(LARGE($C96:$AS96,{1,2,3,4,5,6,7})),"")),"") ->  | BA96: =IF(AZ96<>"",(IFERROR(SUMPRODUCT(LARGE($C96:$AS96,{1,2,3,4,5,6,7,8})),"")),"") -> 
B97: PLNU | V97: 39 | AE97: 51 | AF97: 52 | AG97: 11 | AH97: 42 | AJ97: 20 | AU97: 215 | AV97: 6 | AW97: =IF($AV97<=6,SUM($C97:$AS97),SUMPRODUCT(LARGE($C97:$AS97,{1,2,3,4,5,6}))) -> 215 | AY97: =IF(AX97= "","",IFERROR(SUMPRODUCT(LARGE($C97:$AS97,{1,2,3,4})), "")) ->  | AZ97: =IF(AY97<>"",(IFERROR(SUMPRODUCT(LARGE($C97:$AS97,{1,2,3,4,5,6,7})),"")),"") ->  | BA97: =IF(AZ97<>"",(IFERROR(SUMPRODUCT(LARGE($C97:$AS97,{1,2,3,4,5,6,7,8})),"")),"") -> 
B98: PSCC | N98: 5 | X98: 11 | AU98: 16 | AV98: 2 | AW98: =IF($AV98<=6,SUM($C98:$AS98),SUMPRODUCT(LARGE($C98:$AS98,{1,2,3,4,5,6}))) -> 16 | AY98: =IF(AX98= "","",IFERROR(SUMPRODUCT(LARGE($C98:$AS98,{1,2,3,4})), "")) ->  | AZ98: =IF(AY98<>"",(IFERROR(SUMPRODUCT(LARGE($C98:$AS98,{1,2,3,4,5,6,7})),"")),"") ->  | BA98: =IF(AZ98<>"",(IFERROR(SUMPRODUCT(LARGE($C98:$AS98,{1,2,3,4,5,6,7,8})),"")),"") -> 
B99: QC | E99: 2 | F99: 12 | AU99: 14 | AV99: 2 | AW99: =IF($AV99<=6,SUM($C99:$AS99),SUMPRODUCT(LARGE($C99:$AS99,{1,2,3,4,5,6}))) -> 14 | AY99: =IF(AX99= "","",IFERROR(SUMPRODUCT(LARGE($C99:$AS99,{1,2,3,4})), "")) ->  | AZ99: =IF(AY99<>"",(IFERROR(SUMPRODUCT(LARGE($C99:$AS99,{1,2,3,4,5,6,7})),"")),"") ->  | BA99: =IF(AZ99<>"",(IFERROR(SUMPRODUCT(LARGE($C99:$AS99,{1,2,3,4,5,6,7,8})),"")),"") -> 
B100: RHCC | V100: 8 | AE100: 10 | AF100: 1 | AI100: 9 | AU100: =SUM($C100:$AT100) -> 28 | AV100: =COUNTA(C100:AS100) -> 4 | AW100: =IF($AV100<=6,SUM($C100:$AS100),SUMPRODUCT(LARGE($C100:$AS100,{1,2,3,4,5,6}))) -> 28 | AY100: =IF(AX100= "","",IFERROR(SUMPRODUCT(LARGE($C100:$AS100,{1,2,3,4})), "")) ->  | AZ100: =IF(AY100<>"",(IFERROR(SUMPRODUCT(LARGE($C100:$AS100,{1,2,3,4,5,6,7})),"")),"") ->  | BA100: =IF(AZ100<>"",(IFERROR(SUMPRODUCT(LARGE($C100:$AS100,{1,2,3,4,5,6,7,8})),"")),"") -> 
B101: RHCC | AU101: 0 | AV101: 0 | AW101: =IF($AV101<=6,SUM($C101:$AS101),SUMPRODUCT(LARGE($C101:$AS101,{1,2,3,4,5,6}))) -> 0 | AY101: =IF(AX101= "","",IFERROR(SUMPRODUCT(LARGE($C101:$AS101,{1,2,3,4})), "")) ->  | AZ101: =IF(AY101<>"",(IFERROR(SUMPRODUCT(LARGE($C101:$AS101,{1,2,3,4,5,6,7})),"")),"") ->  | BA101: =IF(AZ101<>"",(IFERROR(SUMPRODUCT(LARGE($C101:$AS101,{1,2,3,4,5,6,7,8})),"")),"") -> 
B102: RU | V102: 18 | AU102: 18 | AV102: 1 | AW102: =IF($AV102<=6,SUM($C102:$AS102),SUMPRODUCT(LARGE($C102:$AS102,{1,2,3,4,5,6}))) -> 18 | AY102: =IF(AX102= "","",IFERROR(SUMPRODUCT(LARGE($C102:$AS102,{1,2,3,4})), "")) ->  | AZ102: =IF(AY102<>"",(IFERROR(SUMPRODUCT(LARGE($C102:$AS102,{1,2,3,4,5,6,7})),"")),"") ->  | BA102: =IF(AZ102<>"",(IFERROR(SUMPRODUCT(LARGE($C102:$AS102,{1,2,3,4,5,6,7,8})),"")),"") -> 
B103: SAC | J103: 3 | AU103: 3 | AV103: 1 | AW103: =IF($AV103<=6,SUM($C103:$AS103),SUMPRODUCT(LARGE($C103:$AS103,{1,2,3,4,5,6}))) -> 3 | AY103: =IF(AX103= "","",IFERROR(SUMPRODUCT(LARGE($C103:$AS103,{1,2,3,4})), "")) ->  | AZ103: =IF(AY103<>"",(IFERROR(SUMPRODUCT(LARGE($C103:$AS103,{1,2,3,4,5,6,7})),"")),"") ->  | BA103: =IF(AZ103<>"",(IFERROR(SUMPRODUCT(LARGE($C103:$AS103,{1,2,3,4,5,6,7,8})),"")),"") -> 
B104: SaCC | AF104: 11 | AH104: 4 | AI104: 15 | AU104: 30 | AV104: 3 | AW104: =IF($AV104<=6,SUM($C104:$AS104),SUMPRODUCT(LARGE($C104:$AS104,{1,2,3,4,5,6}))) -> 30 | AY104: =IF(AX104= "","",IFERROR(SUMPRODUCT(LARGE($C104:$AS104,{1,2,3,4})), "")) ->  | AZ104: =IF(AY104<>"",(IFERROR(SUMPRODUCT(LARGE($C104:$AS104,{1,2,3,4,5,6,7})),"")),"") ->  | BA104: =IF(AZ104<>"",(IFERROR(SUMPRODUCT(LARGE($C104:$AS104,{1,2,3,4,5,6,7,8})),"")),"") -> 
B105: SBU | L105: 9 | AU105: 9 | AV105: 1 | AW105: =IF($AV105<=6,SUM($C105:$AS105),SUMPRODUCT(LARGE($C105:$AS105,{1,2,3,4,5,6}))) -> 9 | AY105: =IF(AX105= "","",IFERROR(SUMPRODUCT(LARGE($C105:$AS105,{1,2,3,4})), "")) ->  | AZ105: =IF(AY105<>"",(IFERROR(SUMPRODUCT(LARGE($C105:$AS105,{1,2,3,4,5,6,7})),"")),"") ->  | BA105: =IF(AZ105<>"",(IFERROR(SUMPRODUCT(LARGE($C105:$AS105,{1,2,3,4,5,6,7,8})),"")),"") -> 
B106: SC | F106: 14 | L106: 5 | S106: 29 | W106: 21 | AU106: 69 | AV106: 4 | AW106: =IF($AV106<=6,SUM($C106:$AS106),SUMPRODUCT(LARGE($C106:$AS106,{1,2,3,4,5,6}))) -> 69 | AY106: =IF(AX106= "","",IFERROR(SUMPRODUCT(LARGE($C106:$AS106,{1,2,3,4})), "")) ->  | AZ106: =IF(AY106<>"",(IFERROR(SUMPRODUCT(LARGE($C106:$AS106,{1,2,3,4,5,6,7})),"")),"") ->  | BA106: =IF(AZ106<>"",(IFERROR(SUMPRODUCT(LARGE($C106:$AS106,{1,2,3,4,5,6,7,8})),"")),"") -> 
B107: ScU | C107: 7 | J107: 3 | T107: 20 | AU107: 30 | AV107: 3 | AW107: =IF($AV107<=6,SUM($C107:$AS107),SUMPRODUCT(LARGE($C107:$AS107,{1,2,3,4,5,6}))) -> 30 | AY107: =IF(AX107= "","",IFERROR(SUMPRODUCT(LARGE($C107:$AS107,{1,2,3,4})), "")) ->  | AZ107: =IF(AY107<>"",(IFERROR(SUMPRODUCT(LARGE($C107:$AS107,{1,2,3,4,5,6,7})),"")),"") ->  | BA107: =IF(AZ107<>"",(IFERROR(SUMPRODUCT(LARGE($C107:$AS107,{1,2,3,4,5,6,7,8})),"")),"") -> 
B108: SDMC | AH108: 2 | AU108: 2 | AV108: 1 | AW108: =IF($AV108<=6,SUM($C108:$AS108),SUMPRODUCT(LARGE($C108:$AS108,{1,2,3,4,5,6}))) -> 2 | AY108: =IF(AX108= "","",IFERROR(SUMPRODUCT(LARGE($C108:$AS108,{1,2,3,4})), "")) ->  | AZ108: =IF(AY108<>"",(IFERROR(SUMPRODUCT(LARGE($C108:$AS108,{1,2,3,4,5,6,7})),"")),"") ->  | BA108: =IF(AZ108<>"",(IFERROR(SUMPRODUCT(LARGE($C108:$AS108,{1,2,3,4,5,6,7,8})),"")),"") -> 
B109: SDSU | AH109: 12 | AI109: 2 | AJ109: 2 | AU109: 16 | AV109: 3 | AW109: =IF($AV109<=6,SUM($C109:$AS109),SUMPRODUCT(LARGE($C109:$AS109,{1,2,3,4,5,6}))) -> 16 | AY109: =IF(AX109= "","",IFERROR(SUMPRODUCT(LARGE($C109:$AS109,{1,2,3,4})), "")) ->  | AZ109: =IF(AY109<>"",(IFERROR(SUMPRODUCT(LARGE($C109:$AS109,{1,2,3,4,5,6,7})),"")),"") ->  | BA109: =IF(AZ109<>"",(IFERROR(SUMPRODUCT(LARGE($C109:$AS109,{1,2,3,4,5,6,7,8})),"")),"") -> 
B110: SFCC | L110: 4 | S110: 8 | W110: 1 | AU110: 13 | AV110: 3 | AW110: =IF($AV110<=6,SUM($C110:$AS110),SUMPRODUCT(LARGE($C110:$AS110,{1,2,3,4,5,6}))) -> 13 | AY110: =IF(AX110= "","",IFERROR(SUMPRODUCT(LARGE($C110:$AS110,{1,2,3,4})), "")) ->  | AZ110: =IF(AY110<>"",(IFERROR(SUMPRODUCT(LARGE($C110:$AS110,{1,2,3,4,5,6,7})),"")),"") ->  | BA110: =IF(AZ110<>"",(IFERROR(SUMPRODUCT(LARGE($C110:$AS110,{1,2,3,4,5,6,7,8})),"")),"") -> 
B111: SHSU | C111: 12 | O111: 15 | AC111: 3 | AU111: 30 | AV111: 3 | AW111: =IF($AV111<=6,SUM($C111:$AS111),SUMPRODUCT(LARGE($C111:$AS111,{1,2,3,4,5,6}))) -> 30 | AX111: =IF(AND($AV111>=6,AW111=AW112),"Manual Calc Needed","") ->  | AY111: =IF(AX111= "","",IFERROR(SUMPRODUCT(LARGE($C111:$AS111,{1,2,3,4})), "")) ->  | AZ111: =IF(AY111<>"",(IFERROR(SUMPRODUCT(LARGE($C111:$AS111,{1,2,3,4,5,6,7})),"")),"") ->  | BA111: =IF(AZ111<>"",(IFERROR(SUMPRODUCT(LARGE($C111:$AS111,{1,2,3,4,5,6,7,8})),"")),"") -> 
B112: SJDC | V112: 16 | AU112: 16 | AV112: 1 | AW112: =IF($AV112<=6,SUM($C112:$AS112),SUMPRODUCT(LARGE($C112:$AS112,{1,2,3,4,5,6}))) -> 16 | AY112: =IF(AX112= "","",IFERROR(SUMPRODUCT(LARGE($C112:$AS112,{1,2,3,4})), "")) ->  | AZ112: =IF(AY112<>"",(IFERROR(SUMPRODUCT(LARGE($C112:$AS112,{1,2,3,4,5,6,7})),"")),"") ->  | BA112: =IF(AZ112<>"",(IFERROR(SUMPRODUCT(LARGE($C112:$AS112,{1,2,3,4,5,6,7,8})),"")),"") -> 
B113: SJU | E113: 6 | F113: 15 | AU113: 21 | AV113: 2 | AW113: =IF($AV113<=6,SUM($C113:$AS113),SUMPRODUCT(LARGE($C113:$AS113,{1,2,3,4,5,6}))) -> 21 | AY113: =IF(AX113= "","",IFERROR(SUMPRODUCT(LARGE($C113:$AS113,{1,2,3,4})), "")) ->  | AZ113: =IF(AY113<>"",(IFERROR(SUMPRODUCT(LARGE($C113:$AS113,{1,2,3,4,5,6,7})),"")),"") ->  | BA113: =IF(AZ113<>"",(IFERROR(SUMPRODUCT(LARGE($C113:$AS113,{1,2,3,4,5,6,7,8})),"")),"") -> 
B114: SMC | AH114: 4 | AI114: 15 | AU114: 19 | AV114: 2 | AW114: =IF($AV114<=6,SUM($C114:$AS114),SUMPRODUCT(LARGE($C114:$AS114,{1,2,3,4,5,6}))) -> 19 | AY114: =IF(AX114= "","",IFERROR(SUMPRODUCT(LARGE($C114:$AS114,{1,2,3,4})), "")) ->  | AZ114: =IF(AY114<>"",(IFERROR(SUMPRODUCT(LARGE($C114:$AS114,{1,2,3,4,5,6,7})),"")),"") ->  | BA114: =IF(AZ114<>"",(IFERROR(SUMPRODUCT(LARGE($C114:$AS114,{1,2,3,4,5,6,7,8})),"")),"") -> 
B115: SMU | C115: 49 | H115: 11 | K115: 25 | O115: 30 | AB115: 36 | AG115: 13 | AK115: 12 | AU115: 176 | AV115: 7 | AW115: =IF($AV115<=6,SUM($C115:$AS115),SUMPRODUCT(LARGE($C115:$AS115,{1,2,3,4,5,6}))) -> 165 | AY115: =IF(AX115= "","",IFERROR(SUMPRODUCT(LARGE($C115:$AS115,{1,2,3,4})), "")) ->  | AZ115: =IF(AY115<>"",(IFERROR(SUMPRODUCT(LARGE($C115:$AS115,{1,2,3,4,5,6,7})),"")),"") ->  | BA115: =IF(AZ115<>"",(IFERROR(SUMPRODUCT(LARGE($C115:$AS115,{1,2,3,4,5,6,7,8})),"")),"") -> 
B116: SoCC | AI116: 7 | AU116: 7 | AV116: 1 | AW116: =IF($AV116<=6,SUM($C116:$AS116),SUMPRODUCT(LARGE($C116:$AS116,{1,2,3,4,5,6}))) -> 7 | AY116: =IF(AX116= "","",IFERROR(SUMPRODUCT(LARGE($C116:$AS116,{1,2,3,4})), "")) ->  | AZ116: =IF(AY116<>"",(IFERROR(SUMPRODUCT(LARGE($C116:$AS116,{1,2,3,4,5,6,7})),"")),"") ->  | BA116: =IF(AZ116<>"",(IFERROR(SUMPRODUCT(LARGE($C116:$AS116,{1,2,3,4,5,6,7,8})),"")),"") -> 
B117: SOSU | S117: 3 | AU117: 3 | AV117: 1 | AW117: =IF($AV117<=6,SUM($C117:$AS117),SUMPRODUCT(LARGE($C117:$AS117,{1,2,3,4,5,6}))) -> 3 | AY117: =IF(AX117= "","",IFERROR(SUMPRODUCT(LARGE($C117:$AS117,{1,2,3,4})), "")) ->  | AZ117: =IF(AY117<>"",(IFERROR(SUMPRODUCT(LARGE($C117:$AS117,{1,2,3,4,5,6,7})),"")),"") ->  | BA117: =IF(AZ117<>"",(IFERROR(SUMPRODUCT(LARGE($C117:$AS117,{1,2,3,4,5,6,7,8})),"")),"") -> 
B118: SWB | L118: 5 | S118: 12 | W118: 1 | AU118: 18 | AV118: 3 | AW118: =IF($AV118<=6,SUM($C118:$AS118),SUMPRODUCT(LARGE($C118:$AS118,{1,2,3,4,5,6}))) -> 18 | AY118: =IF(AX118= "","",IFERROR(SUMPRODUCT(LARGE($C118:$AS118,{1,2,3,4})), "")) ->  | AZ118: =IF(AY118<>"",(IFERROR(SUMPRODUCT(LARGE($C118:$AS118,{1,2,3,4,5,6,7})),"")),"") ->  | BA118: =IF(AZ118<>"",(IFERROR(SUMPRODUCT(LARGE($C118:$AS118,{1,2,3,4,5,6,7,8})),"")),"") -> 
B119: TaCC | Y119: 7 | AU119: 7 | AV119: 1 | AW119: =IF($AV119<=6,SUM($C119:$AS119),SUMPRODUCT(LARGE($C119:$AS119,{1,2,3,4,5,6}))) -> 7 | AY119: =IF(AX119= "","",IFERROR(SUMPRODUCT(LARGE($C119:$AS119,{1,2,3,4})), "")) ->  | AZ119: =IF(AY119<>"",(IFERROR(SUMPRODUCT(LARGE($C119:$AS119,{1,2,3,4,5,6,7})),"")),"") ->  | BA119: =IF(AZ119<>"",(IFERROR(SUMPRODUCT(LARGE($C119:$AS119,{1,2,3,4,5,6,7,8})),"")),"") -> 
B120: TAMU | P120: 0 | AK120: 2 | AU120: 2 | AV120: 2 | AW120: =IF($AV120<=6,SUM($C120:$AS120),SUMPRODUCT(LARGE($C120:$AS120,{1,2,3,4,5,6}))) -> 2 | AY120: =IF(AX120= "","",IFERROR(SUMPRODUCT(LARGE($C120:$AS120,{1,2,3,4})), "")) ->  | AZ120: =IF(AY120<>"",(IFERROR(SUMPRODUCT(LARGE($C120:$AS120,{1,2,3,4,5,6,7})),"")),"") ->  | BA120: =IF(AZ120<>"",(IFERROR(SUMPRODUCT(LARGE($C120:$AS120,{1,2,3,4,5,6,7,8})),"")),"") -> 
B121: TC | F121: 1 | AU121: 1 | AV121: 1 | AW121: =IF($AV121<=6,SUM($C121:$AS121),SUMPRODUCT(LARGE($C121:$AS121,{1,2,3,4,5,6}))) -> 1 | AY121: =IF(AX121= "","",IFERROR(SUMPRODUCT(LARGE($C121:$AS121,{1,2,3,4})), "")) ->  | AZ121: =IF(AY121<>"",(IFERROR(SUMPRODUCT(LARGE($C121:$AS121,{1,2,3,4,5,6,7})),"")),"") ->  | BA121: =IF(AZ121<>"",(IFERROR(SUMPRODUCT(LARGE($C121:$AS121,{1,2,3,4,5,6,7,8})),"")),"") -> 
B122: TCC | L122: 6 | P122: 2 | AU122: 8 | AV122: 2 | AW122: =IF($AV122<=6,SUM($C122:$AS122),SUMPRODUCT(LARGE($C122:$AS122,{1,2,3,4,5,6}))) -> 8 | AY122: =IF(AX122= "","",IFERROR(SUMPRODUCT(LARGE($C122:$AS122,{1,2,3,4})), "")) ->  | AZ122: =IF(AY122<>"",(IFERROR(SUMPRODUCT(LARGE($C122:$AS122,{1,2,3,4,5,6,7})),"")),"") ->  | BA122: =IF(AZ122<>"",(IFERROR(SUMPRODUCT(LARGE($C122:$AS122,{1,2,3,4,5,6,7,8})),"")),"") -> 
B123: TCU | R123: 38 | AU123: 38 | AV123: 1 | AW123: =IF($AV123<=6,SUM($C123:$AS123),SUMPRODUCT(LARGE($C123:$AS123,{1,2,3,4,5,6}))) -> 38 | AY123: =IF(AX123= "","",IFERROR(SUMPRODUCT(LARGE($C123:$AS123,{1,2,3,4})), "")) ->  | AZ123: =IF(AY123<>"",(IFERROR(SUMPRODUCT(LARGE($C123:$AS123,{1,2,3,4,5,6,7})),"")),"") ->  | BA123: =IF(AZ123<>"",(IFERROR(SUMPRODUCT(LARGE($C123:$AS123,{1,2,3,4,5,6,7,8})),"")),"") -> 
B124: TnSU | X124: 8 | AU124: 8 | AV124: 1 | AW124: =IF($AV124<=6,SUM($C124:$AS124),SUMPRODUCT(LARGE($C124:$AS124,{1,2,3,4,5,6}))) -> 8 | AY124: =IF(AX124= "","",IFERROR(SUMPRODUCT(LARGE($C124:$AS124,{1,2,3,4})), "")) ->  | AZ124: =IF(AY124<>"",(IFERROR(SUMPRODUCT(LARGE($C124:$AS124,{1,2,3,4,5,6,7})),"")),"") ->  | BA124: =IF(AZ124<>"",(IFERROR(SUMPRODUCT(LARGE($C124:$AS124,{1,2,3,4,5,6,7,8})),"")),"") -> 
B125: TSU | AG125: 1 | AU125: 1 | AV125: 1 | AW125: =IF($AV125<=6,SUM($C125:$AS125),SUMPRODUCT(LARGE($C125:$AS125,{1,2,3,4,5,6}))) -> 1 | AY125: =IF(AX125= "","",IFERROR(SUMPRODUCT(LARGE($C125:$AS125,{1,2,3,4})), "")) ->  | AZ125: =IF(AY125<>"",(IFERROR(SUMPRODUCT(LARGE($C125:$AS125,{1,2,3,4,5,6,7})),"")),"") ->  | BA125: =IF(AZ125<>"",(IFERROR(SUMPRODUCT(LARGE($C125:$AS125,{1,2,3,4,5,6,7,8})),"")),"") -> 
B126: TTU | F126: 1 | J126: 2 | Y126: 1 | AU126: 4 | AV126: 3 | AW126: =IF($AV126<=6,SUM($C126:$AS126),SUMPRODUCT(LARGE($C126:$AS126,{1,2,3,4,5,6}))) -> 4 | AY126: =IF(AX126= "","",IFERROR(SUMPRODUCT(LARGE($C126:$AS126,{1,2,3,4})), "")) ->  | AZ126: =IF(AY126<>"",(IFERROR(SUMPRODUCT(LARGE($C126:$AS126,{1,2,3,4,5,6,7})),"")),"") ->  | BA126: =IF(AZ126<>"",(IFERROR(SUMPRODUCT(LARGE($C126:$AS126,{1,2,3,4,5,6,7,8})),"")),"") -> 
B127: UA | G127: 48 | K127: 15 | O127: 45 | Q127: 32 | R127: 40 | AB127: 35 | AD127: 41 | AU127: 256 | AV127: 7 | AW127: =IF($AV127<=6,SUM($C127:$AS127),SUMPRODUCT(LARGE($C127:$AS127,{1,2,3,4,5,6}))) -> 241 | AY127: =IF(AX127= "","",IFERROR(SUMPRODUCT(LARGE($C127:$AS127,{1,2,3,4})), "")) ->  | AZ127: =IF(AY127<>"",(IFERROR(SUMPRODUCT(LARGE($C127:$AS127,{1,2,3,4,5,6,7})),"")),"") ->  | BA127: =IF(AZ127<>"",(IFERROR(SUMPRODUCT(LARGE($C127:$AS127,{1,2,3,4,5,6,7,8})),"")),"") -> 
B128: UACCB | K128: 3 | O128: 5 | R128: 5 | AC128: 11 | AD128: 8 | AU128: 32 | AV128: 5 | AW128: =IF($AV128<=6,SUM($C128:$AS128),SUMPRODUCT(LARGE($C128:$AS128,{1,2,3,4,5,6}))) -> 32 | AY128: =IF(AX128= "","",IFERROR(SUMPRODUCT(LARGE($C128:$AS128,{1,2,3,4})), "")) ->  | AZ128: =IF(AY128<>"",(IFERROR(SUMPRODUCT(LARGE($C128:$AS128,{1,2,3,4,5,6,7})),"")),"") ->  | BA128: =IF(AZ128<>"",(IFERROR(SUMPRODUCT(LARGE($C128:$AS128,{1,2,3,4,5,6,7,8})),"")),"") -> 
B129: UAM | G129: 10 | K129: 6 | O129: 11 | R129: 4 | AC129: 8 | AU129: 39 | AV129: 5 | AW129: =IF($AV129<=6,SUM($C129:$AS129),SUMPRODUCT(LARGE($C129:$AS129,{1,2,3,4,5,6}))) -> 39 | AY129: =IF(AX129= "","",IFERROR(SUMPRODUCT(LARGE($C129:$AS129,{1,2,3,4})), "")) ->  | AZ129: =IF(AY129<>"",(IFERROR(SUMPRODUCT(LARGE($C129:$AS129,{1,2,3,4,5,6,7})),"")),"") ->  | BA129: =IF(AZ129<>"",(IFERROR(SUMPRODUCT(LARGE($C129:$AS129,{1,2,3,4,5,6,7,8})),"")),"") -> 
B130: Ubama | F130: 3 | H130: 14 | AK130: 15 | AU130: 32 | AV130: 3 | AW130: =IF($AV130<=6,SUM($C130:$AS130),SUMPRODUCT(LARGE($C130:$AS130,{1,2,3,4,5,6}))) -> 32 | AY130: =IF(AX130= "","",IFERROR(SUMPRODUCT(LARGE($C130:$AS130,{1,2,3,4})), "")) ->  | AZ130: =IF(AY130<>"",(IFERROR(SUMPRODUCT(LARGE($C130:$AS130,{1,2,3,4,5,6,7})),"")),"") ->  | BA130: =IF(AZ130<>"",(IFERROR(SUMPRODUCT(LARGE($C130:$AS130,{1,2,3,4,5,6,7,8})),"")),"") -> 
B131: UC | N131: 9 | P131: 5 | Q131: 7 | AU131: 21 | AV131: 3 | AW131: =IF($AV131<=6,SUM($C131:$AS131),SUMPRODUCT(LARGE($C131:$AS131,{1,2,3,4,5,6}))) -> 21 | AY131: =IF(AX131= "","",IFERROR(SUMPRODUCT(LARGE($C131:$AS131,{1,2,3,4})), "")) ->  | AZ131: =IF(AY131<>"",(IFERROR(SUMPRODUCT(LARGE($C131:$AS131,{1,2,3,4,5,6,7})),"")),"") ->  | BA131: =IF(AZ131<>"",(IFERROR(SUMPRODUCT(LARGE($C131:$AS131,{1,2,3,4,5,6,7,8})),"")),"") -> 
B132: UCA | H132: 20 | O132: 11 | Q132: 12 | R132: 10 | AC132: 3 | AD132: 7 | AU132: =SUM($C132:$AT132) -> 63 | AV132: =COUNTA(C132:AS132) -> 6 | AW132: =IF($AV132<=6,SUM($C132:$AS132),SUMPRODUCT(LARGE($C132:$AS132,{1,2,3,4,5,6}))) -> 63 | AY132: =IF(AX132= "","",IFERROR(SUMPRODUCT(LARGE($C132:$AS132,{1,2,3,4})), "")) ->  | AZ132: =IF(AY132<>"",(IFERROR(SUMPRODUCT(LARGE($C132:$AS132,{1,2,3,4,5,6,7})),"")),"") ->  | BA132: =IF(AZ132<>"",(IFERROR(SUMPRODUCT(LARGE($C132:$AS132,{1,2,3,4,5,6,7,8})),"")),"") -> 
B133: UCF | G133: 12 | R133: 5 | T133: 21 | Y133: 14 | AU133: 52 | AV133: 4 | AW133: =IF($AV133<=6,SUM($C133:$AS133),SUMPRODUCT(LARGE($C133:$AS133,{1,2,3,4,5,6}))) -> 52 | AY133: =IF(AX133= "","",IFERROR(SUMPRODUCT(LARGE($C133:$AS133,{1,2,3,4})), "")) ->  | AZ133: =IF(AY133<>"",(IFERROR(SUMPRODUCT(LARGE($C133:$AS133,{1,2,3,4,5,6,7})),"")),"") ->  | BA133: =IF(AZ133<>"",(IFERROR(SUMPRODUCT(LARGE($C133:$AS133,{1,2,3,4,5,6,7,8})),"")),"") -> 
B134: UCM | L134: 33 | O134: 29 | S134: 20 | W134: 19 | AU134: 101 | AV134: 4 | AW134: =IF($AV134<=6,SUM($C134:$AS134),SUMPRODUCT(LARGE($C134:$AS134,{1,2,3,4,5,6}))) -> 101 | AY134: =IF(AX134= "","",IFERROR(SUMPRODUCT(LARGE($C134:$AS134,{1,2,3,4})), "")) ->  | AZ134: =IF(AY134<>"",(IFERROR(SUMPRODUCT(LARGE($C134:$AS134,{1,2,3,4,5,6,7})),"")),"") ->  | BA134: =IF(AZ134<>"",(IFERROR(SUMPRODUCT(LARGE($C134:$AS134,{1,2,3,4,5,6,7,8})),"")),"") -> 
B135: UCSB | P135: 14 | AU135: 14 | AV135: 1 | AW135: =IF($AV135<=6,SUM($C135:$AS135),SUMPRODUCT(LARGE($C135:$AS135,{1,2,3,4,5,6}))) -> 14 | AY135: =IF(AX135= "","",IFERROR(SUMPRODUCT(LARGE($C135:$AS135,{1,2,3,4})), "")) ->  | AZ135: =IF(AY135<>"",(IFERROR(SUMPRODUCT(LARGE($C135:$AS135,{1,2,3,4,5,6,7})),"")),"") ->  | BA135: =IF(AZ135<>"",(IFERROR(SUMPRODUCT(LARGE($C135:$AS135,{1,2,3,4,5,6,7,8})),"")),"") -> 
B136: UCSD | V136: 62 | AE136: 46 | AF136: 46 | AH136: 33 | AU136: 187 | AV136: 4 | AW136: =IF($AV136<=6,SUM($C136:$AS136),SUMPRODUCT(LARGE($C136:$AS136,{1,2,3,4,5,6}))) -> 187 | AY136: =IF(AX136= "","",IFERROR(SUMPRODUCT(LARGE($C136:$AS136,{1,2,3,4})), "")) ->  | AZ136: =IF(AY136<>"",(IFERROR(SUMPRODUCT(LARGE($C136:$AS136,{1,2,3,4,5,6,7})),"")),"") ->  | BA136: =IF(AZ136<>"",(IFERROR(SUMPRODUCT(LARGE($C136:$AS136,{1,2,3,4,5,6,7,8})),"")),"") -> 
B137: UD | V137: 2 | AU137: 2 | AV137: 1 | AW137: =IF($AV137<=6,SUM($C137:$AS137),SUMPRODUCT(LARGE($C137:$AS137,{1,2,3,4,5,6}))) -> 2 | AY137: =IF(AX137= "","",IFERROR(SUMPRODUCT(LARGE($C137:$AS137,{1,2,3,4})), "")) ->  | AZ137: =IF(AY137<>"",(IFERROR(SUMPRODUCT(LARGE($C137:$AS137,{1,2,3,4,5,6,7})),"")),"") ->  | BA137: =IF(AZ137<>"",(IFERROR(SUMPRODUCT(LARGE($C137:$AS137,{1,2,3,4,5,6,7,8})),"")),"") -> 
B138: UI | T138: 3 | AU138: 3 | AV138: 1 | AW138: =IF($AV138<=6,SUM($C138:$AS138),SUMPRODUCT(LARGE($C138:$AS138,{1,2,3,4,5,6}))) -> 3 | AY138: =IF(AX138= "","",IFERROR(SUMPRODUCT(LARGE($C138:$AS138,{1,2,3,4})), "")) ->  | AZ138: =IF(AY138<>"",(IFERROR(SUMPRODUCT(LARGE($C138:$AS138,{1,2,3,4,5,6,7})),"")),"") ->  | BA138: =IF(AZ138<>"",(IFERROR(SUMPRODUCT(LARGE($C138:$AS138,{1,2,3,4,5,6,7,8})),"")),"") -> 
B139: UIU | J139: 6 | T139: 3 | AU139: 9 | AV139: 2 | AW139: =IF($AV139<=6,SUM($C139:$AS139),SUMPRODUCT(LARGE($C139:$AS139,{1,2,3,4,5,6}))) -> 9 | AY139: =IF(AX139= "","",IFERROR(SUMPRODUCT(LARGE($C139:$AS139,{1,2,3,4})), "")) ->  | AZ139: =IF(AY139<>"",(IFERROR(SUMPRODUCT(LARGE($C139:$AS139,{1,2,3,4,5,6,7})),"")),"") ->  | BA139: =IF(AZ139<>"",(IFERROR(SUMPRODUCT(LARGE($C139:$AS139,{1,2,3,4,5,6,7,8})),"")),"") -> 
B140: UJ | Q140: 10 | AU140: 10 | AV140: 1 | AW140: =IF($AV140<=6,SUM($C140:$AS140),SUMPRODUCT(LARGE($C140:$AS140,{1,2,3,4,5,6}))) -> 10 | AY140: =IF(AX140= "","",IFERROR(SUMPRODUCT(LARGE($C140:$AS140,{1,2,3,4})), "")) ->  | AZ140: =IF(AY140<>"",(IFERROR(SUMPRODUCT(LARGE($C140:$AS140,{1,2,3,4,5,6,7})),"")),"") ->  | BA140: =IF(AZ140<>"",(IFERROR(SUMPRODUCT(LARGE($C140:$AS140,{1,2,3,4,5,6,7,8})),"")),"") -> 
B141: UMo | P141: 3 | Q141: 3 | U141: 3 | Y141: 16 | AA141: 4 | AU141: 29 | AV141: 5 | AW141: =IF($AV141<=6,SUM($C141:$AS141),SUMPRODUCT(LARGE($C141:$AS141,{1,2,3,4,5,6}))) -> 29 | AY141: =IF(AX141= "","",IFERROR(SUMPRODUCT(LARGE($C141:$AS141,{1,2,3,4})), "")) ->  | AZ141: =IF(AY141<>"",(IFERROR(SUMPRODUCT(LARGE($C141:$AS141,{1,2,3,4,5,6,7})),"")),"") ->  | BA141: =IF(AZ141<>"",(IFERROR(SUMPRODUCT(LARGE($C141:$AS141,{1,2,3,4,5,6,7,8})),"")),"") -> 
B142: UNG | P142: 5 | AU142: 5 | AV142: 1 | AW142: =IF($AV142<=6,SUM($C142:$AS142),SUMPRODUCT(LARGE($C142:$AS142,{1,2,3,4,5,6}))) -> 5 | AY142: =IF(AX142= "","",IFERROR(SUMPRODUCT(LARGE($C142:$AS142,{1,2,3,4})), "")) ->  | AZ142: =IF(AY142<>"",(IFERROR(SUMPRODUCT(LARGE($C142:$AS142,{1,2,3,4,5,6,7})),"")),"") ->  | BA142: =IF(AZ142<>"",(IFERROR(SUMPRODUCT(LARGE($C142:$AS142,{1,2,3,4,5,6,7,8})),"")),"") -> 
B143: UNLV | I143: 5 | AF143: 2 | AU143: 7 | AV143: 2 | AW143: =IF($AV143<=6,SUM($C143:$AS143),SUMPRODUCT(LARGE($C143:$AS143,{1,2,3,4,5,6}))) -> 7 | AX143: =IF(AND($AV143>=6,AW143=AW144),"Manual Calc Needed","") ->  | AY143: =IF(AX143= "","",IFERROR(SUMPRODUCT(LARGE($C143:$AS143,{1,2,3,4})), "")) ->  | AZ143: =IF(AY143<>"",(IFERROR(SUMPRODUCT(LARGE($C143:$AS143,{1,2,3,4,5,6,7})),"")),"") ->  | BA143: =IF(AZ143<>"",(IFERROR(SUMPRODUCT(LARGE($C143:$AS143,{1,2,3,4,5,6,7,8})),"")),"") -> 
B144: UNR | V144: 13 | Y144: 3 | AA144: 9 | AD144: 7 | AU144: 32 | AV144: 4 | AW144: =IF($AV144<=6,SUM($C144:$AS144),SUMPRODUCT(LARGE($C144:$AS144,{1,2,3,4,5,6}))) -> 32 | AY144: =IF(AX144= "","",IFERROR(SUMPRODUCT(LARGE($C144:$AS144,{1,2,3,4})), "")) ->  | AZ144: =IF(AY144<>"",(IFERROR(SUMPRODUCT(LARGE($C144:$AS144,{1,2,3,4,5,6,7})),"")),"") ->  | BA144: =IF(AZ144<>"",(IFERROR(SUMPRODUCT(LARGE($C144:$AS144,{1,2,3,4,5,6,7,8})),"")),"") -> 
B145: UNT | F145: 3 | J145: 19 | AB145: 5 | AU145: 27 | AV145: 3 | AW145: =IF($AV145<=6,SUM($C145:$AS145),SUMPRODUCT(LARGE($C145:$AS145,{1,2,3,4,5,6}))) -> 27 | AY145: =IF(AX145= "","",IFERROR(SUMPRODUCT(LARGE($C145:$AS145,{1,2,3,4})), "")) ->  | AZ145: =IF(AY145<>"",(IFERROR(SUMPRODUCT(LARGE($C145:$AS145,{1,2,3,4,5,6,7})),"")),"") ->  | BA145: =IF(AZ145<>"",(IFERROR(SUMPRODUCT(LARGE($C145:$AS145,{1,2,3,4,5,6,7,8})),"")),"") -> 
B146: UP | P146: 4 | AU146: 4 | AV146: 1 | AW146: =IF($AV146<=6,SUM($C146:$AS146),SUMPRODUCT(LARGE($C146:$AS146,{1,2,3,4,5,6}))) -> 4 | AY146: =IF(AX146= "","",IFERROR(SUMPRODUCT(LARGE($C146:$AS146,{1,2,3,4})), "")) ->  | AZ146: =IF(AY146<>"",(IFERROR(SUMPRODUCT(LARGE($C146:$AS146,{1,2,3,4,5,6,7})),"")),"") ->  | BA146: =IF(AZ146<>"",(IFERROR(SUMPRODUCT(LARGE($C146:$AS146,{1,2,3,4,5,6,7,8})),"")),"") -> 
B147: USM | K147: 14 | N147: 16 | O147: 6 | P147: 9 | Q147: 2 | R147: 5 | AC147: 12 | AD147: 5 | AU147: 69 | AV147: 8 | AW147: =IF($AV147<=6,SUM($C147:$AS147),SUMPRODUCT(LARGE($C147:$AS147,{1,2,3,4,5,6}))) -> 62 | AY147: =IF(AX147= "","",IFERROR(SUMPRODUCT(LARGE($C147:$AS147,{1,2,3,4})), "")) ->  | AZ147: =IF(AY147<>"",(IFERROR(SUMPRODUCT(LARGE($C147:$AS147,{1,2,3,4,5,6,7})),"")),"") ->  | BA147: =IF(AZ147<>"",(IFERROR(SUMPRODUCT(LARGE($C147:$AS147,{1,2,3,4,5,6,7,8})),"")),"") -> 
B148: USU | D148: 9 | P148: 19 | U148: 22 | Y148: 5 | AU148: 55 | AV148: 4 | AW148: =IF($AV148<=6,SUM($C148:$AS148),SUMPRODUCT(LARGE($C148:$AS148,{1,2,3,4,5,6}))) -> 55 | AY148: =IF(AX148= "","",IFERROR(SUMPRODUCT(LARGE($C148:$AS148,{1,2,3,4})), "")) ->  | AZ148: =IF(AY148<>"",(IFERROR(SUMPRODUCT(LARGE($C148:$AS148,{1,2,3,4,5,6,7})),"")),"") ->  | BA148: =IF(AZ148<>"",(IFERROR(SUMPRODUCT(LARGE($C148:$AS148,{1,2,3,4,5,6,7,8})),"")),"") -> 
B149: UTD | J149: 15 | AB149: 9 | AU149: 24 | AV149: 2 | AW149: =IF($AV149<=6,SUM($C149:$AS149),SUMPRODUCT(LARGE($C149:$AS149,{1,2,3,4,5,6}))) -> 24 | AY149: =IF(AX149= "","",IFERROR(SUMPRODUCT(LARGE($C149:$AS149,{1,2,3,4})), "")) ->  | AZ149: =IF(AY149<>"",(IFERROR(SUMPRODUCT(LARGE($C149:$AS149,{1,2,3,4,5,6,7})),"")),"") ->  | BA149: =IF(AZ149<>"",(IFERROR(SUMPRODUCT(LARGE($C149:$AS149,{1,2,3,4,5,6,7,8})),"")),"") -> 
B150: UTK | G150: 22 | K150: 27 | N150: 17 | P150: 6 | R150: 27 | X150: 29 | AD150: 22 | AU150: 150 | AV150: 7 | AW150: =IF($AV150<=6,SUM($C150:$AS150),SUMPRODUCT(LARGE($C150:$AS150,{1,2,3,4,5,6}))) -> 144 | AY150: =IF(AX150= "","",IFERROR(SUMPRODUCT(LARGE($C150:$AS150,{1,2,3,4})), "")) ->  | AZ150: =IF(AY150<>"",(IFERROR(SUMPRODUCT(LARGE($C150:$AS150,{1,2,3,4,5,6,7})),"")),"") ->  | BA150: =IF(AZ150<>"",(IFERROR(SUMPRODUCT(LARGE($C150:$AS150,{1,2,3,4,5,6,7,8})),"")),"") -> 
B151: UU | K151: 72 | N151: 72 | O151: 82 | Q151: 95 | R151: 84 | X151: 40 | AC151: 93 | AD151: 69 | AU151: 607 | AV151: 8 | AW151: =IF($AV151<=6,SUM($C151:$AS151),SUMPRODUCT(LARGE($C151:$AS151,{1,2,3,4,5,6}))) -> 498 | AY151: =IF(AX151= "","",IFERROR(SUMPRODUCT(LARGE($C151:$AS151,{1,2,3,4})), "")) ->  | AZ151: =IF(AY151<>"",(IFERROR(SUMPRODUCT(LARGE($C151:$AS151,{1,2,3,4,5,6,7})),"")),"") ->  | BA151: =IF(AZ151<>"",(IFERROR(SUMPRODUCT(LARGE($C151:$AS151,{1,2,3,4,5,6,7,8})),"")),"") -> 
B152: UUt | D152: 9 | AF152: 8 | AG152: 11 | AI152: 10 | AU152: 38 | AV152: 4 | AW152: =IF($AV152<=6,SUM($C152:$AS152),SUMPRODUCT(LARGE($C152:$AS152,{1,2,3,4,5,6}))) -> 38 | AY152: =IF(AX152= "","",IFERROR(SUMPRODUCT(LARGE($C152:$AS152,{1,2,3,4})), "")) ->  | AZ152: =IF(AY152<>"",(IFERROR(SUMPRODUCT(LARGE($C152:$AS152,{1,2,3,4,5,6,7})),"")),"") ->  | BA152: =IF(AZ152<>"",(IFERROR(SUMPRODUCT(LARGE($C152:$AS152,{1,2,3,4,5,6,7,8})),"")),"") -> 
B153: VSU | G153: 14 | J153: 4 | T153: 12 | Y153: 3 | AU153: 33 | AV153: 4 | AW153: =IF($AV153<=6,SUM($C153:$AS153),SUMPRODUCT(LARGE($C153:$AS153,{1,2,3,4,5,6}))) -> 33 | AY153: =IF(AX153= "","",IFERROR(SUMPRODUCT(LARGE($C153:$AS153,{1,2,3,4})), "")) ->  | AZ153: =IF(AY153<>"",(IFERROR(SUMPRODUCT(LARGE($C153:$AS153,{1,2,3,4,5,6,7})),"")),"") ->  | BA153: =IF(AZ153<>"",(IFERROR(SUMPRODUCT(LARGE($C153:$AS153,{1,2,3,4,5,6,7,8})),"")),"") -> 
B154: WC | M154: 13 | AC154: 27 | AU154: 40 | AV154: 2 | AW154: =IF($AV154<=6,SUM($C154:$AS154),SUMPRODUCT(LARGE($C154:$AS154,{1,2,3,4,5,6}))) -> 40 | AY154: =IF(AX154= "","",IFERROR(SUMPRODUCT(LARGE($C154:$AS154,{1,2,3,4})), "")) ->  | AZ154: =IF(AY154<>"",(IFERROR(SUMPRODUCT(LARGE($C154:$AS154,{1,2,3,4,5,6,7})),"")),"") ->  | BA154: =IF(AZ154<>"",(IFERROR(SUMPRODUCT(LARGE($C154:$AS154,{1,2,3,4,5,6,7,8})),"")),"") -> 
B155: WCU | C155: 29 | H155: 3 | K155: 36 | N155: 19 | R155: 41 | AD155: 21 | AU155: 149 | AV155: 6 | AW155: =IF($AV155<=6,SUM($C155:$AS155),SUMPRODUCT(LARGE($C155:$AS155,{1,2,3,4,5,6}))) -> 149 | AY155: =IF(AX155= "","",IFERROR(SUMPRODUCT(LARGE($C155:$AS155,{1,2,3,4})), "")) ->  | AZ155: =IF(AY155<>"",(IFERROR(SUMPRODUCT(LARGE($C155:$AS155,{1,2,3,4,5,6,7})),"")),"") ->  | BA155: =IF(AZ155<>"",(IFERROR(SUMPRODUCT(LARGE($C155:$AS155,{1,2,3,4,5,6,7,8})),"")),"") -> 
B156: WebU | S156: 20 | AU156: 20 | AV156: 1 | AW156: =IF($AV156<=6,SUM($C156:$AS156),SUMPRODUCT(LARGE($C156:$AS156,{1,2,3,4,5,6}))) -> 20 | AY156: =IF(AX156= "","",IFERROR(SUMPRODUCT(LARGE($C156:$AS156,{1,2,3,4})), "")) ->  | AZ156: =IF(AY156<>"",(IFERROR(SUMPRODUCT(LARGE($C156:$AS156,{1,2,3,4,5,6,7})),"")),"") ->  | BA156: =IF(AZ156<>"",(IFERROR(SUMPRODUCT(LARGE($C156:$AS156,{1,2,3,4,5,6,7,8})),"")),"") -> 
B157: WeCU | T157: 8 | AU157: 8 | AV157: 1 | AW157: =IF($AV157<=6,SUM($C157:$AS157),SUMPRODUCT(LARGE($C157:$AS157,{1,2,3,4,5,6}))) -> 8 | AY157: =IF(AX157= "","",IFERROR(SUMPRODUCT(LARGE($C157:$AS157,{1,2,3,4})), "")) ->  | AZ157: =IF(AY157<>"",(IFERROR(SUMPRODUCT(LARGE($C157:$AS157,{1,2,3,4,5,6,7})),"")),"") ->  | BA157: =IF(AZ157<>"",(IFERROR(SUMPRODUCT(LARGE($C157:$AS157,{1,2,3,4,5,6,7,8})),"")),"") -> 
B158: WhC | P158: 6 | AU158: 6 | AV158: 1 | AW158: =IF($AV158<=6,SUM($C158:$AS158),SUMPRODUCT(LARGE($C158:$AS158,{1,2,3,4,5,6}))) -> 6 | AY158: =IF(AX158= "","",IFERROR(SUMPRODUCT(LARGE($C158:$AS158,{1,2,3,4})), "")) ->  | AZ158: =IF(AY158<>"",(IFERROR(SUMPRODUCT(LARGE($C158:$AS158,{1,2,3,4,5,6,7})),"")),"") ->  | BA158: =IF(AZ158<>"",(IFERROR(SUMPRODUCT(LARGE($C158:$AS158,{1,2,3,4,5,6,7,8})),"")),"") -> 
B159: WhU | I159: 39 | P159: 69 | Q159: 29 | U159: 28 | Y159: 31 | AA159: 30 | AC159: 44 | AU159: 270 | AV159: 7 | AW159: =IF($AV159<=6,SUM($C159:$AS159),SUMPRODUCT(LARGE($C159:$AS159,{1,2,3,4,5,6}))) -> 242 | AY159: =IF(AX159= "","",IFERROR(SUMPRODUCT(LARGE($C159:$AS159,{1,2,3,4})), "")) ->  | AZ159: =IF(AY159<>"",(IFERROR(SUMPRODUCT(LARGE($C159:$AS159,{1,2,3,4,5,6,7})),"")),"") ->  | BA159: =IF(AZ159<>"",(IFERROR(SUMPRODUCT(LARGE($C159:$AS159,{1,2,3,4,5,6,7,8})),"")),"") -> 
B160: WSCC | AU160: 0 | AV160: 0 | AW160: =IF($AV160<=6,SUM($C160:$AS160),SUMPRODUCT(LARGE($C160:$AS160,{1,2,3,4,5,6}))) -> 0 | AY160: =IF(AX160= "","",IFERROR(SUMPRODUCT(LARGE($C160:$AS160,{1,2,3,4})), "")) ->  | AZ160: =IF(AY160<>"",(IFERROR(SUMPRODUCT(LARGE($C160:$AS160,{1,2,3,4,5,6,7})),"")),"") ->  | BA160: =IF(AZ160<>"",(IFERROR(SUMPRODUCT(LARGE($C160:$AS160,{1,2,3,4,5,6,7,8})),"")),"") -> 
B161: WSU | D161: =6+3+3 -> 12 | L161: 3 | P161: 50 | U161: 41 | Z161: 8 | AA161: 43 | AU161: 157 | AV161: 6 | AW161: =IF($AV161<=6,SUM($C161:$AS161),SUMPRODUCT(LARGE($C161:$AS161,{1,2,3,4,5,6}))) -> 157 | AY161: =IF(AX161= "","",IFERROR(SUMPRODUCT(LARGE($C161:$AS161,{1,2,3,4})), "")) ->  | AZ161: =IF(AY161<>"",(IFERROR(SUMPRODUCT(LARGE($C161:$AS161,{1,2,3,4,5,6,7})),"")),"") ->  | BA161: =IF(AZ161<>"",(IFERROR(SUMPRODUCT(LARGE($C161:$AS161,{1,2,3,4,5,6,7,8})),"")),"") -> 
AU162: =SUM($C162:$AT162) -> 0 | AV162: =COUNTA(C162:AS162) -> 0 | AW162: =IF($AV162<=6,SUM($C162:$AS162),SUMPRODUCT(LARGE($C162:$AS162,{1,2,3,4,5,6}))) -> 0 | AX162: =IF(AND($AV162>=6,AW162=AW163),"Manual Calc Needed","") ->  | AY162: =IF(AX162= "","",IFERROR(SUMPRODUCT(LARGE($C162:$AS162,{1,2,3,4})), "")) ->  | AZ162: =IF(AY162<>"",(IFERROR(SUMPRODUCT(LARGE($C162:$AS162,{1,2,3,4,5,6,7})),"")),"") ->  | BA162: =IF(AZ162<>"",(IFERROR(SUMPRODUCT(LARGE($C162:$AS162,{1,2,3,4,5,6,7,8})),"")),"") -> 
AU163: 0 | AV163: 0 | AW163: =IF($AV163<=6,SUM($C163:$AS163),SUMPRODUCT(LARGE($C163:$AS163,{1,2,3,4,5,6}))) -> 0 | AY163: =IF(AX163= "","",IFERROR(SUMPRODUCT(LARGE($C163:$AS163,{1,2,3,4})), "")) ->  | AZ163: =IF(AY163<>"",(IFERROR(SUMPRODUCT(LARGE($C163:$AS163,{1,2,3,4,5,6,7})),"")),"") ->  | BA163: =IF(AZ163<>"",(IFERROR(SUMPRODUCT(LARGE($C163:$AS163,{1,2,3,4,5,6,7,8})),"")),"") -> 
AU164: 0 | AV164: 0 | AW164: =IF($AV164<=6,SUM($C164:$AS164),SUMPRODUCT(LARGE($C164:$AS164,{1,2,3,4,5,6}))) -> 0 | AY164: =IF(AX164= "","",IFERROR(SUMPRODUCT(LARGE($C164:$AS164,{1,2,3,4})), "")) ->  | AZ164: =IF(AY164<>"",(IFERROR(SUMPRODUCT(LARGE($C164:$AS164,{1,2,3,4,5,6,7})),"")),"") ->  | BA164: =IF(AZ164<>"",(IFERROR(SUMPRODUCT(LARGE($C164:$AS164,{1,2,3,4,5,6,7,8})),"")),"") -> 
AU165: 0 | AV165: 0 | AW165: =IF($AV165<=6,SUM($C165:$AS165),SUMPRODUCT(LARGE($C165:$AS165,{1,2,3,4,5,6}))) -> 0 | AY165: =IF(AX165= "","",IFERROR(SUMPRODUCT(LARGE($C165:$AS165,{1,2,3,4})), "")) ->  | AZ165: =IF(AY165<>"",(IFERROR(SUMPRODUCT(LARGE($C165:$AS165,{1,2,3,4,5,6,7})),"")),"") ->  | BA165: =IF(AZ165<>"",(IFERROR(SUMPRODUCT(LARGE($C165:$AS165,{1,2,3,4,5,6,7,8})),"")),"") -> 
AU166: 0 | AV166: 0 | AW166: =IF($AV166<=6,SUM($C166:$AS166),SUMPRODUCT(LARGE($C166:$AS166,{1,2,3,4,5,6}))) -> 0 | AY166: =IF(AX166= "","",IFERROR(SUMPRODUCT(LARGE($C166:$AS166,{1,2,3,4})), "")) ->  | AZ166: =IF(AY166<>"",(IFERROR(SUMPRODUCT(LARGE($C166:$AS166,{1,2,3,4,5,6,7})),"")),"") ->  | BA166: =IF(AZ166<>"",(IFERROR(SUMPRODUCT(LARGE($C166:$AS166,{1,2,3,4,5,6,7,8})),"")),"") -> 
AU167: 0 | AV167: 0 | AW167: =IF($AV167<=6,SUM($C167:$AS167),SUMPRODUCT(LARGE($C167:$AS167,{1,2,3,4,5,6}))) -> 0 | AY167: =IF(AX167= "","",IFERROR(SUMPRODUCT(LARGE($C167:$AS167,{1,2,3,4})), "")) ->  | AZ167: =IF(AY167<>"",(IFERROR(SUMPRODUCT(LARGE($C167:$AS167,{1,2,3,4,5,6,7})),"")),"") ->  | BA167: =IF(AZ167<>"",(IFERROR(SUMPRODUCT(LARGE($C167:$AS167,{1,2,3,4,5,6,7,8})),"")),"") -> 
AU168: 0 | AV168: 0 | AW168: =IF($AV168<=6,SUM($C168:$AS168),SUMPRODUCT(LARGE($C168:$AS168,{1,2,3,4,5,6}))) -> 0 | AY168: =IF(AX168= "","",IFERROR(SUMPRODUCT(LARGE($C168:$AS168,{1,2,3,4})), "")) ->  | AZ168: =IF(AY168<>"",(IFERROR(SUMPRODUCT(LARGE($C168:$AS168,{1,2,3,4,5,6,7})),"")),"") ->  | BA168: =IF(AZ168<>"",(IFERROR(SUMPRODUCT(LARGE($C168:$AS168,{1,2,3,4,5,6,7,8})),"")),"") -> 
AU169: 0 | AV169: 0 | AW169: =IF($AV169<=6,SUM($C169:$AS169),SUMPRODUCT(LARGE($C169:$AS169,{1,2,3,4,5,6}))) -> 0 | AY169: =IF(AX169= "","",IFERROR(SUMPRODUCT(LARGE($C169:$AS169,{1,2,3,4})), "")) ->  | AZ169: =IF(AY169<>"",(IFERROR(SUMPRODUCT(LARGE($C169:$AS169,{1,2,3,4,5,6,7})),"")),"") ->  | BA169: =IF(AZ169<>"",(IFERROR(SUMPRODUCT(LARGE($C169:$AS169,{1,2,3,4,5,6,7,8})),"")),"") -> 
AU170: 0 | AV170: 0 | AW170: =IF($AV170<=6,SUM($C170:$AS170),SUMPRODUCT(LARGE($C170:$AS170,{1,2,3,4,5,6}))) -> 0 | AY170: =IF(AX170= "","",IFERROR(SUMPRODUCT(LARGE($C170:$AS170,{1,2,3,4})), "")) ->  | AZ170: =IF(AY170<>"",(IFERROR(SUMPRODUCT(LARGE($C170:$AS170,{1,2,3,4,5,6,7})),"")),"") ->  | BA170: =IF(AZ170<>"",(IFERROR(SUMPRODUCT(LARGE($C170:$AS170,{1,2,3,4,5,6,7,8})),"")),"") -> 
AU171: 0 | AV171: 0 | AW171: =IF($AV171<=6,SUM($C171:$AS171),SUMPRODUCT(LARGE($C171:$AS171,{1,2,3,4,5,6}))) -> 0 | AY171: =IF(AX171= "","",IFERROR(SUMPRODUCT(LARGE($C171:$AS171,{1,2,3,4})), "")) ->  | AZ171: =IF(AY171<>"",(IFERROR(SUMPRODUCT(LARGE($C171:$AS171,{1,2,3,4,5,6,7})),"")),"") ->  | BA171: =IF(AZ171<>"",(IFERROR(SUMPRODUCT(LARGE($C171:$AS171,{1,2,3,4,5,6,7,8})),"")),"") -> 
AU172: 0 | AV172: 0 | AW172: =IF($AV172<=6,SUM($C172:$AS172),SUMPRODUCT(LARGE($C172:$AS172,{1,2,3,4,5,6}))) -> 0 | AY172: =IF(AX172= "","",IFERROR(SUMPRODUCT(LARGE($C172:$AS172,{1,2,3,4})), "")) ->  | AZ172: =IF(AY172<>"",(IFERROR(SUMPRODUCT(LARGE($C172:$AS172,{1,2,3,4,5,6,7})),"")),"") ->  | BA172: =IF(AZ172<>"",(IFERROR(SUMPRODUCT(LARGE($C172:$AS172,{1,2,3,4,5,6,7,8})),"")),"") -> 
AU173: 0 | AV173: 0 | AW173: =IF($AV173<=6,SUM($C173:$AS173),SUMPRODUCT(LARGE($C173:$AS173,{1,2,3,4,5,6}))) -> 0 | AY173: =IF(AX173= "","",IFERROR(SUMPRODUCT(LARGE($C173:$AS173,{1,2,3,4})), "")) ->  | AZ173: =IF(AY173<>"",(IFERROR(SUMPRODUCT(LARGE($C173:$AS173,{1,2,3,4,5,6,7})),"")),"") ->  | BA173: =IF(AZ173<>"",(IFERROR(SUMPRODUCT(LARGE($C173:$AS173,{1,2,3,4,5,6,7,8})),"")),"") -> 
AU174: 0 | AV174: 0 | AW174: =IF($AV174<=6,SUM($C174:$AS174),SUMPRODUCT(LARGE($C174:$AS174,{1,2,3,4,5,6}))) -> 0 | AY174: =IF(AX174= "","",IFERROR(SUMPRODUCT(LARGE($C174:$AS174,{1,2,3,4})), "")) ->  | AZ174: =IF(AY174<>"",(IFERROR(SUMPRODUCT(LARGE($C174:$AS174,{1,2,3,4,5,6,7})),"")),"") ->  | BA174: =IF(AZ174<>"",(IFERROR(SUMPRODUCT(LARGE($C174:$AS174,{1,2,3,4,5,6,7,8})),"")),"") -> 
AU175: 0 | AV175: 0 | AW175: =IF($AV175<=6,SUM($C175:$AS175),SUMPRODUCT(LARGE($C175:$AS175,{1,2,3,4,5,6}))) -> 0 | AY175: =IF(AX175= "","",IFERROR(SUMPRODUCT(LARGE($C175:$AS175,{1,2,3,4})), "")) ->  | AZ175: =IF(AY175<>"",(IFERROR(SUMPRODUCT(LARGE($C175:$AS175,{1,2,3,4,5,6,7})),"")),"") ->  | BA175: =IF(AZ175<>"",(IFERROR(SUMPRODUCT(LARGE($C175:$AS175,{1,2,3,4,5,6,7,8})),"")),"") -> 
AU176: 0 | AV176: 0 | AW176: =IF($AV176<=6,SUM($C176:$AS176),SUMPRODUCT(LARGE($C176:$AS176,{1,2,3,4,5,6}))) -> 0 | AY176: =IF(AX176= "","",IFERROR(SUMPRODUCT(LARGE($C176:$AS176,{1,2,3,4})), "")) ->  | AZ176: =IF(AY176<>"",(IFERROR(SUMPRODUCT(LARGE($C176:$AS176,{1,2,3,4,5,6,7})),"")),"") ->  | BA176: =IF(AZ176<>"",(IFERROR(SUMPRODUCT(LARGE($C176:$AS176,{1,2,3,4,5,6,7,8})),"")),"") -> 
AU177: 0 | AV177: 0 | AW177: =IF($AV177<=6,SUM($C177:$AS177),SUMPRODUCT(LARGE($C177:$AS177,{1,2,3,4,5,6}))) -> 0 | AY177: =IF(AX177= "","",IFERROR(SUMPRODUCT(LARGE($C177:$AS177,{1,2,3,4})), "")) ->  | AZ177: =IF(AY177<>"",(IFERROR(SUMPRODUCT(LARGE($C177:$AS177,{1,2,3,4,5,6,7})),"")),"") ->  | BA177: =IF(AZ177<>"",(IFERROR(SUMPRODUCT(LARGE($C177:$AS177,{1,2,3,4,5,6,7,8})),"")),"") -> 
AU178: 0 | AV178: 0 | AW178: =IF($AV178<=6,SUM($C178:$AS178),SUMPRODUCT(LARGE($C178:$AS178,{1,2,3,4,5,6}))) -> 0 | AY178: =IF(AX178= "","",IFERROR(SUMPRODUCT(LARGE($C178:$AS178,{1,2,3,4})), "")) ->  | AZ178: =IF(AY178<>"",(IFERROR(SUMPRODUCT(LARGE($C178:$AS178,{1,2,3,4,5,6,7})),"")),"") ->  | BA178: =IF(AZ178<>"",(IFERROR(SUMPRODUCT(LARGE($C178:$AS178,{1,2,3,4,5,6,7,8})),"")),"") -> 
AU179: 0 | AV179: 0 | AW179: =IF($AV179<=6,SUM($C179:$AS179),SUMPRODUCT(LARGE($C179:$AS179,{1,2,3,4,5,6}))) -> 0 | AY179: =IF(AX179= "","",IFERROR(SUMPRODUCT(LARGE($C179:$AS179,{1,2,3,4})), "")) ->  | AZ179: =IF(AY179<>"",(IFERROR(SUMPRODUCT(LARGE($C179:$AS179,{1,2,3,4,5,6,7})),"")),"") ->  | BA179: =IF(AZ179<>"",(IFERROR(SUMPRODUCT(LARGE($C179:$AS179,{1,2,3,4,5,6,7,8})),"")),"") -> 
AU180: 0 | AV180: 0 | AW180: =IF($AV180<=6,SUM($C180:$AS180),SUMPRODUCT(LARGE($C180:$AS180,{1,2,3,4,5,6}))) -> 0 | AY180: =IF(AX180= "","",IFERROR(SUMPRODUCT(LARGE($C180:$AS180,{1,2,3,4})), "")) ->  | AZ180: =IF(AY180<>"",(IFERROR(SUMPRODUCT(LARGE($C180:$AS180,{1,2,3,4,5,6,7})),"")),"") ->  | BA180: =IF(AZ180<>"",(IFERROR(SUMPRODUCT(LARGE($C180:$AS180,{1,2,3,4,5,6,7,8})),"")),"") -> 
AU181: 0 | AV181: 0 | AW181: =IF($AV181<=6,SUM($C181:$AS181),SUMPRODUCT(LARGE($C181:$AS181,{1,2,3,4,5,6}))) -> 0 | AY181: =IF(AX181= "","",IFERROR(SUMPRODUCT(LARGE($C181:$AS181,{1,2,3,4})), "")) ->  | AZ181: =IF(AY181<>"",(IFERROR(SUMPRODUCT(LARGE($C181:$AS181,{1,2,3,4,5,6,7})),"")),"") ->  | BA181: =IF(AZ181<>"",(IFERROR(SUMPRODUCT(LARGE($C181:$AS181,{1,2,3,4,5,6,7,8})),"")),"") -> 
AU182: 0 | AV182: 0 | AW182: =IF($AV182<=6,SUM($C182:$AS182),SUMPRODUCT(LARGE($C182:$AS182,{1,2,3,4,5,6}))) -> 0 | AY182: =IF(AX182= "","",IFERROR(SUMPRODUCT(LARGE($C182:$AS182,{1,2,3,4})), "")) ->  | AZ182: =IF(AY182<>"",(IFERROR(SUMPRODUCT(LARGE($C182:$AS182,{1,2,3,4,5,6,7})),"")),"") ->  | BA182: =IF(AZ182<>"",(IFERROR(SUMPRODUCT(LARGE($C182:$AS182,{1,2,3,4,5,6,7,8})),"")),"") -> 
AU183: 0 | AV183: 0 | AW183: =IF($AV183<=6,SUM($C183:$AS183),SUMPRODUCT(LARGE($C183:$AS183,{1,2,3,4,5,6}))) -> 0 | AY183: =IF(AX183= "","",IFERROR(SUMPRODUCT(LARGE($C183:$AS183,{1,2,3,4})), "")) ->  | AZ183: =IF(AY183<>"",(IFERROR(SUMPRODUCT(LARGE($C183:$AS183,{1,2,3,4,5,6,7})),"")),"") ->  | BA183: =IF(AZ183<>"",(IFERROR(SUMPRODUCT(LARGE($C183:$AS183,{1,2,3,4,5,6,7,8})),"")),"") -> 
AU184: 0 | AV184: 0 | AW184: =IF($AV184<=6,SUM($C184:$AS184),SUMPRODUCT(LARGE($C184:$AS184,{1,2,3,4,5,6}))) -> 0 | AY184: =IF(AX184= "","",IFERROR(SUMPRODUCT(LARGE($C184:$AS184,{1,2,3,4})), "")) ->  | AZ184: =IF(AY184<>"",(IFERROR(SUMPRODUCT(LARGE($C184:$AS184,{1,2,3,4,5,6,7})),"")),"") ->  | BA184: =IF(AZ184<>"",(IFERROR(SUMPRODUCT(LARGE($C184:$AS184,{1,2,3,4,5,6,7,8})),"")),"") -> 
AU185: 0 | AV185: 0 | AW185: =IF($AV185<=6,SUM($C185:$AS185),SUMPRODUCT(LARGE($C185:$AS185,{1,2,3,4,5,6}))) -> 0 | AY185: =IF(AX185= "","",IFERROR(SUMPRODUCT(LARGE($C185:$AS185,{1,2,3,4})), "")) ->  | AZ185: =IF(AY185<>"",(IFERROR(SUMPRODUCT(LARGE($C185:$AS185,{1,2,3,4,5,6,7})),"")),"") ->  | BA185: =IF(AZ185<>"",(IFERROR(SUMPRODUCT(LARGE($C185:$AS185,{1,2,3,4,5,6,7,8})),"")),"") -> 
AU186: 0 | AV186: 0 | AW186: =IF($AV186<=6,SUM($C186:$AS186),SUMPRODUCT(LARGE($C186:$AS186,{1,2,3,4,5,6}))) -> 0 | AY186: =IF(AX186= "","",IFERROR(SUMPRODUCT(LARGE($C186:$AS186,{1,2,3,4})), "")) ->  | AZ186: =IF(AY186<>"",(IFERROR(SUMPRODUCT(LARGE($C186:$AS186,{1,2,3,4,5,6,7})),"")),"") ->  | BA186: =IF(AZ186<>"",(IFERROR(SUMPRODUCT(LARGE($C186:$AS186,{1,2,3,4,5,6,7,8})),"")),"") -> 
AU187: 0 | AV187: 0 | AW187: =IF($AV187<=6,SUM($C187:$AS187),SUMPRODUCT(LARGE($C187:$AS187,{1,2,3,4,5,6}))) -> 0 | AY187: =IF(AX187= "","",IFERROR(SUMPRODUCT(LARGE($C187:$AS187,{1,2,3,4})), "")) ->  | AZ187: =IF(AY187<>"",(IFERROR(SUMPRODUCT(LARGE($C187:$AS187,{1,2,3,4,5,6,7})),"")),"") ->  | BA187: =IF(AZ187<>"",(IFERROR(SUMPRODUCT(LARGE($C187:$AS187,{1,2,3,4,5,6,7,8})),"")),"") -> 
AU188: 0 | AV188: 0 | AW188: =IF($AV188<=6,SUM($C188:$AS188),SUMPRODUCT(LARGE($C188:$AS188,{1,2,3,4,5,6}))) -> 0 | AY188: =IF(AX188= "","",IFERROR(SUMPRODUCT(LARGE($C188:$AS188,{1,2,3,4})), "")) ->  | AZ188: =IF(AY188<>"",(IFERROR(SUMPRODUCT(LARGE($C188:$AS188,{1,2,3,4,5,6,7})),"")),"") ->  | BA188: =IF(AZ188<>"",(IFERROR(SUMPRODUCT(LARGE($C188:$AS188,{1,2,3,4,5,6,7,8})),"")),"") -> 
AU189: 0 | AV189: 0 | AW189: =IF($AV189<=6,SUM($C189:$AS189),SUMPRODUCT(LARGE($C189:$AS189,{1,2,3,4,5,6}))) -> 0 | AY189: =IF(AX189= "","",IFERROR(SUMPRODUCT(LARGE($C189:$AS189,{1,2,3,4})), "")) ->  | AZ189: =IF(AY189<>"",(IFERROR(SUMPRODUCT(LARGE($C189:$AS189,{1,2,3,4,5,6,7})),"")),"") ->  | BA189: =IF(AZ189<>"",(IFERROR(SUMPRODUCT(LARGE($C189:$AS189,{1,2,3,4,5,6,7,8})),"")),"") -> 
AU190: 0 | AV190: 0 | AW190: =IF($AV190<=6,SUM($C190:$AS190),SUMPRODUCT(LARGE($C190:$AS190,{1,2,3,4,5,6}))) -> 0 | AY190: =IF(AX190= "","",IFERROR(SUMPRODUCT(LARGE($C190:$AS190,{1,2,3,4})), "")) ->  | AZ190: =IF(AY190<>"",(IFERROR(SUMPRODUCT(LARGE($C190:$AS190,{1,2,3,4,5,6,7})),"")),"") ->  | BA190: =IF(AZ190<>"",(IFERROR(SUMPRODUCT(LARGE($C190:$AS190,{1,2,3,4,5,6,7,8})),"")),"") -> 
AU191: 0 | AV191: 0 | AW191: =IF($AV191<=6,SUM($C191:$AS191),SUMPRODUCT(LARGE($C191:$AS191,{1,2,3,4,5,6}))) -> 0 | AY191: =IF(AX191= "","",IFERROR(SUMPRODUCT(LARGE($C191:$AS191,{1,2,3,4})), "")) ->  | AZ191: =IF(AY191<>"",(IFERROR(SUMPRODUCT(LARGE($C191:$AS191,{1,2,3,4,5,6,7})),"")),"") ->  | BA191: =IF(AZ191<>"",(IFERROR(SUMPRODUCT(LARGE($C191:$AS191,{1,2,3,4,5,6,7,8})),"")),"") -> 
AU192: 0 | AV192: 0 | AW192: =IF($AV192<=6,SUM($C192:$AS192),SUMPRODUCT(LARGE($C192:$AS192,{1,2,3,4,5,6}))) -> 0 | AX192: =IF(AND($AV192>=6,AW192=AW193),"Manual Calc Needed","") ->  | AY192: =IF(AX192= "","",IFERROR(SUMPRODUCT(LARGE($C192:$AS192,{1,2,3,4})), "")) ->  | AZ192: =IF(AY192<>"",(IFERROR(SUMPRODUCT(LARGE($C192:$AS192,{1,2,3,4,5,6,7})),"")),"") ->  | BA192: =IF(AZ192<>"",(IFERROR(SUMPRODUCT(LARGE($C192:$AS192,{1,2,3,4,5,6,7,8})),"")),"") -> 
AU193: =SUM($C193:$AT193) -> 0 | AV193: =COUNTA(C193:AS193) -> 0 | AW193: =IF($AV193<=6,SUM($C193:$AS193),SUMPRODUCT(LARGE($C193:$AS193,{1,2,3,4,5,6}))) -> 0 | AY193: =IF(AX193= "","",IFERROR(SUMPRODUCT(LARGE($C193:$AS193,{1,2,3,4})), "")) ->  | AZ193: =IF(AY193<>"",(IFERROR(SUMPRODUCT(LARGE($C193:$AS193,{1,2,3,4,5,6,7})),"")),"") ->  | BA193: =IF(AZ193<>"",(IFERROR(SUMPRODUCT(LARGE($C193:$AS193,{1,2,3,4,5,6,7,8})),"")),"") -> 
AU194: 0 | AV194: 0 | AW194: =IF($AV194<=6,SUM($C194:$AS194),SUMPRODUCT(LARGE($C194:$AS194,{1,2,3,4,5,6}))) -> 0 | AY194: =IF(AX194= "","",IFERROR(SUMPRODUCT(LARGE($C194:$AS194,{1,2,3,4})), "")) ->  | AZ194: =IF(AY194<>"",(IFERROR(SUMPRODUCT(LARGE($C194:$AS194,{1,2,3,4,5,6,7})),"")),"") ->  | BA194: =IF(AZ194<>"",(IFERROR(SUMPRODUCT(LARGE($C194:$AS194,{1,2,3,4,5,6,7,8})),"")),"") -> 
AU195: 0 | AV195: 0 | AW195: =IF($AV195<=6,SUM($C195:$AS195),SUMPRODUCT(LARGE($C195:$AS195,{1,2,3,4,5,6}))) -> 0 | AY195: =IF(AX195= "","",IFERROR(SUMPRODUCT(LARGE($C195:$AS195,{1,2,3,4})), "")) ->  | AZ195: =IF(AY195<>"",(IFERROR(SUMPRODUCT(LARGE($C195:$AS195,{1,2,3,4,5,6,7})),"")),"") ->  | BA195: =IF(AZ195<>"",(IFERROR(SUMPRODUCT(LARGE($C195:$AS195,{1,2,3,4,5,6,7,8})),"")),"") -> 
AU196: 0 | AV196: 0 | AW196: =IF($AV196<=6,SUM($C196:$AS196),SUMPRODUCT(LARGE($C196:$AS196,{1,2,3,4,5,6}))) -> 0 | AY196: =IF(AX196= "","",IFERROR(SUMPRODUCT(LARGE($C196:$AS196,{1,2,3,4})), "")) ->  | AZ196: =IF(AY196<>"",(IFERROR(SUMPRODUCT(LARGE($C196:$AS196,{1,2,3,4,5,6,7})),"")),"") ->  | BA196: =IF(AZ196<>"",(IFERROR(SUMPRODUCT(LARGE($C196:$AS196,{1,2,3,4,5,6,7,8})),"")),"") -> 
AU197: 0 | AV197: 0 | AW197: =IF($AV197<=6,SUM($C197:$AS197),SUMPRODUCT(LARGE($C197:$AS197,{1,2,3,4,5,6}))) -> 0 | AY197: =IF(AX197= "","",IFERROR(SUMPRODUCT(LARGE($C197:$AS197,{1,2,3,4})), "")) ->  | AZ197: =IF(AY197<>"",(IFERROR(SUMPRODUCT(LARGE($C197:$AS197,{1,2,3,4,5,6,7})),"")),"") ->  | BA197: =IF(AZ197<>"",(IFERROR(SUMPRODUCT(LARGE($C197:$AS197,{1,2,3,4,5,6,7,8})),"")),"") -> 
AU198: 0 | AV198: 0 | AW198: =IF($AV198<=6,SUM($C198:$AS198),SUMPRODUCT(LARGE($C198:$AS198,{1,2,3,4,5,6}))) -> 0 | AY198: =IF(AX198= "","",IFERROR(SUMPRODUCT(LARGE($C198:$AS198,{1,2,3,4})), "")) ->  | AZ198: =IF(AY198<>"",(IFERROR(SUMPRODUCT(LARGE($C198:$AS198,{1,2,3,4,5,6,7})),"")),"") ->  | BA198: =IF(AZ198<>"",(IFERROR(SUMPRODUCT(LARGE($C198:$AS198,{1,2,3,4,5,6,7,8})),"")),"") -> 
AU199: 0 | AV199: 0 | AW199: =IF($AV199<=6,SUM($C199:$AS199),SUMPRODUCT(LARGE($C199:$AS199,{1,2,3,4,5,6}))) -> 0 | AY199: =IF(AX199= "","",IFERROR(SUMPRODUCT(LARGE($C199:$AS199,{1,2,3,4})), "")) ->  | AZ199: =IF(AY199<>"",(IFERROR(SUMPRODUCT(LARGE($C199:$AS199,{1,2,3,4,5,6,7})),"")),"") ->  | BA199: =IF(AZ199<>"",(IFERROR(SUMPRODUCT(LARGE($C199:$AS199,{1,2,3,4,5,6,7,8})),"")),"") -> 
AU200: 0 | AV200: 0 | AW200: =IF($AV200<=6,SUM($C200:$AS200),SUMPRODUCT(LARGE($C200:$AS200,{1,2,3,4,5,6}))) -> 0 | AY200: =IF(AX200= "","",IFERROR(SUMPRODUCT(LARGE($C200:$AS200,{1,2,3,4})), "")) ->  | AZ200: =IF(AY200<>"",(IFERROR(SUMPRODUCT(LARGE($C200:$AS200,{1,2,3,4,5,6,7})),"")),"") ->  | BA200: =IF(AZ200<>"",(IFERROR(SUMPRODUCT(LARGE($C200:$AS200,{1,2,3,4,5,6,7,8})),"")),"") -> 
... 96 more rows

Sheet Scholastic
C1: Lee | D1: CSI | E1: QC1 | F1: QC2 | G1: UU | H1: USM | I1: L&CC | J1: BGSU | K1: LTU | L1: UCM | M1: ClCC | N1: MTSU | O1: LSUS | P1: LU | Q1: UJ | R1: SFCT | S1: PaU | T1: BGSU2 | U1: WhU | V1: PLNU | W1: SFCC | X1: TIFA | Y1: OSU | Z1: PNW | AA1: LCC | AB1: DBU | AC1: BPCC | AD1: UCA | AE1: CG | AF1: CUI | AG1: IFA | AH1: PSCS | AI1: PSCF | AJ1: SDSU | AW1: S/L Ranking | AX1: Head to Head | AY1: H/L | AZ1: 7th Tourn. | BA1: 8th Tourn.
B2: Size of Field | C2: =IF(COUNTIFS(C$4:C$996,"<>"),COUNTIFS(C$4:C$996,"<>")," ") -> 10 | D2: 10 | E2: 7 | F2: 10 | G2: 23 | H2: 7 | I2: 11 | J2: 17 | K2: 14 | L2: 16 | M2: 6 | N2: 13 | O2: 20 | P2: 30 | Q2: 19 | R2: 25 | S2: =IF(COUNTIFS(S$4:S$996,"<>"),COUNTIFS(S$4:S$996,"<>")," ") -> 8 | T2: =IF(COUNTIFS(T$4:T$996,"<>"),COUNTIFS(T$4:T$996,"<>")," ") -> 12 | U2: =IF(COUNTIFS(U$4:U$996,"<>"),COUNTIFS(U$4:U$996,"<>")," ") -> 7 | V2: =IF(COUNTIFS(V$4:V$996,"<>"),COUNTIFS(V$4:V$996,"<>")," ") -> 11 | W2: =IF(COUNTIFS(W$4:W$996,"<>"),COUNTIFS(W$4:W$996,"<>")," ") -> 7 | X2: 8 | Y2: =IF(COUNTIFS(Y$4:Y$996,"<>"),COUNTIFS(Y$4:Y$996,"<>")," ") -> 20
A3: RANK | B3: Squad | C3: LEE (9/23-25) | D3: CSI (9/23-24) | E3: QC Swing #1 (9/23-24) | F3: QC Swing #2 (9/23-24) | G3: Union (9/30-10/2) | H3: USM (10/7-9) | I3: L&CC (10/7-9) | J3: BGSU #1 (10/14-15) | K3: LTU (10/14-16) | L3: UCM (10/21-23) | M3: CICC (10/21-23) | N3: MTSU (10/28-30) | O3: LSUS (10/21-23) | P3: Linfield (11/11-13) | Q3: Jamestown (12/3-4) | R3: SFCT (1/27-29) | S3: PaU (10/14-16) | T3: BGSU #2 (10/14-15) | U3: Whitworth (10/21-22) | V3: PLNU (10/21-23) | W3: SFCC/MVC (11/11-13) | X3: TIFA (TN) (2/18-19) | Y3: OSU (2/11-12) | Z3: PNW (3/5) | AA3: LCC (1/27-29) | AB3: DBU (2/10-12) | AC3: BPCC (2/24-26) | AD3: UCA (3/11-12) | AE3: GC (11/12-13) | AF3: CUI (1/28-29 | AG3: IFA (3/13-14) | AH3: PSCFA-S (2/24-26) | AI3: PSCFA-F (12/2-4) | AJ3: SDSU (2/4-5) | AK3: BGSU2 (2/24) | AT3: over 6/2nd host | AU3: Total Points | AV3: Tournament Count | AW3: Best Top 6 (National Rank) | AX3: 1st Tie Breaker | AY3: 2nd Tie Breaker | AZ3: 3rd Tie Breaker | BA3: 4th Tie Breaker
B4: ACU | C4: 64 | G4: 57 | O4: 69 | Q4: 63 | AB4: 46 | AC4: 51 | AD4: 52 | AU4: =SUM($C4:$AT4) -> 402 | AV4: =COUNTA(C4:AS4) -> 7 | AW4: =IF($AV4<=6,SUM($C4:$AS4),SUMPRODUCT(LARGE($C4:$AS4,{1,2,3,4,5,6}))) -> 356 | AX4: =IF(AND($AV4>=6,AW4=AW5),"Manual Calc Needed","") ->  | AY4: =IF(AX4= "","",IFERROR(SUMPRODUCT(LARGE($C4:$AS4,{1,2,3,4})), "")) ->  | AZ4: =IF(AY4<>"",(IFERROR(SUMPRODUCT(LARGE($C4:$AS4,{1,2,3,4,5,6,7})),"")),"") ->  | BA4: =IF(AZ4<>"",(IFERROR(SUMPRODUCT(LARGE($C4:$AS4,{1,2,3,4,5,6,7,8})),"")),"") -> 
B5: ASU | C5: 11 | L5: 18 | Q5: 6 | AK5: 5 | AU5: 40 | AV5: 4 | AW5: =IF($AV5<=6,SUM($C5:$AS5),SUMPRODUCT(LARGE($C5:$AS5,{1,2,3,4,5,6}))) -> 40 | AX5: =IF(AND($AV5>=6,AW5=AW6),"Manual Calc Needed","") ->  | AY5: =IF(AX5= "","",IFERROR(SUMPRODUCT(LARGE($C5:$AS5,{1,2,3,4})), "")) ->  | AZ5: =IF(AY5<>"",(IFERROR(SUMPRODUCT(LARGE($C5:$AS5,{1,2,3,4,5,6,7})),"")),"") ->  | BA5: =IF(AZ5<>"",(IFERROR(SUMPRODUCT(LARGE($C5:$AS5,{1,2,3,4,5,6,7,8})),"")),"") -> 
B6: ATU | AC6: 11 | AD6: 11 | AU6: 22 | AV6: 2 | AW6: =IF($AV6<=6,SUM($C6:$AS6),SUMPRODUCT(LARGE($C6:$AS6,{1,2,3,4,5,6}))) -> 22 | AX6: =IF(AND($AV6>=6,AW6=AW7),"Manual Calc Needed","") ->  | AY6: =IF(AX6= "","",IFERROR(SUMPRODUCT(LARGE($C6:$AS6,{1,2,3,4})), "")) ->  | AZ6: =IF(AY6<>"",(IFERROR(SUMPRODUCT(LARGE($C6:$AS6,{1,2,3,4,5,6,7})),"")),"") ->  | BA6: =IF(AZ6<>"",(IFERROR(SUMPRODUCT(LARGE($C6:$AS6,{1,2,3,4,5,6,7,8})),"")),"") -> 
B7: BaSU | J7: 5 | W7: 10 | Y7: 2 | AU7: 17 | AV7: 3 | AW7: =IF($AV7<=6,SUM($C7:$AS7),SUMPRODUCT(LARGE($C7:$AS7,{1,2,3,4,5,6}))) -> 17 | AX7: =IF(AND($AV7>=6,AW7=#REF!),"Manual Calc Needed","") ->  | AY7: =IF(AX7= "","",IFERROR(SUMPRODUCT(LARGE($C7:$AS7,{1,2,3,4})), "")) ->  | AZ7: =IF(AY7<>"",(IFERROR(SUMPRODUCT(LARGE($C7:$AS7,{1,2,3,4,5,6,7})),"")),"") ->  | BA7: =IF(AZ7<>"",(IFERROR(SUMPRODUCT(LARGE($C7:$AS7,{1,2,3,4,5,6,7,8})),"")),"") -> 
B8: BGSU | E8: 5 | J8: 7 | AU8: 12 | AV8: 2 | AW8: =IF($AV8<=6,SUM($C8:$AS8),SUMPRODUCT(LARGE($C8:$AS8,{1,2,3,4,5,6}))) -> 12 | AX8: =IF(AND($AV8>=6,AW8=AW9),"Manual Calc Needed","") ->  | AY8: =IF(AX8= "","",IFERROR(SUMPRODUCT(LARGE($C8:$AS8,{1,2,3,4})), "")) ->  | AZ8: =IF(AY8<>"",(IFERROR(SUMPRODUCT(LARGE($C8:$AS8,{1,2,3,4,5,6,7})),"")),"") ->  | BA8: =IF(AZ8<>"",(IFERROR(SUMPRODUCT(LARGE($C8:$AS8,{1,2,3,4,5,6,7,8})),"")),"") -> 
B9: BPCC | C9: 29 | G9: 5 | K9: 12 | O9: 19 | Q9: 8 | R9: 18 | AB9: 16 | AD9: 12 | AU9: 119 | AV9: 8 | AW9: =IF($AV9<=6,SUM($C9:$AS9),SUMPRODUCT(LARGE($C9:$AS9,{1,2,3,4,5,6}))) -> 106 | AX9: =IF(AND($AV9>=6,AW9=#REF!),"Manual Calc Needed","") ->  | AY9: =IF(AX9= "","",IFERROR(SUMPRODUCT(LARGE($C9:$AS9,{1,2,3,4})), "")) ->  | AZ9: =IF(AY9<>"",(IFERROR(SUMPRODUCT(LARGE($C9:$AS9,{1,2,3,4,5,6,7})),"")),"") ->  | BA9: =IF(AZ9<>"",(IFERROR(SUMPRODUCT(LARGE($C9:$AS9,{1,2,3,4,5,6,7,8})),"")),"") -> 
B10: BrU | AG10: 18 | AU10: 18 | AV10: 1 | AW10: =IF($AV10<=6,SUM($C10:$AS10),SUMPRODUCT(LARGE($C10:$AS10,{1,2,3,4,5,6}))) -> 18 | AX10: =IF(AND($AV10>=6,AW10=AW11),"Manual Calc Needed","") ->  | AY10: =IF(AX10= "","",IFERROR(SUMPRODUCT(LARGE($C10:$AS10,{1,2,3,4})), "")) ->  | AZ10: =IF(AY10<>"",(IFERROR(SUMPRODUCT(LARGE($C10:$AS10,{1,2,3,4,5,6,7})),"")),"") ->  | BA10: =IF(AZ10<>"",(IFERROR(SUMPRODUCT(LARGE($C10:$AS10,{1,2,3,4,5,6,7,8})),"")),"") -> 
B11: BSU | D11: =7+5+5 -> 17 | I11: 28 | P11: 42 | Y11: 21 | AA11: 36 | AU11: 144 | AV11: 5 | AW11: =IF($AV11<=6,SUM($C11:$AS11),SUMPRODUCT(LARGE($C11:$AS11,{1,2,3,4,5,6}))) -> 144 | AY11: =IF(AX11= "","",IFERROR(SUMPRODUCT(LARGE($C11:$AS11,{1,2,3,4})), "")) ->  | AZ11: =IF(AY11<>"",(IFERROR(SUMPRODUCT(LARGE($C11:$AS11,{1,2,3,4,5,6,7})),"")),"") ->  | BA11: =IF(AZ11<>"",(IFERROR(SUMPRODUCT(LARGE($C11:$AS11,{1,2,3,4,5,6,7,8})),"")),"") -> 
B12: BU | G12: 24 | M12: 13 | N12: 8 | P12: 9 | R12: 6 | X12: 20 | AU12: 80 | AV12: 6 | AW12: =IF($AV12<=6,SUM($C12:$AS12),SUMPRODUCT(LARGE($C12:$AS12,{1,2,3,4,5,6}))) -> 80 | AY12: =IF(AX12= "","",IFERROR(SUMPRODUCT(LARGE($C12:$AS12,{1,2,3,4})), "")) ->  | AZ12: =IF(AY12<>"",(IFERROR(SUMPRODUCT(LARGE($C12:$AS12,{1,2,3,4,5,6,7})),"")),"") ->  | BA12: =IF(AZ12<>"",(IFERROR(SUMPRODUCT(LARGE($C12:$AS12,{1,2,3,4,5,6,7,8})),"")),"") -> 
B13: ButU | F13: 13 | AU13: 13 | AV13: 1 | AW13: =IF($AV13<=6,SUM($C13:$AS13),SUMPRODUCT(LARGE($C13:$AS13,{1,2,3,4,5,6}))) -> 13 | AY13: =IF(AX13= "","",IFERROR(SUMPRODUCT(LARGE($C13:$AS13,{1,2,3,4})), "")) ->  | AZ13: =IF(AY13<>"",(IFERROR(SUMPRODUCT(LARGE($C13:$AS13,{1,2,3,4,5,6,7})),"")),"") ->  | BA13: =IF(AZ13<>"",(IFERROR(SUMPRODUCT(LARGE($C13:$AS13,{1,2,3,4,5,6,7,8})),"")),"") -> 
B14: CasC | D14: 6 | P14: 9 | AG14: 7 | AU14: 22 | AV14: 3 | AW14: =IF($AV14<=6,SUM($C14:$AS14),SUMPRODUCT(LARGE($C14:$AS14,{1,2,3,4,5,6}))) -> 22 | AY14: =IF(AX14= "","",IFERROR(SUMPRODUCT(LARGE($C14:$AS14,{1,2,3,4})), "")) ->  | AZ14: =IF(AY14<>"",(IFERROR(SUMPRODUCT(LARGE($C14:$AS14,{1,2,3,4,5,6,7})),"")),"") ->  | BA14: =IF(AZ14<>"",(IFERROR(SUMPRODUCT(LARGE($C14:$AS14,{1,2,3,4,5,6,7,8})),"")),"") -> 
B15: CBU | AH15: 5 | AI15: 11 | AU15: 16 | AV15: 2 | AW15: =IF($AV15<=6,SUM($C15:$AS15),SUMPRODUCT(LARGE($C15:$AS15,{1,2,3,4,5,6}))) -> 16 | AY15: =IF(AX15= "","",IFERROR(SUMPRODUCT(LARGE($C15:$AS15,{1,2,3,4})), "")) ->  | AZ15: =IF(AY15<>"",(IFERROR(SUMPRODUCT(LARGE($C15:$AS15,{1,2,3,4,5,6,7})),"")),"") ->  | BA15: =IF(AZ15<>"",(IFERROR(SUMPRODUCT(LARGE($C15:$AS15,{1,2,3,4,5,6,7,8})),"")),"") -> 
B16: CCU | L16: 24 | P16: 19 | AU16: 43 | AV16: 2 | AW16: =IF($AV16<=6,SUM($C16:$AS16),SUMPRODUCT(LARGE($C16:$AS16,{1,2,3,4,5,6}))) -> 43 | AY16: =IF(AX16= "","",IFERROR(SUMPRODUCT(LARGE($C16:$AS16,{1,2,3,4})), "")) ->  | AZ16: =IF(AY16<>"",(IFERROR(SUMPRODUCT(LARGE($C16:$AS16,{1,2,3,4,5,6,7})),"")),"") ->  | BA16: =IF(AZ16<>"",(IFERROR(SUMPRODUCT(LARGE($C16:$AS16,{1,2,3,4,5,6,7,8})),"")),"") -> 
B17: CEI | P17: 4 | Y17: 13 | AU17: 17 | AV17: 2 | AW17: =IF($AV17<=6,SUM($C17:$AS17),SUMPRODUCT(LARGE($C17:$AS17,{1,2,3,4,5,6}))) -> 17 | AY17: =IF(AX17= "","",IFERROR(SUMPRODUCT(LARGE($C17:$AS17,{1,2,3,4})), "")) ->  | AZ17: =IF(AY17<>"",(IFERROR(SUMPRODUCT(LARGE($C17:$AS17,{1,2,3,4,5,6,7})),"")),"") ->  | BA17: =IF(AZ17<>"",(IFERROR(SUMPRODUCT(LARGE($C17:$AS17,{1,2,3,4,5,6,7,8})),"")),"") -> 
B18: CerC | AE18: 7 | AH18: 8 | AI18: 2 | AU18: 17 | AV18: 3 | AW18: =IF($AV18<=6,SUM($C18:$AS18),SUMPRODUCT(LARGE($C18:$AS18,{1,2,3,4,5,6}))) -> 17 | AY18: =IF(AX18= "","",IFERROR(SUMPRODUCT(LARGE($C18:$AS18,{1,2,3,4})), "")) ->  | AZ18: =IF(AY18<>"",(IFERROR(SUMPRODUCT(LARGE($C18:$AS18,{1,2,3,4,5,6,7})),"")),"") ->  | BA18: =IF(AZ18<>"",(IFERROR(SUMPRODUCT(LARGE($C18:$AS18,{1,2,3,4,5,6,7,8})),"")),"") -> 
B19: CrC | L19: 3 | AU19: 3 | AV19: 1 | AW19: =IF($AV19<=6,SUM($C19:$AS19),SUMPRODUCT(LARGE($C19:$AS19,{1,2,3,4,5,6}))) -> 3 | AY19: =IF(AX19= "","",IFERROR(SUMPRODUCT(LARGE($C19:$AS19,{1,2,3,4})), "")) ->  | AZ19: =IF(AY19<>"",(IFERROR(SUMPRODUCT(LARGE($C19:$AS19,{1,2,3,4,5,6,7})),"")),"") ->  | BA19: =IF(AZ19<>"",(IFERROR(SUMPRODUCT(LARGE($C19:$AS19,{1,2,3,4,5,6,7,8})),"")),"") -> 
B20: CSCC | M20: 1 | AU20: 1 | AV20: 1 | AW20: =IF($AV20<=6,SUM($C20:$AS20),SUMPRODUCT(LARGE($C20:$AS20,{1,2,3,4,5,6}))) -> 1 | AY20: =IF(AX20= "","",IFERROR(SUMPRODUCT(LARGE($C20:$AS20,{1,2,3,4})), "")) ->  | AZ20: =IF(AY20<>"",(IFERROR(SUMPRODUCT(LARGE($C20:$AS20,{1,2,3,4,5,6,7})),"")),"") ->  | BA20: =IF(AZ20<>"",(IFERROR(SUMPRODUCT(LARGE($C20:$AS20,{1,2,3,4,5,6,7,8})),"")),"") -> 
B21: CSI | D21: =3+3+2 -> 8 | P21: 16 | AA21: 12 | AU21: 36 | AV21: 3 | AW21: =IF($AV21<=6,SUM($C21:$AS21),SUMPRODUCT(LARGE($C21:$AS21,{1,2,3,4,5,6}))) -> 36 | AY21: =IF(AX21= "","",IFERROR(SUMPRODUCT(LARGE($C21:$AS21,{1,2,3,4})), "")) ->  | AZ21: =IF(AY21<>"",(IFERROR(SUMPRODUCT(LARGE($C21:$AS21,{1,2,3,4,5,6,7})),"")),"") ->  | BA21: =IF(AZ21<>"",(IFERROR(SUMPRODUCT(LARGE($C21:$AS21,{1,2,3,4,5,6,7,8})),"")),"") -> 
B22: CSLB | AH22: 9 | AI22: 17 | AU22: 26 | AV22: 2 | AW22: =IF($AV22<=6,SUM($C22:$AS22),SUMPRODUCT(LARGE($C22:$AS22,{1,2,3,4,5,6}))) -> 26 | AY22: =IF(AX22= "","",IFERROR(SUMPRODUCT(LARGE($C22:$AS22,{1,2,3,4})), "")) ->  | AZ22: =IF(AY22<>"",(IFERROR(SUMPRODUCT(LARGE($C22:$AS22,{1,2,3,4,5,6,7})),"")),"") ->  | BA22: =IF(AZ22<>"",(IFERROR(SUMPRODUCT(LARGE($C22:$AS22,{1,2,3,4,5,6,7,8})),"")),"") -> 
B23: CSUC | I23: 2 | AG23: 4 | AU23: 6 | AV23: 2 | AW23: =IF($AV23<=6,SUM($C23:$AS23),SUMPRODUCT(LARGE($C23:$AS23,{1,2,3,4,5,6}))) -> 6 | AY23: =IF(AX23= "","",IFERROR(SUMPRODUCT(LARGE($C23:$AS23,{1,2,3,4})), "")) ->  | AZ23: =IF(AY23<>"",(IFERROR(SUMPRODUCT(LARGE($C23:$AS23,{1,2,3,4,5,6,7})),"")),"") ->  | BA23: =IF(AZ23<>"",(IFERROR(SUMPRODUCT(LARGE($C23:$AS23,{1,2,3,4,5,6,7,8})),"")),"") -> 
B24: CSUF | AG24: 5 | AH24: 5 | AU24: 10 | AV24: 2 | AW24: =IF($AV24<=6,SUM($C24:$AS24),SUMPRODUCT(LARGE($C24:$AS24,{1,2,3,4,5,6}))) -> 10 | AY24: =IF(AX24= "","",IFERROR(SUMPRODUCT(LARGE($C24:$AS24,{1,2,3,4})), "")) ->  | AZ24: =IF(AY24<>"",(IFERROR(SUMPRODUCT(LARGE($C24:$AS24,{1,2,3,4,5,6,7})),"")),"") ->  | BA24: =IF(AZ24<>"",(IFERROR(SUMPRODUCT(LARGE($C24:$AS24,{1,2,3,4,5,6,7,8})),"")),"") -> 
B25: CSULA | AH25: 5 | AI25: 2 | AU25: 7 | AV25: 2 | AW25: =IF($AV25<=6,SUM($C25:$AS25),SUMPRODUCT(LARGE($C25:$AS25,{1,2,3,4,5,6}))) -> 7 | AY25: =IF(AX25= "","",IFERROR(SUMPRODUCT(LARGE($C25:$AS25,{1,2,3,4})), "")) ->  | AZ25: =IF(AY25<>"",(IFERROR(SUMPRODUCT(LARGE($C25:$AS25,{1,2,3,4,5,6,7})),"")),"") ->  | BA25: =IF(AZ25<>"",(IFERROR(SUMPRODUCT(LARGE($C25:$AS25,{1,2,3,4,5,6,7,8})),"")),"") -> 
B26: CTC | P26: 2 | AU26: 2 | AV26: 1 | AW26: =IF($AV26<=6,SUM($C26:$AS26),SUMPRODUCT(LARGE($C26:$AS26,{1,2,3,4,5,6}))) -> 2 | AY26: =IF(AX26= "","",IFERROR(SUMPRODUCT(LARGE($C26:$AS26,{1,2,3,4})), "")) ->  | AZ26: =IF(AY26<>"",(IFERROR(SUMPRODUCT(LARGE($C26:$AS26,{1,2,3,4,5,6,7})),"")),"") ->  | BA26: =IF(AZ26<>"",(IFERROR(SUMPRODUCT(LARGE($C26:$AS26,{1,2,3,4,5,6,7,8})),"")),"") -> 
B27: CU | M27: 27 | AU27: 27 | AV27: 1 | AW27: =IF($AV27<=6,SUM($C27:$AS27),SUMPRODUCT(LARGE($C27:$AS27,{1,2,3,4,5,6}))) -> 27 | AY27: =IF(AX27= "","",IFERROR(SUMPRODUCT(LARGE($C27:$AS27,{1,2,3,4})), "")) ->  | AZ27: =IF(AY27<>"",(IFERROR(SUMPRODUCT(LARGE($C27:$AS27,{1,2,3,4,5,6,7})),"")),"") ->  | BA27: =IF(AZ27<>"",(IFERROR(SUMPRODUCT(LARGE($C27:$AS27,{1,2,3,4,5,6,7,8})),"")),"") -> 
B28: CUI | V28: 30 | AF28: 23 | AH28: 11 | AI28: 17 | AU28: 81 | AV28: 4 | AW28: =IF($AV28<=6,SUM($C28:$AS28),SUMPRODUCT(LARGE($C28:$AS28,{1,2,3,4,5,6}))) -> 81 | AY28: =IF(AX28= "","",IFERROR(SUMPRODUCT(LARGE($C28:$AS28,{1,2,3,4})), "")) ->  | AZ28: =IF(AY28<>"",(IFERROR(SUMPRODUCT(LARGE($C28:$AS28,{1,2,3,4,5,6,7})),"")),"") ->  | BA28: =IF(AZ28<>"",(IFERROR(SUMPRODUCT(LARGE($C28:$AS28,{1,2,3,4,5,6,7,8})),"")),"") -> 
B29: CWI | D29: =5+3+3 -> 11 | I29: 48 | P29: 45 | AA29: 27 | AU29: 131 | AV29: 4 | AW29: =IF($AV29<=6,SUM($C29:$AS29),SUMPRODUCT(LARGE($C29:$AS29,{1,2,3,4,5,6}))) -> 131 | AY29: =IF(AX29= "","",IFERROR(SUMPRODUCT(LARGE($C29:$AS29,{1,2,3,4})), "")) ->  | AZ29: =IF(AY29<>"",(IFERROR(SUMPRODUCT(LARGE($C29:$AS29,{1,2,3,4,5,6,7})),"")),"") ->  | BA29: =IF(AZ29<>"",(IFERROR(SUMPRODUCT(LARGE($C29:$AS29,{1,2,3,4,5,6,7,8})),"")),"") -> 
B30: DBU | C30: 70 | K30: 72 | N30: 56 | O30: 79 | Q30: 24 | R30: 52 | AC30: 58 | AD30: 54 | AU30: 465 | AV30: 8 | AW30: =IF($AV30<=6,SUM($C30:$AS30),SUMPRODUCT(LARGE($C30:$AS30,{1,2,3,4,5,6}))) -> 389 | AY30: =IF(AX30= "","",IFERROR(SUMPRODUCT(LARGE($C30:$AS30,{1,2,3,4})), "")) ->  | AZ30: =IF(AY30<>"",(IFERROR(SUMPRODUCT(LARGE($C30:$AS30,{1,2,3,4,5,6,7})),"")),"") ->  | BA30: =IF(AZ30<>"",(IFERROR(SUMPRODUCT(LARGE($C30:$AS30,{1,2,3,4,5,6,7,8})),"")),"") -> 
B31: DorU | J31: 2 | AU31: 2 | AV31: 1 | AW31: =IF($AV31<=6,SUM($C31:$AS31),SUMPRODUCT(LARGE($C31:$AS31,{1,2,3,4,5,6}))) -> 2 | AY31: =IF(AX31= "","",IFERROR(SUMPRODUCT(LARGE($C31:$AS31,{1,2,3,4})), "")) ->  | AZ31: =IF(AY31<>"",(IFERROR(SUMPRODUCT(LARGE($C31:$AS31,{1,2,3,4,5,6,7})),"")),"") ->  | BA31: =IF(AZ31<>"",(IFERROR(SUMPRODUCT(LARGE($C31:$AS31,{1,2,3,4,5,6,7,8})),"")),"") -> 
B32: DU | G32: 3 | AU32: 3 | AV32: 1 | AW32: =IF($AV32<=6,SUM($C32:$AS32),SUMPRODUCT(LARGE($C32:$AS32,{1,2,3,4,5,6}))) -> 3 | AY32: =IF(AX32= "","",IFERROR(SUMPRODUCT(LARGE($C32:$AS32,{1,2,3,4})), "")) ->  | AZ32: =IF(AY32<>"",(IFERROR(SUMPRODUCT(LARGE($C32:$AS32,{1,2,3,4,5,6,7})),"")),"") ->  | BA32: =IF(AZ32<>"",(IFERROR(SUMPRODUCT(LARGE($C32:$AS32,{1,2,3,4,5,6,7,8})),"")),"") -> 
B33: DVC | AI33: 12 | AU33: 12 | AV33: 1 | AW33: =IF($AV33<=6,SUM($C33:$AS33),SUMPRODUCT(LARGE($C33:$AS33,{1,2,3,4,5,6}))) -> 12 | AY33: =IF(AX33= "","",IFERROR(SUMPRODUCT(LARGE($C33:$AS33,{1,2,3,4})), "")) ->  | AZ33: =IF(AY33<>"",(IFERROR(SUMPRODUCT(LARGE($C33:$AS33,{1,2,3,4,5,6,7})),"")),"") ->  | BA33: =IF(AZ33<>"",(IFERROR(SUMPRODUCT(LARGE($C33:$AS33,{1,2,3,4,5,6,7,8})),"")),"") -> 
B34: EC | E34: 10 | T34: 2 | AG34: 14 | AK34: 3 | AU34: 29 | AV34: 4 | AW34: =IF($AV34<=6,SUM($C34:$AS34),SUMPRODUCT(LARGE($C34:$AS34,{1,2,3,4,5,6}))) -> 29 | AY34: =IF(AX34= "","",IFERROR(SUMPRODUCT(LARGE($C34:$AS34,{1,2,3,4})), "")) ->  | AZ34: =IF(AY34<>"",(IFERROR(SUMPRODUCT(LARGE($C34:$AS34,{1,2,3,4,5,6,7})),"")),"") ->  | BA34: =IF(AZ34<>"",(IFERROR(SUMPRODUCT(LARGE($C34:$AS34,{1,2,3,4,5,6,7,8})),"")),"") -> 
B35: ECC | AG35: 22 | AH35: 21 | AI35: 43 | AU35: 86 | AV35: 3 | AW35: =IF($AV35<=6,SUM($C35:$AS35),SUMPRODUCT(LARGE($C35:$AS35,{1,2,3,4,5,6}))) -> 86 | AY35: =IF(AX35= "","",IFERROR(SUMPRODUCT(LARGE($C35:$AS35,{1,2,3,4})), "")) ->  | AZ35: =IF(AY35<>"",(IFERROR(SUMPRODUCT(LARGE($C35:$AS35,{1,2,3,4,5,6,7})),"")),"") ->  | BA35: =IF(AZ35<>"",(IFERROR(SUMPRODUCT(LARGE($C35:$AS35,{1,2,3,4,5,6,7,8})),"")),"") -> 
B36: EgCC | Y36: 1 | AU36: =SUM($C36:$AT36) -> 1 | AV36: =COUNTA(C36:AS36) -> 1 | AW36: =IF($AV36<=6,SUM($C36:$AS36),SUMPRODUCT(LARGE($C36:$AS36,{1,2,3,4,5,6}))) -> 1 | AY36: =IF(AX36= "","",IFERROR(SUMPRODUCT(LARGE($C36:$AS36,{1,2,3,4})), "")) ->  | AZ36: =IF(AY36<>"",(IFERROR(SUMPRODUCT(LARGE($C36:$AS36,{1,2,3,4,5,6,7})),"")),"") ->  | BA36: =IF(AZ36<>"",(IFERROR(SUMPRODUCT(LARGE($C36:$AS36,{1,2,3,4,5,6,7,8})),"")),"") -> 
B37: EPCC | AE37: 5 | AG37: 1 | AU37: 6 | AV37: 2 | AW37: =IF($AV37<=6,SUM($C37:$AS37),SUMPRODUCT(LARGE($C37:$AS37,{1,2,3,4,5,6}))) -> 6 | AY37: =IF(AX37= "","",IFERROR(SUMPRODUCT(LARGE($C37:$AS37,{1,2,3,4})), "")) ->  | AZ37: =IF(AY37<>"",(IFERROR(SUMPRODUCT(LARGE($C37:$AS37,{1,2,3,4,5,6,7})),"")),"") ->  | BA37: =IF(AZ37<>"",(IFERROR(SUMPRODUCT(LARGE($C37:$AS37,{1,2,3,4,5,6,7,8})),"")),"") -> 
B38: ETSU | X38: 9 | AU38: 9 | AV38: 1 | AW38: =IF($AV38<=6,SUM($C38:$AS38),SUMPRODUCT(LARGE($C38:$AS38,{1,2,3,4,5,6}))) -> 9 | AY38: =IF(AX38= "","",IFERROR(SUMPRODUCT(LARGE($C38:$AS38,{1,2,3,4})), "")) ->  | AZ38: =IF(AY38<>"",(IFERROR(SUMPRODUCT(LARGE($C38:$AS38,{1,2,3,4,5,6,7})),"")),"") ->  | BA38: =IF(AZ38<>"",(IFERROR(SUMPRODUCT(LARGE($C38:$AS38,{1,2,3,4,5,6,7,8})),"")),"") -> 
B39: FAU | G39: 10 | AU39: 10 | AV39: 1 | AW39: =IF($AV39<=6,SUM($C39:$AS39),SUMPRODUCT(LARGE($C39:$AS39,{1,2,3,4,5,6}))) -> 10 | AY39: =IF(AX39= "","",IFERROR(SUMPRODUCT(LARGE($C39:$AS39,{1,2,3,4})), "")) ->  | AZ39: =IF(AY39<>"",(IFERROR(SUMPRODUCT(LARGE($C39:$AS39,{1,2,3,4,5,6,7})),"")),"") ->  | BA39: =IF(AZ39<>"",(IFERROR(SUMPRODUCT(LARGE($C39:$AS39,{1,2,3,4,5,6,7,8})),"")),"") -> 
B40: FSCJ | J40: 13 | AU40: 13 | AV40: 1 | AW40: =IF($AV40<=6,SUM($C40:$AS40),SUMPRODUCT(LARGE($C40:$AS40,{1,2,3,4,5,6}))) -> 13 | AY40: =IF(AX40= "","",IFERROR(SUMPRODUCT(LARGE($C40:$AS40,{1,2,3,4})), "")) ->  | AZ40: =IF(AY40<>"",(IFERROR(SUMPRODUCT(LARGE($C40:$AS40,{1,2,3,4,5,6,7})),"")),"") ->  | BA40: =IF(AZ40<>"",(IFERROR(SUMPRODUCT(LARGE($C40:$AS40,{1,2,3,4,5,6,7,8})),"")),"") -> 
B41: GC | V41: 11 | AE41: 10 | AG41: 6 | AH41: 30 | AI41: 10 | AU41: 67 | AV41: 5 | AW41: =IF($AV41<=6,SUM($C41:$AS41),SUMPRODUCT(LARGE($C41:$AS41,{1,2,3,4,5,6}))) -> 67 | AY41: =IF(AX41= "","",IFERROR(SUMPRODUCT(LARGE($C41:$AS41,{1,2,3,4})), "")) ->  | AZ41: =IF(AY41<>"",(IFERROR(SUMPRODUCT(LARGE($C41:$AS41,{1,2,3,4,5,6,7})),"")),"") ->  | BA41: =IF(AZ41<>"",(IFERROR(SUMPRODUCT(LARGE($C41:$AS41,{1,2,3,4,5,6,7,8})),"")),"") -> 
B42: GCC | J42: 9 | T42: 18 | AK42: 5 | AU42: 32 | AV42: 3 | AW42: =IF($AV42<=6,SUM($C42:$AS42),SUMPRODUCT(LARGE($C42:$AS42,{1,2,3,4,5,6}))) -> 32 | AX42: =IF(AND($AV42>=6,AW42=AW43),"Manual Calc Needed","") ->  | AY42: =IF(AX42= "","",IFERROR(SUMPRODUCT(LARGE($C42:$AS42,{1,2,3,4})), "")) ->  | AZ42: =IF(AY42<>"",(IFERROR(SUMPRODUCT(LARGE($C42:$AS42,{1,2,3,4,5,6,7})),"")),"") ->  | BA42: =IF(AZ42<>"",(IFERROR(SUMPRODUCT(LARGE($C42:$AS42,{1,2,3,4,5,6,7,8})),"")),"") -> 
B43: GCU | P43: 5 | AF43: 11 | AK43: 2 | AU43: 18 | AV43: 3 | AW43: =IF($AV43<=6,SUM($C43:$AS43),SUMPRODUCT(LARGE($C43:$AS43,{1,2,3,4,5,6}))) -> 18 | AY43: =IF(AX43= "","",IFERROR(SUMPRODUCT(LARGE($C43:$AS43,{1,2,3,4})), "")) ->  | AZ43: =IF(AY43<>"",(IFERROR(SUMPRODUCT(LARGE($C43:$AS43,{1,2,3,4,5,6,7})),"")),"") ->  | BA43: =IF(AZ43<>"",(IFERROR(SUMPRODUCT(LARGE($C43:$AS43,{1,2,3,4,5,6,7,8})),"")),"") -> 
B44: GTC | P44: 2 | AU44: 2 | AV44: 1 | AW44: =IF($AV44<=6,SUM($C44:$AS44),SUMPRODUCT(LARGE($C44:$AS44,{1,2,3,4,5,6}))) -> 2 | AY44: =IF(AX44= "","",IFERROR(SUMPRODUCT(LARGE($C44:$AS44,{1,2,3,4})), "")) ->  | AZ44: =IF(AY44<>"",(IFERROR(SUMPRODUCT(LARGE($C44:$AS44,{1,2,3,4,5,6,7})),"")),"") ->  | BA44: =IF(AZ44<>"",(IFERROR(SUMPRODUCT(LARGE($C44:$AS44,{1,2,3,4,5,6,7,8})),"")),"") -> 
B45: HiC | J45: 22 | P45: 29 | T45: 17 | AU45: 68 | AV45: 3 | AW45: =IF($AV45<=6,SUM($C45:$AS45),SUMPRODUCT(LARGE($C45:$AS45,{1,2,3,4,5,6}))) -> 68 | AY45: =IF(AX45= "","",IFERROR(SUMPRODUCT(LARGE($C45:$AS45,{1,2,3,4})), "")) ->  | AZ45: =IF(AY45<>"",(IFERROR(SUMPRODUCT(LARGE($C45:$AS45,{1,2,3,4,5,6,7})),"")),"") ->  | BA45: =IF(AZ45<>"",(IFERROR(SUMPRODUCT(LARGE($C45:$AS45,{1,2,3,4,5,6,7,8})),"")),"") -> 
B46: HoU | E46: 2 | AU46: 2 | AV46: 1 | AW46: =IF($AV46<=6,SUM($C46:$AS46),SUMPRODUCT(LARGE($C46:$AS46,{1,2,3,4,5,6}))) -> 2 | AY46: =IF(AX46= "","",IFERROR(SUMPRODUCT(LARGE($C46:$AS46,{1,2,3,4})), "")) ->  | AZ46: =IF(AY46<>"",(IFERROR(SUMPRODUCT(LARGE($C46:$AS46,{1,2,3,4,5,6,7})),"")),"") ->  | BA46: =IF(AZ46<>"",(IFERROR(SUMPRODUCT(LARGE($C46:$AS46,{1,2,3,4,5,6,7,8})),"")),"") -> 
B47: HPU | G47: 22 | T47: 10 | AU47: 32 | AV47: 2 | AW47: =IF($AV47<=6,SUM($C47:$AS47),SUMPRODUCT(LARGE($C47:$AS47,{1,2,3,4,5,6}))) -> 32 | AY47: =IF(AX47= "","",IFERROR(SUMPRODUCT(LARGE($C47:$AS47,{1,2,3,4})), "")) ->  | AZ47: =IF(AY47<>"",(IFERROR(SUMPRODUCT(LARGE($C47:$AS47,{1,2,3,4,5,6,7})),"")),"") ->  | BA47: =IF(AZ47<>"",(IFERROR(SUMPRODUCT(LARGE($C47:$AS47,{1,2,3,4,5,6,7,8})),"")),"") -> 
B48: HU | L48: 11 | O48: 10 | R48: 9 | AC48: 16 | AD48: 4 | AU48: 50 | AV48: 5 | AW48: =IF($AV48<=6,SUM($C48:$AS48),SUMPRODUCT(LARGE($C48:$AS48,{1,2,3,4,5,6}))) -> 50 | AY48: =IF(AX48= "","",IFERROR(SUMPRODUCT(LARGE($C48:$AS48,{1,2,3,4})), "")) ->  | AZ48: =IF(AY48<>"",(IFERROR(SUMPRODUCT(LARGE($C48:$AS48,{1,2,3,4,5,6,7})),"")),"") ->  | BA48: =IF(AZ48<>"",(IFERROR(SUMPRODUCT(LARGE($C48:$AS48,{1,2,3,4,5,6,7,8})),"")),"") -> 
B49: ISU | D49: =12+2+1 -> 15 | I49: 15 | P49: 10 | AU49: 40 | AV49: 3 | AW49: =IF($AV49<=6,SUM($C49:$AS49),SUMPRODUCT(LARGE($C49:$AS49,{1,2,3,4,5,6}))) -> 40 | AY49: =IF(AX49= "","",IFERROR(SUMPRODUCT(LARGE($C49:$AS49,{1,2,3,4})), "")) ->  | AZ49: =IF(AY49<>"",(IFERROR(SUMPRODUCT(LARGE($C49:$AS49,{1,2,3,4,5,6,7})),"")),"") ->  | BA49: =IF(AZ49<>"",(IFERROR(SUMPRODUCT(LARGE($C49:$AS49,{1,2,3,4,5,6,7,8})),"")),"") -> 
B50: IVC | AE50: 12 | AH50: 6 | AI50: 18 | AU50: 36 | AV50: 3 | AW50: =IF($AV50<=6,SUM($C50:$AS50),SUMPRODUCT(LARGE($C50:$AS50,{1,2,3,4,5,6}))) -> 36 | AY50: =IF(AX50= "","",IFERROR(SUMPRODUCT(LARGE($C50:$AS50,{1,2,3,4})), "")) ->  | AZ50: =IF(AY50<>"",(IFERROR(SUMPRODUCT(LARGE($C50:$AS50,{1,2,3,4,5,6,7})),"")),"") ->  | BA50: =IF(AZ50<>"",(IFERROR(SUMPRODUCT(LARGE($C50:$AS50,{1,2,3,4,5,6,7,8})),"")),"") -> 
B51: JSCC | G51: 27 | N51: 19 | Q51: 18 | R51: 13 | T51: 7 | Y51: 6 | AC51: 22 | AD51: 3 | AU51: 115 | AV51: 8 | AW51: =IF($AV51<=6,SUM($C51:$AS51),SUMPRODUCT(LARGE($C51:$AS51,{1,2,3,4,5,6}))) -> 106 | AY51: =IF(AX51= "","",IFERROR(SUMPRODUCT(LARGE($C51:$AS51,{1,2,3,4})), "")) ->  | AZ51: =IF(AY51<>"",(IFERROR(SUMPRODUCT(LARGE($C51:$AS51,{1,2,3,4,5,6,7})),"")),"") ->  | BA51: =IF(AZ51<>"",(IFERROR(SUMPRODUCT(LARGE($C51:$AS51,{1,2,3,4,5,6,7,8})),"")),"") -> 
B52: KWU | W52: 10 | AU52: 10 | AV52: 1 | AW52: =IF($AV52<=6,SUM($C52:$AS52),SUMPRODUCT(LARGE($C52:$AS52,{1,2,3,4,5,6}))) -> 10 | AY52: =IF(AX52= "","",IFERROR(SUMPRODUCT(LARGE($C52:$AS52,{1,2,3,4})), "")) ->  | AZ52: =IF(AY52<>"",(IFERROR(SUMPRODUCT(LARGE($C52:$AS52,{1,2,3,4,5,6,7})),"")),"") ->  | BA52: =IF(AZ52<>"",(IFERROR(SUMPRODUCT(LARGE($C52:$AS52,{1,2,3,4,5,6,7,8})),"")),"") -> 
B53: L&CC | I53: 22 | P53: 30 | U53: 14 | Y53: 15 | Z53: 15 | AA53: 10 | AU53: 106 | AV53: 6 | AW53: =IF($AV53<=6,SUM($C53:$AS53),SUMPRODUCT(LARGE($C53:$AS53,{1,2,3,4,5,6}))) -> 106 | AY53: =IF(AX53= "","",IFERROR(SUMPRODUCT(LARGE($C53:$AS53,{1,2,3,4})), "")) ->  | AZ53: =IF(AY53<>"",(IFERROR(SUMPRODUCT(LARGE($C53:$AS53,{1,2,3,4,5,6,7})),"")),"") ->  | BA53: =IF(AZ53<>"",(IFERROR(SUMPRODUCT(LARGE($C53:$AS53,{1,2,3,4,5,6,7,8})),"")),"") -> 
B54: LafC | AG54: 6 | AU54: 6 | AV54: 1 | AW54: =IF($AV54<=6,SUM($C54:$AS54),SUMPRODUCT(LARGE($C54:$AS54,{1,2,3,4,5,6}))) -> 6 | AY54: =IF(AX54= "","",IFERROR(SUMPRODUCT(LARGE($C54:$AS54,{1,2,3,4})), "")) ->  | AZ54: =IF(AY54<>"",(IFERROR(SUMPRODUCT(LARGE($C54:$AS54,{1,2,3,4,5,6,7})),"")),"") ->  | BA54: =IF(AZ54<>"",(IFERROR(SUMPRODUCT(LARGE($C54:$AS54,{1,2,3,4,5,6,7,8})),"")),"") -> 
B55: LAVC | AI55: 4 | AU55: 4 | AV55: 1 | AW55: =IF($AV55<=6,SUM($C55:$AS55),SUMPRODUCT(LARGE($C55:$AS55,{1,2,3,4,5,6}))) -> 4 | AY55: =IF(AX55= "","",IFERROR(SUMPRODUCT(LARGE($C55:$AS55,{1,2,3,4})), "")) ->  | AZ55: =IF(AY55<>"",(IFERROR(SUMPRODUCT(LARGE($C55:$AS55,{1,2,3,4,5,6,7})),"")),"") ->  | BA55: =IF(AZ55<>"",(IFERROR(SUMPRODUCT(LARGE($C55:$AS55,{1,2,3,4,5,6,7,8})),"")),"") -> 
B56: LCC | I56: 10 | U56: 11 | Y56: 21 | Z56: 18 | AA56: 21 | AU56: 81 | AV56: 5 | AW56: =IF($AV56<=6,SUM($C56:$AS56),SUMPRODUCT(LARGE($C56:$AS56,{1,2,3,4,5,6}))) -> 81 | AY56: =IF(AX56= "","",IFERROR(SUMPRODUCT(LARGE($C56:$AS56,{1,2,3,4})), "")) ->  | AZ56: =IF(AY56<>"",(IFERROR(SUMPRODUCT(LARGE($C56:$AS56,{1,2,3,4,5,6,7})),"")),"") ->  | BA56: =IF(AZ56<>"",(IFERROR(SUMPRODUCT(LARGE($C56:$AS56,{1,2,3,4,5,6,7,8})),"")),"") -> 
B57: LCU | C57: 22 | K57: 15 | O57: 3 | R57: 13 | AC57: 18 | AU57: 71 | AV57: 5 | AW57: =IF($AV57<=6,SUM($C57:$AS57),SUMPRODUCT(LARGE($C57:$AS57,{1,2,3,4,5,6}))) -> 71 | AY57: =IF(AX57= "","",IFERROR(SUMPRODUCT(LARGE($C57:$AS57,{1,2,3,4})), "")) ->  | AZ57: =IF(AY57<>"",(IFERROR(SUMPRODUCT(LARGE($C57:$AS57,{1,2,3,4,5,6,7})),"")),"") ->  | BA57: =IF(AZ57<>"",(IFERROR(SUMPRODUCT(LARGE($C57:$AS57,{1,2,3,4,5,6,7,8})),"")),"") -> 
B58: Lee | G58: 13 | K58: 30 | O58: 30 | Q58: 19 | R58: 28 | AB58: 33 | AC58: 28 | AD58: 26 | AU58: 207 | AV58: 8 | AW58: =IF($AV58<=6,SUM($C58:$AS58),SUMPRODUCT(LARGE($C58:$AS58,{1,2,3,4,5,6}))) -> 175 | AY58: =IF(AX58= "","",IFERROR(SUMPRODUCT(LARGE($C58:$AS58,{1,2,3,4})), "")) ->  | AZ58: =IF(AY58<>"",(IFERROR(SUMPRODUCT(LARGE($C58:$AS58,{1,2,3,4,5,6,7})),"")),"") ->  | BA58: =IF(AZ58<>"",(IFERROR(SUMPRODUCT(LARGE($C58:$AS58,{1,2,3,4,5,6,7,8})),"")),"") -> 
B59: LibU | E59: 18 | AU59: 18 | AV59: 1 | AW59: =IF($AV59<=6,SUM($C59:$AS59),SUMPRODUCT(LARGE($C59:$AS59,{1,2,3,4,5,6}))) -> 18 | AY59: =IF(AX59= "","",IFERROR(SUMPRODUCT(LARGE($C59:$AS59,{1,2,3,4})), "")) ->  | AZ59: =IF(AY59<>"",(IFERROR(SUMPRODUCT(LARGE($C59:$AS59,{1,2,3,4,5,6,7})),"")),"") ->  | BA59: =IF(AZ59<>"",(IFERROR(SUMPRODUCT(LARGE($C59:$AS59,{1,2,3,4,5,6,7,8})),"")),"") -> 
B60: LPC | AG60: 2 | AU60: 2 | AV60: 1 | AW60: =IF($AV60<=6,SUM($C60:$AS60),SUMPRODUCT(LARGE($C60:$AS60,{1,2,3,4,5,6}))) -> 2 | AY60: =IF(AX60= "","",IFERROR(SUMPRODUCT(LARGE($C60:$AS60,{1,2,3,4})), "")) ->  | AZ60: =IF(AY60<>"",(IFERROR(SUMPRODUCT(LARGE($C60:$AS60,{1,2,3,4,5,6,7})),"")),"") ->  | BA60: =IF(AZ60<>"",(IFERROR(SUMPRODUCT(LARGE($C60:$AS60,{1,2,3,4,5,6,7,8})),"")),"") -> 
B61: LSU | G61: 25 | P61: 11 | Y61: 11 | AK61: 1 | AU61: 48 | AV61: 4 | AW61: =IF($AV61<=6,SUM($C61:$AS61),SUMPRODUCT(LARGE($C61:$AS61,{1,2,3,4,5,6}))) -> 48 | AY61: =IF(AX61= "","",IFERROR(SUMPRODUCT(LARGE($C61:$AS61,{1,2,3,4})), "")) ->  | AZ61: =IF(AY61<>"",(IFERROR(SUMPRODUCT(LARGE($C61:$AS61,{1,2,3,4,5,6,7})),"")),"") ->  | BA61: =IF(AZ61<>"",(IFERROR(SUMPRODUCT(LARGE($C61:$AS61,{1,2,3,4,5,6,7,8})),"")),"") -> 
B62: LSUS | C62: 31 | G62: 16 | K62: 37 | L62: 23 | O62: 11 | Q62: 12 | R62: 44 | AB62: 26 | AC62: 43 | AD62: 44 | AU62: 287 | AV62: 10 | AW62: =IF($AV62<=6,SUM($C62:$AS62),SUMPRODUCT(LARGE($C62:$AS62,{1,2,3,4,5,6}))) -> 225 | AY62: =IF(AX62= "","",IFERROR(SUMPRODUCT(LARGE($C62:$AS62,{1,2,3,4})), "")) ->  | AZ62: =IF(AY62<>"",(IFERROR(SUMPRODUCT(LARGE($C62:$AS62,{1,2,3,4,5,6,7})),"")),"") ->  | BA62: =IF(AZ62<>"",(IFERROR(SUMPRODUCT(LARGE($C62:$AS62,{1,2,3,4,5,6,7,8})),"")),"") -> 
B63: LTU | G63: 11 | O63: 19 | Q63: 15 | R63: 14 | AC63: 20 | AD63: 15 | AU63: 94 | AV63: 6 | AW63: =IF($AV63<=6,SUM($C63:$AS63),SUMPRODUCT(LARGE($C63:$AS63,{1,2,3,4,5,6}))) -> 94 | AY63: =IF(AX63= "","",IFERROR(SUMPRODUCT(LARGE($C63:$AS63,{1,2,3,4})), "")) ->  | AZ63: =IF(AY63<>"",(IFERROR(SUMPRODUCT(LARGE($C63:$AS63,{1,2,3,4,5,6,7})),"")),"") ->  | BA63: =IF(AZ63<>"",(IFERROR(SUMPRODUCT(LARGE($C63:$AS63,{1,2,3,4,5,6,7,8})),"")),"") -> 
B64: LU | G64: 7 | P64: 4 | AU64: 11 | AV64: 2 | AW64: =IF($AV64<=6,SUM($C64:$AS64),SUMPRODUCT(LARGE($C64:$AS64,{1,2,3,4,5,6}))) -> 11 | AY64: =IF(AX64= "","",IFERROR(SUMPRODUCT(LARGE($C64:$AS64,{1,2,3,4})), "")) ->  | AZ64: =IF(AY64<>"",(IFERROR(SUMPRODUCT(LARGE($C64:$AS64,{1,2,3,4,5,6,7})),"")),"") ->  | BA64: =IF(AZ64<>"",(IFERROR(SUMPRODUCT(LARGE($C64:$AS64,{1,2,3,4,5,6,7,8})),"")),"") -> 
B65: MarU | L65: 8 | AU65: 8 | AV65: 1 | AW65: =IF($AV65<=6,SUM($C65:$AS65),SUMPRODUCT(LARGE($C65:$AS65,{1,2,3,4,5,6}))) -> 8 | AY65: =IF(AX65= "","",IFERROR(SUMPRODUCT(LARGE($C65:$AS65,{1,2,3,4})), "")) ->  | AZ65: =IF(AY65<>"",(IFERROR(SUMPRODUCT(LARGE($C65:$AS65,{1,2,3,4,5,6,7})),"")),"") ->  | BA65: =IF(AZ65<>"",(IFERROR(SUMPRODUCT(LARGE($C65:$AS65,{1,2,3,4,5,6,7,8})),"")),"") -> 
B66: MHCC | Z66: 2 | AK66: 1 | AU66: 3 | AV66: 2 | AW66: =IF($AV66<=6,SUM($C66:$AS66),SUMPRODUCT(LARGE($C66:$AS66,{1,2,3,4,5,6}))) -> 3 | AY66: =IF(AX66= "","",IFERROR(SUMPRODUCT(LARGE($C66:$AS66,{1,2,3,4})), "")) ->  | AZ66: =IF(AY66<>"",(IFERROR(SUMPRODUCT(LARGE($C66:$AS66,{1,2,3,4,5,6,7})),"")),"") ->  | BA66: =IF(AZ66<>"",(IFERROR(SUMPRODUCT(LARGE($C66:$AS66,{1,2,3,4,5,6,7,8})),"")),"") -> 
B67: MoC | H67: 26 | AU67: 26 | AV67: 1 | AW67: =IF($AV67<=6,SUM($C67:$AS67),SUMPRODUCT(LARGE($C67:$AS67,{1,2,3,4,5,6}))) -> 26 | AY67: =IF(AX67= "","",IFERROR(SUMPRODUCT(LARGE($C67:$AS67,{1,2,3,4})), "")) ->  | AZ67: =IF(AY67<>"",(IFERROR(SUMPRODUCT(LARGE($C67:$AS67,{1,2,3,4,5,6,7})),"")),"") ->  | BA67: =IF(AZ67<>"",(IFERROR(SUMPRODUCT(LARGE($C67:$AS67,{1,2,3,4,5,6,7,8})),"")),"") -> 
B68: MoorC | AF68: 9 | AI68: 35 | AU68: =SUM($C68:$AT68) -> 44 | AV68: =COUNTA(C68:AS68) -> 2 | AW68: =IF($AV68<=6,SUM($C68:$AS68),SUMPRODUCT(LARGE($C68:$AS68,{1,2,3,4,5,6}))) -> 44 | AY68: =IF(AX68= "","",IFERROR(SUMPRODUCT(LARGE($C68:$AS68,{1,2,3,4})), "")) ->  | AZ68: =IF(AY68<>"",(IFERROR(SUMPRODUCT(LARGE($C68:$AS68,{1,2,3,4,5,6,7})),"")),"") ->  | BA68: =IF(AZ68<>"",(IFERROR(SUMPRODUCT(LARGE($C68:$AS68,{1,2,3,4,5,6,7,8})),"")),"") -> 
B69: MSAC | AE69: 18 | AF69: 5 | AH69: 22 | AI69: 18 | AU69: 63 | AV69: 4 | AW69: =IF($AV69<=6,SUM($C69:$AS69),SUMPRODUCT(LARGE($C69:$AS69,{1,2,3,4,5,6}))) -> 63 | AY69: =IF(AX69= "","",IFERROR(SUMPRODUCT(LARGE($C69:$AS69,{1,2,3,4})), "")) ->  | AZ69: =IF(AY69<>"",(IFERROR(SUMPRODUCT(LARGE($C69:$AS69,{1,2,3,4,5,6,7})),"")),"") ->  | BA69: =IF(AZ69<>"",(IFERROR(SUMPRODUCT(LARGE($C69:$AS69,{1,2,3,4,5,6,7,8})),"")),"") -> 
B70: MSD | AF70: 5 | AH70: 6 | AI70: 7 | AU70: 18 | AV70: 3 | AW70: =IF($AV70<=6,SUM($C70:$AS70),SUMPRODUCT(LARGE($C70:$AS70,{1,2,3,4,5,6}))) -> 18 | AY70: =IF(AX70= "","",IFERROR(SUMPRODUCT(LARGE($C70:$AS70,{1,2,3,4})), "")) ->  | AZ70: =IF(AY70<>"",(IFERROR(SUMPRODUCT(LARGE($C70:$AS70,{1,2,3,4,5,6,7})),"")),"") ->  | BA70: =IF(AZ70<>"",(IFERROR(SUMPRODUCT(LARGE($C70:$AS70,{1,2,3,4,5,6,7,8})),"")),"") -> 
B71: MslU | M71: 8 | AG71: 10 | AU71: 18 | AV71: 2 | AW71: =IF($AV71<=6,SUM($C71:$AS71),SUMPRODUCT(LARGE($C71:$AS71,{1,2,3,4,5,6}))) -> 18 | AY71: =IF(AX71= "","",IFERROR(SUMPRODUCT(LARGE($C71:$AS71,{1,2,3,4})), "")) ->  | AZ71: =IF(AY71<>"",(IFERROR(SUMPRODUCT(LARGE($C71:$AS71,{1,2,3,4,5,6,7})),"")),"") ->  | BA71: =IF(AZ71<>"",(IFERROR(SUMPRODUCT(LARGE($C71:$AS71,{1,2,3,4,5,6,7,8})),"")),"") -> 
B72: MSU | G72: 52 | H72: 60 | K72: 49 | N72: 56 | O72: 74 | Q72: 41 | R72: 61 | Y72: 12 | AB72: 17 | AC72: 73 | AD72: 31 | AU72: 526 | AV72: 11 | AW72: =IF($AV72<=6,SUM($C72:$AS72),SUMPRODUCT(LARGE($C72:$AS72,{1,2,3,4,5,6}))) -> 376 | AY72: =IF(AX72= "","",IFERROR(SUMPRODUCT(LARGE($C72:$AS72,{1,2,3,4})), "")) ->  | AZ72: =IF(AY72<>"",(IFERROR(SUMPRODUCT(LARGE($C72:$AS72,{1,2,3,4,5,6,7})),"")),"") ->  | BA72: =IF(AZ72<>"",(IFERROR(SUMPRODUCT(LARGE($C72:$AS72,{1,2,3,4,5,6,7,8})),"")),"") -> 
B73: MTSU | E73: 9 | F73: 11 | G73: 41 | M73: 14 | N73: 17 | Q73: 2 | R73: 33 | X73: 21 | AD73: 3 | AU73: 151 | AV73: 9 | AW73: =IF($AV73<=6,SUM($C73:$AS73),SUMPRODUCT(LARGE($C73:$AS73,{1,2,3,4,5,6}))) -> 137 | AY73: =IF(AX73= "","",IFERROR(SUMPRODUCT(LARGE($C73:$AS73,{1,2,3,4})), "")) ->  | AZ73: =IF(AY73<>"",(IFERROR(SUMPRODUCT(LARGE($C73:$AS73,{1,2,3,4,5,6,7})),"")),"") ->  | BA73: =IF(AZ73<>"",(IFERROR(SUMPRODUCT(LARGE($C73:$AS73,{1,2,3,4,5,6,7,8})),"")),"") -> 
B74: MU | V74: 4 | AU74: 4 | AV74: 1 | AW74: =IF($AV74<=6,SUM($C74:$AS74),SUMPRODUCT(LARGE($C74:$AS74,{1,2,3,4,5,6}))) -> 4 | AX74: =IF(AND($AV74>=6,AW74=AW75),"Manual Calc Needed","") ->  | AY74: =IF(AX74= "","",IFERROR(SUMPRODUCT(LARGE($C74:$AS74,{1,2,3,4})), "")) ->  | AZ74: =IF(AY74<>"",(IFERROR(SUMPRODUCT(LARGE($C74:$AS74,{1,2,3,4,5,6,7})),"")),"") ->  | BA74: =IF(AZ74<>"",(IFERROR(SUMPRODUCT(LARGE($C74:$AS74,{1,2,3,4,5,6,7,8})),"")),"") -> 
B75: MuSU | F75: 7 | H75: 3 | N75: 5 | AU75: 15 | AV75: 3 | AW75: =IF($AV75<=6,SUM($C75:$AS75),SUMPRODUCT(LARGE($C75:$AS75,{1,2,3,4,5,6}))) -> 15 | AY75: =IF(AX75= "","",IFERROR(SUMPRODUCT(LARGE($C75:$AS75,{1,2,3,4})), "")) ->  | AZ75: =IF(AY75<>"",(IFERROR(SUMPRODUCT(LARGE($C75:$AS75,{1,2,3,4,5,6,7})),"")),"") ->  | BA75: =IF(AZ75<>"",(IFERROR(SUMPRODUCT(LARGE($C75:$AS75,{1,2,3,4,5,6,7,8})),"")),"") -> 
B76: MuU | J76: 3 | AU76: 3 | AV76: 1 | AW76: =IF($AV76<=6,SUM($C76:$AS76),SUMPRODUCT(LARGE($C76:$AS76,{1,2,3,4,5,6}))) -> 3 | AY76: =IF(AX76= "","",IFERROR(SUMPRODUCT(LARGE($C76:$AS76,{1,2,3,4})), "")) ->  | AZ76: =IF(AY76<>"",(IFERROR(SUMPRODUCT(LARGE($C76:$AS76,{1,2,3,4,5,6,7})),"")),"") ->  | BA76: =IF(AZ76<>"",(IFERROR(SUMPRODUCT(LARGE($C76:$AS76,{1,2,3,4,5,6,7,8})),"")),"") -> 
B77: MVC | J77: 1 | L77: 0 | AU77: 1 | AV77: 2 | AW77: =IF($AV77<=6,SUM($C77:$AS77),SUMPRODUCT(LARGE($C77:$AS77,{1,2,3,4,5,6}))) -> 1 | AY77: =IF(AX77= "","",IFERROR(SUMPRODUCT(LARGE($C77:$AS77,{1,2,3,4})), "")) ->  | AZ77: =IF(AY77<>"",(IFERROR(SUMPRODUCT(LARGE($C77:$AS77,{1,2,3,4,5,6,7})),"")),"") ->  | BA77: =IF(AZ77<>"",(IFERROR(SUMPRODUCT(LARGE($C77:$AS77,{1,2,3,4,5,6,7,8})),"")),"") -> 
B78: NAU | AE78: 19 | AI78: 17 | AJ78: 5 | AU78: 41 | AV78: 3 | AW78: =IF($AV78<=6,SUM($C78:$AS78),SUMPRODUCT(LARGE($C78:$AS78,{1,2,3,4,5,6}))) -> 41 | AY78: =IF(AX78= "","",IFERROR(SUMPRODUCT(LARGE($C78:$AS78,{1,2,3,4})), "")) ->  | AZ78: =IF(AY78<>"",(IFERROR(SUMPRODUCT(LARGE($C78:$AS78,{1,2,3,4,5,6,7})),"")),"") ->  | BA78: =IF(AZ78<>"",(IFERROR(SUMPRODUCT(LARGE($C78:$AS78,{1,2,3,4,5,6,7,8})),"")),"") -> 
B79: NNU | D79: 3 | I79: 4 | Y79: 7 | AA79: 9 | AU79: 23 | AV79: 4 | AW79: =IF($AV79<=6,SUM($C79:$AS79),SUMPRODUCT(LARGE($C79:$AS79,{1,2,3,4,5,6}))) -> 23 | AY79: =IF(AX79= "","",IFERROR(SUMPRODUCT(LARGE($C79:$AS79,{1,2,3,4})), "")) ->  | AZ79: =IF(AY79<>"",(IFERROR(SUMPRODUCT(LARGE($C79:$AS79,{1,2,3,4,5,6,7})),"")),"") ->  | BA79: =IF(AZ79<>"",(IFERROR(SUMPRODUCT(LARGE($C79:$AS79,{1,2,3,4,5,6,7,8})),"")),"") -> 
B80: NVCC | AH80: 6 | AU80: 6 | AV80: 1 | AW80: =IF($AV80<=6,SUM($C80:$AS80),SUMPRODUCT(LARGE($C80:$AS80,{1,2,3,4,5,6}))) -> 6 | AY80: =IF(AX80= "","",IFERROR(SUMPRODUCT(LARGE($C80:$AS80,{1,2,3,4})), "")) ->  | AZ80: =IF(AY80<>"",(IFERROR(SUMPRODUCT(LARGE($C80:$AS80,{1,2,3,4,5,6,7})),"")),"") ->  | BA80: =IF(AZ80<>"",(IFERROR(SUMPRODUCT(LARGE($C80:$AS80,{1,2,3,4,5,6,7,8})),"")),"") -> 
B81: NWC | D81: 1 | I81: 12 | P81: 13 | AU81: 26 | AV81: 3 | AW81: =IF($AV81<=6,SUM($C81:$AS81),SUMPRODUCT(LARGE($C81:$AS81,{1,2,3,4,5,6}))) -> 26 | AY81: =IF(AX81= "","",IFERROR(SUMPRODUCT(LARGE($C81:$AS81,{1,2,3,4})), "")) ->  | AZ81: =IF(AY81<>"",(IFERROR(SUMPRODUCT(LARGE($C81:$AS81,{1,2,3,4,5,6,7})),"")),"") ->  | BA81: =IF(AZ81<>"",(IFERROR(SUMPRODUCT(LARGE($C81:$AS81,{1,2,3,4,5,6,7,8})),"")),"") -> 
B82: NWSU | G82: 9 | O82: 13 | R82: 10 | AC82: 10 | AD82: 7 | AU82: 49 | AV82: 5 | AW82: =IF($AV82<=6,SUM($C82:$AS82),SUMPRODUCT(LARGE($C82:$AS82,{1,2,3,4,5,6}))) -> 49 | AY82: =IF(AX82= "","",IFERROR(SUMPRODUCT(LARGE($C82:$AS82,{1,2,3,4})), "")) ->  | AZ82: =IF(AY82<>"",(IFERROR(SUMPRODUCT(LARGE($C82:$AS82,{1,2,3,4,5,6,7})),"")),"") ->  | BA82: =IF(AZ82<>"",(IFERROR(SUMPRODUCT(LARGE($C82:$AS82,{1,2,3,4,5,6,7,8})),"")),"") -> 
B83: OCC | AE83: 25 | AH83: 16 | AI83: 26 | AU83: 67 | AV83: 3 | AW83: =IF($AV83<=6,SUM($C83:$AS83),SUMPRODUCT(LARGE($C83:$AS83,{1,2,3,4,5,6}))) -> 67 | AY83: =IF(AX83= "","",IFERROR(SUMPRODUCT(LARGE($C83:$AS83,{1,2,3,4})), "")) ->  | AZ83: =IF(AY83<>"",(IFERROR(SUMPRODUCT(LARGE($C83:$AS83,{1,2,3,4,5,6,7})),"")),"") ->  | BA83: =IF(AZ83<>"",(IFERROR(SUMPRODUCT(LARGE($C83:$AS83,{1,2,3,4,5,6,7,8})),"")),"") -> 
B84: OCTC | T84: 1 | AU84: 1 | AV84: 1 | AW84: =IF($AV84<=6,SUM($C84:$AS84),SUMPRODUCT(LARGE($C84:$AS84,{1,2,3,4,5,6}))) -> 1 | AY84: =IF(AX84= "","",IFERROR(SUMPRODUCT(LARGE($C84:$AS84,{1,2,3,4})), "")) ->  | AZ84: =IF(AY84<>"",(IFERROR(SUMPRODUCT(LARGE($C84:$AS84,{1,2,3,4,5,6,7})),"")),"") ->  | BA84: =IF(AZ84<>"",(IFERROR(SUMPRODUCT(LARGE($C84:$AS84,{1,2,3,4,5,6,7,8})),"")),"") -> 
B85: OCU | R85: 9 | AU85: 9 | AV85: 1 | AW85: =IF($AV85<=6,SUM($C85:$AS85),SUMPRODUCT(LARGE($C85:$AS85,{1,2,3,4,5,6}))) -> 9 | AY85: =IF(AX85= "","",IFERROR(SUMPRODUCT(LARGE($C85:$AS85,{1,2,3,4})), "")) ->  | AZ85: =IF(AY85<>"",(IFERROR(SUMPRODUCT(LARGE($C85:$AS85,{1,2,3,4,5,6,7})),"")),"") ->  | BA85: =IF(AZ85<>"",(IFERROR(SUMPRODUCT(LARGE($C85:$AS85,{1,2,3,4,5,6,7,8})),"")),"") -> 
B86: OhU | J86: 2 | AU86: 2 | AV86: 1 | AW86: =IF($AV86<=6,SUM($C86:$AS86),SUMPRODUCT(LARGE($C86:$AS86,{1,2,3,4,5,6}))) -> 2 | AY86: =IF(AX86= "","",IFERROR(SUMPRODUCT(LARGE($C86:$AS86,{1,2,3,4})), "")) ->  | AZ86: =IF(AY86<>"",(IFERROR(SUMPRODUCT(LARGE($C86:$AS86,{1,2,3,4,5,6,7})),"")),"") ->  | BA86: =IF(AZ86<>"",(IFERROR(SUMPRODUCT(LARGE($C86:$AS86,{1,2,3,4,5,6,7,8})),"")),"") -> 
B87: OkBU | G87: 13 | AU87: 13 | AV87: 1 | AW87: =IF($AV87<=6,SUM($C87:$AS87),SUMPRODUCT(LARGE($C87:$AS87,{1,2,3,4,5,6}))) -> 13 | AY87: =IF(AX87= "","",IFERROR(SUMPRODUCT(LARGE($C87:$AS87,{1,2,3,4})), "")) ->  | AZ87: =IF(AY87<>"",(IFERROR(SUMPRODUCT(LARGE($C87:$AS87,{1,2,3,4,5,6,7})),"")),"") ->  | BA87: =IF(AZ87<>"",(IFERROR(SUMPRODUCT(LARGE($C87:$AS87,{1,2,3,4,5,6,7,8})),"")),"") -> 
B88: ORU | Q88: 12 | Y88: 2 | AU88: 14 | AV88: 2 | AW88: =IF($AV88<=6,SUM($C88:$AS88),SUMPRODUCT(LARGE($C88:$AS88,{1,2,3,4,5,6}))) -> 14 | AY88: =IF(AX88= "","",IFERROR(SUMPRODUCT(LARGE($C88:$AS88,{1,2,3,4})), "")) ->  | AZ88: =IF(AY88<>"",(IFERROR(SUMPRODUCT(LARGE($C88:$AS88,{1,2,3,4,5,6,7})),"")),"") ->  | BA88: =IF(AZ88<>"",(IFERROR(SUMPRODUCT(LARGE($C88:$AS88,{1,2,3,4,5,6,7,8})),"")),"") -> 
B89: OSU | I89: 6 | P89: 8 | U89: 5 | Y89: 6 | Z89: 9 | AA89: 12 | AU89: 46 | AV89: 6 | AW89: =IF($AV89<=6,SUM($C89:$AS89),SUMPRODUCT(LARGE($C89:$AS89,{1,2,3,4,5,6}))) -> 46 | AX89: =IF(AND($AV89>=6,AW89=#REF!),"Manual Calc Needed","") ->  | AY89: =IF(AX89= "","",IFERROR(SUMPRODUCT(LARGE($C89:$AS89,{1,2,3,4})), "")) ->  | AZ89: =IF(AY89<>"",(IFERROR(SUMPRODUCT(LARGE($C89:$AS89,{1,2,3,4,5,6,7})),"")),"") ->  | BA89: =IF(AZ89<>"",(IFERROR(SUMPRODUCT(LARGE($C89:$AS89,{1,2,3,4,5,6,7,8})),"")),"") -> 
B90: OttU | L90: 4 | S90: 13 | AU90: 17 | AV90: 2 | AW90: =IF($AV90<=6,SUM($C90:$AS90),SUMPRODUCT(LARGE($C90:$AS90,{1,2,3,4,5,6}))) -> 17 | AX90: =IF(AND($AV90>=6,AW90=AW91),"Manual Calc Needed","") ->  | AY90: =IF(AX90= "","",IFERROR(SUMPRODUCT(LARGE($C90:$AS90,{1,2,3,4})), "")) ->  | AZ90: =IF(AY90<>"",(IFERROR(SUMPRODUCT(LARGE($C90:$AS90,{1,2,3,4,5,6,7})),"")),"") ->  | BA90: =IF(AZ90<>"",(IFERROR(SUMPRODUCT(LARGE($C90:$AS90,{1,2,3,4,5,6,7,8})),"")),"") -> 
B91: OU | J91: 4 | AU91: 4 | AV91: 1 | AW91: =IF($AV91<=6,SUM($C91:$AS91),SUMPRODUCT(LARGE($C91:$AS91,{1,2,3,4,5,6}))) -> 4 | AY91: =IF(AX91= "","",IFERROR(SUMPRODUCT(LARGE($C91:$AS91,{1,2,3,4})), "")) ->  | AZ91: =IF(AY91<>"",(IFERROR(SUMPRODUCT(LARGE($C91:$AS91,{1,2,3,4,5,6,7})),"")),"") ->  | BA91: =IF(AZ91<>"",(IFERROR(SUMPRODUCT(LARGE($C91:$AS91,{1,2,3,4,5,6,7,8})),"")),"") -> 
B92: PaU | G92: 6 | L92: 10 | O92: 3 | R92: 10 | S92: 7 | W92: 13 | AU92: 49 | AV92: 6 | AW92: =IF($AV92<=6,SUM($C92:$AS92),SUMPRODUCT(LARGE($C92:$AS92,{1,2,3,4,5,6}))) -> 49 | AY92: =IF(AX92= "","",IFERROR(SUMPRODUCT(LARGE($C92:$AS92,{1,2,3,4})), "")) ->  | AZ92: =IF(AY92<>"",(IFERROR(SUMPRODUCT(LARGE($C92:$AS92,{1,2,3,4,5,6,7})),"")),"") ->  | BA92: =IF(AZ92<>"",(IFERROR(SUMPRODUCT(LARGE($C92:$AS92,{1,2,3,4,5,6,7,8})),"")),"") -> 
B93: PC | V93: 2 | AE93: 2 | AH93: 4 | AI93: 5 | AU93: 13 | AV93: 4 | AW93: =IF($AV93<=6,SUM($C93:$AS93),SUMPRODUCT(LARGE($C93:$AS93,{1,2,3,4,5,6}))) -> 13 | AY93: =IF(AX93= "","",IFERROR(SUMPRODUCT(LARGE($C93:$AS93,{1,2,3,4})), "")) ->  | AZ93: =IF(AY93<>"",(IFERROR(SUMPRODUCT(LARGE($C93:$AS93,{1,2,3,4,5,6,7})),"")),"") ->  | BA93: =IF(AZ93<>"",(IFERROR(SUMPRODUCT(LARGE($C93:$AS93,{1,2,3,4,5,6,7,8})),"")),"") -> 
B94: PCC | AE94: 9 | AH94: 7 | AU94: 16 | AV94: 2 | AW94: =IF($AV94<=6,SUM($C94:$AS94),SUMPRODUCT(LARGE($C94:$AS94,{1,2,3,4,5,6}))) -> 16 | AY94: =IF(AX94= "","",IFERROR(SUMPRODUCT(LARGE($C94:$AS94,{1,2,3,4})), "")) ->  | AZ94: =IF(AY94<>"",(IFERROR(SUMPRODUCT(LARGE($C94:$AS94,{1,2,3,4,5,6,7})),"")),"") ->  | BA94: =IF(AZ94<>"",(IFERROR(SUMPRODUCT(LARGE($C94:$AS94,{1,2,3,4,5,6,7,8})),"")),"") -> 
B95: PHC | N95: 14 | R95: 15 | AU95: 29 | AV95: 2 | AW95: =IF($AV95<=6,SUM($C95:$AS95),SUMPRODUCT(LARGE($C95:$AS95,{1,2,3,4,5,6}))) -> 29 | AY95: =IF(AX95= "","",IFERROR(SUMPRODUCT(LARGE($C95:$AS95,{1,2,3,4})), "")) ->  | AZ95: =IF(AY95<>"",(IFERROR(SUMPRODUCT(LARGE($C95:$AS95,{1,2,3,4,5,6,7})),"")),"") ->  | BA95: =IF(AZ95<>"",(IFERROR(SUMPRODUCT(LARGE($C95:$AS95,{1,2,3,4,5,6,7,8})),"")),"") -> 
B96: PLNU | V96: 39 | AE96: 51 | AF96: 52 | AG96: 11 | AH96: 42 | AJ96: 20 | AU96: 215 | AV96: 6 | AW96: =IF($AV96<=6,SUM($C96:$AS96),SUMPRODUCT(LARGE($C96:$AS96,{1,2,3,4,5,6}))) -> 215 | AY96: =IF(AX96= "","",IFERROR(SUMPRODUCT(LARGE($C96:$AS96,{1,2,3,4})), "")) ->  | AZ96: =IF(AY96<>"",(IFERROR(SUMPRODUCT(LARGE($C96:$AS96,{1,2,3,4,5,6,7})),"")),"") ->  | BA96: =IF(AZ96<>"",(IFERROR(SUMPRODUCT(LARGE($C96:$AS96,{1,2,3,4,5,6,7,8})),"")),"") -> 
B97: PSCC | N97: 5 | X97: 11 | AU97: 16 | AV97: 2 | AW97: =IF($AV97<=6,SUM($C97:$AS97),SUMPRODUCT(LARGE($C97:$AS97,{1,2,3,4,5,6}))) -> 16 | AX97: =IF(AND($AV97>=6,AW97=#REF!),"Manual Calc Needed","") ->  | AY97: =IF(AX97= "","",IFERROR(SUMPRODUCT(LARGE($C97:$AS97,{1,2,3,4})), "")) ->  | AZ97: =IF(AY97<>"",(IFERROR(SUMPRODUCT(LARGE($C97:$AS97,{1,2,3,4,5,6,7})),"")),"") ->  | BA97: =IF(AZ97<>"",(IFERROR(SUMPRODUCT(LARGE($C97:$AS97,{1,2,3,4,5,6,7,8})),"")),"") -> 
B98: QC | E98: 2 | F98: 12 | AU98: 14 | AV98: 2 | AW98: =IF($AV98<=6,SUM($C98:$AS98),SUMPRODUCT(LARGE($C98:$AS98,{1,2,3,4,5,6}))) -> 14 | AX98: =IF(AND($AV98>=6,AW98=AW99),"Manual Calc Needed","") ->  | AY98: =IF(AX98= "","",IFERROR(SUMPRODUCT(LARGE($C98:$AS98,{1,2,3,4})), "")) ->  | AZ98: =IF(AY98<>"",(IFERROR(SUMPRODUCT(LARGE($C98:$AS98,{1,2,3,4,5,6,7})),"")),"") ->  | BA98: =IF(AZ98<>"",(IFERROR(SUMPRODUCT(LARGE($C98:$AS98,{1,2,3,4,5,6,7,8})),"")),"") -> 
B99: RHCC | V99: 8 | AE99: 10 | AF99: 1 | AI99: 9 | AU99: 28 | AV99: 4 | AW99: =IF($AV99<=6,SUM($C99:$AS99),SUMPRODUCT(LARGE($C99:$AS99,{1,2,3,4,5,6}))) -> 28 | AY99: =IF(AX99= "","",IFERROR(SUMPRODUCT(LARGE($C99:$AS99,{1,2,3,4})), "")) ->  | AZ99: =IF(AY99<>"",(IFERROR(SUMPRODUCT(LARGE($C99:$AS99,{1,2,3,4,5,6,7})),"")),"") ->  | BA99: =IF(AZ99<>"",(IFERROR(SUMPRODUCT(LARGE($C99:$AS99,{1,2,3,4,5,6,7,8})),"")),"") -> 
B100: RU | V100: 18 | AU100: =SUM($C100:$AT100) -> 18 | AV100: =COUNTA(C100:AS100) -> 1 | AW100: =IF($AV100<=6,SUM($C100:$AS100),SUMPRODUCT(LARGE($C100:$AS100,{1,2,3,4,5,6}))) -> 18 | AY100: =IF(AX100= "","",IFERROR(SUMPRODUCT(LARGE($C100:$AS100,{1,2,3,4})), "")) ->  | AZ100: =IF(AY100<>"",(IFERROR(SUMPRODUCT(LARGE($C100:$AS100,{1,2,3,4,5,6,7})),"")),"") ->  | BA100: =IF(AZ100<>"",(IFERROR(SUMPRODUCT(LARGE($C100:$AS100,{1,2,3,4,5,6,7,8})),"")),"") -> 
B101: SAC | J101: 3 | AU101: 3 | AV101: 1 | AW101: =IF($AV101<=6,SUM($C101:$AS101),SUMPRODUCT(LARGE($C101:$AS101,{1,2,3,4,5,6}))) -> 3 | AY101: =IF(AX101= "","",IFERROR(SUMPRODUCT(LARGE($C101:$AS101,{1,2,3,4})), "")) ->  | AZ101: =IF(AY101<>"",(IFERROR(SUMPRODUCT(LARGE($C101:$AS101,{1,2,3,4,5,6,7})),"")),"") ->  | BA101: =IF(AZ101<>"",(IFERROR(SUMPRODUCT(LARGE($C101:$AS101,{1,2,3,4,5,6,7,8})),"")),"") -> 
B102: SaCC | AF102: 11 | AH102: 4 | AI102: 15 | AU102: 30 | AV102: 3 | AW102: =IF($AV102<=6,SUM($C102:$AS102),SUMPRODUCT(LARGE($C102:$AS102,{1,2,3,4,5,6}))) -> 30 | AY102: =IF(AX102= "","",IFERROR(SUMPRODUCT(LARGE($C102:$AS102,{1,2,3,4})), "")) ->  | AZ102: =IF(AY102<>"",(IFERROR(SUMPRODUCT(LARGE($C102:$AS102,{1,2,3,4,5,6,7})),"")),"") ->  | BA102: =IF(AZ102<>"",(IFERROR(SUMPRODUCT(LARGE($C102:$AS102,{1,2,3,4,5,6,7,8})),"")),"") -> 
B103: SBU | L103: 9 | AU103: 9 | AV103: 1 | AW103: =IF($AV103<=6,SUM($C103:$AS103),SUMPRODUCT(LARGE($C103:$AS103,{1,2,3,4,5,6}))) -> 9 | AY103: =IF(AX103= "","",IFERROR(SUMPRODUCT(LARGE($C103:$AS103,{1,2,3,4})), "")) ->  | AZ103: =IF(AY103<>"",(IFERROR(SUMPRODUCT(LARGE($C103:$AS103,{1,2,3,4,5,6,7})),"")),"") ->  | BA103: =IF(AZ103<>"",(IFERROR(SUMPRODUCT(LARGE($C103:$AS103,{1,2,3,4,5,6,7,8})),"")),"") -> 
B104: SC | F104: 14 | L104: 5 | S104: 29 | W104: 21 | AU104: 69 | AV104: 4 | AW104: =IF($AV104<=6,SUM($C104:$AS104),SUMPRODUCT(LARGE($C104:$AS104,{1,2,3,4,5,6}))) -> 69 | AY104: =IF(AX104= "","",IFERROR(SUMPRODUCT(LARGE($C104:$AS104,{1,2,3,4})), "")) ->  | AZ104: =IF(AY104<>"",(IFERROR(SUMPRODUCT(LARGE($C104:$AS104,{1,2,3,4,5,6,7})),"")),"") ->  | BA104: =IF(AZ104<>"",(IFERROR(SUMPRODUCT(LARGE($C104:$AS104,{1,2,3,4,5,6,7,8})),"")),"") -> 
B105: ScU | C105: 7 | J105: 3 | T105: 20 | AU105: 30 | AV105: 3 | AW105: =IF($AV105<=6,SUM($C105:$AS105),SUMPRODUCT(LARGE($C105:$AS105,{1,2,3,4,5,6}))) -> 30 | AY105: =IF(AX105= "","",IFERROR(SUMPRODUCT(LARGE($C105:$AS105,{1,2,3,4})), "")) ->  | AZ105: =IF(AY105<>"",(IFERROR(SUMPRODUCT(LARGE($C105:$AS105,{1,2,3,4,5,6,7})),"")),"") ->  | BA105: =IF(AZ105<>"",(IFERROR(SUMPRODUCT(LARGE($C105:$AS105,{1,2,3,4,5,6,7,8})),"")),"") -> 
B106: SDMC | AH106: 2 | AU106: 2 | AV106: 1 | AW106: =IF($AV106<=6,SUM($C106:$AS106),SUMPRODUCT(LARGE($C106:$AS106,{1,2,3,4,5,6}))) -> 2 | AY106: =IF(AX106= "","",IFERROR(SUMPRODUCT(LARGE($C106:$AS106,{1,2,3,4})), "")) ->  | AZ106: =IF(AY106<>"",(IFERROR(SUMPRODUCT(LARGE($C106:$AS106,{1,2,3,4,5,6,7})),"")),"") ->  | BA106: =IF(AZ106<>"",(IFERROR(SUMPRODUCT(LARGE($C106:$AS106,{1,2,3,4,5,6,7,8})),"")),"") -> 
B107: SDSU | AH107: 12 | AI107: 2 | AJ107: 2 | AU107: 16 | AV107: 3 | AW107: =IF($AV107<=6,SUM($C107:$AS107),SUMPRODUCT(LARGE($C107:$AS107,{1,2,3,4,5,6}))) -> 16 | AY107: =IF(AX107= "","",IFERROR(SUMPRODUCT(LARGE($C107:$AS107,{1,2,3,4})), "")) ->  | AZ107: =IF(AY107<>"",(IFERROR(SUMPRODUCT(LARGE($C107:$AS107,{1,2,3,4,5,6,7})),"")),"") ->  | BA107: =IF(AZ107<>"",(IFERROR(SUMPRODUCT(LARGE($C107:$AS107,{1,2,3,4,5,6,7,8})),"")),"") -> 
B108: SFCC | L108: 4 | S108: 8 | W108: 1 | AU108: 13 | AV108: 3 | AW108: =IF($AV108<=6,SUM($C108:$AS108),SUMPRODUCT(LARGE($C108:$AS108,{1,2,3,4,5,6}))) -> 13 | AY108: =IF(AX108= "","",IFERROR(SUMPRODUCT(LARGE($C108:$AS108,{1,2,3,4})), "")) ->  | AZ108: =IF(AY108<>"",(IFERROR(SUMPRODUCT(LARGE($C108:$AS108,{1,2,3,4,5,6,7})),"")),"") ->  | BA108: =IF(AZ108<>"",(IFERROR(SUMPRODUCT(LARGE($C108:$AS108,{1,2,3,4,5,6,7,8})),"")),"") -> 
B109: SHSU | C109: 12 | O109: 15 | AC109: 3 | AU109: 30 | AV109: 3 | AW109: =IF($AV109<=6,SUM($C109:$AS109),SUMPRODUCT(LARGE($C109:$AS109,{1,2,3,4,5,6}))) -> 30 | AY109: =IF(AX109= "","",IFERROR(SUMPRODUCT(LARGE($C109:$AS109,{1,2,3,4})), "")) ->  | AZ109: =IF(AY109<>"",(IFERROR(SUMPRODUCT(LARGE($C109:$AS109,{1,2,3,4,5,6,7})),"")),"") ->  | BA109: =IF(AZ109<>"",(IFERROR(SUMPRODUCT(LARGE($C109:$AS109,{1,2,3,4,5,6,7,8})),"")),"") -> 
B110: SJDC | V110: 16 | AU110: 16 | AV110: 1 | AW110: =IF($AV110<=6,SUM($C110:$AS110),SUMPRODUCT(LARGE($C110:$AS110,{1,2,3,4,5,6}))) -> 16 | AY110: =IF(AX110= "","",IFERROR(SUMPRODUCT(LARGE($C110:$AS110,{1,2,3,4})), "")) ->  | AZ110: =IF(AY110<>"",(IFERROR(SUMPRODUCT(LARGE($C110:$AS110,{1,2,3,4,5,6,7})),"")),"") ->  | BA110: =IF(AZ110<>"",(IFERROR(SUMPRODUCT(LARGE($C110:$AS110,{1,2,3,4,5,6,7,8})),"")),"") -> 
B111: SJU | E111: 6 | F111: 15 | AU111: 21 | AV111: 2 | AW111: =IF($AV111<=6,SUM($C111:$AS111),SUMPRODUCT(LARGE($C111:$AS111,{1,2,3,4,5,6}))) -> 21 | AY111: =IF(AX111= "","",IFERROR(SUMPRODUCT(LARGE($C111:$AS111,{1,2,3,4})), "")) ->  | AZ111: =IF(AY111<>"",(IFERROR(SUMPRODUCT(LARGE($C111:$AS111,{1,2,3,4,5,6,7})),"")),"") ->  | BA111: =IF(AZ111<>"",(IFERROR(SUMPRODUCT(LARGE($C111:$AS111,{1,2,3,4,5,6,7,8})),"")),"") -> 
B112: SMC | AH112: 4 | AI112: 15 | AU112: 19 | AV112: 2 | AW112: =IF($AV112<=6,SUM($C112:$AS112),SUMPRODUCT(LARGE($C112:$AS112,{1,2,3,4,5,6}))) -> 19 | AY112: =IF(AX112= "","",IFERROR(SUMPRODUCT(LARGE($C112:$AS112,{1,2,3,4})), "")) ->  | AZ112: =IF(AY112<>"",(IFERROR(SUMPRODUCT(LARGE($C112:$AS112,{1,2,3,4,5,6,7})),"")),"") ->  | BA112: =IF(AZ112<>"",(IFERROR(SUMPRODUCT(LARGE($C112:$AS112,{1,2,3,4,5,6,7,8})),"")),"") -> 
B113: SMU | C113: 42 | H113: 11 | K113: 25 | O113: 18 | AB113: 28 | AG113: 13 | AK113: 12 | AU113: 149 | AV113: 7 | AW113: =IF($AV113<=6,SUM($C113:$AS113),SUMPRODUCT(LARGE($C113:$AS113,{1,2,3,4,5,6}))) -> 138 | AY113: =IF(AX113= "","",IFERROR(SUMPRODUCT(LARGE($C113:$AS113,{1,2,3,4})), "")) ->  | AZ113: =IF(AY113<>"",(IFERROR(SUMPRODUCT(LARGE($C113:$AS113,{1,2,3,4,5,6,7})),"")),"") ->  | BA113: =IF(AZ113<>"",(IFERROR(SUMPRODUCT(LARGE($C113:$AS113,{1,2,3,4,5,6,7,8})),"")),"") -> 
B114: SoCC | AI114: 7 | AU114: 7 | AV114: 1 | AW114: =IF($AV114<=6,SUM($C114:$AS114),SUMPRODUCT(LARGE($C114:$AS114,{1,2,3,4,5,6}))) -> 7 | AY114: =IF(AX114= "","",IFERROR(SUMPRODUCT(LARGE($C114:$AS114,{1,2,3,4})), "")) ->  | AZ114: =IF(AY114<>"",(IFERROR(SUMPRODUCT(LARGE($C114:$AS114,{1,2,3,4,5,6,7})),"")),"") ->  | BA114: =IF(AZ114<>"",(IFERROR(SUMPRODUCT(LARGE($C114:$AS114,{1,2,3,4,5,6,7,8})),"")),"") -> 
B115: SOSU | S115: 3 | AU115: 3 | AV115: 1 | AW115: =IF($AV115<=6,SUM($C115:$AS115),SUMPRODUCT(LARGE($C115:$AS115,{1,2,3,4,5,6}))) -> 3 | AY115: =IF(AX115= "","",IFERROR(SUMPRODUCT(LARGE($C115:$AS115,{1,2,3,4})), "")) ->  | AZ115: =IF(AY115<>"",(IFERROR(SUMPRODUCT(LARGE($C115:$AS115,{1,2,3,4,5,6,7})),"")),"") ->  | BA115: =IF(AZ115<>"",(IFERROR(SUMPRODUCT(LARGE($C115:$AS115,{1,2,3,4,5,6,7,8})),"")),"") -> 
B116: SWB | L116: 5 | S116: 12 | W116: 1 | AU116: 18 | AV116: 3 | AW116: =IF($AV116<=6,SUM($C116:$AS116),SUMPRODUCT(LARGE($C116:$AS116,{1,2,3,4,5,6}))) -> 18 | AY116: =IF(AX116= "","",IFERROR(SUMPRODUCT(LARGE($C116:$AS116,{1,2,3,4})), "")) ->  | AZ116: =IF(AY116<>"",(IFERROR(SUMPRODUCT(LARGE($C116:$AS116,{1,2,3,4,5,6,7})),"")),"") ->  | BA116: =IF(AZ116<>"",(IFERROR(SUMPRODUCT(LARGE($C116:$AS116,{1,2,3,4,5,6,7,8})),"")),"") -> 
B117: TaCC | Y117: 7 | AU117: 7 | AV117: 1 | AW117: =IF($AV117<=6,SUM($C117:$AS117),SUMPRODUCT(LARGE($C117:$AS117,{1,2,3,4,5,6}))) -> 7 | AY117: =IF(AX117= "","",IFERROR(SUMPRODUCT(LARGE($C117:$AS117,{1,2,3,4})), "")) ->  | AZ117: =IF(AY117<>"",(IFERROR(SUMPRODUCT(LARGE($C117:$AS117,{1,2,3,4,5,6,7})),"")),"") ->  | BA117: =IF(AZ117<>"",(IFERROR(SUMPRODUCT(LARGE($C117:$AS117,{1,2,3,4,5,6,7,8})),"")),"") -> 
B118: TAMU | P118: 0 | AK118: 2 | AU118: 2 | AV118: 2 | AW118: =IF($AV118<=6,SUM($C118:$AS118),SUMPRODUCT(LARGE($C118:$AS118,{1,2,3,4,5,6}))) -> 2 | AY118: =IF(AX118= "","",IFERROR(SUMPRODUCT(LARGE($C118:$AS118,{1,2,3,4})), "")) ->  | AZ118: =IF(AY118<>"",(IFERROR(SUMPRODUCT(LARGE($C118:$AS118,{1,2,3,4,5,6,7})),"")),"") ->  | BA118: =IF(AZ118<>"",(IFERROR(SUMPRODUCT(LARGE($C118:$AS118,{1,2,3,4,5,6,7,8})),"")),"") -> 
B119: TC | F119: 1 | AU119: 1 | AV119: 1 | AW119: =IF($AV119<=6,SUM($C119:$AS119),SUMPRODUCT(LARGE($C119:$AS119,{1,2,3,4,5,6}))) -> 1 | AY119: =IF(AX119= "","",IFERROR(SUMPRODUCT(LARGE($C119:$AS119,{1,2,3,4})), "")) ->  | AZ119: =IF(AY119<>"",(IFERROR(SUMPRODUCT(LARGE($C119:$AS119,{1,2,3,4,5,6,7})),"")),"") ->  | BA119: =IF(AZ119<>"",(IFERROR(SUMPRODUCT(LARGE($C119:$AS119,{1,2,3,4,5,6,7,8})),"")),"") -> 
B120: TCC | L120: 6 | P120: 2 | AU120: 8 | AV120: 2 | AW120: =IF($AV120<=6,SUM($C120:$AS120),SUMPRODUCT(LARGE($C120:$AS120,{1,2,3,4,5,6}))) -> 8 | AY120: =IF(AX120= "","",IFERROR(SUMPRODUCT(LARGE($C120:$AS120,{1,2,3,4})), "")) ->  | AZ120: =IF(AY120<>"",(IFERROR(SUMPRODUCT(LARGE($C120:$AS120,{1,2,3,4,5,6,7})),"")),"") ->  | BA120: =IF(AZ120<>"",(IFERROR(SUMPRODUCT(LARGE($C120:$AS120,{1,2,3,4,5,6,7,8})),"")),"") -> 
B121: TCU | R121: 38 | AU121: 38 | AV121: 1 | AW121: =IF($AV121<=6,SUM($C121:$AS121),SUMPRODUCT(LARGE($C121:$AS121,{1,2,3,4,5,6}))) -> 38 | AY121: =IF(AX121= "","",IFERROR(SUMPRODUCT(LARGE($C121:$AS121,{1,2,3,4})), "")) ->  | AZ121: =IF(AY121<>"",(IFERROR(SUMPRODUCT(LARGE($C121:$AS121,{1,2,3,4,5,6,7})),"")),"") ->  | BA121: =IF(AZ121<>"",(IFERROR(SUMPRODUCT(LARGE($C121:$AS121,{1,2,3,4,5,6,7,8})),"")),"") -> 
B122: TnSU | X122: 8 | AU122: 8 | AV122: 1 | AW122: =IF($AV122<=6,SUM($C122:$AS122),SUMPRODUCT(LARGE($C122:$AS122,{1,2,3,4,5,6}))) -> 8 | AY122: =IF(AX122= "","",IFERROR(SUMPRODUCT(LARGE($C122:$AS122,{1,2,3,4})), "")) ->  | AZ122: =IF(AY122<>"",(IFERROR(SUMPRODUCT(LARGE($C122:$AS122,{1,2,3,4,5,6,7})),"")),"") ->  | BA122: =IF(AZ122<>"",(IFERROR(SUMPRODUCT(LARGE($C122:$AS122,{1,2,3,4,5,6,7,8})),"")),"") -> 
B123: TSU | AG123: 1 | AU123: 1 | AV123: 1 | AW123: =IF($AV123<=6,SUM($C123:$AS123),SUMPRODUCT(LARGE($C123:$AS123,{1,2,3,4,5,6}))) -> 1 | AY123: =IF(AX123= "","",IFERROR(SUMPRODUCT(LARGE($C123:$AS123,{1,2,3,4})), "")) ->  | AZ123: =IF(AY123<>"",(IFERROR(SUMPRODUCT(LARGE($C123:$AS123,{1,2,3,4,5,6,7})),"")),"") ->  | BA123: =IF(AZ123<>"",(IFERROR(SUMPRODUCT(LARGE($C123:$AS123,{1,2,3,4,5,6,7,8})),"")),"") -> 
B124: TTU | F124: 1 | J124: 2 | Y124: 1 | AU124: 4 | AV124: 3 | AW124: =IF($AV124<=6,SUM($C124:$AS124),SUMPRODUCT(LARGE($C124:$AS124,{1,2,3,4,5,6}))) -> 4 | AY124: =IF(AX124= "","",IFERROR(SUMPRODUCT(LARGE($C124:$AS124,{1,2,3,4})), "")) ->  | AZ124: =IF(AY124<>"",(IFERROR(SUMPRODUCT(LARGE($C124:$AS124,{1,2,3,4,5,6,7})),"")),"") ->  | BA124: =IF(AZ124<>"",(IFERROR(SUMPRODUCT(LARGE($C124:$AS124,{1,2,3,4,5,6,7,8})),"")),"") -> 
B125: UA | G125: 48 | K125: 15 | O125: 45 | Q125: 32 | R125: 37 | AB125: 25 | AD125: 8 | AU125: 210 | AV125: 7 | AW125: =IF($AV125<=6,SUM($C125:$AS125),SUMPRODUCT(LARGE($C125:$AS125,{1,2,3,4,5,6}))) -> 202 | AY125: =IF(AX125= "","",IFERROR(SUMPRODUCT(LARGE($C125:$AS125,{1,2,3,4})), "")) ->  | AZ125: =IF(AY125<>"",(IFERROR(SUMPRODUCT(LARGE($C125:$AS125,{1,2,3,4,5,6,7})),"")),"") ->  | BA125: =IF(AZ125<>"",(IFERROR(SUMPRODUCT(LARGE($C125:$AS125,{1,2,3,4,5,6,7,8})),"")),"") -> 
B126: UACCB | K126: 3 | O126: 5 | R126: 5 | AC126: 11 | AU126: 24 | AV126: 4 | AW126: =IF($AV126<=6,SUM($C126:$AS126),SUMPRODUCT(LARGE($C126:$AS126,{1,2,3,4,5,6}))) -> 24 | AY126: =IF(AX126= "","",IFERROR(SUMPRODUCT(LARGE($C126:$AS126,{1,2,3,4})), "")) ->  | AZ126: =IF(AY126<>"",(IFERROR(SUMPRODUCT(LARGE($C126:$AS126,{1,2,3,4,5,6,7})),"")),"") ->  | BA126: =IF(AZ126<>"",(IFERROR(SUMPRODUCT(LARGE($C126:$AS126,{1,2,3,4,5,6,7,8})),"")),"") -> 
B127: UAM | G127: 10 | K127: 3 | O127: 8 | R127: 4 | AC127: 8 | AU127: 33 | AV127: 5 | AW127: =IF($AV127<=6,SUM($C127:$AS127),SUMPRODUCT(LARGE($C127:$AS127,{1,2,3,4,5,6}))) -> 33 | AY127: =IF(AX127= "","",IFERROR(SUMPRODUCT(LARGE($C127:$AS127,{1,2,3,4})), "")) ->  | AZ127: =IF(AY127<>"",(IFERROR(SUMPRODUCT(LARGE($C127:$AS127,{1,2,3,4,5,6,7})),"")),"") ->  | BA127: =IF(AZ127<>"",(IFERROR(SUMPRODUCT(LARGE($C127:$AS127,{1,2,3,4,5,6,7,8})),"")),"") -> 
B128: Ubama | F128: 3 | H128: 14 | AK128: 15 | AU128: 32 | AV128: 3 | AW128: =IF($AV128<=6,SUM($C128:$AS128),SUMPRODUCT(LARGE($C128:$AS128,{1,2,3,4,5,6}))) -> 32 | AY128: =IF(AX128= "","",IFERROR(SUMPRODUCT(LARGE($C128:$AS128,{1,2,3,4})), "")) ->  | AZ128: =IF(AY128<>"",(IFERROR(SUMPRODUCT(LARGE($C128:$AS128,{1,2,3,4,5,6,7})),"")),"") ->  | BA128: =IF(AZ128<>"",(IFERROR(SUMPRODUCT(LARGE($C128:$AS128,{1,2,3,4,5,6,7,8})),"")),"") -> 
B129: UC | N129: 9 | P129: 5 | Q129: 7 | AU129: 21 | AV129: 3 | AW129: =IF($AV129<=6,SUM($C129:$AS129),SUMPRODUCT(LARGE($C129:$AS129,{1,2,3,4,5,6}))) -> 21 | AY129: =IF(AX129= "","",IFERROR(SUMPRODUCT(LARGE($C129:$AS129,{1,2,3,4})), "")) ->  | AZ129: =IF(AY129<>"",(IFERROR(SUMPRODUCT(LARGE($C129:$AS129,{1,2,3,4,5,6,7})),"")),"") ->  | BA129: =IF(AZ129<>"",(IFERROR(SUMPRODUCT(LARGE($C129:$AS129,{1,2,3,4,5,6,7,8})),"")),"") -> 
B130: UCA | H130: 12 | O130: 11 | Q130: 12 | R130: 5 | AC130: 3 | AD130: 7 | AU130: 50 | AV130: 6 | AW130: =IF($AV130<=6,SUM($C130:$AS130),SUMPRODUCT(LARGE($C130:$AS130,{1,2,3,4,5,6}))) -> 50 | AX130: =IF(AND($AV130>=6,AW130=AW131),"Manual Calc Needed","") ->  | AY130: =IF(AX130= "","",IFERROR(SUMPRODUCT(LARGE($C130:$AS130,{1,2,3,4})), "")) ->  | AZ130: =IF(AY130<>"",(IFERROR(SUMPRODUCT(LARGE($C130:$AS130,{1,2,3,4,5,6,7})),"")),"") ->  | BA130: =IF(AZ130<>"",(IFERROR(SUMPRODUCT(LARGE($C130:$AS130,{1,2,3,4,5,6,7,8})),"")),"") -> 
B131: UCF | G131: 12 | R131: 5 | T131: 21 | Y131: 14 | AU131: 52 | AV131: 4 | AW131: =IF($AV131<=6,SUM($C131:$AS131),SUMPRODUCT(LARGE($C131:$AS131,{1,2,3,4,5,6}))) -> 52 | AY131: =IF(AX131= "","",IFERROR(SUMPRODUCT(LARGE($C131:$AS131,{1,2,3,4})), "")) ->  | AZ131: =IF(AY131<>"",(IFERROR(SUMPRODUCT(LARGE($C131:$AS131,{1,2,3,4,5,6,7})),"")),"") ->  | BA131: =IF(AZ131<>"",(IFERROR(SUMPRODUCT(LARGE($C131:$AS131,{1,2,3,4,5,6,7,8})),"")),"") -> 
B132: UCM | L132: 33 | O132: 29 | S132: 20 | W132: 19 | AU132: =SUM($C132:$AT132) -> 101 | AV132: =COUNTA(C132:AS132) -> 4 | AW132: =IF($AV132<=6,SUM($C132:$AS132),SUMPRODUCT(LARGE($C132:$AS132,{1,2,3,4,5,6}))) -> 101 | AY132: =IF(AX132= "","",IFERROR(SUMPRODUCT(LARGE($C132:$AS132,{1,2,3,4})), "")) ->  | AZ132: =IF(AY132<>"",(IFERROR(SUMPRODUCT(LARGE($C132:$AS132,{1,2,3,4,5,6,7})),"")),"") ->  | BA132: =IF(AZ132<>"",(IFERROR(SUMPRODUCT(LARGE($C132:$AS132,{1,2,3,4,5,6,7,8})),"")),"") -> 
B133: UCSB | P133: 14 | AU133: 14 | AV133: 1 | AW133: =IF($AV133<=6,SUM($C133:$AS133),SUMPRODUCT(LARGE($C133:$AS133,{1,2,3,4,5,6}))) -> 14 | AY133: =IF(AX133= "","",IFERROR(SUMPRODUCT(LARGE($C133:$AS133,{1,2,3,4})), "")) ->  | AZ133: =IF(AY133<>"",(IFERROR(SUMPRODUCT(LARGE($C133:$AS133,{1,2,3,4,5,6,7})),"")),"") ->  | BA133: =IF(AZ133<>"",(IFERROR(SUMPRODUCT(LARGE($C133:$AS133,{1,2,3,4,5,6,7,8})),"")),"") -> 
B134: UCSD | V134: 62 | AE134: 46 | AF134: 46 | AH134: 33 | AU134: 187 | AV134: 4 | AW134: =IF($AV134<=6,SUM($C134:$AS134),SUMPRODUCT(LARGE($C134:$AS134,{1,2,3,4,5,6}))) -> 187 | AY134: =IF(AX134= "","",IFERROR(SUMPRODUCT(LARGE($C134:$AS134,{1,2,3,4})), "")) ->  | AZ134: =IF(AY134<>"",(IFERROR(SUMPRODUCT(LARGE($C134:$AS134,{1,2,3,4,5,6,7})),"")),"") ->  | BA134: =IF(AZ134<>"",(IFERROR(SUMPRODUCT(LARGE($C134:$AS134,{1,2,3,4,5,6,7,8})),"")),"") -> 
B135: UD | V135: 2 | AU135: 2 | AV135: 1 | AW135: =IF($AV135<=6,SUM($C135:$AS135),SUMPRODUCT(LARGE($C135:$AS135,{1,2,3,4,5,6}))) -> 2 | AY135: =IF(AX135= "","",IFERROR(SUMPRODUCT(LARGE($C135:$AS135,{1,2,3,4})), "")) ->  | AZ135: =IF(AY135<>"",(IFERROR(SUMPRODUCT(LARGE($C135:$AS135,{1,2,3,4,5,6,7})),"")),"") ->  | BA135: =IF(AZ135<>"",(IFERROR(SUMPRODUCT(LARGE($C135:$AS135,{1,2,3,4,5,6,7,8})),"")),"") -> 
B136: UI | T136: 3 | AU136: 3 | AV136: 1 | AW136: =IF($AV136<=6,SUM($C136:$AS136),SUMPRODUCT(LARGE($C136:$AS136,{1,2,3,4,5,6}))) -> 3 | AY136: =IF(AX136= "","",IFERROR(SUMPRODUCT(LARGE($C136:$AS136,{1,2,3,4})), "")) ->  | AZ136: =IF(AY136<>"",(IFERROR(SUMPRODUCT(LARGE($C136:$AS136,{1,2,3,4,5,6,7})),"")),"") ->  | BA136: =IF(AZ136<>"",(IFERROR(SUMPRODUCT(LARGE($C136:$AS136,{1,2,3,4,5,6,7,8})),"")),"") -> 
B137: UIU | J137: 6 | T137: 3 | AU137: 9 | AV137: 2 | AW137: =IF($AV137<=6,SUM($C137:$AS137),SUMPRODUCT(LARGE($C137:$AS137,{1,2,3,4,5,6}))) -> 9 | AY137: =IF(AX137= "","",IFERROR(SUMPRODUCT(LARGE($C137:$AS137,{1,2,3,4})), "")) ->  | AZ137: =IF(AY137<>"",(IFERROR(SUMPRODUCT(LARGE($C137:$AS137,{1,2,3,4,5,6,7})),"")),"") ->  | BA137: =IF(AZ137<>"",(IFERROR(SUMPRODUCT(LARGE($C137:$AS137,{1,2,3,4,5,6,7,8})),"")),"") -> 
B138: UJ | Q138: 10 | AU138: 10 | AV138: 1 | AW138: =IF($AV138<=6,SUM($C138:$AS138),SUMPRODUCT(LARGE($C138:$AS138,{1,2,3,4,5,6}))) -> 10 | AY138: =IF(AX138= "","",IFERROR(SUMPRODUCT(LARGE($C138:$AS138,{1,2,3,4})), "")) ->  | AZ138: =IF(AY138<>"",(IFERROR(SUMPRODUCT(LARGE($C138:$AS138,{1,2,3,4,5,6,7})),"")),"") ->  | BA138: =IF(AZ138<>"",(IFERROR(SUMPRODUCT(LARGE($C138:$AS138,{1,2,3,4,5,6,7,8})),"")),"") -> 
B139: UMo | P139: 3 | Q139: 3 | U139: 3 | Y139: 16 | AA139: 4 | AU139: 29 | AV139: 5 | AW139: =IF($AV139<=6,SUM($C139:$AS139),SUMPRODUCT(LARGE($C139:$AS139,{1,2,3,4,5,6}))) -> 29 | AY139: =IF(AX139= "","",IFERROR(SUMPRODUCT(LARGE($C139:$AS139,{1,2,3,4})), "")) ->  | AZ139: =IF(AY139<>"",(IFERROR(SUMPRODUCT(LARGE($C139:$AS139,{1,2,3,4,5,6,7})),"")),"") ->  | BA139: =IF(AZ139<>"",(IFERROR(SUMPRODUCT(LARGE($C139:$AS139,{1,2,3,4,5,6,7,8})),"")),"") -> 
B140: UNG | P140: 5 | AU140: 5 | AV140: 1 | AW140: =IF($AV140<=6,SUM($C140:$AS140),SUMPRODUCT(LARGE($C140:$AS140,{1,2,3,4,5,6}))) -> 5 | AY140: =IF(AX140= "","",IFERROR(SUMPRODUCT(LARGE($C140:$AS140,{1,2,3,4})), "")) ->  | AZ140: =IF(AY140<>"",(IFERROR(SUMPRODUCT(LARGE($C140:$AS140,{1,2,3,4,5,6,7})),"")),"") ->  | BA140: =IF(AZ140<>"",(IFERROR(SUMPRODUCT(LARGE($C140:$AS140,{1,2,3,4,5,6,7,8})),"")),"") -> 
B141: UNLV | I141: 5 | AF141: 2 | AU141: 7 | AV141: 2 | AW141: =IF($AV141<=6,SUM($C141:$AS141),SUMPRODUCT(LARGE($C141:$AS141,{1,2,3,4,5,6}))) -> 7 | AY141: =IF(AX141= "","",IFERROR(SUMPRODUCT(LARGE($C141:$AS141,{1,2,3,4})), "")) ->  | AZ141: =IF(AY141<>"",(IFERROR(SUMPRODUCT(LARGE($C141:$AS141,{1,2,3,4,5,6,7})),"")),"") ->  | BA141: =IF(AZ141<>"",(IFERROR(SUMPRODUCT(LARGE($C141:$AS141,{1,2,3,4,5,6,7,8})),"")),"") -> 
B142: UNR | V142: 13 | Y142: 3 | AA142: 9 | AD142: 7 | AU142: 32 | AV142: 4 | AW142: =IF($AV142<=6,SUM($C142:$AS142),SUMPRODUCT(LARGE($C142:$AS142,{1,2,3,4,5,6}))) -> 32 | AY142: =IF(AX142= "","",IFERROR(SUMPRODUCT(LARGE($C142:$AS142,{1,2,3,4})), "")) ->  | AZ142: =IF(AY142<>"",(IFERROR(SUMPRODUCT(LARGE($C142:$AS142,{1,2,3,4,5,6,7})),"")),"") ->  | BA142: =IF(AZ142<>"",(IFERROR(SUMPRODUCT(LARGE($C142:$AS142,{1,2,3,4,5,6,7,8})),"")),"") -> 
B143: UNT | F143: 3 | J143: 19 | AB143: 5 | AU143: 27 | AV143: 3 | AW143: =IF($AV143<=6,SUM($C143:$AS143),SUMPRODUCT(LARGE($C143:$AS143,{1,2,3,4,5,6}))) -> 27 | AY143: =IF(AX143= "","",IFERROR(SUMPRODUCT(LARGE($C143:$AS143,{1,2,3,4})), "")) ->  | AZ143: =IF(AY143<>"",(IFERROR(SUMPRODUCT(LARGE($C143:$AS143,{1,2,3,4,5,6,7})),"")),"") ->  | BA143: =IF(AZ143<>"",(IFERROR(SUMPRODUCT(LARGE($C143:$AS143,{1,2,3,4,5,6,7,8})),"")),"") -> 
B144: UP | P144: 4 | AU144: 4 | AV144: 1 | AW144: =IF($AV144<=6,SUM($C144:$AS144),SUMPRODUCT(LARGE($C144:$AS144,{1,2,3,4,5,6}))) -> 4 | AY144: =IF(AX144= "","",IFERROR(SUMPRODUCT(LARGE($C144:$AS144,{1,2,3,4})), "")) ->  | AZ144: =IF(AY144<>"",(IFERROR(SUMPRODUCT(LARGE($C144:$AS144,{1,2,3,4,5,6,7})),"")),"") ->  | BA144: =IF(AZ144<>"",(IFERROR(SUMPRODUCT(LARGE($C144:$AS144,{1,2,3,4,5,6,7,8})),"")),"") -> 
B145: USM | G145: 6 | K145: 14 | N145: 16 | O145: 6 | P145: 9 | Q145: 2 | R145: 5 | AC145: 12 | AD145: 5 | AU145: 75 | AV145: 9 | AW145: =IF($AV145<=6,SUM($C145:$AS145),SUMPRODUCT(LARGE($C145:$AS145,{1,2,3,4,5,6}))) -> 63 | AY145: =IF(AX145= "","",IFERROR(SUMPRODUCT(LARGE($C145:$AS145,{1,2,3,4})), "")) ->  | AZ145: =IF(AY145<>"",(IFERROR(SUMPRODUCT(LARGE($C145:$AS145,{1,2,3,4,5,6,7})),"")),"") ->  | BA145: =IF(AZ145<>"",(IFERROR(SUMPRODUCT(LARGE($C145:$AS145,{1,2,3,4,5,6,7,8})),"")),"") -> 
B146: USU | D146: 9 | P146: 19 | U146: 22 | Y146: 5 | AU146: 55 | AV146: 4 | AW146: =IF($AV146<=6,SUM($C146:$AS146),SUMPRODUCT(LARGE($C146:$AS146,{1,2,3,4,5,6}))) -> 55 | AY146: =IF(AX146= "","",IFERROR(SUMPRODUCT(LARGE($C146:$AS146,{1,2,3,4})), "")) ->  | AZ146: =IF(AY146<>"",(IFERROR(SUMPRODUCT(LARGE($C146:$AS146,{1,2,3,4,5,6,7})),"")),"") ->  | BA146: =IF(AZ146<>"",(IFERROR(SUMPRODUCT(LARGE($C146:$AS146,{1,2,3,4,5,6,7,8})),"")),"") -> 
B147: UTD | J147: 15 | AB147: 9 | AU147: 24 | AV147: 2 | AW147: =IF($AV147<=6,SUM($C147:$AS147),SUMPRODUCT(LARGE($C147:$AS147,{1,2,3,4,5,6}))) -> 24 | AY147: =IF(AX147= "","",IFERROR(SUMPRODUCT(LARGE($C147:$AS147,{1,2,3,4})), "")) ->  | AZ147: =IF(AY147<>"",(IFERROR(SUMPRODUCT(LARGE($C147:$AS147,{1,2,3,4,5,6,7})),"")),"") ->  | BA147: =IF(AZ147<>"",(IFERROR(SUMPRODUCT(LARGE($C147:$AS147,{1,2,3,4,5,6,7,8})),"")),"") -> 
B148: UTK | G148: 22 | K148: 27 | N148: 17 | P148: 6 | R148: 27 | X148: 29 | AD148: 22 | AU148: 150 | AV148: 7 | AW148: =IF($AV148<=6,SUM($C148:$AS148),SUMPRODUCT(LARGE($C148:$AS148,{1,2,3,4,5,6}))) -> 144 | AY148: =IF(AX148= "","",IFERROR(SUMPRODUCT(LARGE($C148:$AS148,{1,2,3,4})), "")) ->  | AZ148: =IF(AY148<>"",(IFERROR(SUMPRODUCT(LARGE($C148:$AS148,{1,2,3,4,5,6,7})),"")),"") ->  | BA148: =IF(AZ148<>"",(IFERROR(SUMPRODUCT(LARGE($C148:$AS148,{1,2,3,4,5,6,7,8})),"")),"") -> 
B149: UU | K149: 53 | N149: 60 | O149: 53 | Q149: 74 | R149: 66 | X149: 40 | AC149: 79 | AD149: 42 | AU149: 467 | AV149: 8 | AW149: =IF($AV149<=6,SUM($C149:$AS149),SUMPRODUCT(LARGE($C149:$AS149,{1,2,3,4,5,6}))) -> 385 | AY149: =IF(AX149= "","",IFERROR(SUMPRODUCT(LARGE($C149:$AS149,{1,2,3,4})), "")) ->  | AZ149: =IF(AY149<>"",(IFERROR(SUMPRODUCT(LARGE($C149:$AS149,{1,2,3,4,5,6,7})),"")),"") ->  | BA149: =IF(AZ149<>"",(IFERROR(SUMPRODUCT(LARGE($C149:$AS149,{1,2,3,4,5,6,7,8})),"")),"") -> 
B150: UUt | D150: 9 | AF150: 8 | AG150: 11 | AI150: 10 | AU150: 38 | AV150: 4 | AW150: =IF($AV150<=6,SUM($C150:$AS150),SUMPRODUCT(LARGE($C150:$AS150,{1,2,3,4,5,6}))) -> 38 | AY150: =IF(AX150= "","",IFERROR(SUMPRODUCT(LARGE($C150:$AS150,{1,2,3,4})), "")) ->  | AZ150: =IF(AY150<>"",(IFERROR(SUMPRODUCT(LARGE($C150:$AS150,{1,2,3,4,5,6,7})),"")),"") ->  | BA150: =IF(AZ150<>"",(IFERROR(SUMPRODUCT(LARGE($C150:$AS150,{1,2,3,4,5,6,7,8})),"")),"") -> 
B151: VSU | G151: 14 | J151: 4 | T151: 12 | Y151: 3 | AU151: 33 | AV151: 4 | AW151: =IF($AV151<=6,SUM($C151:$AS151),SUMPRODUCT(LARGE($C151:$AS151,{1,2,3,4,5,6}))) -> 33 | AY151: =IF(AX151= "","",IFERROR(SUMPRODUCT(LARGE($C151:$AS151,{1,2,3,4})), "")) ->  | AZ151: =IF(AY151<>"",(IFERROR(SUMPRODUCT(LARGE($C151:$AS151,{1,2,3,4,5,6,7})),"")),"") ->  | BA151: =IF(AZ151<>"",(IFERROR(SUMPRODUCT(LARGE($C151:$AS151,{1,2,3,4,5,6,7,8})),"")),"") -> 
B152: WC | M152: 13 | AD152: 21 | AU152: 34 | AV152: 2 | AW152: =IF($AV152<=6,SUM($C152:$AS152),SUMPRODUCT(LARGE($C152:$AS152,{1,2,3,4,5,6}))) -> 34 | AY152: =IF(AX152= "","",IFERROR(SUMPRODUCT(LARGE($C152:$AS152,{1,2,3,4})), "")) ->  | AZ152: =IF(AY152<>"",(IFERROR(SUMPRODUCT(LARGE($C152:$AS152,{1,2,3,4,5,6,7})),"")),"") ->  | BA152: =IF(AZ152<>"",(IFERROR(SUMPRODUCT(LARGE($C152:$AS152,{1,2,3,4,5,6,7,8})),"")),"") -> 
B153: WCU | C153: 29 | H153: 3 | K153: 36 | N153: 19 | R153: 41 | AC153: 27 | AU153: 155 | AV153: 6 | AW153: =IF($AV153<=6,SUM($C153:$AS153),SUMPRODUCT(LARGE($C153:$AS153,{1,2,3,4,5,6}))) -> 155 | AY153: =IF(AX153= "","",IFERROR(SUMPRODUCT(LARGE($C153:$AS153,{1,2,3,4})), "")) ->  | AZ153: =IF(AY153<>"",(IFERROR(SUMPRODUCT(LARGE($C153:$AS153,{1,2,3,4,5,6,7})),"")),"") ->  | BA153: =IF(AZ153<>"",(IFERROR(SUMPRODUCT(LARGE($C153:$AS153,{1,2,3,4,5,6,7,8})),"")),"") -> 
B154: WebU | S154: 20 | AU154: 20 | AV154: 1 | AW154: =IF($AV154<=6,SUM($C154:$AS154),SUMPRODUCT(LARGE($C154:$AS154,{1,2,3,4,5,6}))) -> 20 | AY154: =IF(AX154= "","",IFERROR(SUMPRODUCT(LARGE($C154:$AS154,{1,2,3,4})), "")) ->  | AZ154: =IF(AY154<>"",(IFERROR(SUMPRODUCT(LARGE($C154:$AS154,{1,2,3,4,5,6,7})),"")),"") ->  | BA154: =IF(AZ154<>"",(IFERROR(SUMPRODUCT(LARGE($C154:$AS154,{1,2,3,4,5,6,7,8})),"")),"") -> 
B155: WeCU | T155: 8 | AU155: 8 | AV155: 1 | AW155: =IF($AV155<=6,SUM($C155:$AS155),SUMPRODUCT(LARGE($C155:$AS155,{1,2,3,4,5,6}))) -> 8 | AY155: =IF(AX155= "","",IFERROR(SUMPRODUCT(LARGE($C155:$AS155,{1,2,3,4})), "")) ->  | AZ155: =IF(AY155<>"",(IFERROR(SUMPRODUCT(LARGE($C155:$AS155,{1,2,3,4,5,6,7})),"")),"") ->  | BA155: =IF(AZ155<>"",(IFERROR(SUMPRODUCT(LARGE($C155:$AS155,{1,2,3,4,5,6,7,8})),"")),"") -> 
B156: WhC | P156: 6 | AC156: 44 | AU156: 50 | AV156: 2 | AW156: =IF($AV156<=6,SUM($C156:$AS156),SUMPRODUCT(LARGE($C156:$AS156,{1,2,3,4,5,6}))) -> 50 | AY156: =IF(AX156= "","",IFERROR(SUMPRODUCT(LARGE($C156:$AS156,{1,2,3,4})), "")) ->  | AZ156: =IF(AY156<>"",(IFERROR(SUMPRODUCT(LARGE($C156:$AS156,{1,2,3,4,5,6,7})),"")),"") ->  | BA156: =IF(AZ156<>"",(IFERROR(SUMPRODUCT(LARGE($C156:$AS156,{1,2,3,4,5,6,7,8})),"")),"") -> 
B157: WhU | I157: 39 | P157: 69 | Q157: 29 | U157: 28 | Y157: 31 | AA157: 30 | AU157: 226 | AV157: 6 | AW157: =IF($AV157<=6,SUM($C157:$AS157),SUMPRODUCT(LARGE($C157:$AS157,{1,2,3,4,5,6}))) -> 226 | AY157: =IF(AX157= "","",IFERROR(SUMPRODUCT(LARGE($C157:$AS157,{1,2,3,4})), "")) ->  | AZ157: =IF(AY157<>"",(IFERROR(SUMPRODUCT(LARGE($C157:$AS157,{1,2,3,4,5,6,7})),"")),"") ->  | BA157: =IF(AZ157<>"",(IFERROR(SUMPRODUCT(LARGE($C157:$AS157,{1,2,3,4,5,6,7,8})),"")),"") -> 
B158: WSCC | AU158: 0 | AV158: 0 | AW158: =IF($AV158<=6,SUM($C158:$AS158),SUMPRODUCT(LARGE($C158:$AS158,{1,2,3,4,5,6}))) -> 0 | AY158: =IF(AX158= "","",IFERROR(SUMPRODUCT(LARGE($C158:$AS158,{1,2,3,4})), "")) ->  | AZ158: =IF(AY158<>"",(IFERROR(SUMPRODUCT(LARGE($C158:$AS158,{1,2,3,4,5,6,7})),"")),"") ->  | BA158: =IF(AZ158<>"",(IFERROR(SUMPRODUCT(LARGE($C158:$AS158,{1,2,3,4,5,6,7,8})),"")),"") -> 
B159: WSU | D159: =6+3+3 -> 12 | L159: 3 | P159: 50 | U159: 41 | Z159: 8 | AA159: 43 | AU159: 157 | AV159: 6 | AW159: =IF($AV159<=6,SUM($C159:$AS159),SUMPRODUCT(LARGE($C159:$AS159,{1,2,3,4,5,6}))) -> 157 | AY159: =IF(AX159= "","",IFERROR(SUMPRODUCT(LARGE($C159:$AS159,{1,2,3,4})), "")) ->  | AZ159: =IF(AY159<>"",(IFERROR(SUMPRODUCT(LARGE($C159:$AS159,{1,2,3,4,5,6,7})),"")),"") ->  | BA159: =IF(AZ159<>"",(IFERROR(SUMPRODUCT(LARGE($C159:$AS159,{1,2,3,4,5,6,7,8})),"")),"") -> 
AU160: =SUM($C160:$AT160) -> 0 | AV160: =COUNTA(C160:AS160) -> 0 | AW160: =IF($AV160<=6,SUM($C160:$AS160),SUMPRODUCT(LARGE($C160:$AS160,{1,2,3,4,5,6}))) -> 0 | AX160: =IF(AND($AV160>=6,AW160=AW161),"Manual Calc Needed","") ->  | AY160: =IF(AX160= "","",IFERROR(SUMPRODUCT(LARGE($C160:$AS160,{1,2,3,4})), "")) ->  | AZ160: =IF(AY160<>"",(IFERROR(SUMPRODUCT(LARGE($C160:$AS160,{1,2,3,4,5,6,7})),"")),"") ->  | BA160: =IF(AZ160<>"",(IFERROR(SUMPRODUCT(LARGE($C160:$AS160,{1,2,3,4,5,6,7,8})),"")),"") -> 
AU161: 0 | AV161: 0 | AW161: =IF($AV161<=6,SUM($C161:$AS161),SUMPRODUCT(LARGE($C161:$AS161,{1,2,3,4,5,6}))) -> 0 | AY161: =IF(AX161= "","",IFERROR(SUMPRODUCT(LARGE($C161:$AS161,{1,2,3,4})), "")) ->  | AZ161: =IF(AY161<>"",(IFERROR(SUMPRODUCT(LARGE($C161:$AS161,{1,2,3,4,5,6,7})),"")),"") ->  | BA161: =IF(AZ161<>"",(IFERROR(SUMPRODUCT(LARGE($C161:$AS161,{1,2,3,4,5,6,7,8})),"")),"") -> 
AU162: 0 | AV162: 0 | AW162: =IF($AV162<=6,SUM($C162:$AS162),SUMPRODUCT(LARGE($C162:$AS162,{1,2,3,4,5,6}))) -> 0 | AY162: =IF(AX162= "","",IFERROR(SUMPRODUCT(LARGE($C162:$AS162,{1,2,3,4})), "")) ->  | AZ162: =IF(AY162<>"",(IFERROR(SUMPRODUCT(LARGE($C162:$AS162,{1,2,3,4,5,6,7})),"")),"") ->  | BA162: =IF(AZ162<>"",(IFERROR(SUMPRODUCT(LARGE($C162:$AS162,{1,2,3,4,5,6,7,8})),"")),"") -> 
AU163: 0 | AV163: 0 | AW163: =IF($AV163<=6,SUM($C163:$AS163),SUMPRODUCT(LARGE($C163:$AS163,{1,2,3,4,5,6}))) -> 0 | AY163: =IF(AX163= "","",IFERROR(SUMPRODUCT(LARGE($C163:$AS163,{1,2,3,4})), "")) ->  | AZ163: =IF(AY163<>"",(IFERROR(SUMPRODUCT(LARGE($C163:$AS163,{1,2,3,4,5,6,7})),"")),"") ->  | BA163: =IF(AZ163<>"",(IFERROR(SUMPRODUCT(LARGE($C163:$AS163,{1,2,3,4,5,6,7,8})),"")),"") -> 
AU164: 0 | AV164: 0 | AW164: =IF($AV164<=6,SUM($C164:$AS164),SUMPRODUCT(LARGE($C164:$AS164,{1,2,3,4,5,6}))) -> 0 | AY164: =IF(AX164= "","",IFERROR(SUMPRODUCT(LARGE($C164:$AS164,{1,2,3,4})), "")) ->  | AZ164: =IF(AY164<>"",(IFERROR(SUMPRODUCT(LARGE($C164:$AS164,{1,2,3,4,5,6,7})),"")),"") ->  | BA164: =IF(AZ164<>"",(IFERROR(SUMPRODUCT(LARGE($C164:$AS164,{1,2,3,4,5,6,7,8})),"")),"") -> 
AU165: 0 | AV165: 0 | AW165: =IF($AV165<=6,SUM($C165:$AS165),SUMPRODUCT(LARGE($C165:$AS165,{1,2,3,4,5,6}))) -> 0 | AY165: =IF(AX165= "","",IFERROR(SUMPRODUCT(LARGE($C165:$AS165,{1,2,3,4})), "")) ->  | AZ165: =IF(AY165<>"",(IFERROR(SUMPRODUCT(LARGE($C165:$AS165,{1,2,3,4,5,6,7})),"")),"") ->  | BA165: =IF(AZ165<>"",(IFERROR(SUMPRODUCT(LARGE($C165:$AS165,{1,2,3,4,5,6,7,8})),"")),"") -> 
AU166: 0 | AV166: 0 | AW166: =IF($AV166<=6,SUM($C166:$AS166),SUMPRODUCT(LARGE($C166:$AS166,{1,2,3,4,5,6}))) -> 0 | AY166: =IF(AX166= "","",IFERROR(SUMPRODUCT(LARGE($C166:$AS166,{1,2,3,4})), "")) ->  | AZ166: =IF(AY166<>"",(IFERROR(SUMPRODUCT(LARGE($C166:$AS166,{1,2,3,4,5,6,7})),"")),"") ->  | BA166: =IF(AZ166<>"",(IFERROR(SUMPRODUCT(LARGE($C166:$AS166,{1,2,3,4,5,6,7,8})),"")),"") -> 
AU167: 0 | AV167: 0 | AW167: =IF($AV167<=6,SUM($C167:$AS167),SUMPRODUCT(LARGE($C167:$AS167,{1,2,3,4,5,6}))) -> 0 | AY167: =IF(AX167= "","",IFERROR(SUMPRODUCT(LARGE($C167:$AS167,{1,2,3,4})), "")) ->  | AZ167: =IF(AY167<>"",(IFERROR(SUMPRODUCT(LARGE($C167:$AS167,{1,2,3,4,5,6,7})),"")),"") ->  | BA167: =IF(AZ167<>"",(IFERROR(SUMPRODUCT(LARGE($C167:$AS167,{1,2,3,4,5,6,7,8})),"")),"") -> 
AU168: 0 | AV168: 0 | AW168: =IF($AV168<=6,SUM($C168:$AS168),SUMPRODUCT(LARGE($C168:$AS168,{1,2,3,4,5,6}))) -> 0 | AY168: =IF(AX168= "","",IFERROR(SUMPRODUCT(LARGE($C168:$AS168,{1,2,3,4})), "")) ->  | AZ168: =IF(AY168<>"",(IFERROR(SUMPRODUCT(LARGE($C168:$AS168,{1,2,3,4,5,6,7})),"")),"") ->  | BA168: =IF(AZ168<>"",(IFERROR(SUMPRODUCT(LARGE($C168:$AS168,{1,2,3,4,5,6,7,8})),"")),"") -> 
AU169: 0 | AV169: 0 | AW169: =IF($AV169<=6,SUM($C169:$AS169),SUMPRODUCT(LARGE($C169:$AS169,{1,2,3,4,5,6}))) -> 0 | AY169: =IF(AX169= "","",IFERROR(SUMPRODUCT(LARGE($C169:$AS169,{1,2,3,4})), "")) ->  | AZ169: =IF(AY169<>"",(IFERROR(SUMPRODUCT(LARGE($C169:$AS169,{1,2,3,4,5,6,7})),"")),"") ->  | BA169: =IF(AZ169<>"",(IFERROR(SUMPRODUCT(LARGE($C169:$AS169,{1,2,3,4,5,6,7,8})),"")),"") -> 
AU170: 0 | AV170: 0 | AW170: =IF($AV170<=6,SUM($C170:$AS170),SUMPRODUCT(LARGE($C170:$AS170,{1,2,3,4,5,6}))) -> 0 | AY170: =IF(AX170= "","",IFERROR(SUMPRODUCT(LARGE($C170:$AS170,{1,2,3,4})), "")) ->  | AZ170: =IF(AY170<>"",(IFERROR(SUMPRODUCT(LARGE($C170:$AS170,{1,2,3,4,5,6,7})),"")),"") ->  | BA170: =IF(AZ170<>"",(IFERROR(SUMPRODUCT(LARGE($C170:$AS170,{1,2,3,4,5,6,7,8})),"")),"") -> 
AU171: 0 | AV171: 0 | AW171: =IF($AV171<=6,SUM($C171:$AS171),SUMPRODUCT(LARGE($C171:$AS171,{1,2,3,4,5,6}))) -> 0 | AY171: =IF(AX171= "","",IFERROR(SUMPRODUCT(LARGE($C171:$AS171,{1,2,3,4})), "")) ->  | AZ171: =IF(AY171<>"",(IFERROR(SUMPRODUCT(LARGE($C171:$AS171,{1,2,3,4,5,6,7})),"")),"") ->  | BA171: =IF(AZ171<>"",(IFERROR(SUMPRODUCT(LARGE($C171:$AS171,{1,2,3,4,5,6,7,8})),"")),"") -> 
AU172: 0 | AV172: 0 | AW172: =IF($AV172<=6,SUM($C172:$AS172),SUMPRODUCT(LARGE($C172:$AS172,{1,2,3,4,5,6}))) -> 0 | AY172: =IF(AX172= "","",IFERROR(SUMPRODUCT(LARGE($C172:$AS172,{1,2,3,4})), "")) ->  | AZ172: =IF(AY172<>"",(IFERROR(SUMPRODUCT(LARGE($C172:$AS172,{1,2,3,4,5,6,7})),"")),"") ->  | BA172: =IF(AZ172<>"",(IFERROR(SUMPRODUCT(LARGE($C172:$AS172,{1,2,3,4,5,6,7,8})),"")),"") -> 
AU173: 0 | AV173: 0 | AW173: =IF($AV173<=6,SUM($C173:$AS173),SUMPRODUCT(LARGE($C173:$AS173,{1,2,3,4,5,6}))) -> 0 | AY173: =IF(AX173= "","",IFERROR(SUMPRODUCT(LARGE($C173:$AS173,{1,2,3,4})), "")) ->  | AZ173: =IF(AY173<>"",(IFERROR(SUMPRODUCT(LARGE($C173:$AS173,{1,2,3,4,5,6,7})),"")),"") ->  | BA173: =IF(AZ173<>"",(IFERROR(SUMPRODUCT(LARGE($C173:$AS173,{1,2,3,4,5,6,7,8})),"")),"") -> 
AU174: 0 | AV174: 0 | AW174: =IF($AV174<=6,SUM($C174:$AS174),SUMPRODUCT(LARGE($C174:$AS174,{1,2,3,4,5,6}))) -> 0 | AY174: =IF(AX174= "","",IFERROR(SUMPRODUCT(LARGE($C174:$AS174,{1,2,3,4})), "")) ->  | AZ174: =IF(AY174<>"",(IFERROR(SUMPRODUCT(LARGE($C174:$AS174,{1,2,3,4,5,6,7})),"")),"") ->  | BA174: =IF(AZ174<>"",(IFERROR(SUMPRODUCT(LARGE($C174:$AS174,{1,2,3,4,5,6,7,8})),"")),"") -> 
AU175: 0 | AV175: 0 | AW175: =IF($AV175<=6,SUM($C175:$AS175),SUMPRODUCT(LARGE($C175:$AS175,{1,2,3,4,5,6}))) -> 0 | AY175: =IF(AX175= "","",IFERROR(SUMPRODUCT(LARGE($C175:$AS175,{1,2,3,4})), "")) ->  | AZ175: =IF(AY175<>"",(IFERROR(SUMPRODUCT(LARGE($C175:$AS175,{1,2,3,4,5,6,7})),"")),"") ->  | BA175: =IF(AZ175<>"",(IFERROR(SUMPRODUCT(LARGE($C175:$AS175,{1,2,3,4,5,6,7,8})),"")),"") -> 
AU176: 0 | AV176: 0 | AW176: =IF($AV176<=6,SUM($C176:$AS176),SUMPRODUCT(LARGE($C176:$AS176,{1,2,3,4,5,6}))) -> 0 | AY176: =IF(AX176= "","",IFERROR(SUMPRODUCT(LARGE($C176:$AS176,{1,2,3,4})), "")) ->  | AZ176: =IF(AY176<>"",(IFERROR(SUMPRODUCT(LARGE($C176:$AS176,{1,2,3,4,5,6,7})),"")),"") ->  | BA176: =IF(AZ176<>"",(IFERROR(SUMPRODUCT(LARGE($C176:$AS176,{1,2,3,4,5,6,7,8})),"")),"") -> 
AU177: 0 | AV177: 0 | AW177: =IF($AV177<=6,SUM($C177:$AS177),SUMPRODUCT(LARGE($C177:$AS177,{1,2,3,4,5,6}))) -> 0 | AY177: =IF(AX177= "","",IFERROR(SUMPRODUCT(LARGE($C177:$AS177,{1,2,3,4})), "")) ->  | AZ177: =IF(AY177<>"",(IFERROR(SUMPRODUCT(LARGE($C177:$AS177,{1,2,3,4,5,6,7})),"")),"") ->  | BA177: =IF(AZ177<>"",(IFERROR(SUMPRODUCT(LARGE($C177:$AS177,{1,2,3,4,5,6,7,8})),"")),"") -> 
AU178: 0 | AV178: 0 | AW178: =IF($AV178<=6,SUM($C178:$AS178),SUMPRODUCT(LARGE($C178:$AS178,{1,2,3,4,5,6}))) -> 0 | AY178: =IF(AX178= "","",IFERROR(SUMPRODUCT(LARGE($C178:$AS178,{1,2,3,4})), "")) ->  | AZ178: =IF(AY178<>"",(IFERROR(SUMPRODUCT(LARGE($C178:$AS178,{1,2,3,4,5,6,7})),"")),"") ->  | BA178: =IF(AZ178<>"",(IFERROR(SUMPRODUCT(LARGE($C178:$AS178,{1,2,3,4,5,6,7,8})),"")),"") -> 
AU179: 0 | AV179: 0 | AW179: =IF($AV179<=6,SUM($C179:$AS179),SUMPRODUCT(LARGE($C179:$AS179,{1,2,3,4,5,6}))) -> 0 | AY179: =IF(AX179= "","",IFERROR(SUMPRODUCT(LARGE($C179:$AS179,{1,2,3,4})), "")) ->  | AZ179: =IF(AY179<>"",(IFERROR(SUMPRODUCT(LARGE($C179:$AS179,{1,2,3,4,5,6,7})),"")),"") ->  | BA179: =IF(AZ179<>"",(IFERROR(SUMPRODUCT(LARGE($C179:$AS179,{1,2,3,4,5,6,7,8})),"")),"") -> 
AU180: 0 | AV180: 0 | AW180: =IF($AV180<=6,SUM($C180:$AS180),SUMPRODUCT(LARGE($C180:$AS180,{1,2,3,4,5,6}))) -> 0 | AY180: =IF(AX180= "","",IFERROR(SUMPRODUCT(LARGE($C180:$AS180,{1,2,3,4})), "")) ->  | AZ180: =IF(AY180<>"",(IFERROR(SUMPRODUCT(LARGE($C180:$AS180,{1,2,3,4,5,6,7})),"")),"") ->  | BA180: =IF(AZ180<>"",(IFERROR(SUMPRODUCT(LARGE($C180:$AS180,{1,2,3,4,5,6,7,8})),"")),"") -> 
AU181: 0 | AV181: 0 | AW181: =IF($AV181<=6,SUM($C181:$AS181),SUMPRODUCT(LARGE($C181:$AS181,{1,2,3,4,5,6}))) -> 0 | AY181: =IF(AX181= "","",IFERROR(SUMPRODUCT(LARGE($C181:$AS181,{1,2,3,4})), "")) ->  | AZ181: =IF(AY181<>"",(IFERROR(SUMPRODUCT(LARGE($C181:$AS181,{1,2,3,4,5,6,7})),"")),"") ->  | BA181: =IF(AZ181<>"",(IFERROR(SUMPRODUCT(LARGE($C181:$AS181,{1,2,3,4,5,6,7,8})),"")),"") -> 
AU182: 0 | AV182: 0 | AW182: =IF($AV182<=6,SUM($C182:$AS182),SUMPRODUCT(LARGE($C182:$AS182,{1,2,3,4,5,6}))) -> 0 | AY182: =IF(AX182= "","",IFERROR(SUMPRODUCT(LARGE($C182:$AS182,{1,2,3,4})), "")) ->  | AZ182: =IF(AY182<>"",(IFERROR(SUMPRODUCT(LARGE($C182:$AS182,{1,2,3,4,5,6,7})),"")),"") ->  | BA182: =IF(AZ182<>"",(IFERROR(SUMPRODUCT(LARGE($C182:$AS182,{1,2,3,4,5,6,7,8})),"")),"") -> 
AU183: 0 | AV183: 0 | AW183: =IF($AV183<=6,SUM($C183:$AS183),SUMPRODUCT(LARGE($C183:$AS183,{1,2,3,4,5,6}))) -> 0 | AY183: =IF(AX183= "","",IFERROR(SUMPRODUCT(LARGE($C183:$AS183,{1,2,3,4})), "")) ->  | AZ183: =IF(AY183<>"",(IFERROR(SUMPRODUCT(LARGE($C183:$AS183,{1,2,3,4,5,6,7})),"")),"") ->  | BA183: =IF(AZ183<>"",(IFERROR(SUMPRODUCT(LARGE($C183:$AS183,{1,2,3,4,5,6,7,8})),"")),"") -> 
AU184: 0 | AV184: 0 | AW184: =IF($AV184<=6,SUM($C184:$AS184),SUMPRODUCT(LARGE($C184:$AS184,{1,2,3,4,5,6}))) -> 0 | AY184: =IF(AX184= "","",IFERROR(SUMPRODUCT(LARGE($C184:$AS184,{1,2,3,4})), "")) ->  | AZ184: =IF(AY184<>"",(IFERROR(SUMPRODUCT(LARGE($C184:$AS184,{1,2,3,4,5,6,7})),"")),"") ->  | BA184: =IF(AZ184<>"",(IFERROR(SUMPRODUCT(LARGE($C184:$AS184,{1,2,3,4,5,6,7,8})),"")),"") -> 
AU185: 0 | AV185: 0 | AW185: =IF($AV185<=6,SUM($C185:$AS185),SUMPRODUCT(LARGE($C185:$AS185,{1,2,3,4,5,6}))) -> 0 | AY185: =IF(AX185= "","",IFERROR(SUMPRODUCT(LARGE($C185:$AS185,{1,2,3,4})), "")) ->  | AZ185: =IF(AY185<>"",(IFERROR(SUMPRODUCT(LARGE($C185:$AS185,{1,2,3,4,5,6,7})),"")),"") ->  | BA185: =IF(AZ185<>"",(IFERROR(SUMPRODUCT(LARGE($C185:$AS185,{1,2,3,4,5,6,7,8})),"")),"") -> 
AU186: 0 | AV186: 0 | AW186: =IF($AV186<=6,SUM($C186:$AS186),SUMPRODUCT(LARGE($C186:$AS186,{1,2,3,4,5,6}))) -> 0 | AY186: =IF(AX186= "","",IFERROR(SUMPRODUCT(LARGE($C186:$AS186,{1,2,3,4})), "")) ->  | AZ186: =IF(AY186<>"",(IFERROR(SUMPRODUCT(LARGE($C186:$AS186,{1,2,3,4,5,6,7})),"")),"") ->  | BA186: =IF(AZ186<>"",(IFERROR(SUMPRODUCT(LARGE($C186:$AS186,{1,2,3,4,5,6,7,8})),"")),"") -> 
AU187: 0 | AV187: 0 | AW187: =IF($AV187<=6,SUM($C187:$AS187),SUMPRODUCT(LARGE($C187:$AS187,{1,2,3,4,5,6}))) -> 0 | AY187: =IF(AX187= "","",IFERROR(SUMPRODUCT(LARGE($C187:$AS187,{1,2,3,4})), "")) ->  | AZ187: =IF(AY187<>"",(IFERROR(SUMPRODUCT(LARGE($C187:$AS187,{1,2,3,4,5,6,7})),"")),"") ->  | BA187: =IF(AZ187<>"",(IFERROR(SUMPRODUCT(LARGE($C187:$AS187,{1,2,3,4,5,6,7,8})),"")),"") -> 
AU188: 0 | AV188: 0 | AW188: =IF($AV188<=6,SUM($C188:$AS188),SUMPRODUCT(LARGE($C188:$AS188,{1,2,3,4,5,6}))) -> 0 | AY188: =IF(AX188= "","",IFERROR(SUMPRODUCT(LARGE($C188:$AS188,{1,2,3,4})), "")) ->  | AZ188: =IF(AY188<>"",(IFERROR(SUMPRODUCT(LARGE($C188:$AS188,{1,2,3,4,5,6,7})),"")),"") ->  | BA188: =IF(AZ188<>"",(IFERROR(SUMPRODUCT(LARGE($C188:$AS188,{1,2,3,4,5,6,7,8})),"")),"") -> 
AU189: 0 | AV189: 0 | AW189: =IF($AV189<=6,SUM($C189:$AS189),SUMPRODUCT(LARGE($C189:$AS189,{1,2,3,4,5,6}))) -> 0 | AY189: =IF(AX189= "","",IFERROR(SUMPRODUCT(LARGE($C189:$AS189,{1,2,3,4})), "")) ->  | AZ189: =IF(AY189<>"",(IFERROR(SUMPRODUCT(LARGE($C189:$AS189,{1,2,3,4,5,6,7})),"")),"") ->  | BA189: =IF(AZ189<>"",(IFERROR(SUMPRODUCT(LARGE($C189:$AS189,{1,2,3,4,5,6,7,8})),"")),"") -> 
AU190: 0 | AV190: 0 | AW190: =IF($AV190<=6,SUM($C190:$AS190),SUMPRODUCT(LARGE($C190:$AS190,{1,2,3,4,5,6}))) -> 0 | AY190: =IF(AX190= "","",IFERROR(SUMPRODUCT(LARGE($C190:$AS190,{1,2,3,4})), "")) ->  | AZ190: =IF(AY190<>"",(IFERROR(SUMPRODUCT(LARGE($C190:$AS190,{1,2,3,4,5,6,7})),"")),"") ->  | BA190: =IF(AZ190<>"",(IFERROR(SUMPRODUCT(LARGE($C190:$AS190,{1,2,3,4,5,6,7,8})),"")),"") -> 
AU191: 0 | AV191: 0 | AW191: =IF($AV191<=6,SUM($C191:$AS191),SUMPRODUCT(LARGE($C191:$AS191,{1,2,3,4,5,6}))) -> 0 | AY191: =IF(AX191= "","",IFERROR(SUMPRODUCT(LARGE($C191:$AS191,{1,2,3,4})), "")) ->  | AZ191: =IF(AY191<>"",(IFERROR(SUMPRODUCT(LARGE($C191:$AS191,{1,2,3,4,5,6,7})),"")),"") ->  | BA191: =IF(AZ191<>"",(IFERROR(SUMPRODUCT(LARGE($C191:$AS191,{1,2,3,4,5,6,7,8})),"")),"") -> 
AU192: 0 | AV192: 0 | AW192: =IF($AV192<=6,SUM($C192:$AS192),SUMPRODUCT(LARGE($C192:$AS192,{1,2,3,4,5,6}))) -> 0 | AY192: =IF(AX192= "","",IFERROR(SUMPRODUCT(LARGE($C192:$AS192,{1,2,3,4})), "")) ->  | AZ192: =IF(AY192<>"",(IFERROR(SUMPRODUCT(LARGE($C192:$AS192,{1,2,3,4,5,6,7})),"")),"") ->  | BA192: =IF(AZ192<>"",(IFERROR(SUMPRODUCT(LARGE($C192:$AS192,{1,2,3,4,5,6,7,8})),"")),"") -> 
AU193: 0 | AV193: 0 | AW193: =IF($AV193<=6,SUM($C193:$AS193),SUMPRODUCT(LARGE($C193:$AS193,{1,2,3,4,5,6}))) -> 0 | AX193: =IF(AND($AV193>=6,AW193=AW194),"Manual Calc Needed","") ->  | AY193: =IF(AX193= "","",IFERROR(SUMPRODUCT(LARGE($C193:$AS193,{1,2,3,4})), "")) ->  | AZ193: =IF(AY193<>"",(IFERROR(SUMPRODUCT(LARGE($C193:$AS193,{1,2,3,4,5,6,7})),"")),"") ->  | BA193: =IF(AZ193<>"",(IFERROR(SUMPRODUCT(LARGE($C193:$AS193,{1,2,3,4,5,6,7,8})),"")),"") -> 
AU194: =SUM($C194:$AT194) -> 0 | AV194: =COUNTA(C194:AS194) -> 0 | AW194: =IF($AV194<=6,SUM($C194:$AS194),SUMPRODUCT(LARGE($C194:$AS194,{1,2,3,4,5,6}))) -> 0 | AY194: =IF(AX194= "","",IFERROR(SUMPRODUCT(LARGE($C194:$AS194,{1,2,3,4})), "")) ->  | AZ194: =IF(AY194<>"",(IFERROR(SUMPRODUCT(LARGE($C194:$AS194,{1,2,3,4,5,6,7})),"")),"") ->  | BA194: =IF(AZ194<>"",(IFERROR(SUMPRODUCT(LARGE($C194:$AS194,{1,2,3,4,5,6,7,8})),"")),"") -> 
AU195: 0 | AV195: 0 | AW195: =IF($AV195<=6,SUM($C195:$AS195),SUMPRODUCT(LARGE($C195:$AS195,{1,2,3,4,5,6}))) -> 0 | AY195: =IF(AX195= "","",IFERROR(SUMPRODUCT(LARGE($C195:$AS195,{1,2,3,4})), "")) ->  | AZ195: =IF(AY195<>"",(IFERROR(SUMPRODUCT(LARGE($C195:$AS195,{1,2,3,4,5,6,7})),"")),"") ->  | BA195: =IF(AZ195<>"",(IFERROR(SUMPRODUCT(LARGE($C195:$AS195,{1,2,3,4,5,6,7,8})),"")),"") -> 
AU196: 0 | AV196: 0 | AW196: =IF($AV196<=6,SUM($C196:$AS196),SUMPRODUCT(LARGE($C196:$AS196,{1,2,3,4,5,6}))) -> 0 | AY196: =IF(AX196= "","",IFERROR(SUMPRODUCT(LARGE($C196:$AS196,{1,2,3,4})), "")) ->  | AZ196: =IF(AY196<>"",(IFERROR(SUMPRODUCT(LARGE($C196:$AS196,{1,2,3,4,5,6,7})),"")),"") ->  | BA196: =IF(AZ196<>"",(IFERROR(SUMPRODUCT(LARGE($C196:$AS196,{1,2,3,4,5,6,7,8})),"")),"") -> 
AU197: 0 | AV197: 0 | AW197: =IF($AV197<=6,SUM($C197:$AS197),SUMPRODUCT(LARGE($C197:$AS197,{1,2,3,4,5,6}))) -> 0 | AY197: =IF(AX197= "","",IFERROR(SUMPRODUCT(LARGE($C197:$AS197,{1,2,3,4})), "")) ->  | AZ197: =IF(AY197<>"",(IFERROR(SUMPRODUCT(LARGE($C197:$AS197,{1,2,3,4,5,6,7})),"")),"") ->  | BA197: =IF(AZ197<>"",(IFERROR(SUMPRODUCT(LARGE($C197:$AS197,{1,2,3,4,5,6,7,8})),"")),"") -> 
AU198: 0 | AV198: 0 | AW198: =IF($AV198<=6,SUM($C198:$AS198),SUMPRODUCT(LARGE($C198:$AS198,{1,2,3,4,5,6}))) -> 0 | AY198: =IF(AX198= "","",IFERROR(SUMPRODUCT(LARGE($C198:$AS198,{1,2,3,4})), "")) ->  | AZ198: =IF(AY198<>"",(IFERROR(SUMPRODUCT(LARGE($C198:$AS198,{1,2,3,4,5,6,7})),"")),"") ->  | BA198: =IF(AZ198<>"",(IFERROR(SUMPRODUCT(LARGE($C198:$AS198,{1,2,3,4,5,6,7,8})),"")),"") -> 
AU199: 0 | AV199: 0 | AW199: =IF($AV199<=6,SUM($C199:$AS199),SUMPRODUCT(LARGE($C199:$AS199,{1,2,3,4,5,6}))) -> 0 | AY199: =IF(AX199= "","",IFERROR(SUMPRODUCT(LARGE($C199:$AS199,{1,2,3,4})), "")) ->  | AZ199: =IF(AY199<>"",(IFERROR(SUMPRODUCT(LARGE($C199:$AS199,{1,2,3,4,5,6,7})),"")),"") ->  | BA199: =IF(AZ199<>"",(IFERROR(SUMPRODUCT(LARGE($C199:$AS199,{1,2,3,4,5,6,7,8})),"")),"") -> 
AU200: 0 | AV200: 0 | AW200: =IF($AV200<=6,SUM($C200:$AS200),SUMPRODUCT(LARGE($C200:$AS200,{1,2,3,4,5,6}))) -> 0 | AY200: =IF(AX200= "","",IFERROR(SUMPRODUCT(LARGE($C200:$AS200,{1,2,3,4})), "")) ->  | AZ200: =IF(AY200<>"",(IFERROR(SUMPRODUCT(LARGE($C200:$AS200,{1,2,3,4,5,6,7})),"")),"") ->  | BA200: =IF(AZ200<>"",(IFERROR(SUMPRODUCT(LARGE($C200:$AS200,{1,2,3,4,5,6,7,8})),"")),"") -> 
... 97 more rows

Sheet CC List (hidden)
A1: BCC
A2: BeC | AR2: =SUM(C2:AP2) -> 0
A3: BPCC | AR3: =SUM(C3:AP3) -> 0
A4: BuCC | AR4: 0
A5: CasC | AR5: 0
A6: CeC | AR6: 0
A7: ClC | AR7: 0
A8: CoM | AR8: 0
A9: CrC | AR9: 0
A10: CSI | AR10: 0
A11: CTC | AR11: 0
A12: CWI | AR12: 0
A13: CyC | AR13: 0
A14: DCC | AR14: 0
A15: DVC | AR15: 0
A16: ECC | AR16: 0
A17: ELAC | AR17: 0
A18: EPCC | AR18: 0
A19: EWC | AR19: 0
A20: FC | AR20: 0
A21: GCC | AR21: 0
A22: GCTC | AR22: 0
A23: GrCC | AR23: 0
A24: HCC | AR24: 0
A25: ICC | AR25: 0
A26: IllC | AR26: 0
A27: IVC | AR27: 0
A28: KCCC | AR28: 0
A29: LaCC | AR29: 0
A30: LAVC | AR30: 0
A31: LCC | AR31: 0
A32: Lee | AR32: 0
A33: LSC | AR33: 0
A34: LSCO | AR34: 0
A35: MHCC | AR35: 0
A36: MpC | AR36: 0
A37: MSAC | AR37: 0
A38: MSCC | AR38: 0
A39: MVC | AR39: 0
A40: NCC | AR40: 0
A41: NwC | AR41: 0
A42: OCC | AR42: 0
A43: OCTC | AR43: 0
A44: PaC | AR44: 0
A45: PCC | AR45: 0
A46: PSCC | AR46: 0
A47: RC | AR47: 0
A48: RCC | AR48: 0
A49: RHC | AR49: 0
A50: SaC | AR50: 0
A51: SCC | AR51: 0
A52: SFCC | AR52: 0
A53: SJC | AR53: 0
A54: SJCN | AR54: 0
A55: SnC | AR55: 0
A56: SoC | AR56: 0
A57: StC | AR57: 0
A58: TCC | AR58: 0
A59: TCCNE | AR59: 0
A60: TJC | AR60: 0
A61: TVCC | AR61: 0
A62: VSCC | AR62: 0
A63: WNCC | AR63: 0
A64: WSCC | AR64: 0
A65: WSCC | AR65: 0
A66: WWCC | AR66: 0
AR67: =SUM(C67:AP67) -> 0
AR68: 0
AR69: 0
AR70: 0
AR71: 0
AR72: 0
AR73: 0
AR74: 0
AR75: 0
AR76: 0
AR77: 0
AR78: 0
AR79: 0
AR80: 0
AR81: 0
AR82: 0
AR83: 0
AR84: 0
AR85: 0
AR86: 0
AR87: 0
AR88: 0
AR89: 0
AR90: 0
AR91: 0
AR92: 0
AR93: 0
AR94: 0
AR95: 0
AR96: 0
AR97: 0
AR98: 0
AR99: 0
AR100: 0
AR101: 0
AR102: 0
AR103: 0
AR104: 0
AR105: 0
AR106: 0
AR107: 0
AR108: 0
AR109: 0
AR110: 0
AR111: 0
AR112: 0
AR113: 0
AR114: 0
AR115: 0
AR116: 0
AR117: 0
AR118: 0
AR119: 0
AR120: 0
AR121: 0
AR122: 0
AR123: 0
AR124: 0
AR125: 0
AR126: 0
AR127: 0
AR128: 0
AR129: 0
AR130: 0
AR131: =SUM(C131:AP131) -> 0
AR132: 0
AR133: 0
AR134: 0
AR135: 0
AR136: 0
AR137: 0
AR138: 0
AR139: 0
AR140: 0
AR141: 0
AR142: 0
AR143: 0
AR144: 0
AR145: 0
AR146: 0
AR147: 0
AR148: 0
AR149: 0
AR150: 0
AR151: 0
AR152: 0
AR153: 0
AR154: 0
AR155: 0
AR156: 0
AR157: 0
AR158: 0
AR159: 0
AR160: 0
AR161: 0
AR162: 0
AR163: 0
AR164: 0
AR165: 0
AR166: 0
AR167: 0
AR168: 0
AR169: 0
AR170: 0
AR171: 0
AR172: 0
AR173: 0
AR174: 0
AR175: 0
AR176: 0
AR177: 0
AR178: 0
AR179: 0
AR180: 0
AR181: 0
AR182: 0
AR183: 0
AR184: 0
AR185: 0
AR186: 0
AR187: 0
AR188: 0
AR189: 0
AR190: 0
AR191: 0
AR192: 0
AR193: 0
AR194: 0
AR195: =SUM(C195:AP195) -> 0
AR196: 0
AR197: 0
AR198: 0
AR199: 0
AR200: 0
... 39 more rows

Sheet CC
C1: Lee | D1: CSI | E1: QC1 | F1: QC2 | G1: UU | H1: USM | I1: L&CC | J1: BGSU | K1: LTU | L1: UCM | M1: ClCC | N1: MTSU | O1: LSUS | P1: LU | Q1: UJ | R1: SFCT | S1: PaU | T1: BGSU2 | U1: WhU | V1: PLNU | W1: SFCC | X1: TIFA | Y1: OSU | Z1: PNW | AA1: LCC | AB1: DBU | AC1: BPCC | AD1: UCA | AE1: CG | AF1: CUI | AG1: IFA | AH1: PSCS | AI1: PSCF | AV1: S/L Ranking | AW1: Head to Head | AX1: H/L | AY1: 7th Tourn. | AZ1: 8th Tourn.
B2: Size of Field | C2: =IF(COUNTIFS(C$4:C$999,"<>"),COUNTIFS(C$4:C$999,"<>")," ") -> 2 | D2: 4 | F2: 1 | G2: 3 | I2: 3 | J2: 2 | K2: 3 | L2: 2 | M2: 1 | N2: 2 | O2: 2 | P2: 7 | Q2: 3 | R2: 4 | S2: 1 | T2: 2 | U2: 1 | V2: 4 | W2: 1 | X2: 1 | Y2: =IF(COUNTIFS(Y$4:Y$999,"<>"),COUNTIFS(Y$4:Y$999,"<>")," ") -> 4
A3: RANK | B3: Squad | C3: LEE (9/23-25) | D3: CSI (9/23-24) | E3: QC Swing #1 (9/23-24) | F3: QC Swing #2 (9/23-24) | G3: Union (9/30-10/2) | H3: USM (10/7-9) | I3: L&CC (10/7-9) | J3: BGSU #1 (10/14-15) | K3: LTU (10/14-16) | L3: UCM (10/21-23) | M3: CICC (10/21-23) | N3: MTSU (10/28-30) | O3: LSUS (10/21-23) | P3: Linfield (11/11-13) | Q3: Jamestown (12/3-4) | R3: SFCT (1/27-29) | S3: PaU (10/14-16) | T3: BGSU #2 (10/14-15) | U3: Whitworth (10/21-22) | V3: PLNU (10/21-23) | W3: SFCC/MVC (11/11-13) | X3: TIFA (TN) (2/18-19) | Y3: OSU (2/11-12) | Z3: PNW (3/5) | AA3: LCC (1/27-29) | AB3: DBU (2/10-12) | AC3: BPCC (2/24-26) | AD3: UCA (3/11-12) | AE3: GC (11/12-13) | AF3: CUI (1/28-29 | AG3: IFA (3/13-14) | AH3: PSCFA-S (2/24-26) | AI3: PSCFA-F (12/2-4) | AJ3: BGSU2 (2/24) | AS3: over 6/2nd host | AT3: Total Points | AU3: Tournament Count | AV3: Best Top 6 (National Rank) | AW3: 1st Tie Breaker | AX3: 2nd Tie Breaker | AY3: 3rd Tie Breaker | AZ3: 4th Tie Breaker
B4: BPCC | C4: 29 | G4: 5 | K4: 12 | O4: 19 | Q4: 8 | R4: 18 | AB4: 16 | AD4: 12 | AT4: =SUM($C4:$AS4) -> 119 | AU4: =COUNTA(C4:AR4) -> 8 | AV4: =IF($AU4<=6,SUM($C4:$AR4),SUMPRODUCT(LARGE($C4:$AR4,{1,2,3,4,5,6}))) -> 106 | AW4: =IF(AND($AU4>=6,AV4=AV5),"Manual Calc Needed","") ->  | AX4: =IF(AW4= "","",IFERROR(SUMPRODUCT(LARGE($C4:$AR4,{1,2,3,4})), "")) ->  | AY4: =IF(AX4<>"",(IFERROR(SUMPRODUCT(LARGE($C4:$AR4,{1,2,3,4,5,6,7})),"")),"") ->  | AZ4: =IF(AY4<>"",(IFERROR(SUMPRODUCT(LARGE($C4:$AR4,{1,2,3,4,5,6,7,8})),"")),"") -> 
B5: CasC | D5: 6 | P5: 9 | AG5: 7 | AT5: 22 | AU5: 3 | AV5: =IF($AU5<=6,SUM($C5:$AR5),SUMPRODUCT(LARGE($C5:$AR5,{1,2,3,4,5,6}))) -> 22 | AX5: =IF(AW5= "","",IFERROR(SUMPRODUCT(LARGE($C5:$AR5,{1,2,3,4})), "")) ->  | AY5: =IF(AX5<>"",(IFERROR(SUMPRODUCT(LARGE($C5:$AR5,{1,2,3,4,5,6,7})),"")),"") ->  | AZ5: =IF(AY5<>"",(IFERROR(SUMPRODUCT(LARGE($C5:$AR5,{1,2,3,4,5,6,7,8})),"")),"") -> 
B6: CEI | P6: 4 | Y6: 13 | AT6: 17 | AU6: 2 | AV6: =IF($AU6<=6,SUM($C6:$AR6),SUMPRODUCT(LARGE($C6:$AR6,{1,2,3,4,5,6}))) -> 17 | AX6: =IF(AW6= "","",IFERROR(SUMPRODUCT(LARGE($C6:$AR6,{1,2,3,4})), "")) ->  | AY6: =IF(AX6<>"",(IFERROR(SUMPRODUCT(LARGE($C6:$AR6,{1,2,3,4,5,6,7})),"")),"") ->  | AZ6: =IF(AY6<>"",(IFERROR(SUMPRODUCT(LARGE($C6:$AR6,{1,2,3,4,5,6,7,8})),"")),"") -> 
B7: CerC | AE7: 7 | AH7: 8 | AI7: 2 | AT7: 17 | AU7: 3 | AV7: =IF($AU7<=6,SUM($C7:$AR7),SUMPRODUCT(LARGE($C7:$AR7,{1,2,3,4,5,6}))) -> 17 | AX7: =IF(AW7= "","",IFERROR(SUMPRODUCT(LARGE($C7:$AR7,{1,2,3,4})), "")) ->  | AY7: =IF(AX7<>"",(IFERROR(SUMPRODUCT(LARGE($C7:$AR7,{1,2,3,4,5,6,7})),"")),"") ->  | AZ7: =IF(AY7<>"",(IFERROR(SUMPRODUCT(LARGE($C7:$AR7,{1,2,3,4,5,6,7,8})),"")),"") -> 
B8: CSCC | M8: 1 | AT8: 1 | AU8: 1 | AV8: =IF($AU8<=6,SUM($C8:$AR8),SUMPRODUCT(LARGE($C8:$AR8,{1,2,3,4,5,6}))) -> 1 | AX8: =IF(AW8= "","",IFERROR(SUMPRODUCT(LARGE($C8:$AR8,{1,2,3,4})), "")) ->  | AY8: =IF(AX8<>"",(IFERROR(SUMPRODUCT(LARGE($C8:$AR8,{1,2,3,4,5,6,7})),"")),"") ->  | AZ8: =IF(AY8<>"",(IFERROR(SUMPRODUCT(LARGE($C8:$AR8,{1,2,3,4,5,6,7,8})),"")),"") -> 
B9: CSI | D9: =3+3+2 -> 8 | P9: 16 | AA9: 12 | AT9: 36 | AU9: 3 | AV9: =IF($AU9<=6,SUM($C9:$AR9),SUMPRODUCT(LARGE($C9:$AR9,{1,2,3,4,5,6}))) -> 36 | AX9: =IF(AW9= "","",IFERROR(SUMPRODUCT(LARGE($C9:$AR9,{1,2,3,4})), "")) ->  | AY9: =IF(AX9<>"",(IFERROR(SUMPRODUCT(LARGE($C9:$AR9,{1,2,3,4,5,6,7})),"")),"") ->  | AZ9: =IF(AY9<>"",(IFERROR(SUMPRODUCT(LARGE($C9:$AR9,{1,2,3,4,5,6,7,8})),"")),"") -> 
B10: CTC | P10: 2 | AT10: 2 | AU10: 1 | AV10: =IF($AU10<=6,SUM($C10:$AR10),SUMPRODUCT(LARGE($C10:$AR10,{1,2,3,4,5,6}))) -> 2 | AX10: =IF(AW10= "","",IFERROR(SUMPRODUCT(LARGE($C10:$AR10,{1,2,3,4})), "")) ->  | AY10: =IF(AX10<>"",(IFERROR(SUMPRODUCT(LARGE($C10:$AR10,{1,2,3,4,5,6,7})),"")),"") ->  | AZ10: =IF(AY10<>"",(IFERROR(SUMPRODUCT(LARGE($C10:$AR10,{1,2,3,4,5,6,7,8})),"")),"") -> 
B11: CWI | D11: =5+3+3 -> 11 | I11: 48 | P11: 45 | AA11: 27 | AT11: 131 | AU11: 4 | AV11: =IF($AU11<=6,SUM($C11:$AR11),SUMPRODUCT(LARGE($C11:$AR11,{1,2,3,4,5,6}))) -> 131 | AX11: =IF(AW11= "","",IFERROR(SUMPRODUCT(LARGE($C11:$AR11,{1,2,3,4})), "")) ->  | AY11: =IF(AX11<>"",(IFERROR(SUMPRODUCT(LARGE($C11:$AR11,{1,2,3,4,5,6,7})),"")),"") ->  | AZ11: =IF(AY11<>"",(IFERROR(SUMPRODUCT(LARGE($C11:$AR11,{1,2,3,4,5,6,7,8})),"")),"") -> 
B12: DVC | AI12: 12 | AT12: 12 | AU12: 1 | AV12: =IF($AU12<=6,SUM($C12:$AR12),SUMPRODUCT(LARGE($C12:$AR12,{1,2,3,4,5,6}))) -> 12 | AX12: =IF(AW12= "","",IFERROR(SUMPRODUCT(LARGE($C12:$AR12,{1,2,3,4})), "")) ->  | AY12: =IF(AX12<>"",(IFERROR(SUMPRODUCT(LARGE($C12:$AR12,{1,2,3,4,5,6,7})),"")),"") ->  | AZ12: =IF(AY12<>"",(IFERROR(SUMPRODUCT(LARGE($C12:$AR12,{1,2,3,4,5,6,7,8})),"")),"") -> 
B13: ECC | AG13: 22 | AH13: 21 | AI13: 43 | AT13: 86 | AU13: 3 | AV13: =IF($AU13<=6,SUM($C13:$AR13),SUMPRODUCT(LARGE($C13:$AR13,{1,2,3,4,5,6}))) -> 86 | AX13: =IF(AW13= "","",IFERROR(SUMPRODUCT(LARGE($C13:$AR13,{1,2,3,4})), "")) ->  | AY13: =IF(AX13<>"",(IFERROR(SUMPRODUCT(LARGE($C13:$AR13,{1,2,3,4,5,6,7})),"")),"") ->  | AZ13: =IF(AY13<>"",(IFERROR(SUMPRODUCT(LARGE($C13:$AR13,{1,2,3,4,5,6,7,8})),"")),"") -> 
B14: EgCC | Y14: 13 | AT14: 13 | AU14: 1 | AV14: =IF($AU14<=6,SUM($C14:$AR14),SUMPRODUCT(LARGE($C14:$AR14,{1,2,3,4,5,6}))) -> 13 | AX14: =IF(AW14= "","",IFERROR(SUMPRODUCT(LARGE($C14:$AR14,{1,2,3,4})), "")) ->  | AY14: =IF(AX14<>"",(IFERROR(SUMPRODUCT(LARGE($C14:$AR14,{1,2,3,4,5,6,7})),"")),"") ->  | AZ14: =IF(AY14<>"",(IFERROR(SUMPRODUCT(LARGE($C14:$AR14,{1,2,3,4,5,6,7,8})),"")),"") -> 
B15: EPCC | AE15: 5 | AG15: 6 | AT15: 11 | AU15: 2 | AV15: =IF($AU15<=6,SUM($C15:$AR15),SUMPRODUCT(LARGE($C15:$AR15,{1,2,3,4,5,6}))) -> 11 | AX15: =IF(AW15= "","",IFERROR(SUMPRODUCT(LARGE($C15:$AR15,{1,2,3,4})), "")) ->  | AY15: =IF(AX15<>"",(IFERROR(SUMPRODUCT(LARGE($C15:$AR15,{1,2,3,4,5,6,7})),"")),"") ->  | AZ15: =IF(AY15<>"",(IFERROR(SUMPRODUCT(LARGE($C15:$AR15,{1,2,3,4,5,6,7,8})),"")),"") -> 
B16: FSCJ | J16: 13 | AT16: 13 | AU16: 1 | AV16: =IF($AU16<=6,SUM($C16:$AR16),SUMPRODUCT(LARGE($C16:$AR16,{1,2,3,4,5,6}))) -> 13 | AX16: =IF(AW16= "","",IFERROR(SUMPRODUCT(LARGE($C16:$AR16,{1,2,3,4})), "")) ->  | AY16: =IF(AX16<>"",(IFERROR(SUMPRODUCT(LARGE($C16:$AR16,{1,2,3,4,5,6,7})),"")),"") ->  | AZ16: =IF(AY16<>"",(IFERROR(SUMPRODUCT(LARGE($C16:$AR16,{1,2,3,4,5,6,7,8})),"")),"") -> 
B17: GC | V17: 11 | AE17: 10 | AH17: 30 | AI17: 10 | AT17: 61 | AU17: 4 | AV17: =IF($AU17<=6,SUM($C17:$AR17),SUMPRODUCT(LARGE($C17:$AR17,{1,2,3,4,5,6}))) -> 61 | AX17: =IF(AW17= "","",IFERROR(SUMPRODUCT(LARGE($C17:$AR17,{1,2,3,4})), "")) ->  | AY17: =IF(AX17<>"",(IFERROR(SUMPRODUCT(LARGE($C17:$AR17,{1,2,3,4,5,6,7})),"")),"") ->  | AZ17: =IF(AY17<>"",(IFERROR(SUMPRODUCT(LARGE($C17:$AR17,{1,2,3,4,5,6,7,8})),"")),"") -> 
B18: IVC | AE18: 12 | AH18: 6 | AI18: 18 | AT18: 36 | AU18: 3 | AV18: =IF($AU18<=6,SUM($C18:$AR18),SUMPRODUCT(LARGE($C18:$AR18,{1,2,3,4,5,6}))) -> 36 | AX18: =IF(AW18= "","",IFERROR(SUMPRODUCT(LARGE($C18:$AR18,{1,2,3,4})), "")) ->  | AY18: =IF(AX18<>"",(IFERROR(SUMPRODUCT(LARGE($C18:$AR18,{1,2,3,4,5,6,7})),"")),"") ->  | AZ18: =IF(AY18<>"",(IFERROR(SUMPRODUCT(LARGE($C18:$AR18,{1,2,3,4,5,6,7,8})),"")),"") -> 
B19: JSCC | G19: 27 | N19: 19 | Q19: 22 | R19: 13 | T19: 7 | AC19: 22 | AD19: 13 | AT19: 123 | AU19: 7 | AV19: =IF($AU19<=6,SUM($C19:$AR19),SUMPRODUCT(LARGE($C19:$AR19,{1,2,3,4,5,6}))) -> 116 | AX19: =IF(AW19= "","",IFERROR(SUMPRODUCT(LARGE($C19:$AR19,{1,2,3,4})), "")) ->  | AY19: =IF(AX19<>"",(IFERROR(SUMPRODUCT(LARGE($C19:$AR19,{1,2,3,4,5,6,7})),"")),"") ->  | AZ19: =IF(AY19<>"",(IFERROR(SUMPRODUCT(LARGE($C19:$AR19,{1,2,3,4,5,6,7,8})),"")),"") -> 
B20: LAVC | AI20: 4 | AT20: 4 | AU20: 1 | AV20: =IF($AU20<=6,SUM($C20:$AR20),SUMPRODUCT(LARGE($C20:$AR20,{1,2,3,4,5,6}))) -> 4 | AX20: =IF(AW20= "","",IFERROR(SUMPRODUCT(LARGE($C20:$AR20,{1,2,3,4})), "")) ->  | AY20: =IF(AX20<>"",(IFERROR(SUMPRODUCT(LARGE($C20:$AR20,{1,2,3,4,5,6,7})),"")),"") ->  | AZ20: =IF(AY20<>"",(IFERROR(SUMPRODUCT(LARGE($C20:$AR20,{1,2,3,4,5,6,7,8})),"")),"") -> 
B21: LCC | I21: 10 | U21: 11 | Y21: 21 | Z21: 18 | AA21: 21 | AT21: 81 | AU21: 5 | AV21: =IF($AU21<=6,SUM($C21:$AR21),SUMPRODUCT(LARGE($C21:$AR21,{1,2,3,4,5,6}))) -> 81 | AX21: =IF(AW21= "","",IFERROR(SUMPRODUCT(LARGE($C21:$AR21,{1,2,3,4})), "")) ->  | AY21: =IF(AX21<>"",(IFERROR(SUMPRODUCT(LARGE($C21:$AR21,{1,2,3,4,5,6,7})),"")),"") ->  | AZ21: =IF(AY21<>"",(IFERROR(SUMPRODUCT(LARGE($C21:$AR21,{1,2,3,4,5,6,7,8})),"")),"") -> 
B22: Lee | C22: 1 | G22: 13 | K22: 30 | O22: 30 | Q22: 19 | R22: 37 | AB22: 36 | AD22: 31 | AT22: 197 | AU22: 8 | AV22: =IF($AU22<=6,SUM($C22:$AR22),SUMPRODUCT(LARGE($C22:$AR22,{1,2,3,4,5,6}))) -> 183 | AX22: =IF(AW22= "","",IFERROR(SUMPRODUCT(LARGE($C22:$AR22,{1,2,3,4})), "")) ->  | AY22: =IF(AX22<>"",(IFERROR(SUMPRODUCT(LARGE($C22:$AR22,{1,2,3,4,5,6,7})),"")),"") ->  | AZ22: =IF(AY22<>"",(IFERROR(SUMPRODUCT(LARGE($C22:$AR22,{1,2,3,4,5,6,7,8})),"")),"") -> 
B23: LPC | AG23: 2 | AT23: 2 | AU23: 1 | AV23: =IF($AU23<=6,SUM($C23:$AR23),SUMPRODUCT(LARGE($C23:$AR23,{1,2,3,4,5,6}))) -> 2 | AX23: =IF(AW23= "","",IFERROR(SUMPRODUCT(LARGE($C23:$AR23,{1,2,3,4})), "")) ->  | AY23: =IF(AX23<>"",(IFERROR(SUMPRODUCT(LARGE($C23:$AR23,{1,2,3,4,5,6,7})),"")),"") ->  | AZ23: =IF(AY23<>"",(IFERROR(SUMPRODUCT(LARGE($C23:$AR23,{1,2,3,4,5,6,7,8})),"")),"") -> 
B24: MHCC | Z24: 2 | AT24: 2 | AU24: 1 | AV24: =IF($AU24<=6,SUM($C24:$AR24),SUMPRODUCT(LARGE($C24:$AR24,{1,2,3,4,5,6}))) -> 2 | AX24: =IF(AW24= "","",IFERROR(SUMPRODUCT(LARGE($C24:$AR24,{1,2,3,4})), "")) ->  | AY24: =IF(AX24<>"",(IFERROR(SUMPRODUCT(LARGE($C24:$AR24,{1,2,3,4,5,6,7})),"")),"") ->  | AZ24: =IF(AY24<>"",(IFERROR(SUMPRODUCT(LARGE($C24:$AR24,{1,2,3,4,5,6,7,8})),"")),"") -> 
B25: MHCC | AJ25: 1 | AT25: 1 | AU25: 1 | AV25: =IF($AU25<=6,SUM($C25:$AR25),SUMPRODUCT(LARGE($C25:$AR25,{1,2,3,4,5,6}))) -> 1 | AX25: =IF(AW25= "","",IFERROR(SUMPRODUCT(LARGE($C25:$AR25,{1,2,3,4})), "")) ->  | AY25: =IF(AX25<>"",(IFERROR(SUMPRODUCT(LARGE($C25:$AR25,{1,2,3,4,5,6,7})),"")),"") ->  | AZ25: =IF(AY25<>"",(IFERROR(SUMPRODUCT(LARGE($C25:$AR25,{1,2,3,4,5,6,7,8})),"")),"") -> 
B26: MoorC | AF26: 9 | AI26: 35 | AT26: 44 | AU26: 2 | AV26: =IF($AU26<=6,SUM($C26:$AR26),SUMPRODUCT(LARGE($C26:$AR26,{1,2,3,4,5,6}))) -> 44 | AX26: =IF(AW26= "","",IFERROR(SUMPRODUCT(LARGE($C26:$AR26,{1,2,3,4})), "")) ->  | AY26: =IF(AX26<>"",(IFERROR(SUMPRODUCT(LARGE($C26:$AR26,{1,2,3,4,5,6,7})),"")),"") ->  | AZ26: =IF(AY26<>"",(IFERROR(SUMPRODUCT(LARGE($C26:$AR26,{1,2,3,4,5,6,7,8})),"")),"") -> 
B27: MSAC | AE27: 18 | AF27: 5 | AH27: 22 | AI27: 18 | AT27: 63 | AU27: 4 | AV27: =IF($AU27<=6,SUM($C27:$AR27),SUMPRODUCT(LARGE($C27:$AR27,{1,2,3,4,5,6}))) -> 63 | AX27: =IF(AW27= "","",IFERROR(SUMPRODUCT(LARGE($C27:$AR27,{1,2,3,4})), "")) ->  | AY27: =IF(AX27<>"",(IFERROR(SUMPRODUCT(LARGE($C27:$AR27,{1,2,3,4,5,6,7})),"")),"") ->  | AZ27: =IF(AY27<>"",(IFERROR(SUMPRODUCT(LARGE($C27:$AR27,{1,2,3,4,5,6,7,8})),"")),"") -> 
B28: MSD | AF28: 5 | AH28: 6 | AI28: 7 | AT28: 18 | AU28: 3 | AV28: =IF($AU28<=6,SUM($C28:$AR28),SUMPRODUCT(LARGE($C28:$AR28,{1,2,3,4,5,6}))) -> 18 | AX28: =IF(AW28= "","",IFERROR(SUMPRODUCT(LARGE($C28:$AR28,{1,2,3,4})), "")) ->  | AY28: =IF(AX28<>"",(IFERROR(SUMPRODUCT(LARGE($C28:$AR28,{1,2,3,4,5,6,7})),"")),"") ->  | AZ28: =IF(AY28<>"",(IFERROR(SUMPRODUCT(LARGE($C28:$AR28,{1,2,3,4,5,6,7,8})),"")),"") -> 
B29: MVC | J29: 1 | AT29: 1 | AU29: 1 | AV29: =IF($AU29<=6,SUM($C29:$AR29),SUMPRODUCT(LARGE($C29:$AR29,{1,2,3,4,5,6}))) -> 1 | AX29: =IF(AW29= "","",IFERROR(SUMPRODUCT(LARGE($C29:$AR29,{1,2,3,4})), "")) ->  | AY29: =IF(AX29<>"",(IFERROR(SUMPRODUCT(LARGE($C29:$AR29,{1,2,3,4,5,6,7})),"")),"") ->  | AZ29: =IF(AY29<>"",(IFERROR(SUMPRODUCT(LARGE($C29:$AR29,{1,2,3,4,5,6,7,8})),"")),"") -> 
B30: NVCC | AH30: 6 | AT30: 6 | AU30: 1 | AV30: =IF($AU30<=6,SUM($C30:$AR30),SUMPRODUCT(LARGE($C30:$AR30,{1,2,3,4,5,6}))) -> 6 | AX30: =IF(AW30= "","",IFERROR(SUMPRODUCT(LARGE($C30:$AR30,{1,2,3,4})), "")) ->  | AY30: =IF(AX30<>"",(IFERROR(SUMPRODUCT(LARGE($C30:$AR30,{1,2,3,4,5,6,7})),"")),"") ->  | AZ30: =IF(AY30<>"",(IFERROR(SUMPRODUCT(LARGE($C30:$AR30,{1,2,3,4,5,6,7,8})),"")),"") -> 
B31: NWC | D31: 1 | I31: 12 | P31: 13 | AT31: 26 | AU31: 3 | AV31: =IF($AU31<=6,SUM($C31:$AR31),SUMPRODUCT(LARGE($C31:$AR31,{1,2,3,4,5,6}))) -> 26 | AX31: =IF(AW31= "","",IFERROR(SUMPRODUCT(LARGE($C31:$AR31,{1,2,3,4})), "")) ->  | AY31: =IF(AX31<>"",(IFERROR(SUMPRODUCT(LARGE($C31:$AR31,{1,2,3,4,5,6,7})),"")),"") ->  | AZ31: =IF(AY31<>"",(IFERROR(SUMPRODUCT(LARGE($C31:$AR31,{1,2,3,4,5,6,7,8})),"")),"") -> 
B32: OCC | AE32: 25 | AH32: 16 | AI32: 26 | AT32: 67 | AU32: 3 | AV32: =IF($AU32<=6,SUM($C32:$AR32),SUMPRODUCT(LARGE($C32:$AR32,{1,2,3,4,5,6}))) -> 67 | AX32: =IF(AW32= "","",IFERROR(SUMPRODUCT(LARGE($C32:$AR32,{1,2,3,4})), "")) ->  | AY32: =IF(AX32<>"",(IFERROR(SUMPRODUCT(LARGE($C32:$AR32,{1,2,3,4,5,6,7})),"")),"") ->  | AZ32: =IF(AY32<>"",(IFERROR(SUMPRODUCT(LARGE($C32:$AR32,{1,2,3,4,5,6,7,8})),"")),"") -> 
B33: OCTC | T33: 1 | AT33: 1 | AU33: 1 | AV33: =IF($AU33<=6,SUM($C33:$AR33),SUMPRODUCT(LARGE($C33:$AR33,{1,2,3,4,5,6}))) -> 1 | AX33: =IF(AW33= "","",IFERROR(SUMPRODUCT(LARGE($C33:$AR33,{1,2,3,4})), "")) ->  | AY33: =IF(AX33<>"",(IFERROR(SUMPRODUCT(LARGE($C33:$AR33,{1,2,3,4,5,6,7})),"")),"") ->  | AZ33: =IF(AY33<>"",(IFERROR(SUMPRODUCT(LARGE($C33:$AR33,{1,2,3,4,5,6,7,8})),"")),"") -> 
B34: PC | V34: 2 | AD34: 2 | AH34: 4 | AI34: 5 | AT34: 13 | AU34: 4 | AV34: =IF($AU34<=6,SUM($C34:$AR34),SUMPRODUCT(LARGE($C34:$AR34,{1,2,3,4,5,6}))) -> 13 | AX34: =IF(AW34= "","",IFERROR(SUMPRODUCT(LARGE($C34:$AR34,{1,2,3,4})), "")) ->  | AY34: =IF(AX34<>"",(IFERROR(SUMPRODUCT(LARGE($C34:$AR34,{1,2,3,4,5,6,7})),"")),"") ->  | AZ34: =IF(AY34<>"",(IFERROR(SUMPRODUCT(LARGE($C34:$AR34,{1,2,3,4,5,6,7,8})),"")),"") -> 
B35: PCC | AD35: 9 | AH35: 7 | AT35: 16 | AU35: 2 | AV35: =IF($AU35<=6,SUM($C35:$AR35),SUMPRODUCT(LARGE($C35:$AR35,{1,2,3,4,5,6}))) -> 16 | AX35: =IF(AW35= "","",IFERROR(SUMPRODUCT(LARGE($C35:$AR35,{1,2,3,4})), "")) ->  | AY35: =IF(AX35<>"",(IFERROR(SUMPRODUCT(LARGE($C35:$AR35,{1,2,3,4,5,6,7})),"")),"") ->  | AZ35: =IF(AY35<>"",(IFERROR(SUMPRODUCT(LARGE($C35:$AR35,{1,2,3,4,5,6,7,8})),"")),"") -> 
B36: PSCC | N36: 5 | X36: 11 | AT36: 16 | AU36: 2 | AV36: =IF($AU36<=6,SUM($C36:$AR36),SUMPRODUCT(LARGE($C36:$AR36,{1,2,3,4,5,6}))) -> 16 | AX36: =IF(AW36= "","",IFERROR(SUMPRODUCT(LARGE($C36:$AR36,{1,2,3,4})), "")) ->  | AY36: =IF(AX36<>"",(IFERROR(SUMPRODUCT(LARGE($C36:$AR36,{1,2,3,4,5,6,7})),"")),"") ->  | AZ36: =IF(AY36<>"",(IFERROR(SUMPRODUCT(LARGE($C36:$AR36,{1,2,3,4,5,6,7,8})),"")),"") -> 
B37: RHCC | V37: 8 | AD37: 10 | AF37: 1 | AI37: 9 | AT37: 28 | AU37: 4 | AV37: =IF($AU37<=6,SUM($C37:$AR37),SUMPRODUCT(LARGE($C37:$AR37,{1,2,3,4,5,6}))) -> 28 | AX37: =IF(AW37= "","",IFERROR(SUMPRODUCT(LARGE($C37:$AR37,{1,2,3,4})), "")) ->  | AY37: =IF(AX37<>"",(IFERROR(SUMPRODUCT(LARGE($C37:$AR37,{1,2,3,4,5,6,7})),"")),"") ->  | AZ37: =IF(AY37<>"",(IFERROR(SUMPRODUCT(LARGE($C37:$AR37,{1,2,3,4,5,6,7,8})),"")),"") -> 
B38: SaCC | AF38: 11 | AH38: 4 | AI38: 15 | AT38: 30 | AU38: 3 | AV38: =IF($AU38<=6,SUM($C38:$AR38),SUMPRODUCT(LARGE($C38:$AR38,{1,2,3,4,5,6}))) -> 30 | AX38: =IF(AW38= "","",IFERROR(SUMPRODUCT(LARGE($C38:$AR38,{1,2,3,4})), "")) ->  | AY38: =IF(AX38<>"",(IFERROR(SUMPRODUCT(LARGE($C38:$AR38,{1,2,3,4,5,6,7})),"")),"") ->  | AZ38: =IF(AY38<>"",(IFERROR(SUMPRODUCT(LARGE($C38:$AR38,{1,2,3,4,5,6,7,8})),"")),"") -> 
B39: SDMC | AH39: 2 | AT39: 2 | AU39: 1 | AV39: =IF($AU39<=6,SUM($C39:$AR39),SUMPRODUCT(LARGE($C39:$AR39,{1,2,3,4,5,6}))) -> 2 | AX39: =IF(AW39= "","",IFERROR(SUMPRODUCT(LARGE($C39:$AR39,{1,2,3,4})), "")) ->  | AY39: =IF(AX39<>"",(IFERROR(SUMPRODUCT(LARGE($C39:$AR39,{1,2,3,4,5,6,7})),"")),"") ->  | AZ39: =IF(AY39<>"",(IFERROR(SUMPRODUCT(LARGE($C39:$AR39,{1,2,3,4,5,6,7,8})),"")),"") -> 
B40: SFCC | L40: 4 | S40: 8 | W40: 1 | AT40: 13 | AU40: 3 | AV40: =IF($AU40<=6,SUM($C40:$AR40),SUMPRODUCT(LARGE($C40:$AR40,{1,2,3,4,5,6}))) -> 13 | AX40: =IF(AW40= "","",IFERROR(SUMPRODUCT(LARGE($C40:$AR40,{1,2,3,4})), "")) ->  | AY40: =IF(AX40<>"",(IFERROR(SUMPRODUCT(LARGE($C40:$AR40,{1,2,3,4,5,6,7})),"")),"") ->  | AZ40: =IF(AY40<>"",(IFERROR(SUMPRODUCT(LARGE($C40:$AR40,{1,2,3,4,5,6,7,8})),"")),"") -> 
B41: SJDC | V41: 16 | AT41: 16 | AU41: 1 | AV41: =IF($AU41<=6,SUM($C41:$AR41),SUMPRODUCT(LARGE($C41:$AR41,{1,2,3,4,5,6}))) -> 16 | AX41: =IF(AW41= "","",IFERROR(SUMPRODUCT(LARGE($C41:$AR41,{1,2,3,4})), "")) ->  | AY41: =IF(AX41<>"",(IFERROR(SUMPRODUCT(LARGE($C41:$AR41,{1,2,3,4,5,6,7})),"")),"") ->  | AZ41: =IF(AY41<>"",(IFERROR(SUMPRODUCT(LARGE($C41:$AR41,{1,2,3,4,5,6,7,8})),"")),"") -> 
B42: SMC | AH42: 4 | AI42: 15 | AT42: 19 | AU42: 2 | AV42: =IF($AU42<=6,SUM($C42:$AR42),SUMPRODUCT(LARGE($C42:$AR42,{1,2,3,4,5,6}))) -> 19 | AX42: =IF(AW42= "","",IFERROR(SUMPRODUCT(LARGE($C42:$AR42,{1,2,3,4})), "")) ->  | AY42: =IF(AX42<>"",(IFERROR(SUMPRODUCT(LARGE($C42:$AR42,{1,2,3,4,5,6,7})),"")),"") ->  | AZ42: =IF(AY42<>"",(IFERROR(SUMPRODUCT(LARGE($C42:$AR42,{1,2,3,4,5,6,7,8})),"")),"") -> 
B43: SoCC | AI43: 7 | AT43: 7 | AU43: 1 | AV43: =IF($AU43<=6,SUM($C43:$AR43),SUMPRODUCT(LARGE($C43:$AR43,{1,2,3,4,5,6}))) -> 7 | AW43: =IF(AND($AU43>=6,AV43=#REF!),"Manual Calc Needed","") ->  | AX43: =IF(AW43= "","",IFERROR(SUMPRODUCT(LARGE($C43:$AR43,{1,2,3,4})), "")) ->  | AY43: =IF(AX43<>"",(IFERROR(SUMPRODUCT(LARGE($C43:$AR43,{1,2,3,4,5,6,7})),"")),"") ->  | AZ43: =IF(AY43<>"",(IFERROR(SUMPRODUCT(LARGE($C43:$AR43,{1,2,3,4,5,6,7,8})),"")),"") -> 
B44: TaCC | Y44: 7 | AT44: 7 | AU44: 1 | AV44: =IF($AU44<=6,SUM($C44:$AR44),SUMPRODUCT(LARGE($C44:$AR44,{1,2,3,4,5,6}))) -> 7 | AW44: =IF(AND($AU44>=6,AV44=AV45),"Manual Calc Needed","") ->  | AX44: =IF(AW44= "","",IFERROR(SUMPRODUCT(LARGE($C44:$AR44,{1,2,3,4})), "")) ->  | AY44: =IF(AX44<>"",(IFERROR(SUMPRODUCT(LARGE($C44:$AR44,{1,2,3,4,5,6,7})),"")),"") ->  | AZ44: =IF(AY44<>"",(IFERROR(SUMPRODUCT(LARGE($C44:$AR44,{1,2,3,4,5,6,7,8})),"")),"") -> 
B45: TC | F45: 1 | AT45: =SUM($C45:$AS45) -> 1 | AU45: 1 | AV45: =IF($AU45<=6,SUM($C45:$AR45),SUMPRODUCT(LARGE($C45:$AR45,{1,2,3,4,5,6}))) -> 1 | AW45: =IF(AND($AU45>=6,AV45=AV46),"Manual Calc Needed","") ->  | AX45: =IF(AW45= "","",IFERROR(SUMPRODUCT(LARGE($C45:$AR45,{1,2,3,4})), "")) ->  | AY45: =IF(AX45<>"",(IFERROR(SUMPRODUCT(LARGE($C45:$AR45,{1,2,3,4,5,6,7})),"")),"") ->  | AZ45: =IF(AY45<>"",(IFERROR(SUMPRODUCT(LARGE($C45:$AR45,{1,2,3,4,5,6,7,8})),"")),"") -> 
B46: TCC | L46: 6 | P46: 2 | AT46: =SUM($C46:$AS46) -> 8 | AU46: 2 | AV46: =IF($AU46<=6,SUM($C46:$AR46),SUMPRODUCT(LARGE($C46:$AR46,{1,2,3,4,5,6}))) -> 8 | AW46: =IF(AND($AU46>=6,AV46=AV47),"Manual Calc Needed","") ->  | AX46: =IF(AW46= "","",IFERROR(SUMPRODUCT(LARGE($C46:$AR46,{1,2,3,4})), "")) ->  | AY46: =IF(AX46<>"",(IFERROR(SUMPRODUCT(LARGE($C46:$AR46,{1,2,3,4,5,6,7})),"")),"") ->  | AZ46: =IF(AY46<>"",(IFERROR(SUMPRODUCT(LARGE($C46:$AR46,{1,2,3,4,5,6,7,8})),"")),"") -> 
B47: UACCB | K47: 3 | R47: 5 | AC47: 11 | AD47: 8 | AT47: =SUM($C47:$AS47) -> 27 | AU47: 4 | AV47: =IF($AU47<=6,SUM($C47:$AR47),SUMPRODUCT(LARGE($C47:$AR47,{1,2,3,4,5,6}))) -> 27 | AW47: =IF(AND($AU47>=6,AV47=AV48),"Manual Calc Needed","") ->  | AX47: =IF(AW47= "","",IFERROR(SUMPRODUCT(LARGE($C47:$AR47,{1,2,3,4})), "")) ->  | AY47: =IF(AX47<>"",(IFERROR(SUMPRODUCT(LARGE($C47:$AR47,{1,2,3,4,5,6,7})),"")),"") ->  | AZ47: =IF(AY47<>"",(IFERROR(SUMPRODUCT(LARGE($C47:$AR47,{1,2,3,4,5,6,7,8})),"")),"") -> 
B48: WSCC | AT48: =SUM($C48:$AS48) -> 0 | AU48: 0 | AV48: =IF($AU48<=6,SUM($C48:$AR48),SUMPRODUCT(LARGE($C48:$AR48,{1,2,3,4,5,6}))) -> 0 | AW48: =IF(AND($AU48>=6,AV48=AV49),"Manual Calc Needed","") ->  | AX48: =IF(AW48= "","",IFERROR(SUMPRODUCT(LARGE($C48:$AR48,{1,2,3,4})), "")) ->  | AY48: =IF(AX48<>"",(IFERROR(SUMPRODUCT(LARGE($C48:$AR48,{1,2,3,4,5,6,7})),"")),"") ->  | AZ48: =IF(AY48<>"",(IFERROR(SUMPRODUCT(LARGE($C48:$AR48,{1,2,3,4,5,6,7,8})),"")),"") -> 
AT49: =SUM($C49:$AS49) -> 0 | AU49: =COUNTA(C49:AR49) -> 0 | AV49: =IF($AU49<=6,SUM($C49:$AR49),SUMPRODUCT(LARGE($C49:$AR49,{1,2,3,4,5,6}))) -> 0 | AW49: =IF(AND($AU49>=6,AV49=AV50),"Manual Calc Needed","") ->  | AX49: =IF(AW49= "","",IFERROR(SUMPRODUCT(LARGE($C49:$AR49,{1,2,3,4})), "")) ->  | AY49: =IF(AX49<>"",(IFERROR(SUMPRODUCT(LARGE($C49:$AR49,{1,2,3,4,5,6,7})),"")),"") ->  | AZ49: =IF(AY49<>"",(IFERROR(SUMPRODUCT(LARGE($C49:$AR49,{1,2,3,4,5,6,7,8})),"")),"") -> 
AT50: 0 | AU50: 0 | AV50: =IF($AU50<=6,SUM($C50:$AR50),SUMPRODUCT(LARGE($C50:$AR50,{1,2,3,4,5,6}))) -> 0 | AX50: =IF(AW50= "","",IFERROR(SUMPRODUCT(LARGE($C50:$AR50,{1,2,3,4})), "")) ->  | AY50: =IF(AX50<>"",(IFERROR(SUMPRODUCT(LARGE($C50:$AR50,{1,2,3,4,5,6,7})),"")),"") ->  | AZ50: =IF(AY50<>"",(IFERROR(SUMPRODUCT(LARGE($C50:$AR50,{1,2,3,4,5,6,7,8})),"")),"") -> 
AT51: 0 | AU51: 0 | AV51: =IF($AU51<=6,SUM($C51:$AR51),SUMPRODUCT(LARGE($C51:$AR51,{1,2,3,4,5,6}))) -> 0 | AX51: =IF(AW51= "","",IFERROR(SUMPRODUCT(LARGE($C51:$AR51,{1,2,3,4})), "")) ->  | AY51: =IF(AX51<>"",(IFERROR(SUMPRODUCT(LARGE($C51:$AR51,{1,2,3,4,5,6,7})),"")),"") ->  | AZ51: =IF(AY51<>"",(IFERROR(SUMPRODUCT(LARGE($C51:$AR51,{1,2,3,4,5,6,7,8})),"")),"") -> 
AT52: 0 | AU52: 0 | AV52: =IF($AU52<=6,SUM($C52:$AR52),SUMPRODUCT(LARGE($C52:$AR52,{1,2,3,4,5,6}))) -> 0 | AX52: =IF(AW52= "","",IFERROR(SUMPRODUCT(LARGE($C52:$AR52,{1,2,3,4})), "")) ->  | AY52: =IF(AX52<>"",(IFERROR(SUMPRODUCT(LARGE($C52:$AR52,{1,2,3,4,5,6,7})),"")),"") ->  | AZ52: =IF(AY52<>"",(IFERROR(SUMPRODUCT(LARGE($C52:$AR52,{1,2,3,4,5,6,7,8})),"")),"") -> 
AT53: 0 | AU53: 0 | AV53: =IF($AU53<=6,SUM($C53:$AR53),SUMPRODUCT(LARGE($C53:$AR53,{1,2,3,4,5,6}))) -> 0 | AX53: =IF(AW53= "","",IFERROR(SUMPRODUCT(LARGE($C53:$AR53,{1,2,3,4})), "")) ->  | AY53: =IF(AX53<>"",(IFERROR(SUMPRODUCT(LARGE($C53:$AR53,{1,2,3,4,5,6,7})),"")),"") ->  | AZ53: =IF(AY53<>"",(IFERROR(SUMPRODUCT(LARGE($C53:$AR53,{1,2,3,4,5,6,7,8})),"")),"") -> 
AT54: 0 | AU54: 0 | AV54: =IF($AU54<=6,SUM($C54:$AR54),SUMPRODUCT(LARGE($C54:$AR54,{1,2,3,4,5,6}))) -> 0 | AX54: =IF(AW54= "","",IFERROR(SUMPRODUCT(LARGE($C54:$AR54,{1,2,3,4})), "")) ->  | AY54: =IF(AX54<>"",(IFERROR(SUMPRODUCT(LARGE($C54:$AR54,{1,2,3,4,5,6,7})),"")),"") ->  | AZ54: =IF(AY54<>"",(IFERROR(SUMPRODUCT(LARGE($C54:$AR54,{1,2,3,4,5,6,7,8})),"")),"") -> 
AT55: 0 | AU55: 0 | AV55: =IF($AU55<=6,SUM($C55:$AR55),SUMPRODUCT(LARGE($C55:$AR55,{1,2,3,4,5,6}))) -> 0 | AX55: =IF(AW55= "","",IFERROR(SUMPRODUCT(LARGE($C55:$AR55,{1,2,3,4})), "")) ->  | AY55: =IF(AX55<>"",(IFERROR(SUMPRODUCT(LARGE($C55:$AR55,{1,2,3,4,5,6,7})),"")),"") ->  | AZ55: =IF(AY55<>"",(IFERROR(SUMPRODUCT(LARGE($C55:$AR55,{1,2,3,4,5,6,7,8})),"")),"") -> 
AT56: 0 | AU56: 0 | AV56: =IF($AU56<=6,SUM($C56:$AR56),SUMPRODUCT(LARGE($C56:$AR56,{1,2,3,4,5,6}))) -> 0 | AX56: =IF(AW56= "","",IFERROR(SUMPRODUCT(LARGE($C56:$AR56,{1,2,3,4})), "")) ->  | AY56: =IF(AX56<>"",(IFERROR(SUMPRODUCT(LARGE($C56:$AR56,{1,2,3,4,5,6,7})),"")),"") ->  | AZ56: =IF(AY56<>"",(IFERROR(SUMPRODUCT(LARGE($C56:$AR56,{1,2,3,4,5,6,7,8})),"")),"") -> 
AT57: 0 | AU57: 0 | AV57: =IF($AU57<=6,SUM($C57:$AR57),SUMPRODUCT(LARGE($C57:$AR57,{1,2,3,4,5,6}))) -> 0 | AX57: =IF(AW57= "","",IFERROR(SUMPRODUCT(LARGE($C57:$AR57,{1,2,3,4})), "")) ->  | AY57: =IF(AX57<>"",(IFERROR(SUMPRODUCT(LARGE($C57:$AR57,{1,2,3,4,5,6,7})),"")),"") ->  | AZ57: =IF(AY57<>"",(IFERROR(SUMPRODUCT(LARGE($C57:$AR57,{1,2,3,4,5,6,7,8})),"")),"") -> 
AT58: 0 | AU58: 0 | AV58: =IF($AU58<=6,SUM($C58:$AR58),SUMPRODUCT(LARGE($C58:$AR58,{1,2,3,4,5,6}))) -> 0 | AX58: =IF(AW58= "","",IFERROR(SUMPRODUCT(LARGE($C58:$AR58,{1,2,3,4})), "")) ->  | AY58: =IF(AX58<>"",(IFERROR(SUMPRODUCT(LARGE($C58:$AR58,{1,2,3,4,5,6,7})),"")),"") ->  | AZ58: =IF(AY58<>"",(IFERROR(SUMPRODUCT(LARGE($C58:$AR58,{1,2,3,4,5,6,7,8})),"")),"") -> 
AT59: 0 | AU59: 0 | AV59: =IF($AU59<=6,SUM($C59:$AR59),SUMPRODUCT(LARGE($C59:$AR59,{1,2,3,4,5,6}))) -> 0 | AX59: =IF(AW59= "","",IFERROR(SUMPRODUCT(LARGE($C59:$AR59,{1,2,3,4})), "")) ->  | AY59: =IF(AX59<>"",(IFERROR(SUMPRODUCT(LARGE($C59:$AR59,{1,2,3,4,5,6,7})),"")),"") ->  | AZ59: =IF(AY59<>"",(IFERROR(SUMPRODUCT(LARGE($C59:$AR59,{1,2,3,4,5,6,7,8})),"")),"") -> 
AT60: 0 | AU60: 0 | AV60: =IF($AU60<=6,SUM($C60:$AR60),SUMPRODUCT(LARGE($C60:$AR60,{1,2,3,4,5,6}))) -> 0 | AX60: =IF(AW60= "","",IFERROR(SUMPRODUCT(LARGE($C60:$AR60,{1,2,3,4})), "")) ->  | AY60: =IF(AX60<>"",(IFERROR(SUMPRODUCT(LARGE($C60:$AR60,{1,2,3,4,5,6,7})),"")),"") ->  | AZ60: =IF(AY60<>"",(IFERROR(SUMPRODUCT(LARGE($C60:$AR60,{1,2,3,4,5,6,7,8})),"")),"") -> 
AT61: 0 | AU61: 0 | AV61: =IF($AU61<=6,SUM($C61:$AR61),SUMPRODUCT(LARGE($C61:$AR61,{1,2,3,4,5,6}))) -> 0 | AX61: =IF(AW61= "","",IFERROR(SUMPRODUCT(LARGE($C61:$AR61,{1,2,3,4})), "")) ->  | AY61: =IF(AX61<>"",(IFERROR(SUMPRODUCT(LARGE($C61:$AR61,{1,2,3,4,5,6,7})),"")),"") ->  | AZ61: =IF(AY61<>"",(IFERROR(SUMPRODUCT(LARGE($C61:$AR61,{1,2,3,4,5,6,7,8})),"")),"") -> 
AT62: 0 | AU62: 0 | AV62: =IF($AU62<=6,SUM($C62:$AR62),SUMPRODUCT(LARGE($C62:$AR62,{1,2,3,4,5,6}))) -> 0 | AX62: =IF(AW62= "","",IFERROR(SUMPRODUCT(LARGE($C62:$AR62,{1,2,3,4})), "")) ->  | AY62: =IF(AX62<>"",(IFERROR(SUMPRODUCT(LARGE($C62:$AR62,{1,2,3,4,5,6,7})),"")),"") ->  | AZ62: =IF(AY62<>"",(IFERROR(SUMPRODUCT(LARGE($C62:$AR62,{1,2,3,4,5,6,7,8})),"")),"") -> 
AT63: 0 | AU63: 0 | AV63: =IF($AU63<=6,SUM($C63:$AR63),SUMPRODUCT(LARGE($C63:$AR63,{1,2,3,4,5,6}))) -> 0 | AX63: =IF(AW63= "","",IFERROR(SUMPRODUCT(LARGE($C63:$AR63,{1,2,3,4})), "")) ->  | AY63: =IF(AX63<>"",(IFERROR(SUMPRODUCT(LARGE($C63:$AR63,{1,2,3,4,5,6,7})),"")),"") ->  | AZ63: =IF(AY63<>"",(IFERROR(SUMPRODUCT(LARGE($C63:$AR63,{1,2,3,4,5,6,7,8})),"")),"") -> 
AT64: 0 | AU64: 0 | AV64: =IF($AU64<=6,SUM($C64:$AR64),SUMPRODUCT(LARGE($C64:$AR64,{1,2,3,4,5,6}))) -> 0 | AX64: =IF(AW64= "","",IFERROR(SUMPRODUCT(LARGE($C64:$AR64,{1,2,3,4})), "")) ->  | AY64: =IF(AX64<>"",(IFERROR(SUMPRODUCT(LARGE($C64:$AR64,{1,2,3,4,5,6,7})),"")),"") ->  | AZ64: =IF(AY64<>"",(IFERROR(SUMPRODUCT(LARGE($C64:$AR64,{1,2,3,4,5,6,7,8})),"")),"") -> 
AT65: 0 | AU65: 0 | AV65: =IF($AU65<=6,SUM($C65:$AR65),SUMPRODUCT(LARGE($C65:$AR65,{1,2,3,4,5,6}))) -> 0 | AX65: =IF(AW65= "","",IFERROR(SUMPRODUCT(LARGE($C65:$AR65,{1,2,3,4})), "")) ->  | AY65: =IF(AX65<>"",(IFERROR(SUMPRODUCT(LARGE($C65:$AR65,{1,2,3,4,5,6,7})),"")),"") ->  | AZ65: =IF(AY65<>"",(IFERROR(SUMPRODUCT(LARGE($C65:$AR65,{1,2,3,4,5,6,7,8})),"")),"") -> 
AT66: 0 | AU66: 0 | AV66: =IF($AU66<=6,SUM($C66:$AR66),SUMPRODUCT(LARGE($C66:$AR66,{1,2,3,4,5,6}))) -> 0 | AX66: =IF(AW66= "","",IFERROR(SUMPRODUCT(LARGE($C66:$AR66,{1,2,3,4})), "")) ->  | AY66: =IF(AX66<>"",(IFERROR(SUMPRODUCT(LARGE($C66:$AR66,{1,2,3,4,5,6,7})),"")),"") ->  | AZ66: =IF(AY66<>"",(IFERROR(SUMPRODUCT(LARGE($C66:$AR66,{1,2,3,4,5,6,7,8})),"")),"") -> 
AT67: 0 | AU67: 0 | AV67: =IF($AU67<=6,SUM($C67:$AR67),SUMPRODUCT(LARGE($C67:$AR67,{1,2,3,4,5,6}))) -> 0 | AX67: =IF(AW67= "","",IFERROR(SUMPRODUCT(LARGE($C67:$AR67,{1,2,3,4})), "")) ->  | AY67: =IF(AX67<>"",(IFERROR(SUMPRODUCT(LARGE($C67:$AR67,{1,2,3,4,5,6,7})),"")),"") ->  | AZ67: =IF(AY67<>"",(IFERROR(SUMPRODUCT(LARGE($C67:$AR67,{1,2,3,4,5,6,7,8})),"")),"") -> 
AT68: 0 | AU68: 0 | AV68: =IF($AU68<=6,SUM($C68:$AR68),SUMPRODUCT(LARGE($C68:$AR68,{1,2,3,4,5,6}))) -> 0 | AW68: =IF(AND($AU68>=6,AV68=AV69),"Manual Calc Needed","") ->  | AX68: =IF(AW68= "","",IFERROR(SUMPRODUCT(LARGE($C68:$AR68,{1,2,3,4})), "")) ->  | AY68: =IF(AX68<>"",(IFERROR(SUMPRODUCT(LARGE($C68:$AR68,{1,2,3,4,5,6,7})),"")),"") ->  | AZ68: =IF(AY68<>"",(IFERROR(SUMPRODUCT(LARGE($C68:$AR68,{1,2,3,4,5,6,7,8})),"")),"") -> 
AT69: 0 | AU69: 0 | AV69: =IF($AU69<=6,SUM($C69:$AR69),SUMPRODUCT(LARGE($C69:$AR69,{1,2,3,4,5,6}))) -> 0 | AX69: =IF(AW69= "","",IFERROR(SUMPRODUCT(LARGE($C69:$AR69,{1,2,3,4})), "")) ->  | AY69: =IF(AX69<>"",(IFERROR(SUMPRODUCT(LARGE($C69:$AR69,{1,2,3,4,5,6,7})),"")),"") ->  | AZ69: =IF(AY69<>"",(IFERROR(SUMPRODUCT(LARGE($C69:$AR69,{1,2,3,4,5,6,7,8})),"")),"") -> 
AT70: 0 | AU70: 0 | AV70: =IF($AU70<=6,SUM($C70:$AR70),SUMPRODUCT(LARGE($C70:$AR70,{1,2,3,4,5,6}))) -> 0 | AX70: =IF(AW70= "","",IFERROR(SUMPRODUCT(LARGE($C70:$AR70,{1,2,3,4})), "")) ->  | AY70: =IF(AX70<>"",(IFERROR(SUMPRODUCT(LARGE($C70:$AR70,{1,2,3,4,5,6,7})),"")),"") ->  | AZ70: =IF(AY70<>"",(IFERROR(SUMPRODUCT(LARGE($C70:$AR70,{1,2,3,4,5,6,7,8})),"")),"") -> 
AT71: 0 | AU71: 0 | AV71: =IF($AU71<=6,SUM($C71:$AR71),SUMPRODUCT(LARGE($C71:$AR71,{1,2,3,4,5,6}))) -> 0 | AX71: =IF(AW71= "","",IFERROR(SUMPRODUCT(LARGE($C71:$AR71,{1,2,3,4})), "")) ->  | AY71: =IF(AX71<>"",(IFERROR(SUMPRODUCT(LARGE($C71:$AR71,{1,2,3,4,5,6,7})),"")),"") ->  | AZ71: =IF(AY71<>"",(IFERROR(SUMPRODUCT(LARGE($C71:$AR71,{1,2,3,4,5,6,7,8})),"")),"") -> 
AT72: 0 | AU72: 0 | AV72: =IF($AU72<=6,SUM($C72:$AR72),SUMPRODUCT(LARGE($C72:$AR72,{1,2,3,4,5,6}))) -> 0 | AX72: =IF(AW72= "","",IFERROR(SUMPRODUCT(LARGE($C72:$AR72,{1,2,3,4})), "")) ->  | AY72: =IF(AX72<>"",(IFERROR(SUMPRODUCT(LARGE($C72:$AR72,{1,2,3,4,5,6,7})),"")),"") ->  | AZ72: =IF(AY72<>"",(IFERROR(SUMPRODUCT(LARGE($C72:$AR72,{1,2,3,4,5,6,7,8})),"")),"") -> 
AT73: 0 | AU73: 0 | AV73: =IF($AU73<=6,SUM($C73:$AR73),SUMPRODUCT(LARGE($C73:$AR73,{1,2,3,4,5,6}))) -> 0 | AX73: =IF(AW73= "","",IFERROR(SUMPRODUCT(LARGE($C73:$AR73,{1,2,3,4})), "")) ->  | AY73: =IF(AX73<>"",(IFERROR(SUMPRODUCT(LARGE($C73:$AR73,{1,2,3,4,5,6,7})),"")),"") ->  | AZ73: =IF(AY73<>"",(IFERROR(SUMPRODUCT(LARGE($C73:$AR73,{1,2,3,4,5,6,7,8})),"")),"") -> 
AT74: 0 | AU74: 0 | AV74: =IF($AU74<=6,SUM($C74:$AR74),SUMPRODUCT(LARGE($C74:$AR74,{1,2,3,4,5,6}))) -> 0 | AX74: =IF(AW74= "","",IFERROR(SUMPRODUCT(LARGE($C74:$AR74,{1,2,3,4})), "")) ->  | AY74: =IF(AX74<>"",(IFERROR(SUMPRODUCT(LARGE($C74:$AR74,{1,2,3,4,5,6,7})),"")),"") ->  | AZ74: =IF(AY74<>"",(IFERROR(SUMPRODUCT(LARGE($C74:$AR74,{1,2,3,4,5,6,7,8})),"")),"") -> 
AT75: 0 | AU75: 0 | AV75: =IF($AU75<=6,SUM($C75:$AR75),SUMPRODUCT(LARGE($C75:$AR75,{1,2,3,4,5,6}))) -> 0 | AX75: =IF(AW75= "","",IFERROR(SUMPRODUCT(LARGE($C75:$AR75,{1,2,3,4})), "")) ->  | AY75: =IF(AX75<>"",(IFERROR(SUMPRODUCT(LARGE($C75:$AR75,{1,2,3,4,5,6,7})),"")),"") ->  | AZ75: =IF(AY75<>"",(IFERROR(SUMPRODUCT(LARGE($C75:$AR75,{1,2,3,4,5,6,7,8})),"")),"") -> 
AT76: 0 | AU76: 0 | AV76: =IF($AU76<=6,SUM($C76:$AR76),SUMPRODUCT(LARGE($C76:$AR76,{1,2,3,4,5,6}))) -> 0 | AX76: =IF(AW76= "","",IFERROR(SUMPRODUCT(LARGE($C76:$AR76,{1,2,3,4})), "")) ->  | AY76: =IF(AX76<>"",(IFERROR(SUMPRODUCT(LARGE($C76:$AR76,{1,2,3,4,5,6,7})),"")),"") ->  | AZ76: =IF(AY76<>"",(IFERROR(SUMPRODUCT(LARGE($C76:$AR76,{1,2,3,4,5,6,7,8})),"")),"") -> 
AT77: 0 | AU77: 0 | AV77: =IF($AU77<=6,SUM($C77:$AR77),SUMPRODUCT(LARGE($C77:$AR77,{1,2,3,4,5,6}))) -> 0 | AX77: =IF(AW77= "","",IFERROR(SUMPRODUCT(LARGE($C77:$AR77,{1,2,3,4})), "")) ->  | AY77: =IF(AX77<>"",(IFERROR(SUMPRODUCT(LARGE($C77:$AR77,{1,2,3,4,5,6,7})),"")),"") ->  | AZ77: =IF(AY77<>"",(IFERROR(SUMPRODUCT(LARGE($C77:$AR77,{1,2,3,4,5,6,7,8})),"")),"") -> 
AT78: 0 | AU78: 0 | AV78: =IF($AU78<=6,SUM($C78:$AR78),SUMPRODUCT(LARGE($C78:$AR78,{1,2,3,4,5,6}))) -> 0 | AX78: =IF(AW78= "","",IFERROR(SUMPRODUCT(LARGE($C78:$AR78,{1,2,3,4})), "")) ->  | AY78: =IF(AX78<>"",(IFERROR(SUMPRODUCT(LARGE($C78:$AR78,{1,2,3,4,5,6,7})),"")),"") ->  | AZ78: =IF(AY78<>"",(IFERROR(SUMPRODUCT(LARGE($C78:$AR78,{1,2,3,4,5,6,7,8})),"")),"") -> 
AT79: 0 | AU79: 0 | AV79: =IF($AU79<=6,SUM($C79:$AR79),SUMPRODUCT(LARGE($C79:$AR79,{1,2,3,4,5,6}))) -> 0 | AX79: =IF(AW79= "","",IFERROR(SUMPRODUCT(LARGE($C79:$AR79,{1,2,3,4})), "")) ->  | AY79: =IF(AX79<>"",(IFERROR(SUMPRODUCT(LARGE($C79:$AR79,{1,2,3,4,5,6,7})),"")),"") ->  | AZ79: =IF(AY79<>"",(IFERROR(SUMPRODUCT(LARGE($C79:$AR79,{1,2,3,4,5,6,7,8})),"")),"") -> 
AT80: 0 | AU80: 0 | AV80: =IF($AU80<=6,SUM($C80:$AR80),SUMPRODUCT(LARGE($C80:$AR80,{1,2,3,4,5,6}))) -> 0 | AX80: =IF(AW80= "","",IFERROR(SUMPRODUCT(LARGE($C80:$AR80,{1,2,3,4})), "")) ->  | AY80: =IF(AX80<>"",(IFERROR(SUMPRODUCT(LARGE($C80:$AR80,{1,2,3,4,5,6,7})),"")),"") ->  | AZ80: =IF(AY80<>"",(IFERROR(SUMPRODUCT(LARGE($C80:$AR80,{1,2,3,4,5,6,7,8})),"")),"") -> 
AT81: 0 | AU81: 0 | AV81: =IF($AU81<=6,SUM($C81:$AR81),SUMPRODUCT(LARGE($C81:$AR81,{1,2,3,4,5,6}))) -> 0 | AX81: =IF(AW81= "","",IFERROR(SUMPRODUCT(LARGE($C81:$AR81,{1,2,3,4})), "")) ->  | AY81: =IF(AX81<>"",(IFERROR(SUMPRODUCT(LARGE($C81:$AR81,{1,2,3,4,5,6,7})),"")),"") ->  | AZ81: =IF(AY81<>"",(IFERROR(SUMPRODUCT(LARGE($C81:$AR81,{1,2,3,4,5,6,7,8})),"")),"") -> 
AT82: 0 | AU82: 0 | AV82: =IF($AU82<=6,SUM($C82:$AR82),SUMPRODUCT(LARGE($C82:$AR82,{1,2,3,4,5,6}))) -> 0 | AX82: =IF(AW82= "","",IFERROR(SUMPRODUCT(LARGE($C82:$AR82,{1,2,3,4})), "")) ->  | AY82: =IF(AX82<>"",(IFERROR(SUMPRODUCT(LARGE($C82:$AR82,{1,2,3,4,5,6,7})),"")),"") ->  | AZ82: =IF(AY82<>"",(IFERROR(SUMPRODUCT(LARGE($C82:$AR82,{1,2,3,4,5,6,7,8})),"")),"") -> 
AT83: 0 | AU83: 0 | AV83: =IF($AU83<=6,SUM($C83:$AR83),SUMPRODUCT(LARGE($C83:$AR83,{1,2,3,4,5,6}))) -> 0 | AX83: =IF(AW83= "","",IFERROR(SUMPRODUCT(LARGE($C83:$AR83,{1,2,3,4})), "")) ->  | AY83: =IF(AX83<>"",(IFERROR(SUMPRODUCT(LARGE($C83:$AR83,{1,2,3,4,5,6,7})),"")),"") ->  | AZ83: =IF(AY83<>"",(IFERROR(SUMPRODUCT(LARGE($C83:$AR83,{1,2,3,4,5,6,7,8})),"")),"") -> 
AT84: 0 | AU84: 0 | AV84: =IF($AU84<=6,SUM($C84:$AR84),SUMPRODUCT(LARGE($C84:$AR84,{1,2,3,4,5,6}))) -> 0 | AX84: =IF(AW84= "","",IFERROR(SUMPRODUCT(LARGE($C84:$AR84,{1,2,3,4})), "")) ->  | AY84: =IF(AX84<>"",(IFERROR(SUMPRODUCT(LARGE($C84:$AR84,{1,2,3,4,5,6,7})),"")),"") ->  | AZ84: =IF(AY84<>"",(IFERROR(SUMPRODUCT(LARGE($C84:$AR84,{1,2,3,4,5,6,7,8})),"")),"") -> 
AT85: 0 | AU85: 0 | AV85: =IF($AU85<=6,SUM($C85:$AR85),SUMPRODUCT(LARGE($C85:$AR85,{1,2,3,4,5,6}))) -> 0 | AX85: =IF(AW85= "","",IFERROR(SUMPRODUCT(LARGE($C85:$AR85,{1,2,3,4})), "")) ->  | AY85: =IF(AX85<>"",(IFERROR(SUMPRODUCT(LARGE($C85:$AR85,{1,2,3,4,5,6,7})),"")),"") ->  | AZ85: =IF(AY85<>"",(IFERROR(SUMPRODUCT(LARGE($C85:$AR85,{1,2,3,4,5,6,7,8})),"")),"") -> 
AT86: 0 | AU86: 0 | AV86: =IF($AU86<=6,SUM($C86:$AR86),SUMPRODUCT(LARGE($C86:$AR86,{1,2,3,4,5,6}))) -> 0 | AX86: =IF(AW86= "","",IFERROR(SUMPRODUCT(LARGE($C86:$AR86,{1,2,3,4})), "")) ->  | AY86: =IF(AX86<>"",(IFERROR(SUMPRODUCT(LARGE($C86:$AR86,{1,2,3,4,5,6,7})),"")),"") ->  | AZ86: =IF(AY86<>"",(IFERROR(SUMPRODUCT(LARGE($C86:$AR86,{1,2,3,4,5,6,7,8})),"")),"") -> 
AT87: 0 | AU87: 0 | AV87: =IF($AU87<=6,SUM($C87:$AR87),SUMPRODUCT(LARGE($C87:$AR87,{1,2,3,4,5,6}))) -> 0 | AX87: =IF(AW87= "","",IFERROR(SUMPRODUCT(LARGE($C87:$AR87,{1,2,3,4})), "")) ->  | AY87: =IF(AX87<>"",(IFERROR(SUMPRODUCT(LARGE($C87:$AR87,{1,2,3,4,5,6,7})),"")),"") ->  | AZ87: =IF(AY87<>"",(IFERROR(SUMPRODUCT(LARGE($C87:$AR87,{1,2,3,4,5,6,7,8})),"")),"") -> 
AT88: 0 | AU88: 0 | AV88: =IF($AU88<=6,SUM($C88:$AR88),SUMPRODUCT(LARGE($C88:$AR88,{1,2,3,4,5,6}))) -> 0 | AX88: =IF(AW88= "","",IFERROR(SUMPRODUCT(LARGE($C88:$AR88,{1,2,3,4})), "")) ->  | AY88: =IF(AX88<>"",(IFERROR(SUMPRODUCT(LARGE($C88:$AR88,{1,2,3,4,5,6,7})),"")),"") ->  | AZ88: =IF(AY88<>"",(IFERROR(SUMPRODUCT(LARGE($C88:$AR88,{1,2,3,4,5,6,7,8})),"")),"") -> 
AT89: 0 | AU89: 0 | AV89: =IF($AU89<=6,SUM($C89:$AR89),SUMPRODUCT(LARGE($C89:$AR89,{1,2,3,4,5,6}))) -> 0 | AX89: =IF(AW89= "","",IFERROR(SUMPRODUCT(LARGE($C89:$AR89,{1,2,3,4})), "")) ->  | AY89: =IF(AX89<>"",(IFERROR(SUMPRODUCT(LARGE($C89:$AR89,{1,2,3,4,5,6,7})),"")),"") ->  | AZ89: =IF(AY89<>"",(IFERROR(SUMPRODUCT(LARGE($C89:$AR89,{1,2,3,4,5,6,7,8})),"")),"") -> 
AT90: 0 | AU90: 0 | AV90: =IF($AU90<=6,SUM($C90:$AR90),SUMPRODUCT(LARGE($C90:$AR90,{1,2,3,4,5,6}))) -> 0 | AX90: =IF(AW90= "","",IFERROR(SUMPRODUCT(LARGE($C90:$AR90,{1,2,3,4})), "")) ->  | AY90: =IF(AX90<>"",(IFERROR(SUMPRODUCT(LARGE($C90:$AR90,{1,2,3,4,5,6,7})),"")),"") ->  | AZ90: =IF(AY90<>"",(IFERROR(SUMPRODUCT(LARGE($C90:$AR90,{1,2,3,4,5,6,7,8})),"")),"") -> 
AT91: 0 | AU91: 0 | AV91: =IF($AU91<=6,SUM($C91:$AR91),SUMPRODUCT(LARGE($C91:$AR91,{1,2,3,4,5,6}))) -> 0 | AX91: =IF(AW91= "","",IFERROR(SUMPRODUCT(LARGE($C91:$AR91,{1,2,3,4})), "")) ->  | AY91: =IF(AX91<>"",(IFERROR(SUMPRODUCT(LARGE($C91:$AR91,{1,2,3,4,5,6,7})),"")),"") ->  | AZ91: =IF(AY91<>"",(IFERROR(SUMPRODUCT(LARGE($C91:$AR91,{1,2,3,4,5,6,7,8})),"")),"") -> 
AT92: 0 | AU92: 0 | AV92: =IF($AU92<=6,SUM($C92:$AR92),SUMPRODUCT(LARGE($C92:$AR92,{1,2,3,4,5,6}))) -> 0 | AX92: =IF(AW92= "","",IFERROR(SUMPRODUCT(LARGE($C92:$AR92,{1,2,3,4})), "")) ->  | AY92: =IF(AX92<>"",(IFERROR(SUMPRODUCT(LARGE($C92:$AR92,{1,2,3,4,5,6,7})),"")),"") ->  | AZ92: =IF(AY92<>"",(IFERROR(SUMPRODUCT(LARGE($C92:$AR92,{1,2,3,4,5,6,7,8})),"")),"") -> 
AT93: 0 | AU93: 0 | AV93: =IF($AU93<=6,SUM($C93:$AR93),SUMPRODUCT(LARGE($C93:$AR93,{1,2,3,4,5,6}))) -> 0 | AX93: =IF(AW93= "","",IFERROR(SUMPRODUCT(LARGE($C93:$AR93,{1,2,3,4})), "")) ->  | AY93: =IF(AX93<>"",(IFERROR(SUMPRODUCT(LARGE($C93:$AR93,{1,2,3,4,5,6,7})),"")),"") ->  | AZ93: =IF(AY93<>"",(IFERROR(SUMPRODUCT(LARGE($C93:$AR93,{1,2,3,4,5,6,7,8})),"")),"") -> 
AT94: 0 | AU94: 0 | AV94: =IF($AU94<=6,SUM($C94:$AR94),SUMPRODUCT(LARGE($C94:$AR94,{1,2,3,4,5,6}))) -> 0 | AX94: =IF(AW94= "","",IFERROR(SUMPRODUCT(LARGE($C94:$AR94,{1,2,3,4})), "")) ->  | AY94: =IF(AX94<>"",(IFERROR(SUMPRODUCT(LARGE($C94:$AR94,{1,2,3,4,5,6,7})),"")),"") ->  | AZ94: =IF(AY94<>"",(IFERROR(SUMPRODUCT(LARGE($C94:$AR94,{1,2,3,4,5,6,7,8})),"")),"") -> 
AT95: 0 | AU95: 0 | AV95: =IF($AU95<=6,SUM($C95:$AR95),SUMPRODUCT(LARGE($C95:$AR95,{1,2,3,4,5,6}))) -> 0 | AX95: =IF(AW95= "","",IFERROR(SUMPRODUCT(LARGE($C95:$AR95,{1,2,3,4})), "")) ->  | AY95: =IF(AX95<>"",(IFERROR(SUMPRODUCT(LARGE($C95:$AR95,{1,2,3,4,5,6,7})),"")),"") ->  | AZ95: =IF(AY95<>"",(IFERROR(SUMPRODUCT(LARGE($C95:$AR95,{1,2,3,4,5,6,7,8})),"")),"") -> 
AT96: 0 | AU96: 0 | AV96: =IF($AU96<=6,SUM($C96:$AR96),SUMPRODUCT(LARGE($C96:$AR96,{1,2,3,4,5,6}))) -> 0 | AX96: =IF(AW96= "","",IFERROR(SUMPRODUCT(LARGE($C96:$AR96,{1,2,3,4})), "")) ->  | AY96: =IF(AX96<>"",(IFERROR(SUMPRODUCT(LARGE($C96:$AR96,{1,2,3,4,5,6,7})),"")),"") ->  | AZ96: =IF(AY96<>"",(IFERROR(SUMPRODUCT(LARGE($C96:$AR96,{1,2,3,4,5,6,7,8})),"")),"") -> 
AT97: 0 | AU97: 0 | AV97: =IF($AU97<=6,SUM($C97:$AR97),SUMPRODUCT(LARGE($C97:$AR97,{1,2,3,4,5,6}))) -> 0 | AX97: =IF(AW97= "","",IFERROR(SUMPRODUCT(LARGE($C97:$AR97,{1,2,3,4})), "")) ->  | AY97: =IF(AX97<>"",(IFERROR(SUMPRODUCT(LARGE($C97:$AR97,{1,2,3,4,5,6,7})),"")),"") ->  | AZ97: =IF(AY97<>"",(IFERROR(SUMPRODUCT(LARGE($C97:$AR97,{1,2,3,4,5,6,7,8})),"")),"") -> 
AT98: 0 | AU98: 0 | AV98: =IF($AU98<=6,SUM($C98:$AR98),SUMPRODUCT(LARGE($C98:$AR98,{1,2,3,4,5,6}))) -> 0 | AX98: =IF(AW98= "","",IFERROR(SUMPRODUCT(LARGE($C98:$AR98,{1,2,3,4})), "")) ->  | AY98: =IF(AX98<>"",(IFERROR(SUMPRODUCT(LARGE($C98:$AR98,{1,2,3,4,5,6,7})),"")),"") ->  | AZ98: =IF(AY98<>"",(IFERROR(SUMPRODUCT(LARGE($C98:$AR98,{1,2,3,4,5,6,7,8})),"")),"") -> 
AT99: 0 | AU99: 0 | AV99: =IF($AU99<=6,SUM($C99:$AR99),SUMPRODUCT(LARGE($C99:$AR99,{1,2,3,4,5,6}))) -> 0 | AX99: =IF(AW99= "","",IFERROR(SUMPRODUCT(LARGE($C99:$AR99,{1,2,3,4})), "")) ->  | AY99: =IF(AX99<>"",(IFERROR(SUMPRODUCT(LARGE($C99:$AR99,{1,2,3,4,5,6,7})),"")),"") ->  | AZ99: =IF(AY99<>"",(IFERROR(SUMPRODUCT(LARGE($C99:$AR99,{1,2,3,4,5,6,7,8})),"")),"") -> 
AT100: 0 | AU100: 0 | AV100: =IF($AU100<=6,SUM($C100:$AR100),SUMPRODUCT(LARGE($C100:$AR100,{1,2,3,4,5,6}))) -> 0 | AX100: =IF(AW100= "","",IFERROR(SUMPRODUCT(LARGE($C100:$AR100,{1,2,3,4})), "")) ->  | AY100: =IF(AX100<>"",(IFERROR(SUMPRODUCT(LARGE($C100:$AR100,{1,2,3,4,5,6,7})),"")),"") ->  | AZ100: =IF(AY100<>"",(IFERROR(SUMPRODUCT(LARGE($C100:$AR100,{1,2,3,4,5,6,7,8})),"")),"") -> 
AT101: 0 | AU101: 0 | AV101: =IF($AU101<=6,SUM($C101:$AR101),SUMPRODUCT(LARGE($C101:$AR101,{1,2,3,4,5,6}))) -> 0 | AX101: =IF(AW101= "","",IFERROR(SUMPRODUCT(LARGE($C101:$AR101,{1,2,3,4})), "")) ->  | AY101: =IF(AX101<>"",(IFERROR(SUMPRODUCT(LARGE($C101:$AR101,{1,2,3,4,5,6,7})),"")),"") ->  | AZ101: =IF(AY101<>"",(IFERROR(SUMPRODUCT(LARGE($C101:$AR101,{1,2,3,4,5,6,7,8})),"")),"") -> 
AT102: 0 | AU102: 0 | AV102: =IF($AU102<=6,SUM($C102:$AR102),SUMPRODUCT(LARGE($C102:$AR102,{1,2,3,4,5,6}))) -> 0 | AX102: =IF(AW102= "","",IFERROR(SUMPRODUCT(LARGE($C102:$AR102,{1,2,3,4})), "")) ->  | AY102: =IF(AX102<>"",(IFERROR(SUMPRODUCT(LARGE($C102:$AR102,{1,2,3,4,5,6,7})),"")),"") ->  | AZ102: =IF(AY102<>"",(IFERROR(SUMPRODUCT(LARGE($C102:$AR102,{1,2,3,4,5,6,7,8})),"")),"") -> 
AT103: 0 | AU103: 0 | AV103: =IF($AU103<=6,SUM($C103:$AR103),SUMPRODUCT(LARGE($C103:$AR103,{1,2,3,4,5,6}))) -> 0 | AX103: =IF(AW103= "","",IFERROR(SUMPRODUCT(LARGE($C103:$AR103,{1,2,3,4})), "")) ->  | AY103: =IF(AX103<>"",(IFERROR(SUMPRODUCT(LARGE($C103:$AR103,{1,2,3,4,5,6,7})),"")),"") ->  | AZ103: =IF(AY103<>"",(IFERROR(SUMPRODUCT(LARGE($C103:$AR103,{1,2,3,4,5,6,7,8})),"")),"") -> 
AT104: 0 | AU104: 0 | AV104: =IF($AU104<=6,SUM($C104:$AR104),SUMPRODUCT(LARGE($C104:$AR104,{1,2,3,4,5,6}))) -> 0 | AX104: =IF(AW104= "","",IFERROR(SUMPRODUCT(LARGE($C104:$AR104,{1,2,3,4})), "")) ->  | AY104: =IF(AX104<>"",(IFERROR(SUMPRODUCT(LARGE($C104:$AR104,{1,2,3,4,5,6,7})),"")),"") ->  | AZ104: =IF(AY104<>"",(IFERROR(SUMPRODUCT(LARGE($C104:$AR104,{1,2,3,4,5,6,7,8})),"")),"") -> 
AT105: 0 | AU105: 0 | AV105: =IF($AU105<=6,SUM($C105:$AR105),SUMPRODUCT(LARGE($C105:$AR105,{1,2,3,4,5,6}))) -> 0 | AX105: =IF(AW105= "","",IFERROR(SUMPRODUCT(LARGE($C105:$AR105,{1,2,3,4})), "")) ->  | AY105: =IF(AX105<>"",(IFERROR(SUMPRODUCT(LARGE($C105:$AR105,{1,2,3,4,5,6,7})),"")),"") ->  | AZ105: =IF(AY105<>"",(IFERROR(SUMPRODUCT(LARGE($C105:$AR105,{1,2,3,4,5,6,7,8})),"")),"") -> 
AT106: 0 | AU106: 0 | AV106: =IF($AU106<=6,SUM($C106:$AR106),SUMPRODUCT(LARGE($C106:$AR106,{1,2,3,4,5,6}))) -> 0 | AX106: =IF(AW106= "","",IFERROR(SUMPRODUCT(LARGE($C106:$AR106,{1,2,3,4})), "")) ->  | AY106: =IF(AX106<>"",(IFERROR(SUMPRODUCT(LARGE($C106:$AR106,{1,2,3,4,5,6,7})),"")),"") ->  | AZ106: =IF(AY106<>"",(IFERROR(SUMPRODUCT(LARGE($C106:$AR106,{1,2,3,4,5,6,7,8})),"")),"") -> 
AT107: 0 | AU107: 0 | AV107: =IF($AU107<=6,SUM($C107:$AR107),SUMPRODUCT(LARGE($C107:$AR107,{1,2,3,4,5,6}))) -> 0 | AX107: =IF(AW107= "","",IFERROR(SUMPRODUCT(LARGE($C107:$AR107,{1,2,3,4})), "")) ->  | AY107: =IF(AX107<>"",(IFERROR(SUMPRODUCT(LARGE($C107:$AR107,{1,2,3,4,5,6,7})),"")),"") ->  | AZ107: =IF(AY107<>"",(IFERROR(SUMPRODUCT(LARGE($C107:$AR107,{1,2,3,4,5,6,7,8})),"")),"") -> 
AT108: =SUM($C108:$AS108) -> 0 | AU108: 0 | AV108: =IF($AU108<=6,SUM($C108:$AR108),SUMPRODUCT(LARGE($C108:$AR108,{1,2,3,4,5,6}))) -> 0 | AX108: =IF(AW108= "","",IFERROR(SUMPRODUCT(LARGE($C108:$AR108,{1,2,3,4})), "")) ->  | AY108: =IF(AX108<>"",(IFERROR(SUMPRODUCT(LARGE($C108:$AR108,{1,2,3,4,5,6,7})),"")),"") ->  | AZ108: =IF(AY108<>"",(IFERROR(SUMPRODUCT(LARGE($C108:$AR108,{1,2,3,4,5,6,7,8})),"")),"") -> 
AT109: 0 | AU109: 0 | AV109: =IF($AU109<=6,SUM($C109:$AR109),SUMPRODUCT(LARGE($C109:$AR109,{1,2,3,4,5,6}))) -> 0 | AX109: =IF(AW109= "","",IFERROR(SUMPRODUCT(LARGE($C109:$AR109,{1,2,3,4})), "")) ->  | AY109: =IF(AX109<>"",(IFERROR(SUMPRODUCT(LARGE($C109:$AR109,{1,2,3,4,5,6,7})),"")),"") ->  | AZ109: =IF(AY109<>"",(IFERROR(SUMPRODUCT(LARGE($C109:$AR109,{1,2,3,4,5,6,7,8})),"")),"") -> 
AT110: 0 | AU110: 0 | AV110: =IF($AU110<=6,SUM($C110:$AR110),SUMPRODUCT(LARGE($C110:$AR110,{1,2,3,4,5,6}))) -> 0 | AX110: =IF(AW110= "","",IFERROR(SUMPRODUCT(LARGE($C110:$AR110,{1,2,3,4})), "")) ->  | AY110: =IF(AX110<>"",(IFERROR(SUMPRODUCT(LARGE($C110:$AR110,{1,2,3,4,5,6,7})),"")),"") ->  | AZ110: =IF(AY110<>"",(IFERROR(SUMPRODUCT(LARGE($C110:$AR110,{1,2,3,4,5,6,7,8})),"")),"") -> 
AT111: 0 | AU111: 0 | AV111: =IF($AU111<=6,SUM($C111:$AR111),SUMPRODUCT(LARGE($C111:$AR111,{1,2,3,4,5,6}))) -> 0 | AX111: =IF(AW111= "","",IFERROR(SUMPRODUCT(LARGE($C111:$AR111,{1,2,3,4})), "")) ->  | AY111: =IF(AX111<>"",(IFERROR(SUMPRODUCT(LARGE($C111:$AR111,{1,2,3,4,5,6,7})),"")),"") ->  | AZ111: =IF(AY111<>"",(IFERROR(SUMPRODUCT(LARGE($C111:$AR111,{1,2,3,4,5,6,7,8})),"")),"") -> 
AT112: 0 | AU112: =COUNTA(C112:AR112) -> 0 | AV112: =IF($AU112<=6,SUM($C112:$AR112),SUMPRODUCT(LARGE($C112:$AR112,{1,2,3,4,5,6}))) -> 0 | AX112: =IF(AW112= "","",IFERROR(SUMPRODUCT(LARGE($C112:$AR112,{1,2,3,4})), "")) ->  | AY112: =IF(AX112<>"",(IFERROR(SUMPRODUCT(LARGE($C112:$AR112,{1,2,3,4,5,6,7})),"")),"") ->  | AZ112: =IF(AY112<>"",(IFERROR(SUMPRODUCT(LARGE($C112:$AR112,{1,2,3,4,5,6,7,8})),"")),"") -> 
AT113: 0 | AU113: 0 | AV113: =IF($AU113<=6,SUM($C113:$AR113),SUMPRODUCT(LARGE($C113:$AR113,{1,2,3,4,5,6}))) -> 0 | AX113: =IF(AW113= "","",IFERROR(SUMPRODUCT(LARGE($C113:$AR113,{1,2,3,4})), "")) ->  | AY113: =IF(AX113<>"",(IFERROR(SUMPRODUCT(LARGE($C113:$AR113,{1,2,3,4,5,6,7})),"")),"") ->  | AZ113: =IF(AY113<>"",(IFERROR(SUMPRODUCT(LARGE($C113:$AR113,{1,2,3,4,5,6,7,8})),"")),"") -> 
AT114: 0 | AU114: 0 | AV114: =IF($AU114<=6,SUM($C114:$AR114),SUMPRODUCT(LARGE($C114:$AR114,{1,2,3,4,5,6}))) -> 0 | AX114: =IF(AW114= "","",IFERROR(SUMPRODUCT(LARGE($C114:$AR114,{1,2,3,4})), "")) ->  | AY114: =IF(AX114<>"",(IFERROR(SUMPRODUCT(LARGE($C114:$AR114,{1,2,3,4,5,6,7})),"")),"") ->  | AZ114: =IF(AY114<>"",(IFERROR(SUMPRODUCT(LARGE($C114:$AR114,{1,2,3,4,5,6,7,8})),"")),"") -> 
AT115: 0 | AU115: 0 | AV115: =IF($AU115<=6,SUM($C115:$AR115),SUMPRODUCT(LARGE($C115:$AR115,{1,2,3,4,5,6}))) -> 0 | AX115: =IF(AW115= "","",IFERROR(SUMPRODUCT(LARGE($C115:$AR115,{1,2,3,4})), "")) ->  | AY115: =IF(AX115<>"",(IFERROR(SUMPRODUCT(LARGE($C115:$AR115,{1,2,3,4,5,6,7})),"")),"") ->  | AZ115: =IF(AY115<>"",(IFERROR(SUMPRODUCT(LARGE($C115:$AR115,{1,2,3,4,5,6,7,8})),"")),"") -> 
AT116: 0 | AU116: 0 | AV116: =IF($AU116<=6,SUM($C116:$AR116),SUMPRODUCT(LARGE($C116:$AR116,{1,2,3,4,5,6}))) -> 0 | AX116: =IF(AW116= "","",IFERROR(SUMPRODUCT(LARGE($C116:$AR116,{1,2,3,4})), "")) ->  | AY116: =IF(AX116<>"",(IFERROR(SUMPRODUCT(LARGE($C116:$AR116,{1,2,3,4,5,6,7})),"")),"") ->  | AZ116: =IF(AY116<>"",(IFERROR(SUMPRODUCT(LARGE($C116:$AR116,{1,2,3,4,5,6,7,8})),"")),"") -> 
AT117: 0 | AU117: 0 | AV117: =IF($AU117<=6,SUM($C117:$AR117),SUMPRODUCT(LARGE($C117:$AR117,{1,2,3,4,5,6}))) -> 0 | AX117: =IF(AW117= "","",IFERROR(SUMPRODUCT(LARGE($C117:$AR117,{1,2,3,4})), "")) ->  | AY117: =IF(AX117<>"",(IFERROR(SUMPRODUCT(LARGE($C117:$AR117,{1,2,3,4,5,6,7})),"")),"") ->  | AZ117: =IF(AY117<>"",(IFERROR(SUMPRODUCT(LARGE($C117:$AR117,{1,2,3,4,5,6,7,8})),"")),"") -> 
AT118: 0 | AU118: 0 | AV118: =IF($AU118<=6,SUM($C118:$AR118),SUMPRODUCT(LARGE($C118:$AR118,{1,2,3,4,5,6}))) -> 0 | AX118: =IF(AW118= "","",IFERROR(SUMPRODUCT(LARGE($C118:$AR118,{1,2,3,4})), "")) ->  | AY118: =IF(AX118<>"",(IFERROR(SUMPRODUCT(LARGE($C118:$AR118,{1,2,3,4,5,6,7})),"")),"") ->  | AZ118: =IF(AY118<>"",(IFERROR(SUMPRODUCT(LARGE($C118:$AR118,{1,2,3,4,5,6,7,8})),"")),"") -> 
AT119: 0 | AU119: 0 | AV119: =IF($AU119<=6,SUM($C119:$AR119),SUMPRODUCT(LARGE($C119:$AR119,{1,2,3,4,5,6}))) -> 0 | AX119: =IF(AW119= "","",IFERROR(SUMPRODUCT(LARGE($C119:$AR119,{1,2,3,4})), "")) ->  | AY119: =IF(AX119<>"",(IFERROR(SUMPRODUCT(LARGE($C119:$AR119,{1,2,3,4,5,6,7})),"")),"") ->  | AZ119: =IF(AY119<>"",(IFERROR(SUMPRODUCT(LARGE($C119:$AR119,{1,2,3,4,5,6,7,8})),"")),"") -> 
AT120: 0 | AU120: 0 | AV120: =IF($AU120<=6,SUM($C120:$AR120),SUMPRODUCT(LARGE($C120:$AR120,{1,2,3,4,5,6}))) -> 0 | AX120: =IF(AW120= "","",IFERROR(SUMPRODUCT(LARGE($C120:$AR120,{1,2,3,4})), "")) ->  | AY120: =IF(AX120<>"",(IFERROR(SUMPRODUCT(LARGE($C120:$AR120,{1,2,3,4,5,6,7})),"")),"") ->  | AZ120: =IF(AY120<>"",(IFERROR(SUMPRODUCT(LARGE($C120:$AR120,{1,2,3,4,5,6,7,8})),"")),"") -> 
AT121: 0 | AU121: 0 | AV121: =IF($AU121<=6,SUM($C121:$AR121),SUMPRODUCT(LARGE($C121:$AR121,{1,2,3,4,5,6}))) -> 0 | AX121: =IF(AW121= "","",IFERROR(SUMPRODUCT(LARGE($C121:$AR121,{1,2,3,4})), "")) ->  | AY121: =IF(AX121<>"",(IFERROR(SUMPRODUCT(LARGE($C121:$AR121,{1,2,3,4,5,6,7})),"")),"") ->  | AZ121: =IF(AY121<>"",(IFERROR(SUMPRODUCT(LARGE($C121:$AR121,{1,2,3,4,5,6,7,8})),"")),"") -> 
AT122: 0 | AU122: 0 | AV122: =IF($AU122<=6,SUM($C122:$AR122),SUMPRODUCT(LARGE($C122:$AR122,{1,2,3,4,5,6}))) -> 0 | AX122: =IF(AW122= "","",IFERROR(SUMPRODUCT(LARGE($C122:$AR122,{1,2,3,4})), "")) ->  | AY122: =IF(AX122<>"",(IFERROR(SUMPRODUCT(LARGE($C122:$AR122,{1,2,3,4,5,6,7})),"")),"") ->  | AZ122: =IF(AY122<>"",(IFERROR(SUMPRODUCT(LARGE($C122:$AR122,{1,2,3,4,5,6,7,8})),"")),"") -> 
AT123: 0 | AU123: 0 | AV123: =IF($AU123<=6,SUM($C123:$AR123),SUMPRODUCT(LARGE($C123:$AR123,{1,2,3,4,5,6}))) -> 0 | AX123: =IF(AW123= "","",IFERROR(SUMPRODUCT(LARGE($C123:$AR123,{1,2,3,4})), "")) ->  | AY123: =IF(AX123<>"",(IFERROR(SUMPRODUCT(LARGE($C123:$AR123,{1,2,3,4,5,6,7})),"")),"") ->  | AZ123: =IF(AY123<>"",(IFERROR(SUMPRODUCT(LARGE($C123:$AR123,{1,2,3,4,5,6,7,8})),"")),"") -> 
AT124: 0 | AU124: 0 | AV124: =IF($AU124<=6,SUM($C124:$AR124),SUMPRODUCT(LARGE($C124:$AR124,{1,2,3,4,5,6}))) -> 0 | AX124: =IF(AW124= "","",IFERROR(SUMPRODUCT(LARGE($C124:$AR124,{1,2,3,4})), "")) ->  | AY124: =IF(AX124<>"",(IFERROR(SUMPRODUCT(LARGE($C124:$AR124,{1,2,3,4,5,6,7})),"")),"") ->  | AZ124: =IF(AY124<>"",(IFERROR(SUMPRODUCT(LARGE($C124:$AR124,{1,2,3,4,5,6,7,8})),"")),"") -> 
AT125: 0 | AU125: 0 | AV125: =IF($AU125<=6,SUM($C125:$AR125),SUMPRODUCT(LARGE($C125:$AR125,{1,2,3,4,5,6}))) -> 0 | AX125: =IF(AW125= "","",IFERROR(SUMPRODUCT(LARGE($C125:$AR125,{1,2,3,4})), "")) ->  | AY125: =IF(AX125<>"",(IFERROR(SUMPRODUCT(LARGE($C125:$AR125,{1,2,3,4,5,6,7})),"")),"") ->  | AZ125: =IF(AY125<>"",(IFERROR(SUMPRODUCT(LARGE($C125:$AR125,{1,2,3,4,5,6,7,8})),"")),"") -> 
AT126: 0 | AU126: 0 | AV126: =IF($AU126<=6,SUM($C126:$AR126),SUMPRODUCT(LARGE($C126:$AR126,{1,2,3,4,5,6}))) -> 0 | AX126: =IF(AW126= "","",IFERROR(SUMPRODUCT(LARGE($C126:$AR126,{1,2,3,4})), "")) ->  | AY126: =IF(AX126<>"",(IFERROR(SUMPRODUCT(LARGE($C126:$AR126,{1,2,3,4,5,6,7})),"")),"") ->  | AZ126: =IF(AY126<>"",(IFERROR(SUMPRODUCT(LARGE($C126:$AR126,{1,2,3,4,5,6,7,8})),"")),"") -> 
AT127: 0 | AU127: 0 | AV127: =IF($AU127<=6,SUM($C127:$AR127),SUMPRODUCT(LARGE($C127:$AR127,{1,2,3,4,5,6}))) -> 0 | AX127: =IF(AW127= "","",IFERROR(SUMPRODUCT(LARGE($C127:$AR127,{1,2,3,4})), "")) ->  | AY127: =IF(AX127<>"",(IFERROR(SUMPRODUCT(LARGE($C127:$AR127,{1,2,3,4,5,6,7})),"")),"") ->  | AZ127: =IF(AY127<>"",(IFERROR(SUMPRODUCT(LARGE($C127:$AR127,{1,2,3,4,5,6,7,8})),"")),"") -> 
AT128: 0 | AU128: 0 | AV128: =IF($AU128<=6,SUM($C128:$AR128),SUMPRODUCT(LARGE($C128:$AR128,{1,2,3,4,5,6}))) -> 0 | AX128: =IF(AW128= "","",IFERROR(SUMPRODUCT(LARGE($C128:$AR128,{1,2,3,4})), "")) ->  | AY128: =IF(AX128<>"",(IFERROR(SUMPRODUCT(LARGE($C128:$AR128,{1,2,3,4,5,6,7})),"")),"") ->  | AZ128: =IF(AY128<>"",(IFERROR(SUMPRODUCT(LARGE($C128:$AR128,{1,2,3,4,5,6,7,8})),"")),"") -> 
AT129: 0 | AU129: 0 | AV129: =IF($AU129<=6,SUM($C129:$AR129),SUMPRODUCT(LARGE($C129:$AR129,{1,2,3,4,5,6}))) -> 0 | AX129: =IF(AW129= "","",IFERROR(SUMPRODUCT(LARGE($C129:$AR129,{1,2,3,4})), "")) ->  | AY129: =IF(AX129<>"",(IFERROR(SUMPRODUCT(LARGE($C129:$AR129,{1,2,3,4,5,6,7})),"")),"") ->  | AZ129: =IF(AY129<>"",(IFERROR(SUMPRODUCT(LARGE($C129:$AR129,{1,2,3,4,5,6,7,8})),"")),"") -> 
AT130: 0 | AU130: 0 | AV130: =IF($AU130<=6,SUM($C130:$AR130),SUMPRODUCT(LARGE($C130:$AR130,{1,2,3,4,5,6}))) -> 0 | AX130: =IF(AW130= "","",IFERROR(SUMPRODUCT(LARGE($C130:$AR130,{1,2,3,4})), "")) ->  | AY130: =IF(AX130<>"",(IFERROR(SUMPRODUCT(LARGE($C130:$AR130,{1,2,3,4,5,6,7})),"")),"") ->  | AZ130: =IF(AY130<>"",(IFERROR(SUMPRODUCT(LARGE($C130:$AR130,{1,2,3,4,5,6,7,8})),"")),"") -> 
AT131: 0 | AU131: 0 | AV131: =IF($AU131<=6,SUM($C131:$AR131),SUMPRODUCT(LARGE($C131:$AR131,{1,2,3,4,5,6}))) -> 0 | AX131: =IF(AW131= "","",IFERROR(SUMPRODUCT(LARGE($C131:$AR131,{1,2,3,4})), "")) ->  | AY131: =IF(AX131<>"",(IFERROR(SUMPRODUCT(LARGE($C131:$AR131,{1,2,3,4,5,6,7})),"")),"") ->  | AZ131: =IF(AY131<>"",(IFERROR(SUMPRODUCT(LARGE($C131:$AR131,{1,2,3,4,5,6,7,8})),"")),"") -> 
AT132: 0 | AU132: 0 | AV132: =IF($AU132<=6,SUM($C132:$AR132),SUMPRODUCT(LARGE($C132:$AR132,{1,2,3,4,5,6}))) -> 0 | AW132: =IF(AND($AU132>=6,AV132=AV133),"Manual Calc Needed","") ->  | AX132: =IF(AW132= "","",IFERROR(SUMPRODUCT(LARGE($C132:$AR132,{1,2,3,4})), "")) ->  | AY132: =IF(AX132<>"",(IFERROR(SUMPRODUCT(LARGE($C132:$AR132,{1,2,3,4,5,6,7})),"")),"") ->  | AZ132: =IF(AY132<>"",(IFERROR(SUMPRODUCT(LARGE($C132:$AR132,{1,2,3,4,5,6,7,8})),"")),"") -> 
AT133: 0 | AU133: 0 | AV133: =IF($AU133<=6,SUM($C133:$AR133),SUMPRODUCT(LARGE($C133:$AR133,{1,2,3,4,5,6}))) -> 0 | AX133: =IF(AW133= "","",IFERROR(SUMPRODUCT(LARGE($C133:$AR133,{1,2,3,4})), "")) ->  | AY133: =IF(AX133<>"",(IFERROR(SUMPRODUCT(LARGE($C133:$AR133,{1,2,3,4,5,6,7})),"")),"") ->  | AZ133: =IF(AY133<>"",(IFERROR(SUMPRODUCT(LARGE($C133:$AR133,{1,2,3,4,5,6,7,8})),"")),"") -> 
AT134: 0 | AU134: 0 | AV134: =IF($AU134<=6,SUM($C134:$AR134),SUMPRODUCT(LARGE($C134:$AR134,{1,2,3,4,5,6}))) -> 0 | AX134: =IF(AW134= "","",IFERROR(SUMPRODUCT(LARGE($C134:$AR134,{1,2,3,4})), "")) ->  | AY134: =IF(AX134<>"",(IFERROR(SUMPRODUCT(LARGE($C134:$AR134,{1,2,3,4,5,6,7})),"")),"") ->  | AZ134: =IF(AY134<>"",(IFERROR(SUMPRODUCT(LARGE($C134:$AR134,{1,2,3,4,5,6,7,8})),"")),"") -> 
AT135: 0 | AU135: 0 | AV135: =IF($AU135<=6,SUM($C135:$AR135),SUMPRODUCT(LARGE($C135:$AR135,{1,2,3,4,5,6}))) -> 0 | AX135: =IF(AW135= "","",IFERROR(SUMPRODUCT(LARGE($C135:$AR135,{1,2,3,4})), "")) ->  | AY135: =IF(AX135<>"",(IFERROR(SUMPRODUCT(LARGE($C135:$AR135,{1,2,3,4,5,6,7})),"")),"") ->  | AZ135: =IF(AY135<>"",(IFERROR(SUMPRODUCT(LARGE($C135:$AR135,{1,2,3,4,5,6,7,8})),"")),"") -> 
AT136: 0 | AU136: 0 | AV136: =IF($AU136<=6,SUM($C136:$AR136),SUMPRODUCT(LARGE($C136:$AR136,{1,2,3,4,5,6}))) -> 0 | AX136: =IF(AW136= "","",IFERROR(SUMPRODUCT(LARGE($C136:$AR136,{1,2,3,4})), "")) ->  | AY136: =IF(AX136<>"",(IFERROR(SUMPRODUCT(LARGE($C136:$AR136,{1,2,3,4,5,6,7})),"")),"") ->  | AZ136: =IF(AY136<>"",(IFERROR(SUMPRODUCT(LARGE($C136:$AR136,{1,2,3,4,5,6,7,8})),"")),"") -> 
AT137: 0 | AU137: 0 | AV137: =IF($AU137<=6,SUM($C137:$AR137),SUMPRODUCT(LARGE($C137:$AR137,{1,2,3,4,5,6}))) -> 0 | AX137: =IF(AW137= "","",IFERROR(SUMPRODUCT(LARGE($C137:$AR137,{1,2,3,4})), "")) ->  | AY137: =IF(AX137<>"",(IFERROR(SUMPRODUCT(LARGE($C137:$AR137,{1,2,3,4,5,6,7})),"")),"") ->  | AZ137: =IF(AY137<>"",(IFERROR(SUMPRODUCT(LARGE($C137:$AR137,{1,2,3,4,5,6,7,8})),"")),"") -> 
AT138: 0 | AU138: 0 | AV138: =IF($AU138<=6,SUM($C138:$AR138),SUMPRODUCT(LARGE($C138:$AR138,{1,2,3,4,5,6}))) -> 0 | AX138: =IF(AW138= "","",IFERROR(SUMPRODUCT(LARGE($C138:$AR138,{1,2,3,4})), "")) ->  | AY138: =IF(AX138<>"",(IFERROR(SUMPRODUCT(LARGE($C138:$AR138,{1,2,3,4,5,6,7})),"")),"") ->  | AZ138: =IF(AY138<>"",(IFERROR(SUMPRODUCT(LARGE($C138:$AR138,{1,2,3,4,5,6,7,8})),"")),"") -> 
AT139: 0 | AU139: 0 | AV139: =IF($AU139<=6,SUM($C139:$AR139),SUMPRODUCT(LARGE($C139:$AR139,{1,2,3,4,5,6}))) -> 0 | AX139: =IF(AW139= "","",IFERROR(SUMPRODUCT(LARGE($C139:$AR139,{1,2,3,4})), "")) ->  | AY139: =IF(AX139<>"",(IFERROR(SUMPRODUCT(LARGE($C139:$AR139,{1,2,3,4,5,6,7})),"")),"") ->  | AZ139: =IF(AY139<>"",(IFERROR(SUMPRODUCT(LARGE($C139:$AR139,{1,2,3,4,5,6,7,8})),"")),"") -> 
AT140: 0 | AU140: 0 | AV140: =IF($AU140<=6,SUM($C140:$AR140),SUMPRODUCT(LARGE($C140:$AR140,{1,2,3,4,5,6}))) -> 0 | AX140: =IF(AW140= "","",IFERROR(SUMPRODUCT(LARGE($C140:$AR140,{1,2,3,4})), "")) ->  | AY140: =IF(AX140<>"",(IFERROR(SUMPRODUCT(LARGE($C140:$AR140,{1,2,3,4,5,6,7})),"")),"") ->  | AZ140: =IF(AY140<>"",(IFERROR(SUMPRODUCT(LARGE($C140:$AR140,{1,2,3,4,5,6,7,8})),"")),"") -> 
AT141: 0 | AU141: 0 | AV141: =IF($AU141<=6,SUM($C141:$AR141),SUMPRODUCT(LARGE($C141:$AR141,{1,2,3,4,5,6}))) -> 0 | AX141: =IF(AW141= "","",IFERROR(SUMPRODUCT(LARGE($C141:$AR141,{1,2,3,4})), "")) ->  | AY141: =IF(AX141<>"",(IFERROR(SUMPRODUCT(LARGE($C141:$AR141,{1,2,3,4,5,6,7})),"")),"") ->  | AZ141: =IF(AY141<>"",(IFERROR(SUMPRODUCT(LARGE($C141:$AR141,{1,2,3,4,5,6,7,8})),"")),"") -> 
AT142: 0 | AU142: 0 | AV142: =IF($AU142<=6,SUM($C142:$AR142),SUMPRODUCT(LARGE($C142:$AR142,{1,2,3,4,5,6}))) -> 0 | AX142: =IF(AW142= "","",IFERROR(SUMPRODUCT(LARGE($C142:$AR142,{1,2,3,4})), "")) ->  | AY142: =IF(AX142<>"",(IFERROR(SUMPRODUCT(LARGE($C142:$AR142,{1,2,3,4,5,6,7})),"")),"") ->  | AZ142: =IF(AY142<>"",(IFERROR(SUMPRODUCT(LARGE($C142:$AR142,{1,2,3,4,5,6,7,8})),"")),"") -> 
AT143: 0 | AU143: 0 | AV143: =IF($AU143<=6,SUM($C143:$AR143),SUMPRODUCT(LARGE($C143:$AR143,{1,2,3,4,5,6}))) -> 0 | AX143: =IF(AW143= "","",IFERROR(SUMPRODUCT(LARGE($C143:$AR143,{1,2,3,4})), "")) ->  | AY143: =IF(AX143<>"",(IFERROR(SUMPRODUCT(LARGE($C143:$AR143,{1,2,3,4,5,6,7})),"")),"") ->  | AZ143: =IF(AY143<>"",(IFERROR(SUMPRODUCT(LARGE($C143:$AR143,{1,2,3,4,5,6,7,8})),"")),"") -> 
AT144: 0 | AU144: 0 | AV144: =IF($AU144<=6,SUM($C144:$AR144),SUMPRODUCT(LARGE($C144:$AR144,{1,2,3,4,5,6}))) -> 0 | AX144: =IF(AW144= "","",IFERROR(SUMPRODUCT(LARGE($C144:$AR144,{1,2,3,4})), "")) ->  | AY144: =IF(AX144<>"",(IFERROR(SUMPRODUCT(LARGE($C144:$AR144,{1,2,3,4,5,6,7})),"")),"") ->  | AZ144: =IF(AY144<>"",(IFERROR(SUMPRODUCT(LARGE($C144:$AR144,{1,2,3,4,5,6,7,8})),"")),"") -> 
AT145: 0 | AU145: 0 | AV145: =IF($AU145<=6,SUM($C145:$AR145),SUMPRODUCT(LARGE($C145:$AR145,{1,2,3,4,5,6}))) -> 0 | AX145: =IF(AW145= "","",IFERROR(SUMPRODUCT(LARGE($C145:$AR145,{1,2,3,4})), "")) ->  | AY145: =IF(AX145<>"",(IFERROR(SUMPRODUCT(LARGE($C145:$AR145,{1,2,3,4,5,6,7})),"")),"") ->  | AZ145: =IF(AY145<>"",(IFERROR(SUMPRODUCT(LARGE($C145:$AR145,{1,2,3,4,5,6,7,8})),"")),"") -> 
AT146: 0 | AU146: 0 | AV146: =IF($AU146<=6,SUM($C146:$AR146),SUMPRODUCT(LARGE($C146:$AR146,{1,2,3,4,5,6}))) -> 0 | AX146: =IF(AW146= "","",IFERROR(SUMPRODUCT(LARGE($C146:$AR146,{1,2,3,4})), "")) ->  | AY146: =IF(AX146<>"",(IFERROR(SUMPRODUCT(LARGE($C146:$AR146,{1,2,3,4,5,6,7})),"")),"") ->  | AZ146: =IF(AY146<>"",(IFERROR(SUMPRODUCT(LARGE($C146:$AR146,{1,2,3,4,5,6,7,8})),"")),"") -> 
AT147: 0 | AU147: 0 | AV147: =IF($AU147<=6,SUM($C147:$AR147),SUMPRODUCT(LARGE($C147:$AR147,{1,2,3,4,5,6}))) -> 0 | AX147: =IF(AW147= "","",IFERROR(SUMPRODUCT(LARGE($C147:$AR147,{1,2,3,4})), "")) ->  | AY147: =IF(AX147<>"",(IFERROR(SUMPRODUCT(LARGE($C147:$AR147,{1,2,3,4,5,6,7})),"")),"") ->  | AZ147: =IF(AY147<>"",(IFERROR(SUMPRODUCT(LARGE($C147:$AR147,{1,2,3,4,5,6,7,8})),"")),"") -> 
AT148: 0 | AU148: 0 | AV148: =IF($AU148<=6,SUM($C148:$AR148),SUMPRODUCT(LARGE($C148:$AR148,{1,2,3,4,5,6}))) -> 0 | AX148: =IF(AW148= "","",IFERROR(SUMPRODUCT(LARGE($C148:$AR148,{1,2,3,4})), "")) ->  | AY148: =IF(AX148<>"",(IFERROR(SUMPRODUCT(LARGE($C148:$AR148,{1,2,3,4,5,6,7})),"")),"") ->  | AZ148: =IF(AY148<>"",(IFERROR(SUMPRODUCT(LARGE($C148:$AR148,{1,2,3,4,5,6,7,8})),"")),"") -> 
AT149: 0 | AU149: 0 | AV149: =IF($AU149<=6,SUM($C149:$AR149),SUMPRODUCT(LARGE($C149:$AR149,{1,2,3,4,5,6}))) -> 0 | AX149: =IF(AW149= "","",IFERROR(SUMPRODUCT(LARGE($C149:$AR149,{1,2,3,4})), "")) ->  | AY149: =IF(AX149<>"",(IFERROR(SUMPRODUCT(LARGE($C149:$AR149,{1,2,3,4,5,6,7})),"")),"") ->  | AZ149: =IF(AY149<>"",(IFERROR(SUMPRODUCT(LARGE($C149:$AR149,{1,2,3,4,5,6,7,8})),"")),"") -> 
AT150: 0 | AU150: 0 | AV150: =IF($AU150<=6,SUM($C150:$AR150),SUMPRODUCT(LARGE($C150:$AR150,{1,2,3,4,5,6}))) -> 0 | AX150: =IF(AW150= "","",IFERROR(SUMPRODUCT(LARGE($C150:$AR150,{1,2,3,4})), "")) ->  | AY150: =IF(AX150<>"",(IFERROR(SUMPRODUCT(LARGE($C150:$AR150,{1,2,3,4,5,6,7})),"")),"") ->  | AZ150: =IF(AY150<>"",(IFERROR(SUMPRODUCT(LARGE($C150:$AR150,{1,2,3,4,5,6,7,8})),"")),"") -> 
AT151: 0 | AU151: 0 | AV151: =IF($AU151<=6,SUM($C151:$AR151),SUMPRODUCT(LARGE($C151:$AR151,{1,2,3,4,5,6}))) -> 0 | AX151: =IF(AW151= "","",IFERROR(SUMPRODUCT(LARGE($C151:$AR151,{1,2,3,4})), "")) ->  | AY151: =IF(AX151<>"",(IFERROR(SUMPRODUCT(LARGE($C151:$AR151,{1,2,3,4,5,6,7})),"")),"") ->  | AZ151: =IF(AY151<>"",(IFERROR(SUMPRODUCT(LARGE($C151:$AR151,{1,2,3,4,5,6,7,8})),"")),"") -> 
AT152: 0 | AU152: 0 | AV152: =IF($AU152<=6,SUM($C152:$AR152),SUMPRODUCT(LARGE($C152:$AR152,{1,2,3,4,5,6}))) -> 0 | AX152: =IF(AW152= "","",IFERROR(SUMPRODUCT(LARGE($C152:$AR152,{1,2,3,4})), "")) ->  | AY152: =IF(AX152<>"",(IFERROR(SUMPRODUCT(LARGE($C152:$AR152,{1,2,3,4,5,6,7})),"")),"") ->  | AZ152: =IF(AY152<>"",(IFERROR(SUMPRODUCT(LARGE($C152:$AR152,{1,2,3,4,5,6,7,8})),"")),"") -> 
AT153: 0 | AU153: 0 | AV153: =IF($AU153<=6,SUM($C153:$AR153),SUMPRODUCT(LARGE($C153:$AR153,{1,2,3,4,5,6}))) -> 0 | AX153: =IF(AW153= "","",IFERROR(SUMPRODUCT(LARGE($C153:$AR153,{1,2,3,4})), "")) ->  | AY153: =IF(AX153<>"",(IFERROR(SUMPRODUCT(LARGE($C153:$AR153,{1,2,3,4,5,6,7})),"")),"") ->  | AZ153: =IF(AY153<>"",(IFERROR(SUMPRODUCT(LARGE($C153:$AR153,{1,2,3,4,5,6,7,8})),"")),"") -> 
AT154: 0 | AU154: 0 | AV154: =IF($AU154<=6,SUM($C154:$AR154),SUMPRODUCT(LARGE($C154:$AR154,{1,2,3,4,5,6}))) -> 0 | AX154: =IF(AW154= "","",IFERROR(SUMPRODUCT(LARGE($C154:$AR154,{1,2,3,4})), "")) ->  | AY154: =IF(AX154<>"",(IFERROR(SUMPRODUCT(LARGE($C154:$AR154,{1,2,3,4,5,6,7})),"")),"") ->  | AZ154: =IF(AY154<>"",(IFERROR(SUMPRODUCT(LARGE($C154:$AR154,{1,2,3,4,5,6,7,8})),"")),"") -> 
AT155: 0 | AU155: 0 | AV155: =IF($AU155<=6,SUM($C155:$AR155),SUMPRODUCT(LARGE($C155:$AR155,{1,2,3,4,5,6}))) -> 0 | AX155: =IF(AW155= "","",IFERROR(SUMPRODUCT(LARGE($C155:$AR155,{1,2,3,4})), "")) ->  | AY155: =IF(AX155<>"",(IFERROR(SUMPRODUCT(LARGE($C155:$AR155,{1,2,3,4,5,6,7})),"")),"") ->  | AZ155: =IF(AY155<>"",(IFERROR(SUMPRODUCT(LARGE($C155:$AR155,{1,2,3,4,5,6,7,8})),"")),"") -> 
AT156: 0 | AU156: 0 | AV156: =IF($AU156<=6,SUM($C156:$AR156),SUMPRODUCT(LARGE($C156:$AR156,{1,2,3,4,5,6}))) -> 0 | AX156: =IF(AW156= "","",IFERROR(SUMPRODUCT(LARGE($C156:$AR156,{1,2,3,4})), "")) ->  | AY156: =IF(AX156<>"",(IFERROR(SUMPRODUCT(LARGE($C156:$AR156,{1,2,3,4,5,6,7})),"")),"") ->  | AZ156: =IF(AY156<>"",(IFERROR(SUMPRODUCT(LARGE($C156:$AR156,{1,2,3,4,5,6,7,8})),"")),"") -> 
